Workbook

Sheet Revision History (hidden)
B2: Revision History
C3: NStf-Fil | D3: =OrgCodeSelection -> RXW
B4: Version | C4: Date | D4: Change
B5: 31 | C5: 2020-07-31 | D5: First UDF Version
B6: 32 | C6: 2020-08-11 | D6: Updated ref data for RAJ (merged in RDD and RQ8, but incomplete as not all sites are ODS-registered to RAJ
B7: 33 | C7: 2020-08-28 | D7: remove UDFs and replace template with formula-based solution. | J7: DM-6913 | K7: SF
B8: 34 | C8: 2020-09-05 | D8: #VALUE! Fix - DM-6980
B9: 34.1 | C9: 2020-09-29 | D9: Ref data updates DM-6963
B10: 35 | C10: 2020-10-30 | D10: DM-7180

Sheet Control Panel
A1: X | V1: W = Warnings X = Errors -> | W1: =IF(OR(COUNTBLANK(Warnings!$E$14:$S$213)<>3000,COUNTBLANK(Warnings!$B$7:$K$7)<>10),"There may be issues with these data. Please review the Warnings tab for more information","") -> There may be issues with these data. Please review the Warnings tab for more information | X1: =IF($E$6="","You have not selected an Organistion",IF(COUNTBLANK('Trust - Frontsheet'!E16:AC215)=5000,"You have not entered any data. The submission will FAIL",IF(COUNTBLANK(Errors!$E$7:$K$206)<>1400,"There are errors on this sheet. This submission will FAIL. Please review the Errors tab for more information",""))) -> 
D2: Safe Staffing (Rota Fill Rates and CHPPD) Collection
D4: Please check that the data on this upload template is accurate before being submitted to SDCS. You are reminded that these figures will be published, and it is the responsibility of your organisation that these submitted figures are accurate and in line with national guidance. We will undertake basic validation checks on these figures post submission, and may come back to you with any queries we may have.
E6: RXW | F6: =VLOOKUP(OrgCodeSelection,Orgs,2,FALSE) -> THE SHREWSBURY AND TELFORD HOSPITAL NHS TRUST
D12: =IF(A1="X", "Please enable macros when using this template",IF($E$6="","No organisation has been selected. You cannot submit this template.",IF(COUNTBLANK(Errors!$E$7:$K$206)<>1400,"This template contains errors and will FAIL at submission. Please review the Errors tab for more information",IF(COUNTBLANK('Trust - Frontsheet'!E16:AC215)=5000,"You have not entered any data. The submission will FAIL","No errors have been found in this template. It will be accepted by the SDCS portal")))) -> Please enable macros when using this template | F12: =IF(OR(COUNTBLANK(Warnings!$E$14:$S$213)<>3000,COUNTBLANK(Warnings!$B$7:$K$7)<>10),"There may be issues with these data. Please review the Warnings tab for more information","") -> There may be issues with these data. Please review the Warnings tab for more information
D15: If you have any issues regarding this template please review the Important Information tab before contacting Data Collections
C25: If you have any further queries please contact
C26: england.patquality@nhs.net

Sheet Important Information

Sheet Trust - Frontsheet
D2: Safe Staffing (Rota Fill Rates and CHPPD) Collection
D5: Organisation: | E5: =IF(ISBLANK(OrgCodeSelection),"",OrgCodeSelection) -> RXW | F5: =IF(ISBLANK(OrgNameSelection),"",OrgNameSelection) -> THE SHREWSBURY AND TELFORD HOSPITAL NHS TRUST | AC5: x
AD6: ="" -> 
F7: Please provide the URL to the page on your trust website where your staffing information is available
F8: (Please can you ensure that the URL you attach to the spreadsheet is correct and links to the correct web page and include 'http://' in your URL)
F9: x
F10: =IFERROR(IF(COUNTBLANK(E16:AC215)=5000,"You have not entered any data. The submission will FAIL",IF(COUNTBLANK(Errors!$E$7:$K$206)<>1400,"There are errors on this sheet. This submission will FAIL. Please review the Errors tab for more information",IF(OR(COUNTBLANK(Warnings!$E$14:$S$213)<>3000,COUNTBLANK(Warnings!$B$7:$K$7)<>10),"There may be issues with these data. Please review the Warnings tab for more information",""))),"") -> There may be issues with these data. Please review the Warnings tab for more information
F11: Only complete sites your organisation is accountable for | I11: Day | Q11: Night | Y11: Allied Health Professionals | AC11: Cumulative count over the month of patients at 23:59 each day | AD11: Care Hours Per Patient Day (CHPPD) | AK11: Day | AO11: Night | AS11: Allied Health Professionals
D12: Hospital Site Details | F12: Ward name | G12: Main 2 Specialties on each ward With Covid Status | I12: Registered Nurses/Midwives | K12: Non-registered Nurses/Midwives (Care Staff) | M12: Registered Nursing Associates | O12: Non-registered Nursing Associates | Q12: Registered Nurses/Midwives | S12: Non-registered Nurses/Midwives (Care Staff) | U12: Registered Nursing Associates | W12: Non-registered Nursing Associates | Y12: Registered allied health professionals | AA12: Non-registered allied health professionals | AD12: Registered Nurses/Midwives | AE12: Non-registered Nurses/Midwives | AF12: Registered Nursing Associates | AG12: Non-registered Nursing Associates | AH12: Registered allied health professionals | AI12: Non-registered allied health professionals | AJ12: Overall | AK12: Average fill rate - Registered Nurses/Midwives (%) | AL12: Average fill rate - Non-registered Nurses/Midwives (care staff) (%) | AM12: Average fill rate - Registered Nursing Associates (%) | AN12: Average fill rate - Non-Registered Nursing Associates (%) | AO12: Average fill rate - Registered Nurses/Midwives (%) | AP12: Average fill rate - Non-registered Nurses/Midwives (care staff) (%) | AQ12: Average fill rate - Registered Nursing Associates (%) | AR12: Average fill rate - Non-Registered Nursing Associates (%) | AS12: Average fill rate - registered allied health professionals (AHP) (%) | AT12: Average fill rate - non-registered allied health professionals (AHP) (%)
A13: Site-Ward Concat | D13: Site code *The Site code is automatically populated when a Site name is selected | E13: Hospital Site name | G13: Specialty 1 | H13: Specialty 2 | I13: Total monthly planned staff hours | J13: Total monthly actual staff hours | K13: Total monthly planned staff hours | L13: Total monthly actual staff hours | M13: Total monthly planned staff hours | N13: Total monthly actual staff hours | O13: Total monthly planned staff hours | P13: Total monthly actual staff hours | Q13: Total monthly planned staff hours | R13: Total monthly actual staff hours | S13: Total monthly planned staff hours | T13: Total monthly actual staff hours | U13: Total monthly planned staff hours | V13: Total monthly actual staff hours | W13: Total monthly planned staff hours | X13: Total monthly actual staff hours | Y13: Total monthly planned staff hours | Z13: Total monthly actual staff hours | AA13: Total monthly planned staff hours | AB13: Total monthly actual staff hours
D14: SiteCode | E14: SiteName | F14: WardName | G14: Spec1 | H14: Spec2 | I14: RNM_Planned_Day | J14: RNM_Actual_Day | K14: NRNM_Planned_Day | L14: NRNM_Actual_Day | M14: RNA_Planned_Day | N14: RNA_Actual_Day | O14: NRNA_Planned_Day | P14: NRNA_Actual_Day | Q14: RNM_Planned_Night | R14: RNM_Actual_Night | S14: NRNM_Planned_Night | T14: NRNM_Actual_Night | U14: RNA_Planned_Night | V14: RNA_Actual_Night | W14: NRNA_Planned_Night | X14: NRNA_Actual_Night | Y14: RAHP_Planned | Z14: RAHP_Actual | AA14: NRAHP_Planned | AB14: NRAHP_Actual | AC14: PatientCount | AD14: CHPPD_RNM | AE14: CHPPD_NRNM | AF14: CHPPD_RNA | AG14: CHPPD_NRNA | AH14: CHPPD_RAHP | AI14: CHPPD_NRAHP | AJ14: CHPPD_Overall | AK14: AvgFR_RNM_Day | AL14: AvgFR_NRNM_Day | AM14: AvgFR_RNA_Day | AN14: AvgFR_NRNA_Day | AO14: AvgFR_RNM_Night | AP14: AvgFR_NRNM_Night | AQ14: AvgFR_RNA_Night | AR14: AvgFR_NRNA_Night | AS14: AvgFR_RAHP | AT14: AvgFR_NRAHP
F15: Total | I15: =SUM(INDIRECT("I16:I215")) -> 60577 | J15: =SUM(INDIRECT("J16:J215")) -> 57820 | K15: =SUM(INDIRECT("K16:K215")) -> 42925 | L15: =SUM(INDIRECT("L16:L215")) -> 35887 | M15: =SUM(INDIRECT("M16:M215")) -> 0 | N15: =SUM(INDIRECT("N16:N215")) -> 0 | O15: =SUM(INDIRECT("O16:O215")) -> 0 | P15: =SUM(INDIRECT("P16:P215")) -> 0 | Q15: =SUM(INDIRECT("Q16:Q215")) -> 50250 | R15: =SUM(INDIRECT("R16:R215")) -> 50089 | S15: =SUM(INDIRECT("S16:S215")) -> 28989 | T15: =SUM(INDIRECT("T16:T215")) -> 30633 | U15: =SUM(INDIRECT("U16:U215")) -> 0 | V15: =SUM(INDIRECT("V16:V215")) -> 0 | W15: =SUM(INDIRECT("W16:W215")) -> 0 | X15: =SUM(INDIRECT("X16:X215")) -> 0 | Y15: =SUM(INDIRECT("Y16:Y215")) -> 0 | Z15: =SUM(INDIRECT("Z16:Z215")) -> 0 | AA15: =SUM(INDIRECT("AA16:AA215")) -> 0 | AB15: =SUM(INDIRECT("AB16:AB215")) -> 0 | AC15: =SUM(INDIRECT("AC16:AC215")) -> 18760 | AD15: =IFERROR(IF(INDIRECT("$AC" &ROW()) ="","",SUM(INDIRECT("J" &ROW()),INDIRECT("R" & ROW()))/INDIRECT("$AC" &ROW())),"-") -> 5.752078891 | AE15: =IFERROR(IF(INDIRECT("$AC"&ROW())="","",SUM(INDIRECT("L"&ROW()),INDIRECT("T"&ROW()))/INDIRECT("$AC"&ROW())),"-") -> 3.545842217 | AF15: =IFERROR(IF(INDIRECT("$AC" &ROW())="","",SUM(INDIRECT("N" &ROW()),INDIRECT("V" &ROW()))/INDIRECT("$AC" &ROW())),"-") -> 0 | AG15: =IFERROR(IF(INDIRECT("$AC" &ROW())="","",SUM(INDIRECT("P" &ROW()),INDIRECT("X" &ROW()))/INDIRECT("$AC" &ROW())),"-") -> 0 | AH15: =IFERROR(IF(INDIRECT("$AC" &ROW())="","",INDIRECT("Z" &ROW())/INDIRECT("$AC" &ROW())),"-") -> 0 | AI15: =IFERROR(IF(INDIRECT("$AC" &ROW())="","",INDIRECT("AB" &ROW())/INDIRECT("$AC" &ROW())),"-") -> 0 | AJ15: =IFERROR(IF(AC15="","",SUM(J15,L15,N15,P15,R15,T15,V15,X15,Z15,AB15)/AC15),"-") -> 9.297921109 | AK15: =IFERROR(IF(INDIRECT("I" &ROW())="","",INDIRECT("J" &ROW())/INDIRECT("I" &ROW())),"-") -> 0.9544876768 | AL15: =IFERROR(IF(INDIRECT("K" &ROW())="","",INDIRECT("L" &ROW())/INDIRECT("K" &ROW())),"-") -> 0.836039604 | AM15: =IFERROR(IF(INDIRECT("M" &ROW())="","",INDIRECT("N" &ROW())/INDIRECT("M" &ROW())),"-") -> - | AN15: =IFERROR(IF(INDIRECT("O" &ROW())="","",INDIRECT("P" &ROW())/INDIRECT("O" &ROW())),"-") -> - | AO15: =IFERROR(IF(INDIRECT("Q" &ROW())="","",INDIRECT("R" &ROW())/INDIRECT("Q" &ROW())),"-") -> 0.9967960199 | AP15: =IFERROR(IF(INDIRECT("S" &ROW())="","",INDIRECT("T" &ROW())/INDIRECT("S" &ROW())),"-") -> 1.056711166 | AQ15: =IFERROR(IF(INDIRECT("U" &ROW())="","",INDIRECT("V" &ROW())/INDIRECT("U" &ROW())),"-") -> - | AR15: =IFERROR(IF(INDIRECT("W" &ROW())="","",INDIRECT("X" &ROW())/INDIRECT("W" &ROW())),"-") -> - | AS15: =IFERROR(IF(INDIRECT("Y" &ROW())="","",INDIRECT("Z" &ROW())/INDIRECT("Y" &ROW())),"-") -> - | AT15: =IFERROR(IF(INDIRECT("AA" &ROW())="","",INDIRECT("AB" &ROW())/INDIRECT("AA" &ROW())),"-") -> -
A16: =INDIRECT("D" & ROW())&INDIRECT("F" & ROW()) -> RXWATITU/HDU (PRH) | D16: =IFERROR(VLOOKUP($E$5&INDIRECT("E" & ROW()),Sites,4,FALSE),"") -> RXWAT | E16: THE PRINCESS ROYAL HOSPITAL | F16: ITU/HDU (PRH) | G16: 192 - CRITICAL CARE MEDICINE - STANDARD | I16: 3396 | J16: 2912 | K16: 1202 | L16: 613 | Q16: 3240 | R16: 2846 | S16: 324 | T16: 583 | AC16: 174 | AD16: =IF(A16="","",IFERROR((VLOOKUP(A16,A16:AC216,10,0)+VLOOKUP(A16,A16:AC216,18,0))/VLOOKUP(A16,A16:AC216,29,0),"-")) -> 33.09195402 | AE16: =IF(A16="","",IFERROR((VLOOKUP(A16,A16:AC216,12,0)+VLOOKUP(A16,A16:AC216,20,0))/VLOOKUP(A16,A16:AC216,29,0),"-")) -> 6.873563218 | AF16: =IF(A16="","",IFERROR((VLOOKUP(A16,A16:AC216,14,0)+VLOOKUP(A16,A16:AC216,22,0))/VLOOKUP(A16,A16:AC216,29,0),"-")) -> 0 | AG16: =IF(A16="","",IFERROR((VLOOKUP(A16,A16:AC216,16,0)+VLOOKUP(A16,A16:AC216,24,0))/VLOOKUP(A16,A16:AC216,29,0),"-")) -> 0 | AH16: =IF(A16="","",IFERROR(VLOOKUP(A16,A16:AC216,26,0)/VLOOKUP(A16,A16:AC216,29,0),"-")) -> 0 | AI16: =IF(A16="","",IFERROR(VLOOKUP(A16,A16:AC216,28,0)/VLOOKUP(A16,A16:AC216,29,0),"-")) -> 0 | AJ16: =IF(A16="","",IFERROR((VLOOKUP(A16,A16:AC216,10,0)+VLOOKUP(A16,A16:AC216,12,0)+VLOOKUP(A16,A16:AC216,14,0)+VLOOKUP(A16,A16:AC216,16,0)+VLOOKUP(A16,A16:AC216,18,0)+VLOOKUP(A16,A16:AC216,20,0)+VLOOKUP(A16,A16:AC216,22,0)+VLOOKUP(A16,A16:AC216,24,0)+VLOOKUP(A16,A16:AC216,26,0)+VLOOKUP(A16,A16:AC216,28,0))/VLOOKUP(A16,A16:AC216,29,0),"-")) -> 39.96551724 | AK16: =IF(A16="","",IFERROR(VLOOKUP(A16,A16:AC216,10,0)/VLOOKUP(A16,A16:AC216,9,0),"-")) -> 0.8574793875 | AL16: =IF(A16="","",IFERROR(VLOOKUP(A16,A16:AC216,12,0)/VLOOKUP(A16,A16:AC216,11,0),"-")) -> 0.5099833611 | AM16: =IF(A16="","",IFERROR(VLOOKUP(A16,A16:AC216,14,0)/VLOOKUP(A16,A16:AC216,13,0),"-")) -> - | AN16: =IF(A16="","",IFERROR(VLOOKUP(A16,A16:AC216,16,0)/VLOOKUP(A16,A16:AC216,15,0),"-")) -> - | AO16: =IF(A16="","",IFERROR(VLOOKUP(A16,A16:AC216,18,0)/VLOOKUP(A16,A16:AC216,17,0),"-")) -> 0.8783950617 | AP16: =IF(A16="","",IFERROR(VLOOKUP(A16,A16:AC216,20,0)/VLOOKUP(A16,A16:AC216,19,0),"-")) -> 1.799382716 | AQ16: =IF(A16="","",IFERROR(VLOOKUP(A16,A16:AC216,22,0)/VLOOKUP(A16,A16:AC216,21,0),"-")) -> - | AR16: =IF(A16="","",IFERROR(VLOOKUP(A16,A16:AC216,24,0)/VLOOKUP(A16,A16:AC216,23,0),"-")) -> - | AS16: =IF(A16="","",IFERROR(VLOOKUP(A16,A16:AC216,26,0)/VLOOKUP(A16,A16:AC216,25,0),"-")) -> - | AT16: =IF(A16="","",IFERROR(VLOOKUP(A16,A16:AC216,28,0)/VLOOKUP(A16,A16:AC216,27,0),"-")) -> -
A17: =INDIRECT("D" & ROW())&INDIRECT("F" & ROW()) -> RXWATAMU - PRH | D17: =IFERROR(VLOOKUP($E$5&INDIRECT("E" & ROW()),Sites,4,FALSE),"") -> RXWAT | E17: THE PRINCESS ROYAL HOSPITAL | F17: AMU - PRH | G17: 300 - GENERAL MEDICINE - STANDARD | I17: 1380 | J17: 1265 | K17: 1403 | L17: 1154 | Q17: 1380 | R17: 1268 | S17: 1001 | T17: 900 | AC17: 439 | AD17: =IF(A17="","",IFERROR((VLOOKUP(A17,A17:AC217,10,0)+VLOOKUP(A17,A17:AC217,18,0))/VLOOKUP(A17,A17:AC217,29,0),"-")) -> 5.769931663 | AE17: =IF(A17="","",IFERROR((VLOOKUP(A17,A17:AC217,12,0)+VLOOKUP(A17,A17:AC217,20,0))/VLOOKUP(A17,A17:AC217,29,0),"-")) -> 4.67881549 | AF17: =IF(A17="","",IFERROR((VLOOKUP(A17,A17:AC217,14,0)+VLOOKUP(A17,A17:AC217,22,0))/VLOOKUP(A17,A17:AC217,29,0),"-")) -> 0 | AG17: =IF(A17="","",IFERROR((VLOOKUP(A17,A17:AC217,16,0)+VLOOKUP(A17,A17:AC217,24,0))/VLOOKUP(A17,A17:AC217,29,0),"-")) -> 0 | AH17: =IF(A17="","",IFERROR(VLOOKUP(A17,A17:AC217,26,0)/VLOOKUP(A17,A17:AC217,29,0),"-")) -> 0 | AI17: =IF(A17="","",IFERROR(VLOOKUP(A17,A17:AC217,28,0)/VLOOKUP(A17,A17:AC217,29,0),"-")) -> 0 | AJ17: =IF(A17="","",IFERROR((VLOOKUP(A17,A17:AC217,10,0)+VLOOKUP(A17,A17:AC217,12,0)+VLOOKUP(A17,A17:AC217,14,0)+VLOOKUP(A17,A17:AC217,16,0)+VLOOKUP(A17,A17:AC217,18,0)+VLOOKUP(A17,A17:AC217,20,0)+VLOOKUP(A17,A17:AC217,22,0)+VLOOKUP(A17,A17:AC217,24,0)+VLOOKUP(A17,A17:AC217,26,0)+VLOOKUP(A17,A17:AC217,28,0))/VLOOKUP(A17,A17:AC217,29,0),"-")) -> 10.44874715 | AK17: =IF(A17="","",IFERROR(VLOOKUP(A17,A17:AC217,10,0)/VLOOKUP(A17,A17:AC217,9,0),"-")) -> 0.9166666667 | AL17: =IF(A17="","",IFERROR(VLOOKUP(A17,A17:AC217,12,0)/VLOOKUP(A17,A17:AC217,11,0),"-")) -> 0.8225231646 | AM17: =IF(A17="","",IFERROR(VLOOKUP(A17,A17:AC217,14,0)/VLOOKUP(A17,A17:AC217,13,0),"-")) -> - | AN17: =IF(A17="","",IFERROR(VLOOKUP(A17,A17:AC217,16,0)/VLOOKUP(A17,A17:AC217,15,0),"-")) -> - | AO17: =IF(A17="","",IFERROR(VLOOKUP(A17,A17:AC217,18,0)/VLOOKUP(A17,A17:AC217,17,0),"-")) -> 0.9188405797 | AP17: =IF(A17="","",IFERROR(VLOOKUP(A17,A17:AC217,20,0)/VLOOKUP(A17,A17:AC217,19,0),"-")) -> 0.8991008991 | AQ17: =IF(A17="","",IFERROR(VLOOKUP(A17,A17:AC217,22,0)/VLOOKUP(A17,A17:AC217,21,0),"-")) -> - | AR17: =IF(A17="","",IFERROR(VLOOKUP(A17,A17:AC217,24,0)/VLOOKUP(A17,A17:AC217,23,0),"-")) -> - | AS17: =IF(A17="","",IFERROR(VLOOKUP(A17,A17:AC217,26,0)/VLOOKUP(A17,A17:AC217,25,0),"-")) -> - | AT17: =IF(A17="","",IFERROR(VLOOKUP(A17,A17:AC217,28,0)/VLOOKUP(A17,A17:AC217,27,0),"-")) -> -
A18: =INDIRECT("D" & ROW())&INDIRECT("F" & ROW()) -> RXWATWard 4 | D18: =IFERROR(VLOOKUP($E$5&INDIRECT("E" & ROW()),Sites,4,FALSE),"") -> RXWAT | E18: THE PRINCESS ROYAL HOSPITAL | F18: Ward 4 | G18: 300 - GENERAL MEDICINE - STANDARD | I18: 1539 | J18: 1556 | K18: 1380 | L18: 1295 | Q18: 1035 | R18: 1026 | S18: 1029 | T18: 1167 | AC18: 641 | AD18: 4.028081123 | AE18: 3.840873635 | AF18: 0 | AG18: 0 | AH18: 0 | AI18: 0 | AJ18: 7.868954758 | AK18: 1.011046134 | AL18: 0.9384057971 | AM18: - | AN18: - | AO18: 0.9913043478 | AP18: 1.134110787 | AQ18: - | AR18: - | AS18: - | AT18: -
A19: =INDIRECT("D" & ROW())&INDIRECT("F" & ROW()) -> RXWATWard 6 CCU | D19: =IFERROR(VLOOKUP($E$5&INDIRECT("E" & ROW()),Sites,4,FALSE),"") -> RXWAT | E19: THE PRINCESS ROYAL HOSPITAL | F19: Ward 6 CCU | G19: 320 - CARDIOLOGY - STANDARD | I19: 1714 | J19: 1722 | K19: 932 | L19: 759 | Q19: 1380 | R19: 1371 | S19: 345 | T19: 335 | AC19: 595 | AD19: 5.198319328 | AE19: 1.838655462 | AF19: 0 | AG19: 0 | AH19: 0 | AI19: 0 | AJ19: 7.03697479 | AK19: 1.004667445 | AL19: 0.8143776824 | AM19: - | AN19: - | AO19: 0.9934782609 | AP19: 0.9710144928 | AQ19: - | AR19: - | AS19: - | AT19: -
A20: =INDIRECT("D" & ROW())&INDIRECT("F" & ROW()) -> RXWATWard 7 | D20: =IFERROR(VLOOKUP($E$5&INDIRECT("E" & ROW()),Sites,4,FALSE),"") -> RXWAT | E20: THE PRINCESS ROYAL HOSPITAL | F20: Ward 7 | G20: 300 - GENERAL MEDICINE - STANDARD | I20: 1686 | J20: 1605 | K20: 1370 | L20: 1376 | Q20: 1035 | R20: 1008 | S20: 687 | T20: 752 | AC20: 739 | AD20: 3.535859269 | AE20: 2.879566982 | AF20: 0 | AG20: 0 | AH20: 0 | AI20: 0 | AJ20: 6.415426252 | AK20: 0.9519572954 | AL20: 1.004379562 | AM20: - | AN20: - | AO20: 0.9739130435 | AP20: 1.094614265 | AQ20: - | AR20: - | AS20: - | AT20: -
A21: =INDIRECT("D" & ROW())&INDIRECT("F" & ROW()) -> RXWATWard 8 Medical | D21: =IFERROR(VLOOKUP($E$5&INDIRECT("E" & ROW()),Sites,4,FALSE),"") -> RXWAT | E21: THE PRINCESS ROYAL HOSPITAL | F21: Ward 8 Medical | G21: 300 - GENERAL MEDICINE - STANDARD | I21: 1038 | J21: 650 | K21: 665 | L21: 317 | Q21: 1035 | R21: 694 | S21: 679 | T21: 382 | AC21: 245 | AD21: 5.485714286 | AE21: 2.853061224 | AF21: 0 | AG21: 0 | AH21: 0 | AI21: 0 | AJ21: 8.33877551 | AK21: 0.6262042389 | AL21: 0.4766917293 | AM21: - | AN21: - | AO21: 0.670531401 | AP21: 0.5625920471 | AQ21: - | AR21: - | AS21: - | AT21: -
A22: =INDIRECT("D" & ROW())&INDIRECT("F" & ROW()) -> RXWAT9SD | D22: =IFERROR(VLOOKUP($E$5&INDIRECT("E" & ROW()),Sites,4,FALSE),"") -> RXWAT | E22: THE PRINCESS ROYAL HOSPITAL | F22: 9SD | G22: 300 - GENERAL MEDICINE - STANDARD | I22: 1512 | J22: 1662 | K22: 1372 | L22: 1360 | Q22: 1035 | R22: 1062 | S22: 1035 | T22: 1156 | AC22: 725 | AD22: 3.757241379 | AE22: 3.470344828 | AF22: 0 | AG22: 0 | AH22: 0 | AI22: 0 | AJ22: 7.227586207 | AK22: 1.099206349 | AL22: 0.9912536443 | AM22: - | AN22: - | AO22: 1.026086957 | AP22: 1.116908213 | AQ22: - | AR22: - | AS22: - | AT22: -
A23: =INDIRECT("D" & ROW())&INDIRECT("F" & ROW()) -> RXWATWard 10 | D23: =IFERROR(VLOOKUP($E$5&INDIRECT("E" & ROW()),Sites,4,FALSE),"") -> RXWAT | E23: THE PRINCESS ROYAL HOSPITAL | F23: Ward 10 | G23: 300 - GENERAL MEDICINE - STANDARD | I23: 1577 | J23: 1520 | K23: 1723 | L23: 1697 | Q23: 1035 | R23: 1032 | S23: 1035 | T23: 1334 | AC23: 734 | AD23: 3.476839237 | AE23: 4.129427793 | AF23: 0 | AG23: 0 | AH23: 0 | AI23: 0 | AJ23: 7.60626703 | AK23: 0.9638554217 | AL23: 0.9849100406 | AM23: - | AN23: - | AO23: 0.9971014493 | AP23: 1.288888889 | AQ23: - | AR23: - | AS23: - | AT23: -
A24: =INDIRECT("D" & ROW())&INDIRECT("F" & ROW()) -> RXWATWard 11 | D24: =IFERROR(VLOOKUP($E$5&INDIRECT("E" & ROW()),Sites,4,FALSE),"") -> RXWAT | E24: THE PRINCESS ROYAL HOSPITAL | F24: Ward 11 | G24: 300 - GENERAL MEDICINE - STANDARD | I24: 1538 | J24: 1377 | K24: 1363 | L24: 1174 | Q24: 1035 | R24: 1000 | S24: 690 | T24: 1117 | AC24: 685 | AD24: 3.470072993 | AE24: 3.344525547 | AF24: 0 | AG24: 0 | AH24: 0 | AI24: 0 | AJ24: 6.81459854 | AK24: 0.8953185956 | AL24: 0.8613352898 | AM24: - | AN24: - | AO24: 0.9661835749 | AP24: 1.61884058 | AQ24: - | AR24: - | AS24: - | AT24: -
A25: =INDIRECT("D" & ROW())&INDIRECT("F" & ROW()) -> RXWATWard 14 Gynae | D25: =IFERROR(VLOOKUP($E$5&INDIRECT("E" & ROW()),Sites,4,FALSE),"") -> RXWAT | E25: THE PRINCESS ROYAL HOSPITAL | F25: Ward 14 Gynae | G25: 502 - GYNAECOLOGY - STANDARD | I25: 736 | J25: 679 | K25: 334 | L25: 595 | Q25: 794 | R25: 679 | S25: 345 | T25: 345 | AC25: 233 | AD25: 5.82832618 | AE25: 4.034334764 | AF25: 0 | AG25: 0 | AH25: 0 | AI25: 0 | AJ25: 9.862660944 | AK25: 0.9225543478 | AL25: 1.781437126 | AM25: - | AN25: - | AO25: 0.855163728 | AP25: 1 | AQ25: - | AR25: - | AS25: - | AT25: -
A26: =INDIRECT("D" & ROW())&INDIRECT("F" & ROW()) -> RXWATWard 15 | D26: =IFERROR(VLOOKUP($E$5&INDIRECT("E" & ROW()),Sites,4,FALSE),"") -> RXWAT | E26: THE PRINCESS ROYAL HOSPITAL | F26: Ward 15 | G26: 314 - REHABILITATION - STANDARD | I26: 1235 | J26: 1206 | K26: 1765 | L26: 1215 | Q26: 1035 | R26: 1037 | S26: 690 | T26: 723 | AC26: 574 | AD26: 3.907665505 | AE26: 3.37630662 | AF26: 0 | AG26: 0 | AH26: 0 | AI26: 0 | AJ26: 7.283972125 | AK26: 0.9765182186 | AL26: 0.6883852691 | AM26: - | AN26: - | AO26: 1.001932367 | AP26: 1.047826087 | AQ26: - | AR26: - | AS26: - | AT26: -
A27: =INDIRECT("D" & ROW())&INDIRECT("F" & ROW()) -> RXWATWard 16 | D27: =IFERROR(VLOOKUP($E$5&INDIRECT("E" & ROW()),Sites,4,FALSE),"") -> RXWAT | E27: THE PRINCESS ROYAL HOSPITAL | F27: Ward 16 | G27: 328 - STROKE MEDICINE - STANDARD | I27: 1587 | J27: 1720 | K27: 1035 | L27: 909 | Q27: 1357 | R27: 1338 | S27: 690 | T27: 645 | AC27: 366 | AD27: 8.355191257 | AE27: 4.245901639 | AF27: 0 | AG27: 0 | AH27: 0 | AI27: 0 | AJ27: 12.6010929 | AK27: 1.083805923 | AL27: 0.8782608696 | AM27: - | AN27: - | AO27: 0.9859985262 | AP27: 0.9347826087 | AQ27: - | AR27: - | AS27: - | AT27: -
A28: =INDIRECT("D" & ROW())&INDIRECT("F" & ROW()) -> RXWAT17RE | D28: =IFERROR(VLOOKUP($E$5&INDIRECT("E" & ROW()),Sites,4,FALSE),"") -> RXWAT | E28: THE PRINCESS ROYAL HOSPITAL | F28: 17RE | G28: 340 - RESPIRATORY MEDICINE - RISK MANAGED | I28: 2096 | J28: 1948 | K28: 2321 | L28: 1436 | Q28: 1381 | R28: 1505 | S28: 1380 | T28: 1029 | AC28: 710 | AD28: 4.863380282 | AE28: 3.471830986 | AF28: 0 | AG28: 0 | AH28: 0 | AI28: 0 | AJ28: 8.335211268 | AK28: 0.929389313 | AL28: 0.6186988367 | AM28: - | AN28: - | AO28: 1.089790007 | AP28: 0.7456521739 | AQ28: - | AR28: - | AS28: - | AT28: -
A29: =INDIRECT("D" & ROW())&INDIRECT("F" & ROW()) -> RXWATWard 19 Childrens | D29: =IFERROR(VLOOKUP($E$5&INDIRECT("E" & ROW()),Sites,4,FALSE),"") -> RXWAT | E29: THE PRINCESS ROYAL HOSPITAL | F29: Ward 19 Childrens | G29: 420 - PAEDIATRICS - STANDARD | I29: 3234 | J29: 2878 | K29: 1032 | L29: 850 | Q29: 2754 | R29: 2789 | S29: 679 | T29: 713 | AC29: 556 | AD29: 10.19244604 | AE29: 2.811151079 | AF29: 0 | AG29: 0 | AH29: 0 | AI29: 0 | AJ29: 13.00359712 | AK29: 0.8899196042 | AL29: 0.8236434109 | AM29: - | AN29: - | AO29: 1.012708787 | AP29: 1.050073638 | AQ29: - | AR29: - | AS29: - | AT29: -
A30: =INDIRECT("D" & ROW())&INDIRECT("F" & ROW()) -> RXWMTWard 21 Postnatal | D30: =IFERROR(VLOOKUP($E$5&INDIRECT("E" & ROW()),Sites,4,FALSE),"") -> RXWMT | E30: THE PRINCESS ROYAL HOSPITAL (MATERNITY) | F30: Ward 21 Postnatal | G30: 501 - OBSTETRICS - STANDARD | I30: 1665 | J30: 1640 | K30: 1440 | L30: 1397 | Q30: 1440 | R30: 1354 | S30: 1080 | T30: 1047 | AC30: 397 | AD30: 7.541561713 | AE30: 6.156171285 | AF30: 0 | AG30: 0 | AH30: 0 | AI30: 0 | AJ30: 13.697733 | AK30: 0.984984985 | AL30: 0.9701388889 | AM30: - | AN30: - | AO30: 0.9402777778 | AP30: 0.9694444444 | AQ30: - | AR30: - | AS30: - | AT30: -
A31: =INDIRECT("D" & ROW())&INDIRECT("F" & ROW()) -> RXWMTWard 22 Antenatal | D31: =IFERROR(VLOOKUP($E$5&INDIRECT("E" & ROW()),Sites,4,FALSE),"") -> RXWMT | E31: THE PRINCESS ROYAL HOSPITAL (MATERNITY) | F31: Ward 22 Antenatal | G31: 501 - OBSTETRICS - STANDARD | I31: 1080 | J31: 1034 | K31: 360 | L31: 400 | Q31: 720 | R31: 697 | S31: 360 | T31: 331 | AC31: 194 | AD31: 8.922680412 | AE31: 3.768041237 | AF31: 0 | AG31: 0 | AH31: 0 | AI31: 0 | AJ31: 12.69072165 | AK31: 0.9574074074 | AL31: 1.111111111 | AM31: - | AN31: - | AO31: 0.9680555556 | AP31: 0.9194444444 | AQ31: - | AR31: - | AS31: - | AT31: -
A32: =INDIRECT("D" & ROW())&INDIRECT("F" & ROW()) -> RXWMTWard 23 NNU | D32: =IFERROR(VLOOKUP($E$5&INDIRECT("E" & ROW()),Sites,4,FALSE),"") -> RXWMT | E32: THE PRINCESS ROYAL HOSPITAL (MATERNITY) | F32: Ward 23 NNU | G32: 422 - NEONATOLOGY - STANDARD | I32: 2927 | J32: 2441 | K32: 338 | L32: 353 | Q32: 2759 | R32: 2353 | S32: 345 | T32: 334 | AC32: 371 | AD32: 12.92183288 | AE32: 1.851752022 | AF32: 0 | AG32: 0 | AH32: 0 | AI32: 0 | AJ32: 14.77358491 | AK32: 0.8339596857 | AL32: 1.044378698 | AM32: - | AN32: - | AO32: 0.8528452338 | AP32: 0.968115942 | AQ32: - | AR32: - | AS32: - | AT32: -
A33: =INDIRECT("D" & ROW())&INDIRECT("F" & ROW()) -> RXWMTWard 24 Delivery | D33: =IFERROR(VLOOKUP($E$5&INDIRECT("E" & ROW()),Sites,4,FALSE),"") -> RXWMT | E33: THE PRINCESS ROYAL HOSPITAL (MATERNITY) | F33: Ward 24 Delivery | G33: 422 - NEONATOLOGY - STANDARD | I33: 3070 | J33: 3614 | K33: 1080 | L33: 1141 | Q33: 2880 | R33: 3361 | S33: 1080 | T33: 1073 | AC33: 200 | AD33: 34.875 | AE33: 11.07 | AF33: 0 | AG33: 0 | AH33: 0 | AI33: 0 | AJ33: 45.945 | AK33: 1.177198697 | AL33: 1.056481481 | AM33: - | AN33: - | AO33: 1.167013889 | AP33: 0.9935185185 | AQ33: - | AR33: - | AS33: - | AT33: -
A34: =INDIRECT("D" & ROW())&INDIRECT("F" & ROW()) -> RXWMTWrekin Midwife Led Unit | D34: =IFERROR(VLOOKUP($E$5&INDIRECT("E" & ROW()),Sites,4,FALSE),"") -> RXWMT | E34: THE PRINCESS ROYAL HOSPITAL (MATERNITY) | F34: Wrekin Midwife Led Unit | G34: 560 - MIDWIFE LED CARE - STANDARD | I34: 706 | J34: 656 | K34: 708 | L34: 573 | Q34: 720 | R34: 690 | S34: 720 | T34: 432 | AC34: 18 | AD34: 74.77777778 | AE34: 55.83333333 | AF34: 0 | AG34: 0 | AH34: 0 | AI34: 0 | AJ34: 130.6111111 | AK34: 0.9291784703 | AL34: 0.8093220339 | AM34: - | AN34: - | AO34: 0.9583333333 | AP34: 0.6 | AQ34: - | AR34: - | AS34: - | AT34: -
A35: =INDIRECT("D" & ROW())&INDIRECT("F" & ROW()) -> RXWASITU/HDU (RSH) | D35: =IFERROR(VLOOKUP($E$5&INDIRECT("E" & ROW()),Sites,4,FALSE),"") -> RXWAS | E35: ROYAL SHREWSBURY HOSPITAL | F35: ITU/HDU (RSH) | G35: 192 - CRITICAL CARE MEDICINE - STANDARD | I35: 3952 | J35: 3556 | K35: 1125 | L35: 441 | Q35: 3960 | R35: 3705 | S35: 0 | T35: 294 | AC35: 282 | AD35: 25.74822695 | AE35: 2.606382979 | AF35: 0 | AG35: 0 | AH35: 0 | AI35: 0 | AJ35: 28.35460993 | AK35: 0.8997975709 | AL35: 0.392 | AM35: - | AN35: - | AO35: 0.9356060606 | AP35: - | AQ35: - | AR35: - | AS35: - | AT35: -
A36: =INDIRECT("D" & ROW())&INDIRECT("F" & ROW()) -> RXWASAMU - RSH | D36: =IFERROR(VLOOKUP($E$5&INDIRECT("E" & ROW()),Sites,4,FALSE),"") -> RXWAS | E36: ROYAL SHREWSBURY HOSPITAL | F36: AMU - RSH | G36: 300 - GENERAL MEDICINE - STANDARD | I36: 1723 | J36: 1606 | K36: 1395 | L36: 1032 | Q36: 1714 | R36: 1734 | S36: 1403 | T36: 1302 | AC36: 562 | AD36: 5.943060498 | AE36: 4.153024911 | AF36: 0 | AG36: 0 | AH36: 0 | AI36: 0 | AJ36: 10.09608541 | AK36: 0.9320951828 | AL36: 0.7397849462 | AM36: - | AN36: - | AO36: 1.011668611 | AP36: 0.9280114041 | AQ36: - | AR36: - | AS36: - | AT36: -
A37: =INDIRECT("D" & ROW())&INDIRECT("F" & ROW()) -> RXWASWard 21A | D37: =IFERROR(VLOOKUP($E$5&INDIRECT("E" & ROW()),Sites,4,FALSE),"") -> RXWAS | E37: ROYAL SHREWSBURY HOSPITAL | F37: Ward 21A | G37: 340 - RESPIRATORY MEDICINE - RISK MANAGED | I37: 886 | J37: 1093 | K37: 1035 | L37: 1658 | Q37: 690 | R37: 1023 | S37: 690 | T37: 1587 | AC37: 434 | AD37: 4.875576037 | AE37: 7.476958525 | AF37: 0 | AG37: 0 | AH37: 0 | AI37: 0 | AJ37: 12.35253456 | AK37: 1.233634312 | AL37: 1.601932367 | AM37: - | AN37: - | AO37: 1.482608696 | AP37: 2.3 | AQ37: - | AR37: - | AS37: - | AT37: -
A38: =INDIRECT("D" & ROW())&INDIRECT("F" & ROW()) -> RXWASWard 22S | D38: =IFERROR(VLOOKUP($E$5&INDIRECT("E" & ROW()),Sites,4,FALSE),"") -> RXWAS | E38: ROYAL SHREWSBURY HOSPITAL | F38: Ward 22S | G38: 300 - GENERAL MEDICINE - STANDARD | I38: 1246 | J38: 1281 | K38: 1031 | L38: 751 | Q38: 1012 | R38: 1033 | S38: 690 | T38: 793 | AC38: 546 | AD38: 4.238095238 | AE38: 2.827838828 | AF38: 0 | AG38: 0 | AH38: 0 | AI38: 0 | AJ38: 7.065934066 | AK38: 1.028089888 | AL38: 0.7284190107 | AM38: - | AN38: - | AO38: 1.020750988 | AP38: 1.149275362 | AQ38: - | AR38: - | AS38: - | AT38: -
A39: =INDIRECT("D" & ROW())&INDIRECT("F" & ROW()) -> RXWASWard 22 TO | D39: =IFERROR(VLOOKUP($E$5&INDIRECT("E" & ROW()),Sites,4,FALSE),"") -> RXWAS | E39: ROYAL SHREWSBURY HOSPITAL | F39: Ward 22 TO | G39: 300 - GENERAL MEDICINE - STANDARD | I39: 1372 | J39: 1496 | K39: 1656 | L39: 1397 | Q39: 1035 | R39: 1102 | S39: 1323 | T39: 1618 | AC39: 813 | AD39: 3.195571956 | AE39: 3.708487085 | AF39: 0 | AG39: 0 | AH39: 0 | AI39: 0 | AJ39: 6.904059041 | AK39: 1.090379009 | AL39: 0.8435990338 | AM39: - | AN39: - | AO39: 1.0647343 | AP39: 1.22297808 | AQ39: - | AR39: - | AS39: - | AT39: -
A40: =INDIRECT("D" & ROW())&INDIRECT("F" & ROW()) -> RXWASWard 22 | D40: =IFERROR(VLOOKUP($E$5&INDIRECT("E" & ROW()),Sites,4,FALSE),"") -> RXWAS | E40: ROYAL SHREWSBURY HOSPITAL | F40: Ward 22 | G40: 300 - GENERAL MEDICINE - STANDARD | I40: 1373 | J40: 1242 | K40: 1365 | L40: 1021 | Q40: 1380 | R40: 1495 | S40: 1357 | T40: 1026 | AC40: 753 | AD40: 3.634794157 | AE40: 2.718459495 | AF40: 0 | AG40: 0 | AH40: 0 | AI40: 0 | AJ40: 6.353253652 | AK40: 0.9045884924 | AL40: 0.747985348 | AM40: - | AN40: - | AO40: 1.083333333 | AP40: 0.7560795873 | AQ40: - | AR40: - | AS40: - | AT40: -
A41: =INDIRECT("D" & ROW())&INDIRECT("F" & ROW()) -> RXWASWard 23 O/H | D41: =IFERROR(VLOOKUP($E$5&INDIRECT("E" & ROW()),Sites,4,FALSE),"") -> RXWAS | E41: ROYAL SHREWSBURY HOSPITAL | F41: Ward 23 O/H | G41: 800 - CLINICAL ONCOLOGY - STANDARD | I41: 1790 | J41: 1511 | K41: 1382 | L41: 1236 | Q41: 1380 | R41: 1359 | S41: 690 | T41: 496 | AC41: 568 | AD41: 5.052816901 | AE41: 3.049295775 | AF41: 0 | AG41: 0 | AH41: 0 | AI41: 0 | AJ41: 8.102112676 | AK41: 0.8441340782 | AL41: 0.8943560058 | AM41: - | AN41: - | AO41: 0.9847826087 | AP41: 0.7188405797 | AQ41: - | AR41: - | AS41: - | AT41: -
A42: =INDIRECT("D" & ROW())&INDIRECT("F" & ROW()) -> RXWASWard 24 CCU | D42: =IFERROR(VLOOKUP($E$5&INDIRECT("E" & ROW()),Sites,4,FALSE),"") -> RXWAS | E42: ROYAL SHREWSBURY HOSPITAL | F42: Ward 24 CCU | G42: 320 - CARDIOLOGY - STANDARD | I42: 2217 | J42: 2133 | K42: 1603 | L42: 1293 | Q42: 1714 | R42: 1752 | S42: 690 | T42: 769 | AC42: 854 | AD42: 4.549180328 | AE42: 2.414519906 | AF42: 0 | AG42: 0 | AH42: 0 | AI42: 0 | AJ42: 6.963700234 | AK42: 0.9621109608 | AL42: 0.8066126014 | AM42: - | AN42: - | AO42: 1.022170362 | AP42: 1.114492754 | AQ42: - | AR42: - | AS42: - | AT42: -
A43: =INDIRECT("D" & ROW())&INDIRECT("F" & ROW()) -> RXWASWard 25 | D43: =IFERROR(VLOOKUP($E$5&INDIRECT("E" & ROW()),Sites,4,FALSE),"") -> RXWAS | E43: ROYAL SHREWSBURY HOSPITAL | F43: Ward 25 | G43: 100 - GENERAL SURGERY - STANDARD | I43: 2079 | J43: 2069 | K43: 1758 | L43: 1563 | Q43: 1380 | R43: 1503 | S43: 1035 | T43: 1386 | AC43: 890 | AD43: 4.013483146 | AE43: 3.313483146 | AF43: 0 | AG43: 0 | AH43: 0 | AI43: 0 | AJ43: 7.326966292 | AK43: 0.9951899952 | AL43: 0.8890784983 | AM43: - | AN43: - | AO43: 1.089130435 | AP43: 1.339130435 | AQ43: - | AR43: - | AS43: - | AT43: -
A44: =INDIRECT("D" & ROW())&INDIRECT("F" & ROW()) -> RXWASWard 26 S/ICA/U | D44: =IFERROR(VLOOKUP($E$5&INDIRECT("E" & ROW()),Sites,4,FALSE),"") -> RXWAS | E44: ROYAL SHREWSBURY HOSPITAL | F44: Ward 26 S/ICA/U | G44: 100 - GENERAL SURGERY - STANDARD | I44: 2065 | J44: 2020 | K44: 1533 | L44: 1280 | Q44: 1380 | R44: 1468 | S44: 1056 | T44: 1055 | AC44: 1022 | AD44: 3.412915851 | AE44: 2.284735812 | AF44: 0 | AG44: 0 | AH44: 0 | AI44: 0 | AJ44: 5.697651663 | AK44: 0.9782082324 | AL44: 0.8349641226 | AM44: - | AN44: - | AO44: 1.063768116 | AP44: 0.9990530303 | AQ44: - | AR44: - | AS44: - | AT44: -
A45: =INDIRECT("D" & ROW())&INDIRECT("F" & ROW()) -> RXWASWard 27 | D45: =IFERROR(VLOOKUP($E$5&INDIRECT("E" & ROW()),Sites,4,FALSE),"") -> RXWAS | E45: ROYAL SHREWSBURY HOSPITAL | F45: Ward 27 | G45: 300 - GENERAL MEDICINE - STANDARD | I45: 2051 | J45: 1784 | K45: 1712 | L45: 1566 | Q45: 1380 | R45: 1368 | S45: 1380 | T45: 1438 | AC45: 815 | AD45: 3.867484663 | AE45: 3.685889571 | AF45: 0 | AG45: 0 | AH45: 0 | AI45: 0 | AJ45: 7.553374233 | AK45: 0.8698196002 | AL45: 0.9147196262 | AM45: - | AN45: - | AO45: 0.9913043478 | AP45: 1.042028986 | AQ45: - | AR45: - | AS45: - | AT45: -
A46: =INDIRECT("D" & ROW())&INDIRECT("F" & ROW()) -> RXWASWard 28 | D46: =IFERROR(VLOOKUP($E$5&INDIRECT("E" & ROW()),Sites,4,FALSE),"") -> RXWAS | E46: ROYAL SHREWSBURY HOSPITAL | F46: Ward 28 | G46: 361 - NEPHROLOGY - STANDARD | I46: 1967 | J46: 1477 | K46: 1725 | L46: 951 | Q46: 1380 | R46: 1370 | S46: 1035 | T46: 932 | AC46: 639 | AD46: 4.455399061 | AE46: 2.946791862 | AF46: 0 | AG46: 0 | AH46: 0 | AI46: 0 | AJ46: 7.402190923 | AK46: 0.7508896797 | AL46: 0.5513043478 | AM46: - | AN46: - | AO46: 0.9927536232 | AP46: 0.9004830918 | AQ46: - | AR46: - | AS46: - | AT46: -
A47: =INDIRECT("D" & ROW())&INDIRECT("F" & ROW()) -> RXWAS32 Cohort | D47: =IFERROR(VLOOKUP($E$5&INDIRECT("E" & ROW()),Sites,4,FALSE),"") -> RXWAS | E47: ROYAL SHREWSBURY HOSPITAL | F47: 32 Cohort | G47: 340 - RESPIRATORY MEDICINE - STANDARD | I47: 1380 | J47: 1297 | K47: 1367 | L47: 953 | Q47: 1380 | R47: 1265 | S47: 1376 | T47: 1012 | AC47: 537 | AD47: 4.770949721 | AE47: 3.659217877 | AF47: 0 | AG47: 0 | AH47: 0 | AI47: 0 | AJ47: 8.430167598 | AK47: 0.9398550725 | AL47: 0.6971470373 | AM47: - | AN47: - | AO47: 0.9166666667 | AP47: 0.7354651163 | AQ47: - | AR47: - | AS47: - | AT47: -
A48: =INDIRECT("D" & ROW())&INDIRECT("F" & ROW()) -> RXWASSAU | D48: =IFERROR(VLOOKUP($E$5&INDIRECT("E" & ROW()),Sites,4,FALSE),"") -> RXWAS | E48: ROYAL SHREWSBURY HOSPITAL | F48: SAU | G48: 100 - GENERAL SURGERY - STANDARD | I48: 2070 | J48: 2499 | K48: 1725 | L48: 1670 | Q48: 1725 | R48: 2079 | S48: 1035 | T48: 1365 | AC48: 1033 | AD48: 4.431752178 | AE48: 2.93804453 | AF48: 0 | AG48: 0 | AH48: 0 | AI48: 0 | AJ48: 7.369796709 | AK48: 1.207246377 | AL48: 0.968115942 | AM48: - | AN48: - | AO48: 1.205217391 | AP48: 1.31884058 | AQ48: - | AR48: - | AS48: - | AT48: -
A49: =INDIRECT("D" & ROW())&INDIRECT("F" & ROW()) -> RXWASWard 35 | D49: =IFERROR(VLOOKUP($E$5&INDIRECT("E" & ROW()),Sites,4,FALSE),"") -> RXWAS | E49: ROYAL SHREWSBURY HOSPITAL | F49: Ward 35 | G49: 300 - GENERAL MEDICINE - STANDARD | I49: 690 | J49: 671 | K49: 690 | L49: 461 | Q49: 690 | R49: 723 | S49: 1035 | T49: 1162 | AC49: 416 | AD49: 3.350961538 | AE49: 3.901442308 | AF49: 0 | AG49: 0 | AH49: 0 | AI49: 0 | AJ49: 7.252403846 | AK49: 0.9724637681 | AL49: 0.668115942 | AM49: - | AN49: - | AO49: 1.047826087 | AP49: 1.122705314 | AQ49: - | AR49: - | AS49: - | AT49: -
A50: =INDIRECT("D" & ROW())&INDIRECT("F" & ROW()) ->  | D50: =IFERROR(VLOOKUP($E$5&INDIRECT("E" & ROW()),Sites,4,FALSE),"") -> 
A51: =INDIRECT("D" & ROW())&INDIRECT("F" & ROW()) ->  | D51: =IFERROR(VLOOKUP($E$5&INDIRECT("E" & ROW()),Sites,4,FALSE),"") -> 
A52: =INDIRECT("D" & ROW())&INDIRECT("F" & ROW()) ->  | D52: =IFERROR(VLOOKUP($E$5&INDIRECT("E" & ROW()),Sites,4,FALSE),"") -> 
A53: =INDIRECT("D" & ROW())&INDIRECT("F" & ROW()) ->  | D53: =IFERROR(VLOOKUP($E$5&INDIRECT("E" & ROW()),Sites,4,FALSE),"") -> 
A54: =INDIRECT("D" & ROW())&INDIRECT("F" & ROW()) ->  | D54: =IFERROR(VLOOKUP($E$5&INDIRECT("E" & ROW()),Sites,4,FALSE),"") -> 
A55: =INDIRECT("D" & ROW())&INDIRECT("F" & ROW()) ->  | D55: =IFERROR(VLOOKUP($E$5&INDIRECT("E" & ROW()),Sites,4,FALSE),"") -> 
A56: =INDIRECT("D" & ROW())&INDIRECT("F" & ROW()) ->  | D56: =IFERROR(VLOOKUP($E$5&INDIRECT("E" & ROW()),Sites,4,FALSE),"") -> 
A57: =INDIRECT("D" & ROW())&INDIRECT("F" & ROW()) ->  | D57: =IFERROR(VLOOKUP($E$5&INDIRECT("E" & ROW()),Sites,4,FALSE),"") -> 
A58: =INDIRECT("D" & ROW())&INDIRECT("F" & ROW()) ->  | D58: =IFERROR(VLOOKUP($E$5&INDIRECT("E" & ROW()),Sites,4,FALSE),"") -> 
A59: =INDIRECT("D" & ROW())&INDIRECT("F" & ROW()) ->  | D59: =IFERROR(VLOOKUP($E$5&INDIRECT("E" & ROW()),Sites,4,FALSE),"") -> 
A60: =INDIRECT("D" & ROW())&INDIRECT("F" & ROW()) ->  | D60: =IFERROR(VLOOKUP($E$5&INDIRECT("E" & ROW()),Sites,4,FALSE),"") -> 
A61: =INDIRECT("D" & ROW())&INDIRECT("F" & ROW()) ->  | D61: =IFERROR(VLOOKUP($E$5&INDIRECT("E" & ROW()),Sites,4,FALSE),"") -> 
A62: =INDIRECT("D" & ROW())&INDIRECT("F" & ROW()) ->  | D62: =IFERROR(VLOOKUP($E$5&INDIRECT("E" & ROW()),Sites,4,FALSE),"") -> 
A63: =INDIRECT("D" & ROW())&INDIRECT("F" & ROW()) ->  | D63: =IFERROR(VLOOKUP($E$5&INDIRECT("E" & ROW()),Sites,4,FALSE),"") -> 
A64: =INDIRECT("D" & ROW())&INDIRECT("F" & ROW()) ->  | D64: =IFERROR(VLOOKUP($E$5&INDIRECT("E" & ROW()),Sites,4,FALSE),"") -> 
A65: =INDIRECT("D" & ROW())&INDIRECT("F" & ROW()) ->  | D65: =IFERROR(VLOOKUP($E$5&INDIRECT("E" & ROW()),Sites,4,FALSE),"") -> 
A66: =INDIRECT("D" & ROW())&INDIRECT("F" & ROW()) ->  | D66: =IFERROR(VLOOKUP($E$5&INDIRECT("E" & ROW()),Sites,4,FALSE),"") -> 
A67: =INDIRECT("D" & ROW())&INDIRECT("F" & ROW()) ->  | D67: =IFERROR(VLOOKUP($E$5&INDIRECT("E" & ROW()),Sites,4,FALSE),"") -> 
A68: =INDIRECT("D" & ROW())&INDIRECT("F" & ROW()) ->  | D68: =IFERROR(VLOOKUP($E$5&INDIRECT("E" & ROW()),Sites,4,FALSE),"") -> 
A69: =INDIRECT("D" & ROW())&INDIRECT("F" & ROW()) ->  | D69: =IFERROR(VLOOKUP($E$5&INDIRECT("E" & ROW()),Sites,4,FALSE),"") -> 
A70: =INDIRECT("D" & ROW())&INDIRECT("F" & ROW()) ->  | D70: =IFERROR(VLOOKUP($E$5&INDIRECT("E" & ROW()),Sites,4,FALSE),"") -> 
A71: =INDIRECT("D" & ROW())&INDIRECT("F" & ROW()) ->  | D71: =IFERROR(VLOOKUP($E$5&INDIRECT("E" & ROW()),Sites,4,FALSE),"") -> 
A72: =INDIRECT("D" & ROW())&INDIRECT("F" & ROW()) ->  | D72: =IFERROR(VLOOKUP($E$5&INDIRECT("E" & ROW()),Sites,4,FALSE),"") -> 
A73: =INDIRECT("D" & ROW())&INDIRECT("F" & ROW()) ->  | D73: =IFERROR(VLOOKUP($E$5&INDIRECT("E" & ROW()),Sites,4,FALSE),"") -> 
A74: =INDIRECT("D" & ROW())&INDIRECT("F" & ROW()) ->  | D74: =IFERROR(VLOOKUP($E$5&INDIRECT("E" & ROW()),Sites,4,FALSE),"") -> 
A75: =INDIRECT("D" & ROW())&INDIRECT("F" & ROW()) ->  | D75: =IFERROR(VLOOKUP($E$5&INDIRECT("E" & ROW()),Sites,4,FALSE),"") -> 
A76: =INDIRECT("D" & ROW())&INDIRECT("F" & ROW()) ->  | D76: =IFERROR(VLOOKUP($E$5&INDIRECT("E" & ROW()),Sites,4,FALSE),"") -> 
A77: =INDIRECT("D" & ROW())&INDIRECT("F" & ROW()) ->  | D77: =IFERROR(VLOOKUP($E$5&INDIRECT("E" & ROW()),Sites,4,FALSE),"") -> 
A78: =INDIRECT("D" & ROW())&INDIRECT("F" & ROW()) ->  | D78: =IFERROR(VLOOKUP($E$5&INDIRECT("E" & ROW()),Sites,4,FALSE),"") -> 
A79: =INDIRECT("D" & ROW())&INDIRECT("F" & ROW()) ->  | D79: =IFERROR(VLOOKUP($E$5&INDIRECT("E" & ROW()),Sites,4,FALSE),"") -> 
A80: =INDIRECT("D" & ROW())&INDIRECT("F" & ROW()) ->  | D80: =IFERROR(VLOOKUP($E$5&INDIRECT("E" & ROW()),Sites,4,FALSE),"") -> 
A81: =INDIRECT("D" & ROW())&INDIRECT("F" & ROW()) ->  | D81: =IFERROR(VLOOKUP($E$5&INDIRECT("E" & ROW()),Sites,4,FALSE),"") ->  | AD81: =IF(A81="","",IFERROR((VLOOKUP(A81,A81:AC281,10,0)+VLOOKUP(A81,A81:AC281,18,0))/VLOOKUP(A81,A81:AC281,29,0),"-")) ->  | AE81: =IF(A81="","",IFERROR((VLOOKUP(A81,A81:AC281,12,0)+VLOOKUP(A81,A81:AC281,20,0))/VLOOKUP(A81,A81:AC281,29,0),"-")) ->  | AF81: =IF(A81="","",IFERROR((VLOOKUP(A81,A81:AC281,14,0)+VLOOKUP(A81,A81:AC281,22,0))/VLOOKUP(A81,A81:AC281,29,0),"-")) ->  | AG81: =IF(A81="","",IFERROR((VLOOKUP(A81,A81:AC281,16,0)+VLOOKUP(A81,A81:AC281,24,0))/VLOOKUP(A81,A81:AC281,29,0),"-")) ->  | AH81: =IF(A81="","",IFERROR(VLOOKUP(A81,A81:AC281,26,0)/VLOOKUP(A81,A81:AC281,29,0),"-")) ->  | AI81: =IF(A81="","",IFERROR(VLOOKUP(A81,A81:AC281,28,0)/VLOOKUP(A81,A81:AC281,29,0),"-")) ->  | AJ81: =IF(A81="","",IFERROR((VLOOKUP(A81,A81:AC281,10,0)+VLOOKUP(A81,A81:AC281,12,0)+VLOOKUP(A81,A81:AC281,14,0)+VLOOKUP(A81,A81:AC281,16,0)+VLOOKUP(A81,A81:AC281,18,0)+VLOOKUP(A81,A81:AC281,20,0)+VLOOKUP(A81,A81:AC281,22,0)+VLOOKUP(A81,A81:AC281,24,0)+VLOOKUP(A81,A81:AC281,26,0)+VLOOKUP(A81,A81:AC281,28,0))/VLOOKUP(A81,A81:AC281,29,0),"-")) ->  | AK81: =IF(A81="","",IFERROR(VLOOKUP(A81,A81:AC281,10,0)/VLOOKUP(A81,A81:AC281,9,0),"-")) ->  | AL81: =IF(A81="","",IFERROR(VLOOKUP(A81,A81:AC281,12,0)/VLOOKUP(A81,A81:AC281,11,0),"-")) ->  | AM81: =IF(A81="","",IFERROR(VLOOKUP(A81,A81:AC281,14,0)/VLOOKUP(A81,A81:AC281,13,0),"-")) ->  | AN81: =IF(A81="","",IFERROR(VLOOKUP(A81,A81:AC281,16,0)/VLOOKUP(A81,A81:AC281,15,0),"-")) ->  | AO81: =IF(A81="","",IFERROR(VLOOKUP(A81,A81:AC281,18,0)/VLOOKUP(A81,A81:AC281,17,0),"-")) ->  | AP81: =IF(A81="","",IFERROR(VLOOKUP(A81,A81:AC281,20,0)/VLOOKUP(A81,A81:AC281,19,0),"-")) ->  | AQ81: =IF(A81="","",IFERROR(VLOOKUP(A81,A81:AC281,22,0)/VLOOKUP(A81,A81:AC281,21,0),"-")) ->  | AR81: =IF(A81="","",IFERROR(VLOOKUP(A81,A81:AC281,24,0)/VLOOKUP(A81,A81:AC281,23,0),"-")) ->  | AS81: =IF(A81="","",IFERROR(VLOOKUP(A81,A81:AC281,26,0)/VLOOKUP(A81,A81:AC281,25,0),"-")) ->  | AT81: =IF(A81="","",IFERROR(VLOOKUP(A81,A81:AC281,28,0)/VLOOKUP(A81,A81:AC281,27,0),"-")) -> 
A82: =INDIRECT("D" & ROW())&INDIRECT("F" & ROW()) ->  | D82: =IFERROR(VLOOKUP($E$5&INDIRECT("E" & ROW()),Sites,4,FALSE),"") -> 
A83: =INDIRECT("D" & ROW())&INDIRECT("F" & ROW()) ->  | D83: =IFERROR(VLOOKUP($E$5&INDIRECT("E" & ROW()),Sites,4,FALSE),"") -> 
A84: =INDIRECT("D" & ROW())&INDIRECT("F" & ROW()) ->  | D84: =IFERROR(VLOOKUP($E$5&INDIRECT("E" & ROW()),Sites,4,FALSE),"") -> 
A85: =INDIRECT("D" & ROW())&INDIRECT("F" & ROW()) ->  | D85: =IFERROR(VLOOKUP($E$5&INDIRECT("E" & ROW()),Sites,4,FALSE),"") -> 
A86: =INDIRECT("D" & ROW())&INDIRECT("F" & ROW()) ->  | D86: =IFERROR(VLOOKUP($E$5&INDIRECT("E" & ROW()),Sites,4,FALSE),"") -> 
A87: =INDIRECT("D" & ROW())&INDIRECT("F" & ROW()) ->  | D87: =IFERROR(VLOOKUP($E$5&INDIRECT("E" & ROW()),Sites,4,FALSE),"") -> 
A88: =INDIRECT("D" & ROW())&INDIRECT("F" & ROW()) ->  | D88: =IFERROR(VLOOKUP($E$5&INDIRECT("E" & ROW()),Sites,4,FALSE),"") -> 
A89: =INDIRECT("D" & ROW())&INDIRECT("F" & ROW()) ->  | D89: =IFERROR(VLOOKUP($E$5&INDIRECT("E" & ROW()),Sites,4,FALSE),"") -> 
A90: =INDIRECT("D" & ROW())&INDIRECT("F" & ROW()) ->  | D90: =IFERROR(VLOOKUP($E$5&INDIRECT("E" & ROW()),Sites,4,FALSE),"") -> 
A91: =INDIRECT("D" & ROW())&INDIRECT("F" & ROW()) ->  | D91: =IFERROR(VLOOKUP($E$5&INDIRECT("E" & ROW()),Sites,4,FALSE),"") -> 
A92: =INDIRECT("D" & ROW())&INDIRECT("F" & ROW()) ->  | D92: =IFERROR(VLOOKUP($E$5&INDIRECT("E" & ROW()),Sites,4,FALSE),"") -> 
A93: =INDIRECT("D" & ROW())&INDIRECT("F" & ROW()) ->  | D93: =IFERROR(VLOOKUP($E$5&INDIRECT("E" & ROW()),Sites,4,FALSE),"") -> 
A94: =INDIRECT("D" & ROW())&INDIRECT("F" & ROW()) ->  | D94: =IFERROR(VLOOKUP($E$5&INDIRECT("E" & ROW()),Sites,4,FALSE),"") -> 
A95: =INDIRECT("D" & ROW())&INDIRECT("F" & ROW()) ->  | D95: =IFERROR(VLOOKUP($E$5&INDIRECT("E" & ROW()),Sites,4,FALSE),"") -> 
A96: =INDIRECT("D" & ROW())&INDIRECT("F" & ROW()) ->  | D96: =IFERROR(VLOOKUP($E$5&INDIRECT("E" & ROW()),Sites,4,FALSE),"") -> 
A97: =INDIRECT("D" & ROW())&INDIRECT("F" & ROW()) ->  | D97: =IFERROR(VLOOKUP($E$5&INDIRECT("E" & ROW()),Sites,4,FALSE),"") -> 
A98: =INDIRECT("D" & ROW())&INDIRECT("F" & ROW()) ->  | D98: =IFERROR(VLOOKUP($E$5&INDIRECT("E" & ROW()),Sites,4,FALSE),"") -> 
A99: =INDIRECT("D" & ROW())&INDIRECT("F" & ROW()) ->  | D99: =IFERROR(VLOOKUP($E$5&INDIRECT("E" & ROW()),Sites,4,FALSE),"") -> 
A100: =INDIRECT("D" & ROW())&INDIRECT("F" & ROW()) ->  | D100: =IFERROR(VLOOKUP($E$5&INDIRECT("E" & ROW()),Sites,4,FALSE),"") -> 
A101: =INDIRECT("D" & ROW())&INDIRECT("F" & ROW()) ->  | D101: =IFERROR(VLOOKUP($E$5&INDIRECT("E" & ROW()),Sites,4,FALSE),"") -> 
A102: =INDIRECT("D" & ROW())&INDIRECT("F" & ROW()) ->  | D102: =IFERROR(VLOOKUP($E$5&INDIRECT("E" & ROW()),Sites,4,FALSE),"") -> 
A103: =INDIRECT("D" & ROW())&INDIRECT("F" & ROW()) ->  | D103: =IFERROR(VLOOKUP($E$5&INDIRECT("E" & ROW()),Sites,4,FALSE),"") -> 
A104: =INDIRECT("D" & ROW())&INDIRECT("F" & ROW()) ->  | D104: =IFERROR(VLOOKUP($E$5&INDIRECT("E" & ROW()),Sites,4,FALSE),"") -> 
A105: =INDIRECT("D" & ROW())&INDIRECT("F" & ROW()) ->  | D105: =IFERROR(VLOOKUP($E$5&INDIRECT("E" & ROW()),Sites,4,FALSE),"") -> 
A106: =INDIRECT("D" & ROW())&INDIRECT("F" & ROW()) ->  | D106: =IFERROR(VLOOKUP($E$5&INDIRECT("E" & ROW()),Sites,4,FALSE),"") -> 
A107: =INDIRECT("D" & ROW())&INDIRECT("F" & ROW()) ->  | D107: =IFERROR(VLOOKUP($E$5&INDIRECT("E" & ROW()),Sites,4,FALSE),"") -> 
A108: =INDIRECT("D" & ROW())&INDIRECT("F" & ROW()) ->  | D108: =IFERROR(VLOOKUP($E$5&INDIRECT("E" & ROW()),Sites,4,FALSE),"") -> 
A109: =INDIRECT("D" & ROW())&INDIRECT("F" & ROW()) ->  | D109: =IFERROR(VLOOKUP($E$5&INDIRECT("E" & ROW()),Sites,4,FALSE),"") -> 
A110: =INDIRECT("D" & ROW())&INDIRECT("F" & ROW()) ->  | D110: =IFERROR(VLOOKUP($E$5&INDIRECT("E" & ROW()),Sites,4,FALSE),"") -> 
A111: =INDIRECT("D" & ROW())&INDIRECT("F" & ROW()) ->  | D111: =IFERROR(VLOOKUP($E$5&INDIRECT("E" & ROW()),Sites,4,FALSE),"") -> 
A112: =INDIRECT("D" & ROW())&INDIRECT("F" & ROW()) ->  | D112: =IFERROR(VLOOKUP($E$5&INDIRECT("E" & ROW()),Sites,4,FALSE),"") -> 
A113: =INDIRECT("D" & ROW())&INDIRECT("F" & ROW()) ->  | D113: =IFERROR(VLOOKUP($E$5&INDIRECT("E" & ROW()),Sites,4,FALSE),"") -> 
A114: =INDIRECT("D" & ROW())&INDIRECT("F" & ROW()) ->  | D114: =IFERROR(VLOOKUP($E$5&INDIRECT("E" & ROW()),Sites,4,FALSE),"") -> 
A115: =INDIRECT("D" & ROW())&INDIRECT("F" & ROW()) ->  | D115: =IFERROR(VLOOKUP($E$5&INDIRECT("E" & ROW()),Sites,4,FALSE),"") -> 
A116: =INDIRECT("D" & ROW())&INDIRECT("F" & ROW()) ->  | D116: =IFERROR(VLOOKUP($E$5&INDIRECT("E" & ROW()),Sites,4,FALSE),"") -> 
A117: =INDIRECT("D" & ROW())&INDIRECT("F" & ROW()) ->  | D117: =IFERROR(VLOOKUP($E$5&INDIRECT("E" & ROW()),Sites,4,FALSE),"") -> 
A118: =INDIRECT("D" & ROW())&INDIRECT("F" & ROW()) ->  | D118: =IFERROR(VLOOKUP($E$5&INDIRECT("E" & ROW()),Sites,4,FALSE),"") -> 
A119: =INDIRECT("D" & ROW())&INDIRECT("F" & ROW()) ->  | D119: =IFERROR(VLOOKUP($E$5&INDIRECT("E" & ROW()),Sites,4,FALSE),"") -> 
A120: =INDIRECT("D" & ROW())&INDIRECT("F" & ROW()) ->  | D120: =IFERROR(VLOOKUP($E$5&INDIRECT("E" & ROW()),Sites,4,FALSE),"") -> 
A121: =INDIRECT("D" & ROW())&INDIRECT("F" & ROW()) ->  | D121: =IFERROR(VLOOKUP($E$5&INDIRECT("E" & ROW()),Sites,4,FALSE),"") -> 
A122: =INDIRECT("D" & ROW())&INDIRECT("F" & ROW()) ->  | D122: =IFERROR(VLOOKUP($E$5&INDIRECT("E" & ROW()),Sites,4,FALSE),"") -> 
A123: =INDIRECT("D" & ROW())&INDIRECT("F" & ROW()) ->  | D123: =IFERROR(VLOOKUP($E$5&INDIRECT("E" & ROW()),Sites,4,FALSE),"") -> 
A124: =INDIRECT("D" & ROW())&INDIRECT("F" & ROW()) ->  | D124: =IFERROR(VLOOKUP($E$5&INDIRECT("E" & ROW()),Sites,4,FALSE),"") -> 
A125: =INDIRECT("D" & ROW())&INDIRECT("F" & ROW()) ->  | D125: =IFERROR(VLOOKUP($E$5&INDIRECT("E" & ROW()),Sites,4,FALSE),"") -> 
A126: =INDIRECT("D" & ROW())&INDIRECT("F" & ROW()) ->  | D126: =IFERROR(VLOOKUP($E$5&INDIRECT("E" & ROW()),Sites,4,FALSE),"") -> 
A127: =INDIRECT("D" & ROW())&INDIRECT("F" & ROW()) ->  | D127: =IFERROR(VLOOKUP($E$5&INDIRECT("E" & ROW()),Sites,4,FALSE),"") -> 
A128: =INDIRECT("D" & ROW())&INDIRECT("F" & ROW()) ->  | D128: =IFERROR(VLOOKUP($E$5&INDIRECT("E" & ROW()),Sites,4,FALSE),"") -> 
A129: =INDIRECT("D" & ROW())&INDIRECT("F" & ROW()) ->  | D129: =IFERROR(VLOOKUP($E$5&INDIRECT("E" & ROW()),Sites,4,FALSE),"") -> 
A130: =INDIRECT("D" & ROW())&INDIRECT("F" & ROW()) ->  | D130: =IFERROR(VLOOKUP($E$5&INDIRECT("E" & ROW()),Sites,4,FALSE),"") -> 
A131: =INDIRECT("D" & ROW())&INDIRECT("F" & ROW()) ->  | D131: =IFERROR(VLOOKUP($E$5&INDIRECT("E" & ROW()),Sites,4,FALSE),"") -> 
A132: =INDIRECT("D" & ROW())&INDIRECT("F" & ROW()) ->  | D132: =IFERROR(VLOOKUP($E$5&INDIRECT("E" & ROW()),Sites,4,FALSE),"") -> 
A133: =INDIRECT("D" & ROW())&INDIRECT("F" & ROW()) ->  | D133: =IFERROR(VLOOKUP($E$5&INDIRECT("E" & ROW()),Sites,4,FALSE),"") -> 
A134: =INDIRECT("D" & ROW())&INDIRECT("F" & ROW()) ->  | D134: =IFERROR(VLOOKUP($E$5&INDIRECT("E" & ROW()),Sites,4,FALSE),"") -> 
A135: =INDIRECT("D" & ROW())&INDIRECT("F" & ROW()) ->  | D135: =IFERROR(VLOOKUP($E$5&INDIRECT("E" & ROW()),Sites,4,FALSE),"") -> 
A136: =INDIRECT("D" & ROW())&INDIRECT("F" & ROW()) ->  | D136: =IFERROR(VLOOKUP($E$5&INDIRECT("E" & ROW()),Sites,4,FALSE),"") -> 
A137: =INDIRECT("D" & ROW())&INDIRECT("F" & ROW()) ->  | D137: =IFERROR(VLOOKUP($E$5&INDIRECT("E" & ROW()),Sites,4,FALSE),"") -> 
A138: =INDIRECT("D" & ROW())&INDIRECT("F" & ROW()) ->  | D138: =IFERROR(VLOOKUP($E$5&INDIRECT("E" & ROW()),Sites,4,FALSE),"") -> 
A139: =INDIRECT("D" & ROW())&INDIRECT("F" & ROW()) ->  | D139: =IFERROR(VLOOKUP($E$5&INDIRECT("E" & ROW()),Sites,4,FALSE),"") -> 
A140: =INDIRECT("D" & ROW())&INDIRECT("F" & ROW()) ->  | D140: =IFERROR(VLOOKUP($E$5&INDIRECT("E" & ROW()),Sites,4,FALSE),"") -> 
A141: =INDIRECT("D" & ROW())&INDIRECT("F" & ROW()) ->  | D141: =IFERROR(VLOOKUP($E$5&INDIRECT("E" & ROW()),Sites,4,FALSE),"") -> 
A142: =INDIRECT("D" & ROW())&INDIRECT("F" & ROW()) ->  | D142: =IFERROR(VLOOKUP($E$5&INDIRECT("E" & ROW()),Sites,4,FALSE),"") -> 
A143: =INDIRECT("D" & ROW())&INDIRECT("F" & ROW()) ->  | D143: =IFERROR(VLOOKUP($E$5&INDIRECT("E" & ROW()),Sites,4,FALSE),"") -> 
A144: =INDIRECT("D" & ROW())&INDIRECT("F" & ROW()) ->  | D144: =IFERROR(VLOOKUP($E$5&INDIRECT("E" & ROW()),Sites,4,FALSE),"") -> 
A145: =INDIRECT("D" & ROW())&INDIRECT("F" & ROW()) ->  | D145: =IFERROR(VLOOKUP($E$5&INDIRECT("E" & ROW()),Sites,4,FALSE),"") ->  | AD145: =IF(A145="","",IFERROR((VLOOKUP(A145,A145:AC345,10,0)+VLOOKUP(A145,A145:AC345,18,0))/VLOOKUP(A145,A145:AC345,29,0),"-")) ->  | AE145: =IF(A145="","",IFERROR((VLOOKUP(A145,A145:AC345,12,0)+VLOOKUP(A145,A145:AC345,20,0))/VLOOKUP(A145,A145:AC345,29,0),"-")) ->  | AF145: =IF(A145="","",IFERROR((VLOOKUP(A145,A145:AC345,14,0)+VLOOKUP(A145,A145:AC345,22,0))/VLOOKUP(A145,A145:AC345,29,0),"-")) ->  | AG145: =IF(A145="","",IFERROR((VLOOKUP(A145,A145:AC345,16,0)+VLOOKUP(A145,A145:AC345,24,0))/VLOOKUP(A145,A145:AC345,29,0),"-")) ->  | AH145: =IF(A145="","",IFERROR(VLOOKUP(A145,A145:AC345,26,0)/VLOOKUP(A145,A145:AC345,29,0),"-")) ->  | AI145: =IF(A145="","",IFERROR(VLOOKUP(A145,A145:AC345,28,0)/VLOOKUP(A145,A145:AC345,29,0),"-")) ->  | AJ145: =IF(A145="","",IFERROR((VLOOKUP(A145,A145:AC345,10,0)+VLOOKUP(A145,A145:AC345,12,0)+VLOOKUP(A145,A145:AC345,14,0)+VLOOKUP(A145,A145:AC345,16,0)+VLOOKUP(A145,A145:AC345,18,0)+VLOOKUP(A145,A145:AC345,20,0)+VLOOKUP(A145,A145:AC345,22,0)+VLOOKUP(A145,A145:AC345,24,0)+VLOOKUP(A145,A145:AC345,26,0)+VLOOKUP(A145,A145:AC345,28,0))/VLOOKUP(A145,A145:AC345,29,0),"-")) ->  | AK145: =IF(A145="","",IFERROR(VLOOKUP(A145,A145:AC345,10,0)/VLOOKUP(A145,A145:AC345,9,0),"-")) ->  | AL145: =IF(A145="","",IFERROR(VLOOKUP(A145,A145:AC345,12,0)/VLOOKUP(A145,A145:AC345,11,0),"-")) ->  | AM145: =IF(A145="","",IFERROR(VLOOKUP(A145,A145:AC345,14,0)/VLOOKUP(A145,A145:AC345,13,0),"-")) ->  | AN145: =IF(A145="","",IFERROR(VLOOKUP(A145,A145:AC345,16,0)/VLOOKUP(A145,A145:AC345,15,0),"-")) ->  | AO145: =IF(A145="","",IFERROR(VLOOKUP(A145,A145:AC345,18,0)/VLOOKUP(A145,A145:AC345,17,0),"-")) ->  | AP145: =IF(A145="","",IFERROR(VLOOKUP(A145,A145:AC345,20,0)/VLOOKUP(A145,A145:AC345,19,0),"-")) ->  | AQ145: =IF(A145="","",IFERROR(VLOOKUP(A145,A145:AC345,22,0)/VLOOKUP(A145,A145:AC345,21,0),"-")) ->  | AR145: =IF(A145="","",IFERROR(VLOOKUP(A145,A145:AC345,24,0)/VLOOKUP(A145,A145:AC345,23,0),"-")) ->  | AS145: =IF(A145="","",IFERROR(VLOOKUP(A145,A145:AC345,26,0)/VLOOKUP(A145,A145:AC345,25,0),"-")) ->  | AT145: =IF(A145="","",IFERROR(VLOOKUP(A145,A145:AC345,28,0)/VLOOKUP(A145,A145:AC345,27,0),"-")) -> 
A146: =INDIRECT("D" & ROW())&INDIRECT("F" & ROW()) ->  | D146: =IFERROR(VLOOKUP($E$5&INDIRECT("E" & ROW()),Sites,4,FALSE),"") -> 
A147: =INDIRECT("D" & ROW())&INDIRECT("F" & ROW()) ->  | D147: =IFERROR(VLOOKUP($E$5&INDIRECT("E" & ROW()),Sites,4,FALSE),"") -> 
A148: =INDIRECT("D" & ROW())&INDIRECT("F" & ROW()) ->  | D148: =IFERROR(VLOOKUP($E$5&INDIRECT("E" & ROW()),Sites,4,FALSE),"") -> 
A149: =INDIRECT("D" & ROW())&INDIRECT("F" & ROW()) ->  | D149: =IFERROR(VLOOKUP($E$5&INDIRECT("E" & ROW()),Sites,4,FALSE),"") -> 
A150: =INDIRECT("D" & ROW())&INDIRECT("F" & ROW()) ->  | D150: =IFERROR(VLOOKUP($E$5&INDIRECT("E" & ROW()),Sites,4,FALSE),"") -> 
A151: =INDIRECT("D" & ROW())&INDIRECT("F" & ROW()) ->  | D151: =IFERROR(VLOOKUP($E$5&INDIRECT("E" & ROW()),Sites,4,FALSE),"") -> 
A152: =INDIRECT("D" & ROW())&INDIRECT("F" & ROW()) ->  | D152: =IFERROR(VLOOKUP($E$5&INDIRECT("E" & ROW()),Sites,4,FALSE),"") -> 
A153: =INDIRECT("D" & ROW())&INDIRECT("F" & ROW()) ->  | D153: =IFERROR(VLOOKUP($E$5&INDIRECT("E" & ROW()),Sites,4,FALSE),"") -> 
A154: =INDIRECT("D" & ROW())&INDIRECT("F" & ROW()) ->  | D154: =IFERROR(VLOOKUP($E$5&INDIRECT("E" & ROW()),Sites,4,FALSE),"") -> 
A155: =INDIRECT("D" & ROW())&INDIRECT("F" & ROW()) ->  | D155: =IFERROR(VLOOKUP($E$5&INDIRECT("E" & ROW()),Sites,4,FALSE),"") -> 
A156: =INDIRECT("D" & ROW())&INDIRECT("F" & ROW()) ->  | D156: =IFERROR(VLOOKUP($E$5&INDIRECT("E" & ROW()),Sites,4,FALSE),"") -> 
A157: =INDIRECT("D" & ROW())&INDIRECT("F" & ROW()) ->  | D157: =IFERROR(VLOOKUP($E$5&INDIRECT("E" & ROW()),Sites,4,FALSE),"") -> 
A158: =INDIRECT("D" & ROW())&INDIRECT("F" & ROW()) ->  | D158: =IFERROR(VLOOKUP($E$5&INDIRECT("E" & ROW()),Sites,4,FALSE),"") -> 
A159: =INDIRECT("D" & ROW())&INDIRECT("F" & ROW()) ->  | D159: =IFERROR(VLOOKUP($E$5&INDIRECT("E" & ROW()),Sites,4,FALSE),"") -> 
A160: =INDIRECT("D" & ROW())&INDIRECT("F" & ROW()) ->  | D160: =IFERROR(VLOOKUP($E$5&INDIRECT("E" & ROW()),Sites,4,FALSE),"") -> 
A161: =INDIRECT("D" & ROW())&INDIRECT("F" & ROW()) ->  | D161: =IFERROR(VLOOKUP($E$5&INDIRECT("E" & ROW()),Sites,4,FALSE),"") -> 
A162: =INDIRECT("D" & ROW())&INDIRECT("F" & ROW()) ->  | D162: =IFERROR(VLOOKUP($E$5&INDIRECT("E" & ROW()),Sites,4,FALSE),"") -> 
A163: =INDIRECT("D" & ROW())&INDIRECT("F" & ROW()) ->  | D163: =IFERROR(VLOOKUP($E$5&INDIRECT("E" & ROW()),Sites,4,FALSE),"") -> 
A164: =INDIRECT("D" & ROW())&INDIRECT("F" & ROW()) ->  | D164: =IFERROR(VLOOKUP($E$5&INDIRECT("E" & ROW()),Sites,4,FALSE),"") -> 
A165: =INDIRECT("D" & ROW())&INDIRECT("F" & ROW()) ->  | D165: =IFERROR(VLOOKUP($E$5&INDIRECT("E" & ROW()),Sites,4,FALSE),"") -> 
A166: =INDIRECT("D" & ROW())&INDIRECT("F" & ROW()) ->  | D166: =IFERROR(VLOOKUP($E$5&INDIRECT("E" & ROW()),Sites,4,FALSE),"") -> 
A167: =INDIRECT("D" & ROW())&INDIRECT("F" & ROW()) ->  | D167: =IFERROR(VLOOKUP($E$5&INDIRECT("E" & ROW()),Sites,4,FALSE),"") -> 
A168: =INDIRECT("D" & ROW())&INDIRECT("F" & ROW()) ->  | D168: =IFERROR(VLOOKUP($E$5&INDIRECT("E" & ROW()),Sites,4,FALSE),"") -> 
A169: =INDIRECT("D" & ROW())&INDIRECT("F" & ROW()) ->  | D169: =IFERROR(VLOOKUP($E$5&INDIRECT("E" & ROW()),Sites,4,FALSE),"") -> 
A170: =INDIRECT("D" & ROW())&INDIRECT("F" & ROW()) ->  | D170: =IFERROR(VLOOKUP($E$5&INDIRECT("E" & ROW()),Sites,4,FALSE),"") -> 
A171: =INDIRECT("D" & ROW())&INDIRECT("F" & ROW()) ->  | D171: =IFERROR(VLOOKUP($E$5&INDIRECT("E" & ROW()),Sites,4,FALSE),"") -> 
A172: =INDIRECT("D" & ROW())&INDIRECT("F" & ROW()) ->  | D172: =IFERROR(VLOOKUP($E$5&INDIRECT("E" & ROW()),Sites,4,FALSE),"") -> 
A173: =INDIRECT("D" & ROW())&INDIRECT("F" & ROW()) ->  | D173: =IFERROR(VLOOKUP($E$5&INDIRECT("E" & ROW()),Sites,4,FALSE),"") -> 
A174: =INDIRECT("D" & ROW())&INDIRECT("F" & ROW()) ->  | D174: =IFERROR(VLOOKUP($E$5&INDIRECT("E" & ROW()),Sites,4,FALSE),"") -> 
A175: =INDIRECT("D" & ROW())&INDIRECT("F" & ROW()) ->  | D175: =IFERROR(VLOOKUP($E$5&INDIRECT("E" & ROW()),Sites,4,FALSE),"") -> 
A176: =INDIRECT("D" & ROW())&INDIRECT("F" & ROW()) ->  | D176: =IFERROR(VLOOKUP($E$5&INDIRECT("E" & ROW()),Sites,4,FALSE),"") -> 
A177: =INDIRECT("D" & ROW())&INDIRECT("F" & ROW()) ->  | D177: =IFERROR(VLOOKUP($E$5&INDIRECT("E" & ROW()),Sites,4,FALSE),"") -> 
A178: =INDIRECT("D" & ROW())&INDIRECT("F" & ROW()) ->  | D178: =IFERROR(VLOOKUP($E$5&INDIRECT("E" & ROW()),Sites,4,FALSE),"") -> 
A179: =INDIRECT("D" & ROW())&INDIRECT("F" & ROW()) ->  | D179: =IFERROR(VLOOKUP($E$5&INDIRECT("E" & ROW()),Sites,4,FALSE),"") -> 
A180: =INDIRECT("D" & ROW())&INDIRECT("F" & ROW()) ->  | D180: =IFERROR(VLOOKUP($E$5&INDIRECT("E" & ROW()),Sites,4,FALSE),"") -> 
A181: =INDIRECT("D" & ROW())&INDIRECT("F" & ROW()) ->  | D181: =IFERROR(VLOOKUP($E$5&INDIRECT("E" & ROW()),Sites,4,FALSE),"") -> 
A182: =INDIRECT("D" & ROW())&INDIRECT("F" & ROW()) ->  | D182: =IFERROR(VLOOKUP($E$5&INDIRECT("E" & ROW()),Sites,4,FALSE),"") -> 
A183: =INDIRECT("D" & ROW())&INDIRECT("F" & ROW()) ->  | D183: =IFERROR(VLOOKUP($E$5&INDIRECT("E" & ROW()),Sites,4,FALSE),"") -> 
A184: =INDIRECT("D" & ROW())&INDIRECT("F" & ROW()) ->  | D184: =IFERROR(VLOOKUP($E$5&INDIRECT("E" & ROW()),Sites,4,FALSE),"") -> 
A185: =INDIRECT("D" & ROW())&INDIRECT("F" & ROW()) ->  | D185: =IFERROR(VLOOKUP($E$5&INDIRECT("E" & ROW()),Sites,4,FALSE),"") -> 
A186: =INDIRECT("D" & ROW())&INDIRECT("F" & ROW()) ->  | D186: =IFERROR(VLOOKUP($E$5&INDIRECT("E" & ROW()),Sites,4,FALSE),"") -> 
A187: =INDIRECT("D" & ROW())&INDIRECT("F" & ROW()) ->  | D187: =IFERROR(VLOOKUP($E$5&INDIRECT("E" & ROW()),Sites,4,FALSE),"") -> 
A188: =INDIRECT("D" & ROW())&INDIRECT("F" & ROW()) ->  | D188: =IFERROR(VLOOKUP($E$5&INDIRECT("E" & ROW()),Sites,4,FALSE),"") -> 
A189: =INDIRECT("D" & ROW())&INDIRECT("F" & ROW()) ->  | D189: =IFERROR(VLOOKUP($E$5&INDIRECT("E" & ROW()),Sites,4,FALSE),"") -> 
A190: =INDIRECT("D" & ROW())&INDIRECT("F" & ROW()) ->  | D190: =IFERROR(VLOOKUP($E$5&INDIRECT("E" & ROW()),Sites,4,FALSE),"") -> 
A191: =INDIRECT("D" & ROW())&INDIRECT("F" & ROW()) ->  | D191: =IFERROR(VLOOKUP($E$5&INDIRECT("E" & ROW()),Sites,4,FALSE),"") -> 
A192: =INDIRECT("D" & ROW())&INDIRECT("F" & ROW()) ->  | D192: =IFERROR(VLOOKUP($E$5&INDIRECT("E" & ROW()),Sites,4,FALSE),"") -> 
A193: =INDIRECT("D" & ROW())&INDIRECT("F" & ROW()) ->  | D193: =IFERROR(VLOOKUP($E$5&INDIRECT("E" & ROW()),Sites,4,FALSE),"") -> 
A194: =INDIRECT("D" & ROW())&INDIRECT("F" & ROW()) ->  | D194: =IFERROR(VLOOKUP($E$5&INDIRECT("E" & ROW()),Sites,4,FALSE),"") -> 
A195: =INDIRECT("D" & ROW())&INDIRECT("F" & ROW()) ->  | D195: =IFERROR(VLOOKUP($E$5&INDIRECT("E" & ROW()),Sites,4,FALSE),"") -> 
A196: =INDIRECT("D" & ROW())&INDIRECT("F" & ROW()) ->  | D196: =IFERROR(VLOOKUP($E$5&INDIRECT("E" & ROW()),Sites,4,FALSE),"") -> 
A197: =INDIRECT("D" & ROW())&INDIRECT("F" & ROW()) ->  | D197: =IFERROR(VLOOKUP($E$5&INDIRECT("E" & ROW()),Sites,4,FALSE),"") -> 
A198: =INDIRECT("D" & ROW())&INDIRECT("F" & ROW()) ->  | D198: =IFERROR(VLOOKUP($E$5&INDIRECT("E" & ROW()),Sites,4,FALSE),"") -> 
A199: =INDIRECT("D" & ROW())&INDIRECT("F" & ROW()) ->  | D199: =IFERROR(VLOOKUP($E$5&INDIRECT("E" & ROW()),Sites,4,FALSE),"") -> 
A200: =INDIRECT("D" & ROW())&INDIRECT("F" & ROW()) ->  | D200: =IFERROR(VLOOKUP($E$5&INDIRECT("E" & ROW()),Sites,4,FALSE),"") -> 
A201: =INDIRECT("D" & ROW())&INDIRECT("F" & ROW()) ->  | D201: =IFERROR(VLOOKUP($E$5&INDIRECT("E" & ROW()),Sites,4,FALSE),"") -> 
A202: =INDIRECT("D" & ROW())&INDIRECT("F" & ROW()) ->  | D202: =IFERROR(VLOOKUP($E$5&INDIRECT("E" & ROW()),Sites,4,FALSE),"") -> 
A203: =INDIRECT("D" & ROW())&INDIRECT("F" & ROW()) ->  | D203: =IFERROR(VLOOKUP($E$5&INDIRECT("E" & ROW()),Sites,4,FALSE),"") -> 
... 12 more rows

Sheet Errors
A4: Total Errors per column
E5: =SUM(--(LEN(E7:E206)>0)) -> 0 | F5: =SUM(--(LEN(F7:F206)>0)) -> 0 | G5: =SUM(--(LEN(G7:G206)>0)) -> 0 | H5: =SUM(--(LEN(H7:H206)>0)) -> 0 | I5: =SUM(--(LEN(I7:I206)>0)) -> 0 | J5: =SUM(--(LEN(J7:J206)>0)) -> 0 | K5: =SUM(--(LEN(K7:K206)>0)) -> 0 | L5: =SUM(--(LEN(L7:L206)>0)) -> 166
A6: Site-Ward Pair | B6: SiteCode | C6: Hospital Site Name | D6: Ward Name | E6: Format Checks | F6: Site Code Present? | G6: Ward Name present? | H6: At least 1 Specialty? | I6: Specialties in List? | J6: Matching Covid Statuses? | K6: Duplicate Site-Ward | L6: Blank Row?
A7: =IF('Trust - Frontsheet'!A16="","",'Trust - Frontsheet'!A16) -> RXWATITU/HDU (PRH) | B7: =IF('Trust - Frontsheet'!A16="","",'Trust - Frontsheet'!D16) -> RXWAT | C7: =IF(VLOOKUP(A7,'Trust - Frontsheet'!$A$16:$AC$215,5,0)="","",VLOOKUP(A7,'Trust - Frontsheet'!$A$16:$AC$216,5,0)) -> THE PRINCESS ROYAL HOSPITAL | D7: =IF(VLOOKUP(A7,'Trust - Frontsheet'!$A$16:$AC$215,6,0)="","",VLOOKUP(A7,'Trust - Frontsheet'!$A$16:$AC$216,6,0)) -> ITU/HDU (PRH) | E7: =IF(OR(SUMPRODUCT(--(ISTEXT('Trust - Frontsheet'!I16:AC16)))>0,SUMPRODUCT(--(ISERROR('Trust - Frontsheet'!AD16:AT16)))>0),"There is invalid data on this row",IF(SUMPRODUCT(--('Trust - Frontsheet'!I16:AC16<0))>0,"This row contains negative values",IF(AND(L7="This is a blank Row",COUNTBLANK(INDIRECT("L" & ROW() + 1 & ":L" & 206))>0),"No blank rows in the data",""))) ->  | F7: =IF(A7 = "","",IF('Trust - Frontsheet'!D16="", "Site code not present.","")) ->  | G7: =IF('Trust - Frontsheet'!D16="","",IF(VLOOKUP(A7,'Trust - Frontsheet'!$A$16:$AC$215,6,0)="","Ward name not present","")) ->  | H7: =IF(A7="","",IF(VLOOKUP(A7,'Trust - Frontsheet'!$A$16:$AC$215,7,0)="","Specialty 1 has not been selected","")) ->  | I7: =IF(A7="","",IF(OR(COUNTIF(Specialties,VLOOKUP(A7,'Trust - Frontsheet'!$A$16:$AC$215,7,0))=0, AND(COUNTIF(Specialties,VLOOKUP(A7,'Trust - Frontsheet'!$A$16:$AC$215,8,0))=0,VLOOKUP(A7,'Trust - Frontsheet'!$A$16:$AC$215,8,0)<>"")),"You have entered unacceptable specialties.","")) ->  | J7: =IF(A7="","",IF(AND(RIGHT(VLOOKUP(A7,'Trust - Frontsheet'!$A$16:$AC$215,7,0),3)<>RIGHT(VLOOKUP(A7,'Trust - Frontsheet'!$A$16:$AC$215,8,0),3),VLOOKUP(A7,'Trust - Frontsheet'!$A$16:$AC$215,8,0)<>""),"Covid statuses do not match","")) ->  | K7: =IF(A7="","",IF(COUNTIF($A$7:$A$206,A7)>1,"You have entered a duplicate site-ward pair","")) ->  | L7: =IF(SUMPRODUCT(--('Trust - Frontsheet'!$D16:$AC16=""))<>26,"","This is a blank row") -> 
A8: =IF('Trust - Frontsheet'!A17="","",'Trust - Frontsheet'!A17) -> RXWATAMU - PRH | B8: =IF('Trust - Frontsheet'!A17="","",'Trust - Frontsheet'!D17) -> RXWAT | C8: =IF(VLOOKUP(A8,'Trust - Frontsheet'!$A$16:$AC$215,5,0)="","",VLOOKUP(A8,'Trust - Frontsheet'!$A$16:$AC$216,5,0)) -> THE PRINCESS ROYAL HOSPITAL | D8: =IF(VLOOKUP(A8,'Trust - Frontsheet'!$A$16:$AC$215,6,0)="","",VLOOKUP(A8,'Trust - Frontsheet'!$A$16:$AC$216,6,0)) -> AMU - PRH | E8: =IF(OR(SUMPRODUCT(--(ISTEXT('Trust - Frontsheet'!I17:AC17)))>0,SUMPRODUCT(--(ISERROR('Trust - Frontsheet'!AD17:AT17)))>0),"There is invalid data on this row",IF(SUMPRODUCT(--('Trust - Frontsheet'!I17:AC17<0))>0,"This row contains negative values",IF(AND(L8="This is a blank Row",COUNTBLANK(INDIRECT("L" & ROW() + 1 & ":L" & 206))>0),"No blank rows in the data",""))) ->  | F8: =IF(A8 = "","",IF('Trust - Frontsheet'!D17="", "Site code not present","")) ->  | G8: =IF('Trust - Frontsheet'!D17="","",IF(VLOOKUP(A8,'Trust - Frontsheet'!$A$16:$AC$215,6,0)="","Ward name not present","")) ->  | H8: =IF(A8="","",IF(VLOOKUP(A8,'Trust - Frontsheet'!$A$16:$AC$215,7,0)="","Specialty 1 has not been selected","")) ->  | I8: =IF(A8="","",IF(OR(COUNTIF(Specialties,VLOOKUP(A8,'Trust - Frontsheet'!$A$16:$AC$215,7,0))=0, AND(COUNTIF(Specialties,VLOOKUP(A8,'Trust - Frontsheet'!$A$16:$AC$215,8,0))=0,VLOOKUP(A8,'Trust - Frontsheet'!$A$16:$AC$215,8,0)<>"")),"You have entered unacceptable specialties.","")) ->  | J8: =IF(A8="","",IF(AND(RIGHT(VLOOKUP(A8,'Trust - Frontsheet'!$A$16:$AC$215,7,0),3)<>RIGHT(VLOOKUP(A8,'Trust - Frontsheet'!$A$16:$AC$215,8,0),3),VLOOKUP(A8,'Trust - Frontsheet'!$A$16:$AC$215,8,0)<>""),"Covid statuses do not match","")) ->  | K8: =IF(A8="","",IF(COUNTIF($A$7:$A$206,A8)>1,"You have entered a duplicate site-ward pair","")) ->  | L8: =IF(SUMPRODUCT(--('Trust - Frontsheet'!$D17:$AC17=""))<>26,"","This is a blank row") -> 
A9: =IF('Trust - Frontsheet'!A18="","",'Trust - Frontsheet'!A18) -> RXWATWard 4 | B9: =IF('Trust - Frontsheet'!A18="","",'Trust - Frontsheet'!D18) -> RXWAT | C9: =IF(VLOOKUP(A9,'Trust - Frontsheet'!$A$16:$AC$215,5,0)="","",VLOOKUP(A9,'Trust - Frontsheet'!$A$16:$AC$216,5,0)) -> THE PRINCESS ROYAL HOSPITAL | D9: =IF(VLOOKUP(A9,'Trust - Frontsheet'!$A$16:$AC$215,6,0)="","",VLOOKUP(A9,'Trust - Frontsheet'!$A$16:$AC$216,6,0)) -> Ward 4 | E9: =IF(OR(SUMPRODUCT(--(ISTEXT('Trust - Frontsheet'!I18:AC18)))>0,SUMPRODUCT(--(ISERROR('Trust - Frontsheet'!AD18:AT18)))>0),"There is invalid data on this row",IF(SUMPRODUCT(--('Trust - Frontsheet'!I18:AC18<0))>0,"This row contains negative values",IF(AND(L9="This is a blank Row",COUNTBLANK(INDIRECT("L" & ROW() + 1 & ":L" & 206))>0),"No blank rows in the data",""))) ->  | F9: =IF(A9 = "","",IF('Trust - Frontsheet'!D18="", "Site code not present","")) ->  | G9: =IF('Trust - Frontsheet'!D18="","",IF(VLOOKUP(A9,'Trust - Frontsheet'!$A$16:$AC$215,6,0)="","Ward name not present","")) ->  | H9: =IF(A9="","",IF(VLOOKUP(A9,'Trust - Frontsheet'!$A$16:$AC$215,7,0)="","Specialty 1 has not been selected","")) ->  | I9: =IF(A9="","",IF(OR(COUNTIF(Specialties,VLOOKUP(A9,'Trust - Frontsheet'!$A$16:$AC$215,7,0))=0, AND(COUNTIF(Specialties,VLOOKUP(A9,'Trust - Frontsheet'!$A$16:$AC$215,8,0))=0,VLOOKUP(A9,'Trust - Frontsheet'!$A$16:$AC$215,8,0)<>"")),"You have entered unacceptable specialties.","")) ->  | J9: =IF(A9="","",IF(AND(RIGHT(VLOOKUP(A9,'Trust - Frontsheet'!$A$16:$AC$215,7,0),3)<>RIGHT(VLOOKUP(A9,'Trust - Frontsheet'!$A$16:$AC$215,8,0),3),VLOOKUP(A9,'Trust - Frontsheet'!$A$16:$AC$215,8,0)<>""),"Covid statuses do not match","")) ->  | L9: =IF(SUMPRODUCT(--('Trust - Frontsheet'!$D18:$AC18=""))<>26,"","This is a blank row") -> 
A10: =IF('Trust - Frontsheet'!A19="","",'Trust - Frontsheet'!A19) -> RXWATWard 6 CCU | B10: =IF('Trust - Frontsheet'!A19="","",'Trust - Frontsheet'!D19) -> RXWAT | C10: =IF(VLOOKUP(A10,'Trust - Frontsheet'!$A$16:$AC$215,5,0)="","",VLOOKUP(A10,'Trust - Frontsheet'!$A$16:$AC$216,5,0)) -> THE PRINCESS ROYAL HOSPITAL | D10: =IF(VLOOKUP(A10,'Trust - Frontsheet'!$A$16:$AC$215,6,0)="","",VLOOKUP(A10,'Trust - Frontsheet'!$A$16:$AC$216,6,0)) -> Ward 6 CCU | E10: =IF(OR(SUMPRODUCT(--(ISTEXT('Trust - Frontsheet'!I19:AC19)))>0,SUMPRODUCT(--(ISERROR('Trust - Frontsheet'!AD19:AT19)))>0),"There is invalid data on this row",IF(SUMPRODUCT(--('Trust - Frontsheet'!I19:AC19<0))>0,"This row contains negative values",IF(AND(L10="This is a blank Row",COUNTBLANK(INDIRECT("L" & ROW() + 1 & ":L" & 206))>0),"No blank rows in the data",""))) ->  | F10: =IF(A10 = "","",IF('Trust - Frontsheet'!D19="", "Site code not present","")) ->  | G10: =IF('Trust - Frontsheet'!D19="","",IF(VLOOKUP(A10,'Trust - Frontsheet'!$A$16:$AC$215,6,0)="","Ward name not present","")) ->  | H10: =IF(A10="","",IF(VLOOKUP(A10,'Trust - Frontsheet'!$A$16:$AC$215,7,0)="","Specialty 1 has not been selected","")) ->  | I10: =IF(A10="","",IF(OR(COUNTIF(Specialties,VLOOKUP(A10,'Trust - Frontsheet'!$A$16:$AC$215,7,0))=0, AND(COUNTIF(Specialties,VLOOKUP(A10,'Trust - Frontsheet'!$A$16:$AC$215,8,0))=0,VLOOKUP(A10,'Trust - Frontsheet'!$A$16:$AC$215,8,0)<>"")),"You have entered unacceptable specialties.","")) ->  | J10: =IF(A10="","",IF(AND(RIGHT(VLOOKUP(A10,'Trust - Frontsheet'!$A$16:$AC$215,7,0),3)<>RIGHT(VLOOKUP(A10,'Trust - Frontsheet'!$A$16:$AC$215,8,0),3),VLOOKUP(A10,'Trust - Frontsheet'!$A$16:$AC$215,8,0)<>""),"Covid statuses do not match","")) ->  | L10: =IF(SUMPRODUCT(--('Trust - Frontsheet'!$D19:$AC19=""))<>26,"","This is a blank row") -> 
A11: =IF('Trust - Frontsheet'!A20="","",'Trust - Frontsheet'!A20) -> RXWATWard 7 | B11: =IF('Trust - Frontsheet'!A20="","",'Trust - Frontsheet'!D20) -> RXWAT | C11: =IF(VLOOKUP(A11,'Trust - Frontsheet'!$A$16:$AC$215,5,0)="","",VLOOKUP(A11,'Trust - Frontsheet'!$A$16:$AC$216,5,0)) -> THE PRINCESS ROYAL HOSPITAL | D11: =IF(VLOOKUP(A11,'Trust - Frontsheet'!$A$16:$AC$215,6,0)="","",VLOOKUP(A11,'Trust - Frontsheet'!$A$16:$AC$216,6,0)) -> Ward 7 | E11: =IF(OR(SUMPRODUCT(--(ISTEXT('Trust - Frontsheet'!I20:AC20)))>0,SUMPRODUCT(--(ISERROR('Trust - Frontsheet'!AD20:AT20)))>0),"There is invalid data on this row",IF(SUMPRODUCT(--('Trust - Frontsheet'!I20:AC20<0))>0,"This row contains negative values",IF(AND(L11="This is a blank Row",COUNTBLANK(INDIRECT("L" & ROW() + 1 & ":L" & 206))>0),"No blank rows in the data",""))) ->  | F11: =IF(A11 = "","",IF('Trust - Frontsheet'!D20="", "Site code not present","")) ->  | G11: =IF('Trust - Frontsheet'!D20="","",IF(VLOOKUP(A11,'Trust - Frontsheet'!$A$16:$AC$215,6,0)="","Ward name not present","")) ->  | H11: =IF(A11="","",IF(VLOOKUP(A11,'Trust - Frontsheet'!$A$16:$AC$215,7,0)="","Specialty 1 has not been selected","")) ->  | I11: =IF(A11="","",IF(OR(COUNTIF(Specialties,VLOOKUP(A11,'Trust - Frontsheet'!$A$16:$AC$215,7,0))=0, AND(COUNTIF(Specialties,VLOOKUP(A11,'Trust - Frontsheet'!$A$16:$AC$215,8,0))=0,VLOOKUP(A11,'Trust - Frontsheet'!$A$16:$AC$215,8,0)<>"")),"You have entered unacceptable specialties.","")) ->  | J11: =IF(A11="","",IF(AND(RIGHT(VLOOKUP(A11,'Trust - Frontsheet'!$A$16:$AC$215,7,0),3)<>RIGHT(VLOOKUP(A11,'Trust - Frontsheet'!$A$16:$AC$215,8,0),3),VLOOKUP(A11,'Trust - Frontsheet'!$A$16:$AC$215,8,0)<>""),"Covid statuses do not match","")) ->  | L11: =IF(SUMPRODUCT(--('Trust - Frontsheet'!$D20:$AC20=""))<>26,"","This is a blank row") -> 
A12: =IF('Trust - Frontsheet'!A21="","",'Trust - Frontsheet'!A21) -> RXWATWard 8 Medical | B12: =IF('Trust - Frontsheet'!A21="","",'Trust - Frontsheet'!D21) -> RXWAT | C12: =IF(VLOOKUP(A12,'Trust - Frontsheet'!$A$16:$AC$215,5,0)="","",VLOOKUP(A12,'Trust - Frontsheet'!$A$16:$AC$216,5,0)) -> THE PRINCESS ROYAL HOSPITAL | D12: =IF(VLOOKUP(A12,'Trust - Frontsheet'!$A$16:$AC$215,6,0)="","",VLOOKUP(A12,'Trust - Frontsheet'!$A$16:$AC$216,6,0)) -> Ward 8 Medical | E12: =IF(OR(SUMPRODUCT(--(ISTEXT('Trust - Frontsheet'!I21:AC21)))>0,SUMPRODUCT(--(ISERROR('Trust - Frontsheet'!AD21:AT21)))>0),"There is invalid data on this row",IF(SUMPRODUCT(--('Trust - Frontsheet'!I21:AC21<0))>0,"This row contains negative values",IF(AND(L12="This is a blank Row",COUNTBLANK(INDIRECT("L" & ROW() + 1 & ":L" & 206))>0),"No blank rows in the data",""))) ->  | F12: =IF(A12 = "","",IF('Trust - Frontsheet'!D21="", "Site code not present","")) ->  | G12: =IF('Trust - Frontsheet'!D21="","",IF(VLOOKUP(A12,'Trust - Frontsheet'!$A$16:$AC$215,6,0)="","Ward name not present","")) ->  | H12: =IF(A12="","",IF(VLOOKUP(A12,'Trust - Frontsheet'!$A$16:$AC$215,7,0)="","Specialty 1 has not been selected","")) ->  | I12: =IF(A12="","",IF(OR(COUNTIF(Specialties,VLOOKUP(A12,'Trust - Frontsheet'!$A$16:$AC$215,7,0))=0, AND(COUNTIF(Specialties,VLOOKUP(A12,'Trust - Frontsheet'!$A$16:$AC$215,8,0))=0,VLOOKUP(A12,'Trust - Frontsheet'!$A$16:$AC$215,8,0)<>"")),"You have entered unacceptable specialties.","")) ->  | J12: =IF(A12="","",IF(AND(RIGHT(VLOOKUP(A12,'Trust - Frontsheet'!$A$16:$AC$215,7,0),3)<>RIGHT(VLOOKUP(A12,'Trust - Frontsheet'!$A$16:$AC$215,8,0),3),VLOOKUP(A12,'Trust - Frontsheet'!$A$16:$AC$215,8,0)<>""),"Covid statuses do not match","")) ->  | L12: =IF(SUMPRODUCT(--('Trust - Frontsheet'!$D21:$AC21=""))<>26,"","This is a blank row") -> 
A13: =IF('Trust - Frontsheet'!A22="","",'Trust - Frontsheet'!A22) -> RXWAT9SD | B13: =IF('Trust - Frontsheet'!A22="","",'Trust - Frontsheet'!D22) -> RXWAT | C13: =IF(VLOOKUP(A13,'Trust - Frontsheet'!$A$16:$AC$215,5,0)="","",VLOOKUP(A13,'Trust - Frontsheet'!$A$16:$AC$216,5,0)) -> THE PRINCESS ROYAL HOSPITAL | D13: =IF(VLOOKUP(A13,'Trust - Frontsheet'!$A$16:$AC$215,6,0)="","",VLOOKUP(A13,'Trust - Frontsheet'!$A$16:$AC$216,6,0)) -> 9SD | E13: =IF(OR(SUMPRODUCT(--(ISTEXT('Trust - Frontsheet'!I22:AC22)))>0,SUMPRODUCT(--(ISERROR('Trust - Frontsheet'!AD22:AT22)))>0),"There is invalid data on this row",IF(SUMPRODUCT(--('Trust - Frontsheet'!I22:AC22<0))>0,"This row contains negative values",IF(AND(L13="This is a blank Row",COUNTBLANK(INDIRECT("L" & ROW() + 1 & ":L" & 206))>0),"No blank rows in the data",""))) ->  | F13: =IF(A13 = "","",IF('Trust - Frontsheet'!D22="", "Site code not present","")) ->  | G13: =IF('Trust - Frontsheet'!D22="","",IF(VLOOKUP(A13,'Trust - Frontsheet'!$A$16:$AC$215,6,0)="","Ward name not present","")) ->  | H13: =IF(A13="","",IF(VLOOKUP(A13,'Trust - Frontsheet'!$A$16:$AC$215,7,0)="","Specialty 1 has not been selected","")) ->  | I13: =IF(A13="","",IF(OR(COUNTIF(Specialties,VLOOKUP(A13,'Trust - Frontsheet'!$A$16:$AC$215,7,0))=0, AND(COUNTIF(Specialties,VLOOKUP(A13,'Trust - Frontsheet'!$A$16:$AC$215,8,0))=0,VLOOKUP(A13,'Trust - Frontsheet'!$A$16:$AC$215,8,0)<>"")),"You have entered unacceptable specialties.","")) ->  | J13: =IF(A13="","",IF(AND(RIGHT(VLOOKUP(A13,'Trust - Frontsheet'!$A$16:$AC$215,7,0),3)<>RIGHT(VLOOKUP(A13,'Trust - Frontsheet'!$A$16:$AC$215,8,0),3),VLOOKUP(A13,'Trust - Frontsheet'!$A$16:$AC$215,8,0)<>""),"Covid statuses do not match","")) ->  | L13: =IF(SUMPRODUCT(--('Trust - Frontsheet'!$D22:$AC22=""))<>26,"","This is a blank row") -> 
A14: =IF('Trust - Frontsheet'!A23="","",'Trust - Frontsheet'!A23) -> RXWATWard 10 | B14: =IF('Trust - Frontsheet'!A23="","",'Trust - Frontsheet'!D23) -> RXWAT | C14: =IF(VLOOKUP(A14,'Trust - Frontsheet'!$A$16:$AC$215,5,0)="","",VLOOKUP(A14,'Trust - Frontsheet'!$A$16:$AC$216,5,0)) -> THE PRINCESS ROYAL HOSPITAL | D14: =IF(VLOOKUP(A14,'Trust - Frontsheet'!$A$16:$AC$215,6,0)="","",VLOOKUP(A14,'Trust - Frontsheet'!$A$16:$AC$216,6,0)) -> Ward 10 | E14: =IF(OR(SUMPRODUCT(--(ISTEXT('Trust - Frontsheet'!I23:AC23)))>0,SUMPRODUCT(--(ISERROR('Trust - Frontsheet'!AD23:AT23)))>0),"There is invalid data on this row",IF(SUMPRODUCT(--('Trust - Frontsheet'!I23:AC23<0))>0,"This row contains negative values",IF(AND(L14="This is a blank Row",COUNTBLANK(INDIRECT("L" & ROW() + 1 & ":L" & 206))>0),"No blank rows in the data",""))) ->  | F14: =IF(A14 = "","",IF('Trust - Frontsheet'!D23="", "Site code not present","")) ->  | G14: =IF('Trust - Frontsheet'!D23="","",IF(VLOOKUP(A14,'Trust - Frontsheet'!$A$16:$AC$215,6,0)="","Ward name not present","")) ->  | H14: =IF(A14="","",IF(VLOOKUP(A14,'Trust - Frontsheet'!$A$16:$AC$215,7,0)="","Specialty 1 has not been selected","")) ->  | I14: =IF(A14="","",IF(OR(COUNTIF(Specialties,VLOOKUP(A14,'Trust - Frontsheet'!$A$16:$AC$215,7,0))=0, AND(COUNTIF(Specialties,VLOOKUP(A14,'Trust - Frontsheet'!$A$16:$AC$215,8,0))=0,VLOOKUP(A14,'Trust - Frontsheet'!$A$16:$AC$215,8,0)<>"")),"You have entered unacceptable specialties.","")) ->  | J14: =IF(A14="","",IF(AND(RIGHT(VLOOKUP(A14,'Trust - Frontsheet'!$A$16:$AC$215,7,0),3)<>RIGHT(VLOOKUP(A14,'Trust - Frontsheet'!$A$16:$AC$215,8,0),3),VLOOKUP(A14,'Trust - Frontsheet'!$A$16:$AC$215,8,0)<>""),"Covid statuses do not match","")) ->  | L14: =IF(SUMPRODUCT(--('Trust - Frontsheet'!$D23:$AC23=""))<>26,"","This is a blank row") -> 
A15: =IF('Trust - Frontsheet'!A24="","",'Trust - Frontsheet'!A24) -> RXWATWard 11 | B15: =IF('Trust - Frontsheet'!A24="","",'Trust - Frontsheet'!D24) -> RXWAT | C15: =IF(VLOOKUP(A15,'Trust - Frontsheet'!$A$16:$AC$215,5,0)="","",VLOOKUP(A15,'Trust - Frontsheet'!$A$16:$AC$216,5,0)) -> THE PRINCESS ROYAL HOSPITAL | D15: =IF(VLOOKUP(A15,'Trust - Frontsheet'!$A$16:$AC$215,6,0)="","",VLOOKUP(A15,'Trust - Frontsheet'!$A$16:$AC$216,6,0)) -> Ward 11 | E15: =IF(OR(SUMPRODUCT(--(ISTEXT('Trust - Frontsheet'!I24:AC24)))>0,SUMPRODUCT(--(ISERROR('Trust - Frontsheet'!AD24:AT24)))>0),"There is invalid data on this row",IF(SUMPRODUCT(--('Trust - Frontsheet'!I24:AC24<0))>0,"This row contains negative values",IF(AND(L15="This is a blank Row",COUNTBLANK(INDIRECT("L" & ROW() + 1 & ":L" & 206))>0),"No blank rows in the data",""))) ->  | F15: =IF(A15 = "","",IF('Trust - Frontsheet'!D24="", "Site code not present","")) ->  | G15: =IF('Trust - Frontsheet'!D24="","",IF(VLOOKUP(A15,'Trust - Frontsheet'!$A$16:$AC$215,6,0)="","Ward name not present","")) ->  | H15: =IF(A15="","",IF(VLOOKUP(A15,'Trust - Frontsheet'!$A$16:$AC$215,7,0)="","Specialty 1 has not been selected","")) ->  | I15: =IF(A15="","",IF(OR(COUNTIF(Specialties,VLOOKUP(A15,'Trust - Frontsheet'!$A$16:$AC$215,7,0))=0, AND(COUNTIF(Specialties,VLOOKUP(A15,'Trust - Frontsheet'!$A$16:$AC$215,8,0))=0,VLOOKUP(A15,'Trust - Frontsheet'!$A$16:$AC$215,8,0)<>"")),"You have entered unacceptable specialties.","")) ->  | J15: =IF(A15="","",IF(AND(RIGHT(VLOOKUP(A15,'Trust - Frontsheet'!$A$16:$AC$215,7,0),3)<>RIGHT(VLOOKUP(A15,'Trust - Frontsheet'!$A$16:$AC$215,8,0),3),VLOOKUP(A15,'Trust - Frontsheet'!$A$16:$AC$215,8,0)<>""),"Covid statuses do not match","")) ->  | L15: =IF(SUMPRODUCT(--('Trust - Frontsheet'!$D24:$AC24=""))<>26,"","This is a blank row") -> 
A16: =IF('Trust - Frontsheet'!A25="","",'Trust - Frontsheet'!A25) -> RXWATWard 14 Gynae | B16: =IF('Trust - Frontsheet'!A25="","",'Trust - Frontsheet'!D25) -> RXWAT | C16: =IF(VLOOKUP(A16,'Trust - Frontsheet'!$A$16:$AC$215,5,0)="","",VLOOKUP(A16,'Trust - Frontsheet'!$A$16:$AC$216,5,0)) -> THE PRINCESS ROYAL HOSPITAL | D16: =IF(VLOOKUP(A16,'Trust - Frontsheet'!$A$16:$AC$215,6,0)="","",VLOOKUP(A16,'Trust - Frontsheet'!$A$16:$AC$216,6,0)) -> Ward 14 Gynae | E16: =IF(OR(SUMPRODUCT(--(ISTEXT('Trust - Frontsheet'!I25:AC25)))>0,SUMPRODUCT(--(ISERROR('Trust - Frontsheet'!AD25:AT25)))>0),"There is invalid data on this row",IF(SUMPRODUCT(--('Trust - Frontsheet'!I25:AC25<0))>0,"This row contains negative values",IF(AND(L16="This is a blank Row",COUNTBLANK(INDIRECT("L" & ROW() + 1 & ":L" & 206))>0),"No blank rows in the data",""))) ->  | F16: =IF(A16 = "","",IF('Trust - Frontsheet'!D25="", "Site code not present","")) ->  | G16: =IF('Trust - Frontsheet'!D25="","",IF(VLOOKUP(A16,'Trust - Frontsheet'!$A$16:$AC$215,6,0)="","Ward name not present","")) ->  | H16: =IF(A16="","",IF(VLOOKUP(A16,'Trust - Frontsheet'!$A$16:$AC$215,7,0)="","Specialty 1 has not been selected","")) ->  | I16: =IF(A16="","",IF(OR(COUNTIF(Specialties,VLOOKUP(A16,'Trust - Frontsheet'!$A$16:$AC$215,7,0))=0, AND(COUNTIF(Specialties,VLOOKUP(A16,'Trust - Frontsheet'!$A$16:$AC$215,8,0))=0,VLOOKUP(A16,'Trust - Frontsheet'!$A$16:$AC$215,8,0)<>"")),"You have entered unacceptable specialties.","")) ->  | J16: =IF(A16="","",IF(AND(RIGHT(VLOOKUP(A16,'Trust - Frontsheet'!$A$16:$AC$215,7,0),3)<>RIGHT(VLOOKUP(A16,'Trust - Frontsheet'!$A$16:$AC$215,8,0),3),VLOOKUP(A16,'Trust - Frontsheet'!$A$16:$AC$215,8,0)<>""),"Covid statuses do not match","")) ->  | L16: =IF(SUMPRODUCT(--('Trust - Frontsheet'!$D25:$AC25=""))<>26,"","This is a blank row") -> 
A17: =IF('Trust - Frontsheet'!A26="","",'Trust - Frontsheet'!A26) -> RXWATWard 15 | B17: =IF('Trust - Frontsheet'!A26="","",'Trust - Frontsheet'!D26) -> RXWAT | C17: =IF(VLOOKUP(A17,'Trust - Frontsheet'!$A$16:$AC$215,5,0)="","",VLOOKUP(A17,'Trust - Frontsheet'!$A$16:$AC$216,5,0)) -> THE PRINCESS ROYAL HOSPITAL | D17: =IF(VLOOKUP(A17,'Trust - Frontsheet'!$A$16:$AC$215,6,0)="","",VLOOKUP(A17,'Trust - Frontsheet'!$A$16:$AC$216,6,0)) -> Ward 15 | E17: =IF(OR(SUMPRODUCT(--(ISTEXT('Trust - Frontsheet'!I26:AC26)))>0,SUMPRODUCT(--(ISERROR('Trust - Frontsheet'!AD26:AT26)))>0),"There is invalid data on this row",IF(SUMPRODUCT(--('Trust - Frontsheet'!I26:AC26<0))>0,"This row contains negative values",IF(AND(L17="This is a blank Row",COUNTBLANK(INDIRECT("L" & ROW() + 1 & ":L" & 206))>0),"No blank rows in the data",""))) ->  | F17: =IF(A17 = "","",IF('Trust - Frontsheet'!D26="", "Site code not present","")) ->  | G17: =IF('Trust - Frontsheet'!D26="","",IF(VLOOKUP(A17,'Trust - Frontsheet'!$A$16:$AC$215,6,0)="","Ward name not present","")) ->  | H17: =IF(A17="","",IF(VLOOKUP(A17,'Trust - Frontsheet'!$A$16:$AC$215,7,0)="","Specialty 1 has not been selected","")) ->  | I17: =IF(A17="","",IF(OR(COUNTIF(Specialties,VLOOKUP(A17,'Trust - Frontsheet'!$A$16:$AC$215,7,0))=0, AND(COUNTIF(Specialties,VLOOKUP(A17,'Trust - Frontsheet'!$A$16:$AC$215,8,0))=0,VLOOKUP(A17,'Trust - Frontsheet'!$A$16:$AC$215,8,0)<>"")),"You have entered unacceptable specialties.","")) ->  | J17: =IF(A17="","",IF(AND(RIGHT(VLOOKUP(A17,'Trust - Frontsheet'!$A$16:$AC$215,7,0),3)<>RIGHT(VLOOKUP(A17,'Trust - Frontsheet'!$A$16:$AC$215,8,0),3),VLOOKUP(A17,'Trust - Frontsheet'!$A$16:$AC$215,8,0)<>""),"Covid statuses do not match","")) ->  | L17: =IF(SUMPRODUCT(--('Trust - Frontsheet'!$D26:$AC26=""))<>26,"","This is a blank row") -> 
A18: =IF('Trust - Frontsheet'!A27="","",'Trust - Frontsheet'!A27) -> RXWATWard 16 | B18: =IF('Trust - Frontsheet'!A27="","",'Trust - Frontsheet'!D27) -> RXWAT | C18: =IF(VLOOKUP(A18,'Trust - Frontsheet'!$A$16:$AC$215,5,0)="","",VLOOKUP(A18,'Trust - Frontsheet'!$A$16:$AC$216,5,0)) -> THE PRINCESS ROYAL HOSPITAL | D18: =IF(VLOOKUP(A18,'Trust - Frontsheet'!$A$16:$AC$215,6,0)="","",VLOOKUP(A18,'Trust - Frontsheet'!$A$16:$AC$216,6,0)) -> Ward 16 | E18: =IF(OR(SUMPRODUCT(--(ISTEXT('Trust - Frontsheet'!I27:AC27)))>0,SUMPRODUCT(--(ISERROR('Trust - Frontsheet'!AD27:AT27)))>0),"There is invalid data on this row",IF(SUMPRODUCT(--('Trust - Frontsheet'!I27:AC27<0))>0,"This row contains negative values",IF(AND(L18="This is a blank Row",COUNTBLANK(INDIRECT("L" & ROW() + 1 & ":L" & 206))>0),"No blank rows in the data",""))) ->  | F18: =IF(A18 = "","",IF('Trust - Frontsheet'!D27="", "Site code not present","")) ->  | G18: =IF('Trust - Frontsheet'!D27="","",IF(VLOOKUP(A18,'Trust - Frontsheet'!$A$16:$AC$215,6,0)="","Ward name not present","")) ->  | H18: =IF(A18="","",IF(VLOOKUP(A18,'Trust - Frontsheet'!$A$16:$AC$215,7,0)="","Specialty 1 has not been selected","")) ->  | I18: =IF(A18="","",IF(OR(COUNTIF(Specialties,VLOOKUP(A18,'Trust - Frontsheet'!$A$16:$AC$215,7,0))=0, AND(COUNTIF(Specialties,VLOOKUP(A18,'Trust - Frontsheet'!$A$16:$AC$215,8,0))=0,VLOOKUP(A18,'Trust - Frontsheet'!$A$16:$AC$215,8,0)<>"")),"You have entered unacceptable specialties.","")) ->  | J18: =IF(A18="","",IF(AND(RIGHT(VLOOKUP(A18,'Trust - Frontsheet'!$A$16:$AC$215,7,0),3)<>RIGHT(VLOOKUP(A18,'Trust - Frontsheet'!$A$16:$AC$215,8,0),3),VLOOKUP(A18,'Trust - Frontsheet'!$A$16:$AC$215,8,0)<>""),"Covid statuses do not match","")) ->  | L18: =IF(SUMPRODUCT(--('Trust - Frontsheet'!$D27:$AC27=""))<>26,"","This is a blank row") -> 
A19: =IF('Trust - Frontsheet'!A28="","",'Trust - Frontsheet'!A28) -> RXWAT17RE | B19: =IF('Trust - Frontsheet'!A28="","",'Trust - Frontsheet'!D28) -> RXWAT | C19: =IF(VLOOKUP(A19,'Trust - Frontsheet'!$A$16:$AC$215,5,0)="","",VLOOKUP(A19,'Trust - Frontsheet'!$A$16:$AC$216,5,0)) -> THE PRINCESS ROYAL HOSPITAL | D19: =IF(VLOOKUP(A19,'Trust - Frontsheet'!$A$16:$AC$215,6,0)="","",VLOOKUP(A19,'Trust - Frontsheet'!$A$16:$AC$216,6,0)) -> 17RE | E19: =IF(OR(SUMPRODUCT(--(ISTEXT('Trust - Frontsheet'!I28:AC28)))>0,SUMPRODUCT(--(ISERROR('Trust - Frontsheet'!AD28:AT28)))>0),"There is invalid data on this row",IF(SUMPRODUCT(--('Trust - Frontsheet'!I28:AC28<0))>0,"This row contains negative values",IF(AND(L19="This is a blank Row",COUNTBLANK(INDIRECT("L" & ROW() + 1 & ":L" & 206))>0),"No blank rows in the data",""))) ->  | F19: =IF(A19 = "","",IF('Trust - Frontsheet'!D28="", "Site code not present","")) ->  | G19: =IF('Trust - Frontsheet'!D28="","",IF(VLOOKUP(A19,'Trust - Frontsheet'!$A$16:$AC$215,6,0)="","Ward name not present","")) ->  | H19: =IF(A19="","",IF(VLOOKUP(A19,'Trust - Frontsheet'!$A$16:$AC$215,7,0)="","Specialty 1 has not been selected","")) ->  | I19: =IF(A19="","",IF(OR(COUNTIF(Specialties,VLOOKUP(A19,'Trust - Frontsheet'!$A$16:$AC$215,7,0))=0, AND(COUNTIF(Specialties,VLOOKUP(A19,'Trust - Frontsheet'!$A$16:$AC$215,8,0))=0,VLOOKUP(A19,'Trust - Frontsheet'!$A$16:$AC$215,8,0)<>"")),"You have entered unacceptable specialties.","")) ->  | J19: =IF(A19="","",IF(AND(RIGHT(VLOOKUP(A19,'Trust - Frontsheet'!$A$16:$AC$215,7,0),3)<>RIGHT(VLOOKUP(A19,'Trust - Frontsheet'!$A$16:$AC$215,8,0),3),VLOOKUP(A19,'Trust - Frontsheet'!$A$16:$AC$215,8,0)<>""),"Covid statuses do not match","")) ->  | L19: =IF(SUMPRODUCT(--('Trust - Frontsheet'!$D28:$AC28=""))<>26,"","This is a blank row") -> 
A20: =IF('Trust - Frontsheet'!A29="","",'Trust - Frontsheet'!A29) -> RXWATWard 19 Childrens | B20: =IF('Trust - Frontsheet'!A29="","",'Trust - Frontsheet'!D29) -> RXWAT | C20: =IF(VLOOKUP(A20,'Trust - Frontsheet'!$A$16:$AC$215,5,0)="","",VLOOKUP(A20,'Trust - Frontsheet'!$A$16:$AC$216,5,0)) -> THE PRINCESS ROYAL HOSPITAL | D20: =IF(VLOOKUP(A20,'Trust - Frontsheet'!$A$16:$AC$215,6,0)="","",VLOOKUP(A20,'Trust - Frontsheet'!$A$16:$AC$216,6,0)) -> Ward 19 Childrens | E20: =IF(OR(SUMPRODUCT(--(ISTEXT('Trust - Frontsheet'!I29:AC29)))>0,SUMPRODUCT(--(ISERROR('Trust - Frontsheet'!AD29:AT29)))>0),"There is invalid data on this row",IF(SUMPRODUCT(--('Trust - Frontsheet'!I29:AC29<0))>0,"This row contains negative values",IF(AND(L20="This is a blank Row",COUNTBLANK(INDIRECT("L" & ROW() + 1 & ":L" & 206))>0),"No blank rows in the data",""))) ->  | F20: =IF(A20 = "","",IF('Trust - Frontsheet'!D29="", "Site code not present","")) ->  | G20: =IF('Trust - Frontsheet'!D29="","",IF(VLOOKUP(A20,'Trust - Frontsheet'!$A$16:$AC$215,6,0)="","Ward name not present","")) ->  | H20: =IF(A20="","",IF(VLOOKUP(A20,'Trust - Frontsheet'!$A$16:$AC$215,7,0)="","Specialty 1 has not been selected","")) ->  | I20: =IF(A20="","",IF(OR(COUNTIF(Specialties,VLOOKUP(A20,'Trust - Frontsheet'!$A$16:$AC$215,7,0))=0, AND(COUNTIF(Specialties,VLOOKUP(A20,'Trust - Frontsheet'!$A$16:$AC$215,8,0))=0,VLOOKUP(A20,'Trust - Frontsheet'!$A$16:$AC$215,8,0)<>"")),"You have entered unacceptable specialties.","")) ->  | J20: =IF(A20="","",IF(AND(RIGHT(VLOOKUP(A20,'Trust - Frontsheet'!$A$16:$AC$215,7,0),3)<>RIGHT(VLOOKUP(A20,'Trust - Frontsheet'!$A$16:$AC$215,8,0),3),VLOOKUP(A20,'Trust - Frontsheet'!$A$16:$AC$215,8,0)<>""),"Covid statuses do not match","")) ->  | L20: =IF(SUMPRODUCT(--('Trust - Frontsheet'!$D29:$AC29=""))<>26,"","This is a blank row") -> 
A21: =IF('Trust - Frontsheet'!A30="","",'Trust - Frontsheet'!A30) -> RXWMTWard 21 Postnatal | B21: =IF('Trust - Frontsheet'!A30="","",'Trust - Frontsheet'!D30) -> RXWMT | C21: =IF(VLOOKUP(A21,'Trust - Frontsheet'!$A$16:$AC$215,5,0)="","",VLOOKUP(A21,'Trust - Frontsheet'!$A$16:$AC$216,5,0)) -> THE PRINCESS ROYAL HOSPITAL (MATERNITY) | D21: =IF(VLOOKUP(A21,'Trust - Frontsheet'!$A$16:$AC$215,6,0)="","",VLOOKUP(A21,'Trust - Frontsheet'!$A$16:$AC$216,6,0)) -> Ward 21 Postnatal | E21: =IF(OR(SUMPRODUCT(--(ISTEXT('Trust - Frontsheet'!I30:AC30)))>0,SUMPRODUCT(--(ISERROR('Trust - Frontsheet'!AD30:AT30)))>0),"There is invalid data on this row",IF(SUMPRODUCT(--('Trust - Frontsheet'!I30:AC30<0))>0,"This row contains negative values",IF(AND(L21="This is a blank Row",COUNTBLANK(INDIRECT("L" & ROW() + 1 & ":L" & 206))>0),"No blank rows in the data",""))) ->  | F21: =IF(A21 = "","",IF('Trust - Frontsheet'!D30="", "Site code not present","")) ->  | G21: =IF('Trust - Frontsheet'!D30="","",IF(VLOOKUP(A21,'Trust - Frontsheet'!$A$16:$AC$215,6,0)="","Ward name not present","")) ->  | H21: =IF(A21="","",IF(VLOOKUP(A21,'Trust - Frontsheet'!$A$16:$AC$215,7,0)="","Specialty 1 has not been selected","")) ->  | I21: =IF(A21="","",IF(OR(COUNTIF(Specialties,VLOOKUP(A21,'Trust - Frontsheet'!$A$16:$AC$215,7,0))=0, AND(COUNTIF(Specialties,VLOOKUP(A21,'Trust - Frontsheet'!$A$16:$AC$215,8,0))=0,VLOOKUP(A21,'Trust - Frontsheet'!$A$16:$AC$215,8,0)<>"")),"You have entered unacceptable specialties.","")) ->  | J21: =IF(A21="","",IF(AND(RIGHT(VLOOKUP(A21,'Trust - Frontsheet'!$A$16:$AC$215,7,0),3)<>RIGHT(VLOOKUP(A21,'Trust - Frontsheet'!$A$16:$AC$215,8,0),3),VLOOKUP(A21,'Trust - Frontsheet'!$A$16:$AC$215,8,0)<>""),"Covid statuses do not match","")) ->  | L21: =IF(SUMPRODUCT(--('Trust - Frontsheet'!$D30:$AC30=""))<>26,"","This is a blank row") -> 
A22: =IF('Trust - Frontsheet'!A31="","",'Trust - Frontsheet'!A31) -> RXWMTWard 22 Antenatal | B22: =IF('Trust - Frontsheet'!A31="","",'Trust - Frontsheet'!D31) -> RXWMT | C22: =IF(VLOOKUP(A22,'Trust - Frontsheet'!$A$16:$AC$215,5,0)="","",VLOOKUP(A22,'Trust - Frontsheet'!$A$16:$AC$216,5,0)) -> THE PRINCESS ROYAL HOSPITAL (MATERNITY) | D22: =IF(VLOOKUP(A22,'Trust - Frontsheet'!$A$16:$AC$215,6,0)="","",VLOOKUP(A22,'Trust - Frontsheet'!$A$16:$AC$216,6,0)) -> Ward 22 Antenatal | E22: =IF(OR(SUMPRODUCT(--(ISTEXT('Trust - Frontsheet'!I31:AC31)))>0,SUMPRODUCT(--(ISERROR('Trust - Frontsheet'!AD31:AT31)))>0),"There is invalid data on this row",IF(SUMPRODUCT(--('Trust - Frontsheet'!I31:AC31<0))>0,"This row contains negative values",IF(AND(L22="This is a blank Row",COUNTBLANK(INDIRECT("L" & ROW() + 1 & ":L" & 206))>0),"No blank rows in the data",""))) ->  | F22: =IF(A22 = "","",IF('Trust - Frontsheet'!D31="", "Site code not present","")) ->  | G22: =IF('Trust - Frontsheet'!D31="","",IF(VLOOKUP(A22,'Trust - Frontsheet'!$A$16:$AC$215,6,0)="","Ward name not present","")) ->  | H22: =IF(A22="","",IF(VLOOKUP(A22,'Trust - Frontsheet'!$A$16:$AC$215,7,0)="","Specialty 1 has not been selected","")) ->  | I22: =IF(A22="","",IF(OR(COUNTIF(Specialties,VLOOKUP(A22,'Trust - Frontsheet'!$A$16:$AC$215,7,0))=0, AND(COUNTIF(Specialties,VLOOKUP(A22,'Trust - Frontsheet'!$A$16:$AC$215,8,0))=0,VLOOKUP(A22,'Trust - Frontsheet'!$A$16:$AC$215,8,0)<>"")),"You have entered unacceptable specialties.","")) ->  | J22: =IF(A22="","",IF(AND(RIGHT(VLOOKUP(A22,'Trust - Frontsheet'!$A$16:$AC$215,7,0),3)<>RIGHT(VLOOKUP(A22,'Trust - Frontsheet'!$A$16:$AC$215,8,0),3),VLOOKUP(A22,'Trust - Frontsheet'!$A$16:$AC$215,8,0)<>""),"Covid statuses do not match","")) ->  | L22: =IF(SUMPRODUCT(--('Trust - Frontsheet'!$D31:$AC31=""))<>26,"","This is a blank row") -> 
A23: =IF('Trust - Frontsheet'!A32="","",'Trust - Frontsheet'!A32) -> RXWMTWard 23 NNU | B23: =IF('Trust - Frontsheet'!A32="","",'Trust - Frontsheet'!D32) -> RXWMT | C23: =IF(VLOOKUP(A23,'Trust - Frontsheet'!$A$16:$AC$215,5,0)="","",VLOOKUP(A23,'Trust - Frontsheet'!$A$16:$AC$216,5,0)) -> THE PRINCESS ROYAL HOSPITAL (MATERNITY) | D23: =IF(VLOOKUP(A23,'Trust - Frontsheet'!$A$16:$AC$215,6,0)="","",VLOOKUP(A23,'Trust - Frontsheet'!$A$16:$AC$216,6,0)) -> Ward 23 NNU | E23: =IF(OR(SUMPRODUCT(--(ISTEXT('Trust - Frontsheet'!I32:AC32)))>0,SUMPRODUCT(--(ISERROR('Trust - Frontsheet'!AD32:AT32)))>0),"There is invalid data on this row",IF(SUMPRODUCT(--('Trust - Frontsheet'!I32:AC32<0))>0,"This row contains negative values",IF(AND(L23="This is a blank Row",COUNTBLANK(INDIRECT("L" & ROW() + 1 & ":L" & 206))>0),"No blank rows in the data",""))) ->  | F23: =IF(A23 = "","",IF('Trust - Frontsheet'!D32="", "Site code not present","")) ->  | G23: =IF('Trust - Frontsheet'!D32="","",IF(VLOOKUP(A23,'Trust - Frontsheet'!$A$16:$AC$215,6,0)="","Ward name not present","")) ->  | H23: =IF(A23="","",IF(VLOOKUP(A23,'Trust - Frontsheet'!$A$16:$AC$215,7,0)="","Specialty 1 has not been selected","")) ->  | I23: =IF(A23="","",IF(OR(COUNTIF(Specialties,VLOOKUP(A23,'Trust - Frontsheet'!$A$16:$AC$215,7,0))=0, AND(COUNTIF(Specialties,VLOOKUP(A23,'Trust - Frontsheet'!$A$16:$AC$215,8,0))=0,VLOOKUP(A23,'Trust - Frontsheet'!$A$16:$AC$215,8,0)<>"")),"You have entered unacceptable specialties.","")) ->  | J23: =IF(A23="","",IF(AND(RIGHT(VLOOKUP(A23,'Trust - Frontsheet'!$A$16:$AC$215,7,0),3)<>RIGHT(VLOOKUP(A23,'Trust - Frontsheet'!$A$16:$AC$215,8,0),3),VLOOKUP(A23,'Trust - Frontsheet'!$A$16:$AC$215,8,0)<>""),"Covid statuses do not match","")) ->  | L23: =IF(SUMPRODUCT(--('Trust - Frontsheet'!$D32:$AC32=""))<>26,"","This is a blank row") -> 
A24: =IF('Trust - Frontsheet'!A33="","",'Trust - Frontsheet'!A33) -> RXWMTWard 24 Delivery | B24: =IF('Trust - Frontsheet'!A33="","",'Trust - Frontsheet'!D33) -> RXWMT | C24: =IF(VLOOKUP(A24,'Trust - Frontsheet'!$A$16:$AC$215,5,0)="","",VLOOKUP(A24,'Trust - Frontsheet'!$A$16:$AC$216,5,0)) -> THE PRINCESS ROYAL HOSPITAL (MATERNITY) | D24: =IF(VLOOKUP(A24,'Trust - Frontsheet'!$A$16:$AC$215,6,0)="","",VLOOKUP(A24,'Trust - Frontsheet'!$A$16:$AC$216,6,0)) -> Ward 24 Delivery | E24: =IF(OR(SUMPRODUCT(--(ISTEXT('Trust - Frontsheet'!I33:AC33)))>0,SUMPRODUCT(--(ISERROR('Trust - Frontsheet'!AD33:AT33)))>0),"There is invalid data on this row",IF(SUMPRODUCT(--('Trust - Frontsheet'!I33:AC33<0))>0,"This row contains negative values",IF(AND(L24="This is a blank Row",COUNTBLANK(INDIRECT("L" & ROW() + 1 & ":L" & 206))>0),"No blank rows in the data",""))) ->  | F24: =IF(A24 = "","",IF('Trust - Frontsheet'!D33="", "Site code not present","")) ->  | G24: =IF('Trust - Frontsheet'!D33="","",IF(VLOOKUP(A24,'Trust - Frontsheet'!$A$16:$AC$215,6,0)="","Ward name not present","")) ->  | H24: =IF(A24="","",IF(VLOOKUP(A24,'Trust - Frontsheet'!$A$16:$AC$215,7,0)="","Specialty 1 has not been selected","")) ->  | I24: =IF(A24="","",IF(OR(COUNTIF(Specialties,VLOOKUP(A24,'Trust - Frontsheet'!$A$16:$AC$215,7,0))=0, AND(COUNTIF(Specialties,VLOOKUP(A24,'Trust - Frontsheet'!$A$16:$AC$215,8,0))=0,VLOOKUP(A24,'Trust - Frontsheet'!$A$16:$AC$215,8,0)<>"")),"You have entered unacceptable specialties.","")) ->  | J24: =IF(A24="","",IF(AND(RIGHT(VLOOKUP(A24,'Trust - Frontsheet'!$A$16:$AC$215,7,0),3)<>RIGHT(VLOOKUP(A24,'Trust - Frontsheet'!$A$16:$AC$215,8,0),3),VLOOKUP(A24,'Trust - Frontsheet'!$A$16:$AC$215,8,0)<>""),"Covid statuses do not match","")) ->  | L24: =IF(SUMPRODUCT(--('Trust - Frontsheet'!$D33:$AC33=""))<>26,"","This is a blank row") -> 
A25: =IF('Trust - Frontsheet'!A34="","",'Trust - Frontsheet'!A34) -> RXWMTWrekin Midwife Led Unit | B25: =IF('Trust - Frontsheet'!A34="","",'Trust - Frontsheet'!D34) -> RXWMT | C25: =IF(VLOOKUP(A25,'Trust - Frontsheet'!$A$16:$AC$215,5,0)="","",VLOOKUP(A25,'Trust - Frontsheet'!$A$16:$AC$216,5,0)) -> THE PRINCESS ROYAL HOSPITAL (MATERNITY) | D25: =IF(VLOOKUP(A25,'Trust - Frontsheet'!$A$16:$AC$215,6,0)="","",VLOOKUP(A25,'Trust - Frontsheet'!$A$16:$AC$216,6,0)) -> Wrekin Midwife Led Unit | E25: =IF(OR(SUMPRODUCT(--(ISTEXT('Trust - Frontsheet'!I34:AC34)))>0,SUMPRODUCT(--(ISERROR('Trust - Frontsheet'!AD34:AT34)))>0),"There is invalid data on this row",IF(SUMPRODUCT(--('Trust - Frontsheet'!I34:AC34<0))>0,"This row contains negative values",IF(AND(L25="This is a blank Row",COUNTBLANK(INDIRECT("L" & ROW() + 1 & ":L" & 206))>0),"No blank rows in the data",""))) ->  | F25: =IF(A25 = "","",IF('Trust - Frontsheet'!D34="", "Site code not present","")) ->  | G25: =IF('Trust - Frontsheet'!D34="","",IF(VLOOKUP(A25,'Trust - Frontsheet'!$A$16:$AC$215,6,0)="","Ward name not present","")) ->  | H25: =IF(A25="","",IF(VLOOKUP(A25,'Trust - Frontsheet'!$A$16:$AC$215,7,0)="","Specialty 1 has not been selected","")) ->  | I25: =IF(A25="","",IF(OR(COUNTIF(Specialties,VLOOKUP(A25,'Trust - Frontsheet'!$A$16:$AC$215,7,0))=0, AND(COUNTIF(Specialties,VLOOKUP(A25,'Trust - Frontsheet'!$A$16:$AC$215,8,0))=0,VLOOKUP(A25,'Trust - Frontsheet'!$A$16:$AC$215,8,0)<>"")),"You have entered unacceptable specialties.","")) ->  | J25: =IF(A25="","",IF(AND(RIGHT(VLOOKUP(A25,'Trust - Frontsheet'!$A$16:$AC$215,7,0),3)<>RIGHT(VLOOKUP(A25,'Trust - Frontsheet'!$A$16:$AC$215,8,0),3),VLOOKUP(A25,'Trust - Frontsheet'!$A$16:$AC$215,8,0)<>""),"Covid statuses do not match","")) ->  | L25: =IF(SUMPRODUCT(--('Trust - Frontsheet'!$D34:$AC34=""))<>26,"","This is a blank row") -> 
A26: =IF('Trust - Frontsheet'!A35="","",'Trust - Frontsheet'!A35) -> RXWASITU/HDU (RSH) | B26: =IF('Trust - Frontsheet'!A35="","",'Trust - Frontsheet'!D35) -> RXWAS | C26: =IF(VLOOKUP(A26,'Trust - Frontsheet'!$A$16:$AC$215,5,0)="","",VLOOKUP(A26,'Trust - Frontsheet'!$A$16:$AC$216,5,0)) -> ROYAL SHREWSBURY HOSPITAL | D26: =IF(VLOOKUP(A26,'Trust - Frontsheet'!$A$16:$AC$215,6,0)="","",VLOOKUP(A26,'Trust - Frontsheet'!$A$16:$AC$216,6,0)) -> ITU/HDU (RSH) | E26: =IF(OR(SUMPRODUCT(--(ISTEXT('Trust - Frontsheet'!I35:AC35)))>0,SUMPRODUCT(--(ISERROR('Trust - Frontsheet'!AD35:AT35)))>0),"There is invalid data on this row",IF(SUMPRODUCT(--('Trust - Frontsheet'!I35:AC35<0))>0,"This row contains negative values",IF(AND(L26="This is a blank Row",COUNTBLANK(INDIRECT("L" & ROW() + 1 & ":L" & 206))>0),"No blank rows in the data",""))) ->  | F26: =IF(A26 = "","",IF('Trust - Frontsheet'!D35="", "Site code not present","")) ->  | G26: =IF('Trust - Frontsheet'!D35="","",IF(VLOOKUP(A26,'Trust - Frontsheet'!$A$16:$AC$215,6,0)="","Ward name not present","")) ->  | H26: =IF(A26="","",IF(VLOOKUP(A26,'Trust - Frontsheet'!$A$16:$AC$215,7,0)="","Specialty 1 has not been selected","")) ->  | I26: =IF(A26="","",IF(OR(COUNTIF(Specialties,VLOOKUP(A26,'Trust - Frontsheet'!$A$16:$AC$215,7,0))=0, AND(COUNTIF(Specialties,VLOOKUP(A26,'Trust - Frontsheet'!$A$16:$AC$215,8,0))=0,VLOOKUP(A26,'Trust - Frontsheet'!$A$16:$AC$215,8,0)<>"")),"You have entered unacceptable specialties.","")) ->  | J26: =IF(A26="","",IF(AND(RIGHT(VLOOKUP(A26,'Trust - Frontsheet'!$A$16:$AC$215,7,0),3)<>RIGHT(VLOOKUP(A26,'Trust - Frontsheet'!$A$16:$AC$215,8,0),3),VLOOKUP(A26,'Trust - Frontsheet'!$A$16:$AC$215,8,0)<>""),"Covid statuses do not match","")) ->  | L26: =IF(SUMPRODUCT(--('Trust - Frontsheet'!$D35:$AC35=""))<>26,"","This is a blank row") -> 
A27: =IF('Trust - Frontsheet'!A36="","",'Trust - Frontsheet'!A36) -> RXWASAMU - RSH | B27: =IF('Trust - Frontsheet'!A36="","",'Trust - Frontsheet'!D36) -> RXWAS | C27: =IF(VLOOKUP(A27,'Trust - Frontsheet'!$A$16:$AC$215,5,0)="","",VLOOKUP(A27,'Trust - Frontsheet'!$A$16:$AC$216,5,0)) -> ROYAL SHREWSBURY HOSPITAL | D27: =IF(VLOOKUP(A27,'Trust - Frontsheet'!$A$16:$AC$215,6,0)="","",VLOOKUP(A27,'Trust - Frontsheet'!$A$16:$AC$216,6,0)) -> AMU - RSH | E27: =IF(OR(SUMPRODUCT(--(ISTEXT('Trust - Frontsheet'!I36:AC36)))>0,SUMPRODUCT(--(ISERROR('Trust - Frontsheet'!AD36:AT36)))>0),"There is invalid data on this row",IF(SUMPRODUCT(--('Trust - Frontsheet'!I36:AC36<0))>0,"This row contains negative values",IF(AND(L27="This is a blank Row",COUNTBLANK(INDIRECT("L" & ROW() + 1 & ":L" & 206))>0),"No blank rows in the data",""))) ->  | F27: =IF(A27 = "","",IF('Trust - Frontsheet'!D36="", "Site code not present","")) ->  | G27: =IF('Trust - Frontsheet'!D36="","",IF(VLOOKUP(A27,'Trust - Frontsheet'!$A$16:$AC$215,6,0)="","Ward name not present","")) ->  | H27: =IF(A27="","",IF(VLOOKUP(A27,'Trust - Frontsheet'!$A$16:$AC$215,7,0)="","Specialty 1 has not been selected","")) ->  | I27: =IF(A27="","",IF(OR(COUNTIF(Specialties,VLOOKUP(A27,'Trust - Frontsheet'!$A$16:$AC$215,7,0))=0, AND(COUNTIF(Specialties,VLOOKUP(A27,'Trust - Frontsheet'!$A$16:$AC$215,8,0))=0,VLOOKUP(A27,'Trust - Frontsheet'!$A$16:$AC$215,8,0)<>"")),"You have entered unacceptable specialties.","")) ->  | J27: =IF(A27="","",IF(AND(RIGHT(VLOOKUP(A27,'Trust - Frontsheet'!$A$16:$AC$215,7,0),3)<>RIGHT(VLOOKUP(A27,'Trust - Frontsheet'!$A$16:$AC$215,8,0),3),VLOOKUP(A27,'Trust - Frontsheet'!$A$16:$AC$215,8,0)<>""),"Covid statuses do not match","")) ->  | L27: =IF(SUMPRODUCT(--('Trust - Frontsheet'!$D36:$AC36=""))<>26,"","This is a blank row") -> 
A28: =IF('Trust - Frontsheet'!A37="","",'Trust - Frontsheet'!A37) -> RXWASWard 21A | B28: =IF('Trust - Frontsheet'!A37="","",'Trust - Frontsheet'!D37) -> RXWAS | C28: =IF(VLOOKUP(A28,'Trust - Frontsheet'!$A$16:$AC$215,5,0)="","",VLOOKUP(A28,'Trust - Frontsheet'!$A$16:$AC$216,5,0)) -> ROYAL SHREWSBURY HOSPITAL | D28: =IF(VLOOKUP(A28,'Trust - Frontsheet'!$A$16:$AC$215,6,0)="","",VLOOKUP(A28,'Trust - Frontsheet'!$A$16:$AC$216,6,0)) -> Ward 21A | E28: =IF(OR(SUMPRODUCT(--(ISTEXT('Trust - Frontsheet'!I37:AC37)))>0,SUMPRODUCT(--(ISERROR('Trust - Frontsheet'!AD37:AT37)))>0),"There is invalid data on this row",IF(SUMPRODUCT(--('Trust - Frontsheet'!I37:AC37<0))>0,"This row contains negative values",IF(AND(L28="This is a blank Row",COUNTBLANK(INDIRECT("L" & ROW() + 1 & ":L" & 206))>0),"No blank rows in the data",""))) ->  | F28: =IF(A28 = "","",IF('Trust - Frontsheet'!D37="", "Site code not present","")) ->  | G28: =IF('Trust - Frontsheet'!D37="","",IF(VLOOKUP(A28,'Trust - Frontsheet'!$A$16:$AC$215,6,0)="","Ward name not present","")) ->  | H28: =IF(A28="","",IF(VLOOKUP(A28,'Trust - Frontsheet'!$A$16:$AC$215,7,0)="","Specialty 1 has not been selected","")) ->  | I28: =IF(A28="","",IF(OR(COUNTIF(Specialties,VLOOKUP(A28,'Trust - Frontsheet'!$A$16:$AC$215,7,0))=0, AND(COUNTIF(Specialties,VLOOKUP(A28,'Trust - Frontsheet'!$A$16:$AC$215,8,0))=0,VLOOKUP(A28,'Trust - Frontsheet'!$A$16:$AC$215,8,0)<>"")),"You have entered unacceptable specialties.","")) ->  | J28: =IF(A28="","",IF(AND(RIGHT(VLOOKUP(A28,'Trust - Frontsheet'!$A$16:$AC$215,7,0),3)<>RIGHT(VLOOKUP(A28,'Trust - Frontsheet'!$A$16:$AC$215,8,0),3),VLOOKUP(A28,'Trust - Frontsheet'!$A$16:$AC$215,8,0)<>""),"Covid statuses do not match","")) ->  | L28: =IF(SUMPRODUCT(--('Trust - Frontsheet'!$D37:$AC37=""))<>26,"","This is a blank row") -> 
A29: =IF('Trust - Frontsheet'!A38="","",'Trust - Frontsheet'!A38) -> RXWASWard 22S | B29: =IF('Trust - Frontsheet'!A38="","",'Trust - Frontsheet'!D38) -> RXWAS | C29: =IF(VLOOKUP(A29,'Trust - Frontsheet'!$A$16:$AC$215,5,0)="","",VLOOKUP(A29,'Trust - Frontsheet'!$A$16:$AC$216,5,0)) -> ROYAL SHREWSBURY HOSPITAL | D29: =IF(VLOOKUP(A29,'Trust - Frontsheet'!$A$16:$AC$215,6,0)="","",VLOOKUP(A29,'Trust - Frontsheet'!$A$16:$AC$216,6,0)) -> Ward 22S | E29: =IF(OR(SUMPRODUCT(--(ISTEXT('Trust - Frontsheet'!I38:AC38)))>0,SUMPRODUCT(--(ISERROR('Trust - Frontsheet'!AD38:AT38)))>0),"There is invalid data on this row",IF(SUMPRODUCT(--('Trust - Frontsheet'!I38:AC38<0))>0,"This row contains negative values",IF(AND(L29="This is a blank Row",COUNTBLANK(INDIRECT("L" & ROW() + 1 & ":L" & 206))>0),"No blank rows in the data",""))) ->  | F29: =IF(A29 = "","",IF('Trust - Frontsheet'!D38="", "Site code not present","")) ->  | G29: =IF('Trust - Frontsheet'!D38="","",IF(VLOOKUP(A29,'Trust - Frontsheet'!$A$16:$AC$215,6,0)="","Ward name not present","")) ->  | H29: =IF(A29="","",IF(VLOOKUP(A29,'Trust - Frontsheet'!$A$16:$AC$215,7,0)="","Specialty 1 has not been selected","")) ->  | I29: =IF(A29="","",IF(OR(COUNTIF(Specialties,VLOOKUP(A29,'Trust - Frontsheet'!$A$16:$AC$215,7,0))=0, AND(COUNTIF(Specialties,VLOOKUP(A29,'Trust - Frontsheet'!$A$16:$AC$215,8,0))=0,VLOOKUP(A29,'Trust - Frontsheet'!$A$16:$AC$215,8,0)<>"")),"You have entered unacceptable specialties.","")) ->  | J29: =IF(A29="","",IF(AND(RIGHT(VLOOKUP(A29,'Trust - Frontsheet'!$A$16:$AC$215,7,0),3)<>RIGHT(VLOOKUP(A29,'Trust - Frontsheet'!$A$16:$AC$215,8,0),3),VLOOKUP(A29,'Trust - Frontsheet'!$A$16:$AC$215,8,0)<>""),"Covid statuses do not match","")) ->  | L29: =IF(SUMPRODUCT(--('Trust - Frontsheet'!$D38:$AC38=""))<>26,"","This is a blank row") -> 
A30: =IF('Trust - Frontsheet'!A39="","",'Trust - Frontsheet'!A39) -> RXWASWard 22 TO | B30: =IF('Trust - Frontsheet'!A39="","",'Trust - Frontsheet'!D39) -> RXWAS | C30: =IF(VLOOKUP(A30,'Trust - Frontsheet'!$A$16:$AC$215,5,0)="","",VLOOKUP(A30,'Trust - Frontsheet'!$A$16:$AC$216,5,0)) -> ROYAL SHREWSBURY HOSPITAL | D30: =IF(VLOOKUP(A30,'Trust - Frontsheet'!$A$16:$AC$215,6,0)="","",VLOOKUP(A30,'Trust - Frontsheet'!$A$16:$AC$216,6,0)) -> Ward 22 TO | E30: =IF(OR(SUMPRODUCT(--(ISTEXT('Trust - Frontsheet'!I39:AC39)))>0,SUMPRODUCT(--(ISERROR('Trust - Frontsheet'!AD39:AT39)))>0),"There is invalid data on this row",IF(SUMPRODUCT(--('Trust - Frontsheet'!I39:AC39<0))>0,"This row contains negative values",IF(AND(L30="This is a blank Row",COUNTBLANK(INDIRECT("L" & ROW() + 1 & ":L" & 206))>0),"No blank rows in the data",""))) ->  | F30: =IF(A30 = "","",IF('Trust - Frontsheet'!D39="", "Site code not present","")) ->  | G30: =IF('Trust - Frontsheet'!D39="","",IF(VLOOKUP(A30,'Trust - Frontsheet'!$A$16:$AC$215,6,0)="","Ward name not present","")) ->  | H30: =IF(A30="","",IF(VLOOKUP(A30,'Trust - Frontsheet'!$A$16:$AC$215,7,0)="","Specialty 1 has not been selected","")) ->  | I30: =IF(A30="","",IF(OR(COUNTIF(Specialties,VLOOKUP(A30,'Trust - Frontsheet'!$A$16:$AC$215,7,0))=0, AND(COUNTIF(Specialties,VLOOKUP(A30,'Trust - Frontsheet'!$A$16:$AC$215,8,0))=0,VLOOKUP(A30,'Trust - Frontsheet'!$A$16:$AC$215,8,0)<>"")),"You have entered unacceptable specialties.","")) ->  | J30: =IF(A30="","",IF(AND(RIGHT(VLOOKUP(A30,'Trust - Frontsheet'!$A$16:$AC$215,7,0),3)<>RIGHT(VLOOKUP(A30,'Trust - Frontsheet'!$A$16:$AC$215,8,0),3),VLOOKUP(A30,'Trust - Frontsheet'!$A$16:$AC$215,8,0)<>""),"Covid statuses do not match","")) ->  | L30: =IF(SUMPRODUCT(--('Trust - Frontsheet'!$D39:$AC39=""))<>26,"","This is a blank row") -> 
A31: =IF('Trust - Frontsheet'!A40="","",'Trust - Frontsheet'!A40) -> RXWASWard 22 | B31: =IF('Trust - Frontsheet'!A40="","",'Trust - Frontsheet'!D40) -> RXWAS | C31: =IF(VLOOKUP(A31,'Trust - Frontsheet'!$A$16:$AC$215,5,0)="","",VLOOKUP(A31,'Trust - Frontsheet'!$A$16:$AC$216,5,0)) -> ROYAL SHREWSBURY HOSPITAL | D31: =IF(VLOOKUP(A31,'Trust - Frontsheet'!$A$16:$AC$215,6,0)="","",VLOOKUP(A31,'Trust - Frontsheet'!$A$16:$AC$216,6,0)) -> Ward 22 | E31: =IF(OR(SUMPRODUCT(--(ISTEXT('Trust - Frontsheet'!I40:AC40)))>0,SUMPRODUCT(--(ISERROR('Trust - Frontsheet'!AD40:AT40)))>0),"There is invalid data on this row",IF(SUMPRODUCT(--('Trust - Frontsheet'!I40:AC40<0))>0,"This row contains negative values",IF(AND(L31="This is a blank Row",COUNTBLANK(INDIRECT("L" & ROW() + 1 & ":L" & 206))>0),"No blank rows in the data",""))) ->  | F31: =IF(A31 = "","",IF('Trust - Frontsheet'!D40="", "Site code not present","")) ->  | G31: =IF('Trust - Frontsheet'!D40="","",IF(VLOOKUP(A31,'Trust - Frontsheet'!$A$16:$AC$215,6,0)="","Ward name not present","")) ->  | H31: =IF(A31="","",IF(VLOOKUP(A31,'Trust - Frontsheet'!$A$16:$AC$215,7,0)="","Specialty 1 has not been selected","")) ->  | I31: =IF(A31="","",IF(OR(COUNTIF(Specialties,VLOOKUP(A31,'Trust - Frontsheet'!$A$16:$AC$215,7,0))=0, AND(COUNTIF(Specialties,VLOOKUP(A31,'Trust - Frontsheet'!$A$16:$AC$215,8,0))=0,VLOOKUP(A31,'Trust - Frontsheet'!$A$16:$AC$215,8,0)<>"")),"You have entered unacceptable specialties.","")) ->  | J31: =IF(A31="","",IF(AND(RIGHT(VLOOKUP(A31,'Trust - Frontsheet'!$A$16:$AC$215,7,0),3)<>RIGHT(VLOOKUP(A31,'Trust - Frontsheet'!$A$16:$AC$215,8,0),3),VLOOKUP(A31,'Trust - Frontsheet'!$A$16:$AC$215,8,0)<>""),"Covid statuses do not match","")) ->  | L31: =IF(SUMPRODUCT(--('Trust - Frontsheet'!$D40:$AC40=""))<>26,"","This is a blank row") -> 
A32: =IF('Trust - Frontsheet'!A41="","",'Trust - Frontsheet'!A41) -> RXWASWard 23 O/H | B32: =IF('Trust - Frontsheet'!A41="","",'Trust - Frontsheet'!D41) -> RXWAS | C32: =IF(VLOOKUP(A32,'Trust - Frontsheet'!$A$16:$AC$215,5,0)="","",VLOOKUP(A32,'Trust - Frontsheet'!$A$16:$AC$216,5,0)) -> ROYAL SHREWSBURY HOSPITAL | D32: =IF(VLOOKUP(A32,'Trust - Frontsheet'!$A$16:$AC$215,6,0)="","",VLOOKUP(A32,'Trust - Frontsheet'!$A$16:$AC$216,6,0)) -> Ward 23 O/H | E32: =IF(OR(SUMPRODUCT(--(ISTEXT('Trust - Frontsheet'!I41:AC41)))>0,SUMPRODUCT(--(ISERROR('Trust - Frontsheet'!AD41:AT41)))>0),"There is invalid data on this row",IF(SUMPRODUCT(--('Trust - Frontsheet'!I41:AC41<0))>0,"This row contains negative values",IF(AND(L32="This is a blank Row",COUNTBLANK(INDIRECT("L" & ROW() + 1 & ":L" & 206))>0),"No blank rows in the data",""))) ->  | F32: =IF(A32 = "","",IF('Trust - Frontsheet'!D41="", "Site code not present","")) ->  | G32: =IF('Trust - Frontsheet'!D41="","",IF(VLOOKUP(A32,'Trust - Frontsheet'!$A$16:$AC$215,6,0)="","Ward name not present","")) ->  | H32: =IF(A32="","",IF(VLOOKUP(A32,'Trust - Frontsheet'!$A$16:$AC$215,7,0)="","Specialty 1 has not been selected","")) ->  | I32: =IF(A32="","",IF(OR(COUNTIF(Specialties,VLOOKUP(A32,'Trust - Frontsheet'!$A$16:$AC$215,7,0))=0, AND(COUNTIF(Specialties,VLOOKUP(A32,'Trust - Frontsheet'!$A$16:$AC$215,8,0))=0,VLOOKUP(A32,'Trust - Frontsheet'!$A$16:$AC$215,8,0)<>"")),"You have entered unacceptable specialties.","")) ->  | J32: =IF(A32="","",IF(AND(RIGHT(VLOOKUP(A32,'Trust - Frontsheet'!$A$16:$AC$215,7,0),3)<>RIGHT(VLOOKUP(A32,'Trust - Frontsheet'!$A$16:$AC$215,8,0),3),VLOOKUP(A32,'Trust - Frontsheet'!$A$16:$AC$215,8,0)<>""),"Covid statuses do not match","")) ->  | L32: =IF(SUMPRODUCT(--('Trust - Frontsheet'!$D41:$AC41=""))<>26,"","This is a blank row") -> 
A33: =IF('Trust - Frontsheet'!A42="","",'Trust - Frontsheet'!A42) -> RXWASWard 24 CCU | B33: =IF('Trust - Frontsheet'!A42="","",'Trust - Frontsheet'!D42) -> RXWAS | C33: =IF(VLOOKUP(A33,'Trust - Frontsheet'!$A$16:$AC$215,5,0)="","",VLOOKUP(A33,'Trust - Frontsheet'!$A$16:$AC$216,5,0)) -> ROYAL SHREWSBURY HOSPITAL | D33: =IF(VLOOKUP(A33,'Trust - Frontsheet'!$A$16:$AC$215,6,0)="","",VLOOKUP(A33,'Trust - Frontsheet'!$A$16:$AC$216,6,0)) -> Ward 24 CCU | E33: =IF(OR(SUMPRODUCT(--(ISTEXT('Trust - Frontsheet'!I42:AC42)))>0,SUMPRODUCT(--(ISERROR('Trust - Frontsheet'!AD42:AT42)))>0),"There is invalid data on this row",IF(SUMPRODUCT(--('Trust - Frontsheet'!I42:AC42<0))>0,"This row contains negative values",IF(AND(L33="This is a blank Row",COUNTBLANK(INDIRECT("L" & ROW() + 1 & ":L" & 206))>0),"No blank rows in the data",""))) ->  | F33: =IF(A33 = "","",IF('Trust - Frontsheet'!D42="", "Site code not present","")) ->  | G33: =IF('Trust - Frontsheet'!D42="","",IF(VLOOKUP(A33,'Trust - Frontsheet'!$A$16:$AC$215,6,0)="","Ward name not present","")) ->  | H33: =IF(A33="","",IF(VLOOKUP(A33,'Trust - Frontsheet'!$A$16:$AC$215,7,0)="","Specialty 1 has not been selected","")) ->  | I33: =IF(A33="","",IF(OR(COUNTIF(Specialties,VLOOKUP(A33,'Trust - Frontsheet'!$A$16:$AC$215,7,0))=0, AND(COUNTIF(Specialties,VLOOKUP(A33,'Trust - Frontsheet'!$A$16:$AC$215,8,0))=0,VLOOKUP(A33,'Trust - Frontsheet'!$A$16:$AC$215,8,0)<>"")),"You have entered unacceptable specialties.","")) ->  | J33: =IF(A33="","",IF(AND(RIGHT(VLOOKUP(A33,'Trust - Frontsheet'!$A$16:$AC$215,7,0),3)<>RIGHT(VLOOKUP(A33,'Trust - Frontsheet'!$A$16:$AC$215,8,0),3),VLOOKUP(A33,'Trust - Frontsheet'!$A$16:$AC$215,8,0)<>""),"Covid statuses do not match","")) ->  | L33: =IF(SUMPRODUCT(--('Trust - Frontsheet'!$D42:$AC42=""))<>26,"","This is a blank row") -> 
A34: =IF('Trust - Frontsheet'!A43="","",'Trust - Frontsheet'!A43) -> RXWASWard 25 | B34: =IF('Trust - Frontsheet'!A43="","",'Trust - Frontsheet'!D43) -> RXWAS | C34: =IF(VLOOKUP(A34,'Trust - Frontsheet'!$A$16:$AC$215,5,0)="","",VLOOKUP(A34,'Trust - Frontsheet'!$A$16:$AC$216,5,0)) -> ROYAL SHREWSBURY HOSPITAL | D34: =IF(VLOOKUP(A34,'Trust - Frontsheet'!$A$16:$AC$215,6,0)="","",VLOOKUP(A34,'Trust - Frontsheet'!$A$16:$AC$216,6,0)) -> Ward 25 | E34: =IF(OR(SUMPRODUCT(--(ISTEXT('Trust - Frontsheet'!I43:AC43)))>0,SUMPRODUCT(--(ISERROR('Trust - Frontsheet'!AD43:AT43)))>0),"There is invalid data on this row",IF(SUMPRODUCT(--('Trust - Frontsheet'!I43:AC43<0))>0,"This row contains negative values",IF(AND(L34="This is a blank Row",COUNTBLANK(INDIRECT("L" & ROW() + 1 & ":L" & 206))>0),"No blank rows in the data",""))) ->  | F34: =IF(A34 = "","",IF('Trust - Frontsheet'!D43="", "Site code not present","")) ->  | G34: =IF('Trust - Frontsheet'!D43="","",IF(VLOOKUP(A34,'Trust - Frontsheet'!$A$16:$AC$215,6,0)="","Ward name not present","")) ->  | H34: =IF(A34="","",IF(VLOOKUP(A34,'Trust - Frontsheet'!$A$16:$AC$215,7,0)="","Specialty 1 has not been selected","")) ->  | I34: =IF(A34="","",IF(OR(COUNTIF(Specialties,VLOOKUP(A34,'Trust - Frontsheet'!$A$16:$AC$215,7,0))=0, AND(COUNTIF(Specialties,VLOOKUP(A34,'Trust - Frontsheet'!$A$16:$AC$215,8,0))=0,VLOOKUP(A34,'Trust - Frontsheet'!$A$16:$AC$215,8,0)<>"")),"You have entered unacceptable specialties.","")) ->  | J34: =IF(A34="","",IF(AND(RIGHT(VLOOKUP(A34,'Trust - Frontsheet'!$A$16:$AC$215,7,0),3)<>RIGHT(VLOOKUP(A34,'Trust - Frontsheet'!$A$16:$AC$215,8,0),3),VLOOKUP(A34,'Trust - Frontsheet'!$A$16:$AC$215,8,0)<>""),"Covid statuses do not match","")) ->  | L34: =IF(SUMPRODUCT(--('Trust - Frontsheet'!$D43:$AC43=""))<>26,"","This is a blank row") -> 
A35: =IF('Trust - Frontsheet'!A44="","",'Trust - Frontsheet'!A44) -> RXWASWard 26 S/ICA/U | B35: =IF('Trust - Frontsheet'!A44="","",'Trust - Frontsheet'!D44) -> RXWAS | C35: =IF(VLOOKUP(A35,'Trust - Frontsheet'!$A$16:$AC$215,5,0)="","",VLOOKUP(A35,'Trust - Frontsheet'!$A$16:$AC$216,5,0)) -> ROYAL SHREWSBURY HOSPITAL | D35: =IF(VLOOKUP(A35,'Trust - Frontsheet'!$A$16:$AC$215,6,0)="","",VLOOKUP(A35,'Trust - Frontsheet'!$A$16:$AC$216,6,0)) -> Ward 26 S/ICA/U | E35: =IF(OR(SUMPRODUCT(--(ISTEXT('Trust - Frontsheet'!I44:AC44)))>0,SUMPRODUCT(--(ISERROR('Trust - Frontsheet'!AD44:AT44)))>0),"There is invalid data on this row",IF(SUMPRODUCT(--('Trust - Frontsheet'!I44:AC44<0))>0,"This row contains negative values",IF(AND(L35="This is a blank Row",COUNTBLANK(INDIRECT("L" & ROW() + 1 & ":L" & 206))>0),"No blank rows in the data",""))) ->  | F35: =IF(A35 = "","",IF('Trust - Frontsheet'!D44="", "Site code not present","")) ->  | G35: =IF('Trust - Frontsheet'!D44="","",IF(VLOOKUP(A35,'Trust - Frontsheet'!$A$16:$AC$215,6,0)="","Ward name not present","")) ->  | H35: =IF(A35="","",IF(VLOOKUP(A35,'Trust - Frontsheet'!$A$16:$AC$215,7,0)="","Specialty 1 has not been selected","")) ->  | I35: =IF(A35="","",IF(OR(COUNTIF(Specialties,VLOOKUP(A35,'Trust - Frontsheet'!$A$16:$AC$215,7,0))=0, AND(COUNTIF(Specialties,VLOOKUP(A35,'Trust - Frontsheet'!$A$16:$AC$215,8,0))=0,VLOOKUP(A35,'Trust - Frontsheet'!$A$16:$AC$215,8,0)<>"")),"You have entered unacceptable specialties.","")) ->  | J35: =IF(A35="","",IF(AND(RIGHT(VLOOKUP(A35,'Trust - Frontsheet'!$A$16:$AC$215,7,0),3)<>RIGHT(VLOOKUP(A35,'Trust - Frontsheet'!$A$16:$AC$215,8,0),3),VLOOKUP(A35,'Trust - Frontsheet'!$A$16:$AC$215,8,0)<>""),"Covid statuses do not match","")) ->  | L35: =IF(SUMPRODUCT(--('Trust - Frontsheet'!$D44:$AC44=""))<>26,"","This is a blank row") -> 
A36: =IF('Trust - Frontsheet'!A45="","",'Trust - Frontsheet'!A45) -> RXWASWard 27 | B36: =IF('Trust - Frontsheet'!A45="","",'Trust - Frontsheet'!D45) -> RXWAS | C36: =IF(VLOOKUP(A36,'Trust - Frontsheet'!$A$16:$AC$215,5,0)="","",VLOOKUP(A36,'Trust - Frontsheet'!$A$16:$AC$216,5,0)) -> ROYAL SHREWSBURY HOSPITAL | D36: =IF(VLOOKUP(A36,'Trust - Frontsheet'!$A$16:$AC$215,6,0)="","",VLOOKUP(A36,'Trust - Frontsheet'!$A$16:$AC$216,6,0)) -> Ward 27 | E36: =IF(OR(SUMPRODUCT(--(ISTEXT('Trust - Frontsheet'!I45:AC45)))>0,SUMPRODUCT(--(ISERROR('Trust - Frontsheet'!AD45:AT45)))>0),"There is invalid data on this row",IF(SUMPRODUCT(--('Trust - Frontsheet'!I45:AC45<0))>0,"This row contains negative values",IF(AND(L36="This is a blank Row",COUNTBLANK(INDIRECT("L" & ROW() + 1 & ":L" & 206))>0),"No blank rows in the data",""))) ->  | F36: =IF(A36 = "","",IF('Trust - Frontsheet'!D45="", "Site code not present","")) ->  | G36: =IF('Trust - Frontsheet'!D45="","",IF(VLOOKUP(A36,'Trust - Frontsheet'!$A$16:$AC$215,6,0)="","Ward name not present","")) ->  | H36: =IF(A36="","",IF(VLOOKUP(A36,'Trust - Frontsheet'!$A$16:$AC$215,7,0)="","Specialty 1 has not been selected","")) ->  | I36: =IF(A36="","",IF(OR(COUNTIF(Specialties,VLOOKUP(A36,'Trust - Frontsheet'!$A$16:$AC$215,7,0))=0, AND(COUNTIF(Specialties,VLOOKUP(A36,'Trust - Frontsheet'!$A$16:$AC$215,8,0))=0,VLOOKUP(A36,'Trust - Frontsheet'!$A$16:$AC$215,8,0)<>"")),"You have entered unacceptable specialties.","")) ->  | J36: =IF(A36="","",IF(AND(RIGHT(VLOOKUP(A36,'Trust - Frontsheet'!$A$16:$AC$215,7,0),3)<>RIGHT(VLOOKUP(A36,'Trust - Frontsheet'!$A$16:$AC$215,8,0),3),VLOOKUP(A36,'Trust - Frontsheet'!$A$16:$AC$215,8,0)<>""),"Covid statuses do not match","")) ->  | L36: =IF(SUMPRODUCT(--('Trust - Frontsheet'!$D45:$AC45=""))<>26,"","This is a blank row") -> 
A37: =IF('Trust - Frontsheet'!A46="","",'Trust - Frontsheet'!A46) -> RXWASWard 28 | B37: =IF('Trust - Frontsheet'!A46="","",'Trust - Frontsheet'!D46) -> RXWAS | C37: =IF(VLOOKUP(A37,'Trust - Frontsheet'!$A$16:$AC$215,5,0)="","",VLOOKUP(A37,'Trust - Frontsheet'!$A$16:$AC$216,5,0)) -> ROYAL SHREWSBURY HOSPITAL | D37: =IF(VLOOKUP(A37,'Trust - Frontsheet'!$A$16:$AC$215,6,0)="","",VLOOKUP(A37,'Trust - Frontsheet'!$A$16:$AC$216,6,0)) -> Ward 28 | E37: =IF(OR(SUMPRODUCT(--(ISTEXT('Trust - Frontsheet'!I46:AC46)))>0,SUMPRODUCT(--(ISERROR('Trust - Frontsheet'!AD46:AT46)))>0),"There is invalid data on this row",IF(SUMPRODUCT(--('Trust - Frontsheet'!I46:AC46<0))>0,"This row contains negative values",IF(AND(L37="This is a blank Row",COUNTBLANK(INDIRECT("L" & ROW() + 1 & ":L" & 206))>0),"No blank rows in the data",""))) ->  | F37: =IF(A37 = "","",IF('Trust - Frontsheet'!D46="", "Site code not present","")) ->  | G37: =IF('Trust - Frontsheet'!D46="","",IF(VLOOKUP(A37,'Trust - Frontsheet'!$A$16:$AC$215,6,0)="","Ward name not present","")) ->  | H37: =IF(A37="","",IF(VLOOKUP(A37,'Trust - Frontsheet'!$A$16:$AC$215,7,0)="","Specialty 1 has not been selected","")) ->  | I37: =IF(A37="","",IF(OR(COUNTIF(Specialties,VLOOKUP(A37,'Trust - Frontsheet'!$A$16:$AC$215,7,0))=0, AND(COUNTIF(Specialties,VLOOKUP(A37,'Trust - Frontsheet'!$A$16:$AC$215,8,0))=0,VLOOKUP(A37,'Trust - Frontsheet'!$A$16:$AC$215,8,0)<>"")),"You have entered unacceptable specialties.","")) ->  | J37: =IF(A37="","",IF(AND(RIGHT(VLOOKUP(A37,'Trust - Frontsheet'!$A$16:$AC$215,7,0),3)<>RIGHT(VLOOKUP(A37,'Trust - Frontsheet'!$A$16:$AC$215,8,0),3),VLOOKUP(A37,'Trust - Frontsheet'!$A$16:$AC$215,8,0)<>""),"Covid statuses do not match","")) ->  | L37: =IF(SUMPRODUCT(--('Trust - Frontsheet'!$D46:$AC46=""))<>26,"","This is a blank row") -> 
A38: =IF('Trust - Frontsheet'!A47="","",'Trust - Frontsheet'!A47) -> RXWAS32 Cohort | B38: =IF('Trust - Frontsheet'!A47="","",'Trust - Frontsheet'!D47) -> RXWAS | C38: =IF(VLOOKUP(A38,'Trust - Frontsheet'!$A$16:$AC$215,5,0)="","",VLOOKUP(A38,'Trust - Frontsheet'!$A$16:$AC$216,5,0)) -> ROYAL SHREWSBURY HOSPITAL | D38: =IF(VLOOKUP(A38,'Trust - Frontsheet'!$A$16:$AC$215,6,0)="","",VLOOKUP(A38,'Trust - Frontsheet'!$A$16:$AC$216,6,0)) -> 32 Cohort | E38: =IF(OR(SUMPRODUCT(--(ISTEXT('Trust - Frontsheet'!I47:AC47)))>0,SUMPRODUCT(--(ISERROR('Trust - Frontsheet'!AD47:AT47)))>0),"There is invalid data on this row",IF(SUMPRODUCT(--('Trust - Frontsheet'!I47:AC47<0))>0,"This row contains negative values",IF(AND(L38="This is a blank Row",COUNTBLANK(INDIRECT("L" & ROW() + 1 & ":L" & 206))>0),"No blank rows in the data",""))) ->  | F38: =IF(A38 = "","",IF('Trust - Frontsheet'!D47="", "Site code not present","")) ->  | G38: =IF('Trust - Frontsheet'!D47="","",IF(VLOOKUP(A38,'Trust - Frontsheet'!$A$16:$AC$215,6,0)="","Ward name not present","")) ->  | H38: =IF(A38="","",IF(VLOOKUP(A38,'Trust - Frontsheet'!$A$16:$AC$215,7,0)="","Specialty 1 has not been selected","")) ->  | I38: =IF(A38="","",IF(OR(COUNTIF(Specialties,VLOOKUP(A38,'Trust - Frontsheet'!$A$16:$AC$215,7,0))=0, AND(COUNTIF(Specialties,VLOOKUP(A38,'Trust - Frontsheet'!$A$16:$AC$215,8,0))=0,VLOOKUP(A38,'Trust - Frontsheet'!$A$16:$AC$215,8,0)<>"")),"You have entered unacceptable specialties.","")) ->  | J38: =IF(A38="","",IF(AND(RIGHT(VLOOKUP(A38,'Trust - Frontsheet'!$A$16:$AC$215,7,0),3)<>RIGHT(VLOOKUP(A38,'Trust - Frontsheet'!$A$16:$AC$215,8,0),3),VLOOKUP(A38,'Trust - Frontsheet'!$A$16:$AC$215,8,0)<>""),"Covid statuses do not match","")) ->  | L38: =IF(SUMPRODUCT(--('Trust - Frontsheet'!$D47:$AC47=""))<>26,"","This is a blank row") -> 
A39: =IF('Trust - Frontsheet'!A48="","",'Trust - Frontsheet'!A48) -> RXWASSAU | B39: =IF('Trust - Frontsheet'!A48="","",'Trust - Frontsheet'!D48) -> RXWAS | C39: =IF(VLOOKUP(A39,'Trust - Frontsheet'!$A$16:$AC$215,5,0)="","",VLOOKUP(A39,'Trust - Frontsheet'!$A$16:$AC$216,5,0)) -> ROYAL SHREWSBURY HOSPITAL | D39: =IF(VLOOKUP(A39,'Trust - Frontsheet'!$A$16:$AC$215,6,0)="","",VLOOKUP(A39,'Trust - Frontsheet'!$A$16:$AC$216,6,0)) -> SAU | E39: =IF(OR(SUMPRODUCT(--(ISTEXT('Trust - Frontsheet'!I48:AC48)))>0,SUMPRODUCT(--(ISERROR('Trust - Frontsheet'!AD48:AT48)))>0),"There is invalid data on this row",IF(SUMPRODUCT(--('Trust - Frontsheet'!I48:AC48<0))>0,"This row contains negative values",IF(AND(L39="This is a blank Row",COUNTBLANK(INDIRECT("L" & ROW() + 1 & ":L" & 206))>0),"No blank rows in the data",""))) ->  | F39: =IF(A39 = "","",IF('Trust - Frontsheet'!D48="", "Site code not present","")) ->  | G39: =IF('Trust - Frontsheet'!D48="","",IF(VLOOKUP(A39,'Trust - Frontsheet'!$A$16:$AC$215,6,0)="","Ward name not present","")) ->  | H39: =IF(A39="","",IF(VLOOKUP(A39,'Trust - Frontsheet'!$A$16:$AC$215,7,0)="","Specialty 1 has not been selected","")) ->  | I39: =IF(A39="","",IF(OR(COUNTIF(Specialties,VLOOKUP(A39,'Trust - Frontsheet'!$A$16:$AC$215,7,0))=0, AND(COUNTIF(Specialties,VLOOKUP(A39,'Trust - Frontsheet'!$A$16:$AC$215,8,0))=0,VLOOKUP(A39,'Trust - Frontsheet'!$A$16:$AC$215,8,0)<>"")),"You have entered unacceptable specialties.","")) ->  | J39: =IF(A39="","",IF(AND(RIGHT(VLOOKUP(A39,'Trust - Frontsheet'!$A$16:$AC$215,7,0),3)<>RIGHT(VLOOKUP(A39,'Trust - Frontsheet'!$A$16:$AC$215,8,0),3),VLOOKUP(A39,'Trust - Frontsheet'!$A$16:$AC$215,8,0)<>""),"Covid statuses do not match","")) ->  | L39: =IF(SUMPRODUCT(--('Trust - Frontsheet'!$D48:$AC48=""))<>26,"","This is a blank row") -> 
A40: =IF('Trust - Frontsheet'!A49="","",'Trust - Frontsheet'!A49) -> RXWASWard 35 | B40: =IF('Trust - Frontsheet'!A49="","",'Trust - Frontsheet'!D49) -> RXWAS | C40: =IF(VLOOKUP(A40,'Trust - Frontsheet'!$A$16:$AC$215,5,0)="","",VLOOKUP(A40,'Trust - Frontsheet'!$A$16:$AC$216,5,0)) -> ROYAL SHREWSBURY HOSPITAL | D40: =IF(VLOOKUP(A40,'Trust - Frontsheet'!$A$16:$AC$215,6,0)="","",VLOOKUP(A40,'Trust - Frontsheet'!$A$16:$AC$216,6,0)) -> Ward 35 | E40: =IF(OR(SUMPRODUCT(--(ISTEXT('Trust - Frontsheet'!I49:AC49)))>0,SUMPRODUCT(--(ISERROR('Trust - Frontsheet'!AD49:AT49)))>0),"There is invalid data on this row",IF(SUMPRODUCT(--('Trust - Frontsheet'!I49:AC49<0))>0,"This row contains negative values",IF(AND(L40="This is a blank Row",COUNTBLANK(INDIRECT("L" & ROW() + 1 & ":L" & 206))>0),"No blank rows in the data",""))) ->  | F40: =IF(A40 = "","",IF('Trust - Frontsheet'!D49="", "Site code not present","")) ->  | G40: =IF('Trust - Frontsheet'!D49="","",IF(VLOOKUP(A40,'Trust - Frontsheet'!$A$16:$AC$215,6,0)="","Ward name not present","")) ->  | H40: =IF(A40="","",IF(VLOOKUP(A40,'Trust - Frontsheet'!$A$16:$AC$215,7,0)="","Specialty 1 has not been selected","")) ->  | I40: =IF(A40="","",IF(OR(COUNTIF(Specialties,VLOOKUP(A40,'Trust - Frontsheet'!$A$16:$AC$215,7,0))=0, AND(COUNTIF(Specialties,VLOOKUP(A40,'Trust - Frontsheet'!$A$16:$AC$215,8,0))=0,VLOOKUP(A40,'Trust - Frontsheet'!$A$16:$AC$215,8,0)<>"")),"You have entered unacceptable specialties.","")) ->  | J40: =IF(A40="","",IF(AND(RIGHT(VLOOKUP(A40,'Trust - Frontsheet'!$A$16:$AC$215,7,0),3)<>RIGHT(VLOOKUP(A40,'Trust - Frontsheet'!$A$16:$AC$215,8,0),3),VLOOKUP(A40,'Trust - Frontsheet'!$A$16:$AC$215,8,0)<>""),"Covid statuses do not match","")) ->  | L40: =IF(SUMPRODUCT(--('Trust - Frontsheet'!$D49:$AC49=""))<>26,"","This is a blank row") -> 
A41: =IF('Trust - Frontsheet'!A50="","",'Trust - Frontsheet'!A50) ->  | B41: =IF('Trust - Frontsheet'!A50="","",'Trust - Frontsheet'!D50) ->  | C41: =IF(VLOOKUP(A41,'Trust - Frontsheet'!$A$16:$AC$215,5,0)="","",VLOOKUP(A41,'Trust - Frontsheet'!$A$16:$AC$216,5,0)) ->  | D41: =IF(VLOOKUP(A41,'Trust - Frontsheet'!$A$16:$AC$215,6,0)="","",VLOOKUP(A41,'Trust - Frontsheet'!$A$16:$AC$216,6,0)) ->  | E41: =IF(OR(SUMPRODUCT(--(ISTEXT('Trust - Frontsheet'!I50:AC50)))>0,SUMPRODUCT(--(ISERROR('Trust - Frontsheet'!AD50:AT50)))>0),"There is invalid data on this row",IF(SUMPRODUCT(--('Trust - Frontsheet'!I50:AC50<0))>0,"This row contains negative values",IF(AND(L41="This is a blank Row",COUNTBLANK(INDIRECT("L" & ROW() + 1 & ":L" & 206))>0),"No blank rows in the data",""))) ->  | F41: =IF(A41 = "","",IF('Trust - Frontsheet'!D50="", "Site code not present","")) ->  | G41: =IF('Trust - Frontsheet'!D50="","",IF(VLOOKUP(A41,'Trust - Frontsheet'!$A$16:$AC$215,6,0)="","Ward name not present","")) ->  | H41: =IF(A41="","",IF(VLOOKUP(A41,'Trust - Frontsheet'!$A$16:$AC$215,7,0)="","Specialty 1 has not been selected","")) ->  | I41: =IF(A41="","",IF(OR(COUNTIF(Specialties,VLOOKUP(A41,'Trust - Frontsheet'!$A$16:$AC$215,7,0))=0, AND(COUNTIF(Specialties,VLOOKUP(A41,'Trust - Frontsheet'!$A$16:$AC$215,8,0))=0,VLOOKUP(A41,'Trust - Frontsheet'!$A$16:$AC$215,8,0)<>"")),"You have entered unacceptable specialties.","")) ->  | J41: =IF(A41="","",IF(AND(RIGHT(VLOOKUP(A41,'Trust - Frontsheet'!$A$16:$AC$215,7,0),3)<>RIGHT(VLOOKUP(A41,'Trust - Frontsheet'!$A$16:$AC$215,8,0),3),VLOOKUP(A41,'Trust - Frontsheet'!$A$16:$AC$215,8,0)<>""),"Covid statuses do not match","")) ->  | L41: =IF(SUMPRODUCT(--('Trust - Frontsheet'!$D50:$AC50=""))<>26,"","This is a blank row") -> This is a blank row
A42: =IF('Trust - Frontsheet'!A51="","",'Trust - Frontsheet'!A51) ->  | B42: =IF('Trust - Frontsheet'!A51="","",'Trust - Frontsheet'!D51) ->  | C42: =IF(VLOOKUP(A42,'Trust - Frontsheet'!$A$16:$AC$215,5,0)="","",VLOOKUP(A42,'Trust - Frontsheet'!$A$16:$AC$216,5,0)) ->  | D42: =IF(VLOOKUP(A42,'Trust - Frontsheet'!$A$16:$AC$215,6,0)="","",VLOOKUP(A42,'Trust - Frontsheet'!$A$16:$AC$216,6,0)) ->  | E42: =IF(OR(SUMPRODUCT(--(ISTEXT('Trust - Frontsheet'!I51:AC51)))>0,SUMPRODUCT(--(ISERROR('Trust - Frontsheet'!AD51:AT51)))>0),"There is invalid data on this row",IF(SUMPRODUCT(--('Trust - Frontsheet'!I51:AC51<0))>0,"This row contains negative values",IF(AND(L42="This is a blank Row",COUNTBLANK(INDIRECT("L" & ROW() + 1 & ":L" & 206))>0),"No blank rows in the data",""))) ->  | F42: =IF(A42 = "","",IF('Trust - Frontsheet'!D51="", "Site code not present","")) ->  | G42: =IF('Trust - Frontsheet'!D51="","",IF(VLOOKUP(A42,'Trust - Frontsheet'!$A$16:$AC$215,6,0)="","Ward name not present","")) ->  | H42: =IF(A42="","",IF(VLOOKUP(A42,'Trust - Frontsheet'!$A$16:$AC$215,7,0)="","Specialty 1 has not been selected","")) ->  | I42: =IF(A42="","",IF(OR(COUNTIF(Specialties,VLOOKUP(A42,'Trust - Frontsheet'!$A$16:$AC$215,7,0))=0, AND(COUNTIF(Specialties,VLOOKUP(A42,'Trust - Frontsheet'!$A$16:$AC$215,8,0))=0,VLOOKUP(A42,'Trust - Frontsheet'!$A$16:$AC$215,8,0)<>"")),"You have entered unacceptable specialties.","")) ->  | J42: =IF(A42="","",IF(AND(RIGHT(VLOOKUP(A42,'Trust - Frontsheet'!$A$16:$AC$215,7,0),3)<>RIGHT(VLOOKUP(A42,'Trust - Frontsheet'!$A$16:$AC$215,8,0),3),VLOOKUP(A42,'Trust - Frontsheet'!$A$16:$AC$215,8,0)<>""),"Covid statuses do not match","")) ->  | L42: =IF(SUMPRODUCT(--('Trust - Frontsheet'!$D51:$AC51=""))<>26,"","This is a blank row") -> This is a blank row
A43: =IF('Trust - Frontsheet'!A52="","",'Trust - Frontsheet'!A52) ->  | B43: =IF('Trust - Frontsheet'!A52="","",'Trust - Frontsheet'!D52) ->  | C43: =IF(VLOOKUP(A43,'Trust - Frontsheet'!$A$16:$AC$215,5,0)="","",VLOOKUP(A43,'Trust - Frontsheet'!$A$16:$AC$216,5,0)) ->  | D43: =IF(VLOOKUP(A43,'Trust - Frontsheet'!$A$16:$AC$215,6,0)="","",VLOOKUP(A43,'Trust - Frontsheet'!$A$16:$AC$216,6,0)) ->  | E43: =IF(OR(SUMPRODUCT(--(ISTEXT('Trust - Frontsheet'!I52:AC52)))>0,SUMPRODUCT(--(ISERROR('Trust - Frontsheet'!AD52:AT52)))>0),"There is invalid data on this row",IF(SUMPRODUCT(--('Trust - Frontsheet'!I52:AC52<0))>0,"This row contains negative values",IF(AND(L43="This is a blank Row",COUNTBLANK(INDIRECT("L" & ROW() + 1 & ":L" & 206))>0),"No blank rows in the data",""))) ->  | F43: =IF(A43 = "","",IF('Trust - Frontsheet'!D52="", "Site code not present","")) ->  | G43: =IF('Trust - Frontsheet'!D52="","",IF(VLOOKUP(A43,'Trust - Frontsheet'!$A$16:$AC$215,6,0)="","Ward name not present","")) ->  | H43: =IF(A43="","",IF(VLOOKUP(A43,'Trust - Frontsheet'!$A$16:$AC$215,7,0)="","Specialty 1 has not been selected","")) ->  | I43: =IF(A43="","",IF(OR(COUNTIF(Specialties,VLOOKUP(A43,'Trust - Frontsheet'!$A$16:$AC$215,7,0))=0, AND(COUNTIF(Specialties,VLOOKUP(A43,'Trust - Frontsheet'!$A$16:$AC$215,8,0))=0,VLOOKUP(A43,'Trust - Frontsheet'!$A$16:$AC$215,8,0)<>"")),"You have entered unacceptable specialties.","")) ->  | J43: =IF(A43="","",IF(AND(RIGHT(VLOOKUP(A43,'Trust - Frontsheet'!$A$16:$AC$215,7,0),3)<>RIGHT(VLOOKUP(A43,'Trust - Frontsheet'!$A$16:$AC$215,8,0),3),VLOOKUP(A43,'Trust - Frontsheet'!$A$16:$AC$215,8,0)<>""),"Covid statuses do not match","")) ->  | L43: =IF(SUMPRODUCT(--('Trust - Frontsheet'!$D52:$AC52=""))<>26,"","This is a blank row") -> This is a blank row
A44: =IF('Trust - Frontsheet'!A53="","",'Trust - Frontsheet'!A53) ->  | B44: =IF('Trust - Frontsheet'!A53="","",'Trust - Frontsheet'!D53) ->  | C44: =IF(VLOOKUP(A44,'Trust - Frontsheet'!$A$16:$AC$215,5,0)="","",VLOOKUP(A44,'Trust - Frontsheet'!$A$16:$AC$216,5,0)) ->  | D44: =IF(VLOOKUP(A44,'Trust - Frontsheet'!$A$16:$AC$215,6,0)="","",VLOOKUP(A44,'Trust - Frontsheet'!$A$16:$AC$216,6,0)) ->  | E44: =IF(OR(SUMPRODUCT(--(ISTEXT('Trust - Frontsheet'!I53:AC53)))>0,SUMPRODUCT(--(ISERROR('Trust - Frontsheet'!AD53:AT53)))>0),"There is invalid data on this row",IF(SUMPRODUCT(--('Trust - Frontsheet'!I53:AC53<0))>0,"This row contains negative values",IF(AND(L44="This is a blank Row",COUNTBLANK(INDIRECT("L" & ROW() + 1 & ":L" & 206))>0),"No blank rows in the data",""))) ->  | F44: =IF(A44 = "","",IF('Trust - Frontsheet'!D53="", "Site code not present","")) ->  | G44: =IF('Trust - Frontsheet'!D53="","",IF(VLOOKUP(A44,'Trust - Frontsheet'!$A$16:$AC$215,6,0)="","Ward name not present","")) ->  | H44: =IF(A44="","",IF(VLOOKUP(A44,'Trust - Frontsheet'!$A$16:$AC$215,7,0)="","Specialty 1 has not been selected","")) ->  | I44: =IF(A44="","",IF(OR(COUNTIF(Specialties,VLOOKUP(A44,'Trust - Frontsheet'!$A$16:$AC$215,7,0))=0, AND(COUNTIF(Specialties,VLOOKUP(A44,'Trust - Frontsheet'!$A$16:$AC$215,8,0))=0,VLOOKUP(A44,'Trust - Frontsheet'!$A$16:$AC$215,8,0)<>"")),"You have entered unacceptable specialties.","")) ->  | J44: =IF(A44="","",IF(AND(RIGHT(VLOOKUP(A44,'Trust - Frontsheet'!$A$16:$AC$215,7,0),3)<>RIGHT(VLOOKUP(A44,'Trust - Frontsheet'!$A$16:$AC$215,8,0),3),VLOOKUP(A44,'Trust - Frontsheet'!$A$16:$AC$215,8,0)<>""),"Covid statuses do not match","")) ->  | L44: =IF(SUMPRODUCT(--('Trust - Frontsheet'!$D53:$AC53=""))<>26,"","This is a blank row") -> This is a blank row
A45: =IF('Trust - Frontsheet'!A54="","",'Trust - Frontsheet'!A54) ->  | B45: =IF('Trust - Frontsheet'!A54="","",'Trust - Frontsheet'!D54) ->  | C45: =IF(VLOOKUP(A45,'Trust - Frontsheet'!$A$16:$AC$215,5,0)="","",VLOOKUP(A45,'Trust - Frontsheet'!$A$16:$AC$216,5,0)) ->  | D45: =IF(VLOOKUP(A45,'Trust - Frontsheet'!$A$16:$AC$215,6,0)="","",VLOOKUP(A45,'Trust - Frontsheet'!$A$16:$AC$216,6,0)) ->  | E45: =IF(OR(SUMPRODUCT(--(ISTEXT('Trust - Frontsheet'!I54:AC54)))>0,SUMPRODUCT(--(ISERROR('Trust - Frontsheet'!AD54:AT54)))>0),"There is invalid data on this row",IF(SUMPRODUCT(--('Trust - Frontsheet'!I54:AC54<0))>0,"This row contains negative values",IF(AND(L45="This is a blank Row",COUNTBLANK(INDIRECT("L" & ROW() + 1 & ":L" & 206))>0),"No blank rows in the data",""))) ->  | F45: =IF(A45 = "","",IF('Trust - Frontsheet'!D54="", "Site code not present","")) ->  | G45: =IF('Trust - Frontsheet'!D54="","",IF(VLOOKUP(A45,'Trust - Frontsheet'!$A$16:$AC$215,6,0)="","Ward name not present","")) ->  | H45: =IF(A45="","",IF(VLOOKUP(A45,'Trust - Frontsheet'!$A$16:$AC$215,7,0)="","Specialty 1 has not been selected","")) ->  | I45: =IF(A45="","",IF(OR(COUNTIF(Specialties,VLOOKUP(A45,'Trust - Frontsheet'!$A$16:$AC$215,7,0))=0, AND(COUNTIF(Specialties,VLOOKUP(A45,'Trust - Frontsheet'!$A$16:$AC$215,8,0))=0,VLOOKUP(A45,'Trust - Frontsheet'!$A$16:$AC$215,8,0)<>"")),"You have entered unacceptable specialties.","")) ->  | J45: =IF(A45="","",IF(AND(RIGHT(VLOOKUP(A45,'Trust - Frontsheet'!$A$16:$AC$215,7,0),3)<>RIGHT(VLOOKUP(A45,'Trust - Frontsheet'!$A$16:$AC$215,8,0),3),VLOOKUP(A45,'Trust - Frontsheet'!$A$16:$AC$215,8,0)<>""),"Covid statuses do not match","")) ->  | L45: =IF(SUMPRODUCT(--('Trust - Frontsheet'!$D54:$AC54=""))<>26,"","This is a blank row") -> This is a blank row
A46: =IF('Trust - Frontsheet'!A55="","",'Trust - Frontsheet'!A55) ->  | B46: =IF('Trust - Frontsheet'!A55="","",'Trust - Frontsheet'!D55) ->  | C46: =IF(VLOOKUP(A46,'Trust - Frontsheet'!$A$16:$AC$215,5,0)="","",VLOOKUP(A46,'Trust - Frontsheet'!$A$16:$AC$216,5,0)) ->  | D46: =IF(VLOOKUP(A46,'Trust - Frontsheet'!$A$16:$AC$215,6,0)="","",VLOOKUP(A46,'Trust - Frontsheet'!$A$16:$AC$216,6,0)) ->  | E46: =IF(OR(SUMPRODUCT(--(ISTEXT('Trust - Frontsheet'!I55:AC55)))>0,SUMPRODUCT(--(ISERROR('Trust - Frontsheet'!AD55:AT55)))>0),"There is invalid data on this row",IF(SUMPRODUCT(--('Trust - Frontsheet'!I55:AC55<0))>0,"This row contains negative values",IF(AND(L46="This is a blank Row",COUNTBLANK(INDIRECT("L" & ROW() + 1 & ":L" & 206))>0),"No blank rows in the data",""))) ->  | F46: =IF(A46 = "","",IF('Trust - Frontsheet'!D55="", "Site code not present","")) ->  | G46: =IF('Trust - Frontsheet'!D55="","",IF(VLOOKUP(A46,'Trust - Frontsheet'!$A$16:$AC$215,6,0)="","Ward name not present","")) ->  | H46: =IF(A46="","",IF(VLOOKUP(A46,'Trust - Frontsheet'!$A$16:$AC$215,7,0)="","Specialty 1 has not been selected","")) ->  | I46: =IF(A46="","",IF(OR(COUNTIF(Specialties,VLOOKUP(A46,'Trust - Frontsheet'!$A$16:$AC$215,7,0))=0, AND(COUNTIF(Specialties,VLOOKUP(A46,'Trust - Frontsheet'!$A$16:$AC$215,8,0))=0,VLOOKUP(A46,'Trust - Frontsheet'!$A$16:$AC$215,8,0)<>"")),"You have entered unacceptable specialties.","")) ->  | J46: =IF(A46="","",IF(AND(RIGHT(VLOOKUP(A46,'Trust - Frontsheet'!$A$16:$AC$215,7,0),3)<>RIGHT(VLOOKUP(A46,'Trust - Frontsheet'!$A$16:$AC$215,8,0),3),VLOOKUP(A46,'Trust - Frontsheet'!$A$16:$AC$215,8,0)<>""),"Covid statuses do not match","")) ->  | L46: =IF(SUMPRODUCT(--('Trust - Frontsheet'!$D55:$AC55=""))<>26,"","This is a blank row") -> This is a blank row
A47: =IF('Trust - Frontsheet'!A56="","",'Trust - Frontsheet'!A56) ->  | B47: =IF('Trust - Frontsheet'!A56="","",'Trust - Frontsheet'!D56) ->  | C47: =IF(VLOOKUP(A47,'Trust - Frontsheet'!$A$16:$AC$215,5,0)="","",VLOOKUP(A47,'Trust - Frontsheet'!$A$16:$AC$216,5,0)) ->  | D47: =IF(VLOOKUP(A47,'Trust - Frontsheet'!$A$16:$AC$215,6,0)="","",VLOOKUP(A47,'Trust - Frontsheet'!$A$16:$AC$216,6,0)) ->  | E47: =IF(OR(SUMPRODUCT(--(ISTEXT('Trust - Frontsheet'!I56:AC56)))>0,SUMPRODUCT(--(ISERROR('Trust - Frontsheet'!AD56:AT56)))>0),"There is invalid data on this row",IF(SUMPRODUCT(--('Trust - Frontsheet'!I56:AC56<0))>0,"This row contains negative values",IF(AND(L47="This is a blank Row",COUNTBLANK(INDIRECT("L" & ROW() + 1 & ":L" & 206))>0),"No blank rows in the data",""))) ->  | F47: =IF(A47 = "","",IF('Trust - Frontsheet'!D56="", "Site code not present","")) ->  | G47: =IF('Trust - Frontsheet'!D56="","",IF(VLOOKUP(A47,'Trust - Frontsheet'!$A$16:$AC$215,6,0)="","Ward name not present","")) ->  | H47: =IF(A47="","",IF(VLOOKUP(A47,'Trust - Frontsheet'!$A$16:$AC$215,7,0)="","Specialty 1 has not been selected","")) ->  | I47: =IF(A47="","",IF(OR(COUNTIF(Specialties,VLOOKUP(A47,'Trust - Frontsheet'!$A$16:$AC$215,7,0))=0, AND(COUNTIF(Specialties,VLOOKUP(A47,'Trust - Frontsheet'!$A$16:$AC$215,8,0))=0,VLOOKUP(A47,'Trust - Frontsheet'!$A$16:$AC$215,8,0)<>"")),"You have entered unacceptable specialties.","")) ->  | J47: =IF(A47="","",IF(AND(RIGHT(VLOOKUP(A47,'Trust - Frontsheet'!$A$16:$AC$215,7,0),3)<>RIGHT(VLOOKUP(A47,'Trust - Frontsheet'!$A$16:$AC$215,8,0),3),VLOOKUP(A47,'Trust - Frontsheet'!$A$16:$AC$215,8,0)<>""),"Covid statuses do not match","")) ->  | L47: =IF(SUMPRODUCT(--('Trust - Frontsheet'!$D56:$AC56=""))<>26,"","This is a blank row") -> This is a blank row
A48: =IF('Trust - Frontsheet'!A57="","",'Trust - Frontsheet'!A57) ->  | B48: =IF('Trust - Frontsheet'!A57="","",'Trust - Frontsheet'!D57) ->  | C48: =IF(VLOOKUP(A48,'Trust - Frontsheet'!$A$16:$AC$215,5,0)="","",VLOOKUP(A48,'Trust - Frontsheet'!$A$16:$AC$216,5,0)) ->  | D48: =IF(VLOOKUP(A48,'Trust - Frontsheet'!$A$16:$AC$215,6,0)="","",VLOOKUP(A48,'Trust - Frontsheet'!$A$16:$AC$216,6,0)) ->  | E48: =IF(OR(SUMPRODUCT(--(ISTEXT('Trust - Frontsheet'!I57:AC57)))>0,SUMPRODUCT(--(ISERROR('Trust - Frontsheet'!AD57:AT57)))>0),"There is invalid data on this row",IF(SUMPRODUCT(--('Trust - Frontsheet'!I57:AC57<0))>0,"This row contains negative values",IF(AND(L48="This is a blank Row",COUNTBLANK(INDIRECT("L" & ROW() + 1 & ":L" & 206))>0),"No blank rows in the data",""))) ->  | F48: =IF(A48 = "","",IF('Trust - Frontsheet'!D57="", "Site code not present","")) ->  | G48: =IF('Trust - Frontsheet'!D57="","",IF(VLOOKUP(A48,'Trust - Frontsheet'!$A$16:$AC$215,6,0)="","Ward name not present","")) ->  | H48: =IF(A48="","",IF(VLOOKUP(A48,'Trust - Frontsheet'!$A$16:$AC$215,7,0)="","Specialty 1 has not been selected","")) ->  | I48: =IF(A48="","",IF(OR(COUNTIF(Specialties,VLOOKUP(A48,'Trust - Frontsheet'!$A$16:$AC$215,7,0))=0, AND(COUNTIF(Specialties,VLOOKUP(A48,'Trust - Frontsheet'!$A$16:$AC$215,8,0))=0,VLOOKUP(A48,'Trust - Frontsheet'!$A$16:$AC$215,8,0)<>"")),"You have entered unacceptable specialties.","")) ->  | J48: =IF(A48="","",IF(AND(RIGHT(VLOOKUP(A48,'Trust - Frontsheet'!$A$16:$AC$215,7,0),3)<>RIGHT(VLOOKUP(A48,'Trust - Frontsheet'!$A$16:$AC$215,8,0),3),VLOOKUP(A48,'Trust - Frontsheet'!$A$16:$AC$215,8,0)<>""),"Covid statuses do not match","")) ->  | L48: =IF(SUMPRODUCT(--('Trust - Frontsheet'!$D57:$AC57=""))<>26,"","This is a blank row") -> This is a blank row
A49: =IF('Trust - Frontsheet'!A58="","",'Trust - Frontsheet'!A58) ->  | B49: =IF('Trust - Frontsheet'!A58="","",'Trust - Frontsheet'!D58) ->  | C49: =IF(VLOOKUP(A49,'Trust - Frontsheet'!$A$16:$AC$215,5,0)="","",VLOOKUP(A49,'Trust - Frontsheet'!$A$16:$AC$216,5,0)) ->  | D49: =IF(VLOOKUP(A49,'Trust - Frontsheet'!$A$16:$AC$215,6,0)="","",VLOOKUP(A49,'Trust - Frontsheet'!$A$16:$AC$216,6,0)) ->  | E49: =IF(OR(SUMPRODUCT(--(ISTEXT('Trust - Frontsheet'!I58:AC58)))>0,SUMPRODUCT(--(ISERROR('Trust - Frontsheet'!AD58:AT58)))>0),"There is invalid data on this row",IF(SUMPRODUCT(--('Trust - Frontsheet'!I58:AC58<0))>0,"This row contains negative values",IF(AND(L49="This is a blank Row",COUNTBLANK(INDIRECT("L" & ROW() + 1 & ":L" & 206))>0),"No blank rows in the data",""))) ->  | F49: =IF(A49 = "","",IF('Trust - Frontsheet'!D58="", "Site code not present","")) ->  | G49: =IF('Trust - Frontsheet'!D58="","",IF(VLOOKUP(A49,'Trust - Frontsheet'!$A$16:$AC$215,6,0)="","Ward name not present","")) ->  | H49: =IF(A49="","",IF(VLOOKUP(A49,'Trust - Frontsheet'!$A$16:$AC$215,7,0)="","Specialty 1 has not been selected","")) ->  | I49: =IF(A49="","",IF(OR(COUNTIF(Specialties,VLOOKUP(A49,'Trust - Frontsheet'!$A$16:$AC$215,7,0))=0, AND(COUNTIF(Specialties,VLOOKUP(A49,'Trust - Frontsheet'!$A$16:$AC$215,8,0))=0,VLOOKUP(A49,'Trust - Frontsheet'!$A$16:$AC$215,8,0)<>"")),"You have entered unacceptable specialties.","")) ->  | J49: =IF(A49="","",IF(AND(RIGHT(VLOOKUP(A49,'Trust - Frontsheet'!$A$16:$AC$215,7,0),3)<>RIGHT(VLOOKUP(A49,'Trust - Frontsheet'!$A$16:$AC$215,8,0),3),VLOOKUP(A49,'Trust - Frontsheet'!$A$16:$AC$215,8,0)<>""),"Covid statuses do not match","")) ->  | L49: =IF(SUMPRODUCT(--('Trust - Frontsheet'!$D58:$AC58=""))<>26,"","This is a blank row") -> This is a blank row
A50: =IF('Trust - Frontsheet'!A59="","",'Trust - Frontsheet'!A59) ->  | B50: =IF('Trust - Frontsheet'!A59="","",'Trust - Frontsheet'!D59) ->  | C50: =IF(VLOOKUP(A50,'Trust - Frontsheet'!$A$16:$AC$215,5,0)="","",VLOOKUP(A50,'Trust - Frontsheet'!$A$16:$AC$216,5,0)) ->  | D50: =IF(VLOOKUP(A50,'Trust - Frontsheet'!$A$16:$AC$215,6,0)="","",VLOOKUP(A50,'Trust - Frontsheet'!$A$16:$AC$216,6,0)) ->  | E50: =IF(OR(SUMPRODUCT(--(ISTEXT('Trust - Frontsheet'!I59:AC59)))>0,SUMPRODUCT(--(ISERROR('Trust - Frontsheet'!AD59:AT59)))>0),"There is invalid data on this row",IF(SUMPRODUCT(--('Trust - Frontsheet'!I59:AC59<0))>0,"This row contains negative values",IF(AND(L50="This is a blank Row",COUNTBLANK(INDIRECT("L" & ROW() + 1 & ":L" & 206))>0),"No blank rows in the data",""))) ->  | F50: =IF(A50 = "","",IF('Trust - Frontsheet'!D59="", "Site code not present","")) ->  | G50: =IF('Trust - Frontsheet'!D59="","",IF(VLOOKUP(A50,'Trust - Frontsheet'!$A$16:$AC$215,6,0)="","Ward name not present","")) ->  | H50: =IF(A50="","",IF(VLOOKUP(A50,'Trust - Frontsheet'!$A$16:$AC$215,7,0)="","Specialty 1 has not been selected","")) ->  | I50: =IF(A50="","",IF(OR(COUNTIF(Specialties,VLOOKUP(A50,'Trust - Frontsheet'!$A$16:$AC$215,7,0))=0, AND(COUNTIF(Specialties,VLOOKUP(A50,'Trust - Frontsheet'!$A$16:$AC$215,8,0))=0,VLOOKUP(A50,'Trust - Frontsheet'!$A$16:$AC$215,8,0)<>"")),"You have entered unacceptable specialties.","")) ->  | J50: =IF(A50="","",IF(AND(RIGHT(VLOOKUP(A50,'Trust - Frontsheet'!$A$16:$AC$215,7,0),3)<>RIGHT(VLOOKUP(A50,'Trust - Frontsheet'!$A$16:$AC$215,8,0),3),VLOOKUP(A50,'Trust - Frontsheet'!$A$16:$AC$215,8,0)<>""),"Covid statuses do not match","")) ->  | L50: =IF(SUMPRODUCT(--('Trust - Frontsheet'!$D59:$AC59=""))<>26,"","This is a blank row") -> This is a blank row
A51: =IF('Trust - Frontsheet'!A60="","",'Trust - Frontsheet'!A60) ->  | B51: =IF('Trust - Frontsheet'!A60="","",'Trust - Frontsheet'!D60) ->  | C51: =IF(VLOOKUP(A51,'Trust - Frontsheet'!$A$16:$AC$215,5,0)="","",VLOOKUP(A51,'Trust - Frontsheet'!$A$16:$AC$216,5,0)) ->  | D51: =IF(VLOOKUP(A51,'Trust - Frontsheet'!$A$16:$AC$215,6,0)="","",VLOOKUP(A51,'Trust - Frontsheet'!$A$16:$AC$216,6,0)) ->  | E51: =IF(OR(SUMPRODUCT(--(ISTEXT('Trust - Frontsheet'!I60:AC60)))>0,SUMPRODUCT(--(ISERROR('Trust - Frontsheet'!AD60:AT60)))>0),"There is invalid data on this row",IF(SUMPRODUCT(--('Trust - Frontsheet'!I60:AC60<0))>0,"This row contains negative values",IF(AND(L51="This is a blank Row",COUNTBLANK(INDIRECT("L" & ROW() + 1 & ":L" & 206))>0),"No blank rows in the data",""))) ->  | F51: =IF(A51 = "","",IF('Trust - Frontsheet'!D60="", "Site code not present","")) ->  | G51: =IF('Trust - Frontsheet'!D60="","",IF(VLOOKUP(A51,'Trust - Frontsheet'!$A$16:$AC$215,6,0)="","Ward name not present","")) ->  | H51: =IF(A51="","",IF(VLOOKUP(A51,'Trust - Frontsheet'!$A$16:$AC$215,7,0)="","Specialty 1 has not been selected","")) ->  | I51: =IF(A51="","",IF(OR(COUNTIF(Specialties,VLOOKUP(A51,'Trust - Frontsheet'!$A$16:$AC$215,7,0))=0, AND(COUNTIF(Specialties,VLOOKUP(A51,'Trust - Frontsheet'!$A$16:$AC$215,8,0))=0,VLOOKUP(A51,'Trust - Frontsheet'!$A$16:$AC$215,8,0)<>"")),"You have entered unacceptable specialties.","")) ->  | J51: =IF(A51="","",IF(AND(RIGHT(VLOOKUP(A51,'Trust - Frontsheet'!$A$16:$AC$215,7,0),3)<>RIGHT(VLOOKUP(A51,'Trust - Frontsheet'!$A$16:$AC$215,8,0),3),VLOOKUP(A51,'Trust - Frontsheet'!$A$16:$AC$215,8,0)<>""),"Covid statuses do not match","")) ->  | L51: =IF(SUMPRODUCT(--('Trust - Frontsheet'!$D60:$AC60=""))<>26,"","This is a blank row") -> This is a blank row
A52: =IF('Trust - Frontsheet'!A61="","",'Trust - Frontsheet'!A61) ->  | B52: =IF('Trust - Frontsheet'!A61="","",'Trust - Frontsheet'!D61) ->  | C52: =IF(VLOOKUP(A52,'Trust - Frontsheet'!$A$16:$AC$215,5,0)="","",VLOOKUP(A52,'Trust - Frontsheet'!$A$16:$AC$216,5,0)) ->  | D52: =IF(VLOOKUP(A52,'Trust - Frontsheet'!$A$16:$AC$215,6,0)="","",VLOOKUP(A52,'Trust - Frontsheet'!$A$16:$AC$216,6,0)) ->  | E52: =IF(OR(SUMPRODUCT(--(ISTEXT('Trust - Frontsheet'!I61:AC61)))>0,SUMPRODUCT(--(ISERROR('Trust - Frontsheet'!AD61:AT61)))>0),"There is invalid data on this row",IF(SUMPRODUCT(--('Trust - Frontsheet'!I61:AC61<0))>0,"This row contains negative values",IF(AND(L52="This is a blank Row",COUNTBLANK(INDIRECT("L" & ROW() + 1 & ":L" & 206))>0),"No blank rows in the data",""))) ->  | F52: =IF(A52 = "","",IF('Trust - Frontsheet'!D61="", "Site code not present","")) ->  | G52: =IF('Trust - Frontsheet'!D61="","",IF(VLOOKUP(A52,'Trust - Frontsheet'!$A$16:$AC$215,6,0)="","Ward name not present","")) ->  | H52: =IF(A52="","",IF(VLOOKUP(A52,'Trust - Frontsheet'!$A$16:$AC$215,7,0)="","Specialty 1 has not been selected","")) ->  | I52: =IF(A52="","",IF(OR(COUNTIF(Specialties,VLOOKUP(A52,'Trust - Frontsheet'!$A$16:$AC$215,7,0))=0, AND(COUNTIF(Specialties,VLOOKUP(A52,'Trust - Frontsheet'!$A$16:$AC$215,8,0))=0,VLOOKUP(A52,'Trust - Frontsheet'!$A$16:$AC$215,8,0)<>"")),"You have entered unacceptable specialties.","")) ->  | J52: =IF(A52="","",IF(AND(RIGHT(VLOOKUP(A52,'Trust - Frontsheet'!$A$16:$AC$215,7,0),3)<>RIGHT(VLOOKUP(A52,'Trust - Frontsheet'!$A$16:$AC$215,8,0),3),VLOOKUP(A52,'Trust - Frontsheet'!$A$16:$AC$215,8,0)<>""),"Covid statuses do not match","")) ->  | L52: =IF(SUMPRODUCT(--('Trust - Frontsheet'!$D61:$AC61=""))<>26,"","This is a blank row") -> This is a blank row
A53: =IF('Trust - Frontsheet'!A62="","",'Trust - Frontsheet'!A62) ->  | B53: =IF('Trust - Frontsheet'!A62="","",'Trust - Frontsheet'!D62) ->  | C53: =IF(VLOOKUP(A53,'Trust - Frontsheet'!$A$16:$AC$215,5,0)="","",VLOOKUP(A53,'Trust - Frontsheet'!$A$16:$AC$216,5,0)) ->  | D53: =IF(VLOOKUP(A53,'Trust - Frontsheet'!$A$16:$AC$215,6,0)="","",VLOOKUP(A53,'Trust - Frontsheet'!$A$16:$AC$216,6,0)) ->  | E53: =IF(OR(SUMPRODUCT(--(ISTEXT('Trust - Frontsheet'!I62:AC62)))>0,SUMPRODUCT(--(ISERROR('Trust - Frontsheet'!AD62:AT62)))>0),"There is invalid data on this row",IF(SUMPRODUCT(--('Trust - Frontsheet'!I62:AC62<0))>0,"This row contains negative values",IF(AND(L53="This is a blank Row",COUNTBLANK(INDIRECT("L" & ROW() + 1 & ":L" & 206))>0),"No blank rows in the data",""))) ->  | F53: =IF(A53 = "","",IF('Trust - Frontsheet'!D62="", "Site code not present","")) ->  | G53: =IF('Trust - Frontsheet'!D62="","",IF(VLOOKUP(A53,'Trust - Frontsheet'!$A$16:$AC$215,6,0)="","Ward name not present","")) ->  | H53: =IF(A53="","",IF(VLOOKUP(A53,'Trust - Frontsheet'!$A$16:$AC$215,7,0)="","Specialty 1 has not been selected","")) ->  | I53: =IF(A53="","",IF(OR(COUNTIF(Specialties,VLOOKUP(A53,'Trust - Frontsheet'!$A$16:$AC$215,7,0))=0, AND(COUNTIF(Specialties,VLOOKUP(A53,'Trust - Frontsheet'!$A$16:$AC$215,8,0))=0,VLOOKUP(A53,'Trust - Frontsheet'!$A$16:$AC$215,8,0)<>"")),"You have entered unacceptable specialties.","")) ->  | J53: =IF(A53="","",IF(AND(RIGHT(VLOOKUP(A53,'Trust - Frontsheet'!$A$16:$AC$215,7,0),3)<>RIGHT(VLOOKUP(A53,'Trust - Frontsheet'!$A$16:$AC$215,8,0),3),VLOOKUP(A53,'Trust - Frontsheet'!$A$16:$AC$215,8,0)<>""),"Covid statuses do not match","")) ->  | L53: =IF(SUMPRODUCT(--('Trust - Frontsheet'!$D62:$AC62=""))<>26,"","This is a blank row") -> This is a blank row
A54: =IF('Trust - Frontsheet'!A63="","",'Trust - Frontsheet'!A63) ->  | B54: =IF('Trust - Frontsheet'!A63="","",'Trust - Frontsheet'!D63) ->  | C54: =IF(VLOOKUP(A54,'Trust - Frontsheet'!$A$16:$AC$215,5,0)="","",VLOOKUP(A54,'Trust - Frontsheet'!$A$16:$AC$216,5,0)) ->  | D54: =IF(VLOOKUP(A54,'Trust - Frontsheet'!$A$16:$AC$215,6,0)="","",VLOOKUP(A54,'Trust - Frontsheet'!$A$16:$AC$216,6,0)) ->  | E54: =IF(OR(SUMPRODUCT(--(ISTEXT('Trust - Frontsheet'!I63:AC63)))>0,SUMPRODUCT(--(ISERROR('Trust - Frontsheet'!AD63:AT63)))>0),"There is invalid data on this row",IF(SUMPRODUCT(--('Trust - Frontsheet'!I63:AC63<0))>0,"This row contains negative values",IF(AND(L54="This is a blank Row",COUNTBLANK(INDIRECT("L" & ROW() + 1 & ":L" & 206))>0),"No blank rows in the data",""))) ->  | F54: =IF(A54 = "","",IF('Trust - Frontsheet'!D63="", "Site code not present","")) ->  | G54: =IF('Trust - Frontsheet'!D63="","",IF(VLOOKUP(A54,'Trust - Frontsheet'!$A$16:$AC$215,6,0)="","Ward name not present","")) ->  | H54: =IF(A54="","",IF(VLOOKUP(A54,'Trust - Frontsheet'!$A$16:$AC$215,7,0)="","Specialty 1 has not been selected","")) ->  | I54: =IF(A54="","",IF(OR(COUNTIF(Specialties,VLOOKUP(A54,'Trust - Frontsheet'!$A$16:$AC$215,7,0))=0, AND(COUNTIF(Specialties,VLOOKUP(A54,'Trust - Frontsheet'!$A$16:$AC$215,8,0))=0,VLOOKUP(A54,'Trust - Frontsheet'!$A$16:$AC$215,8,0)<>"")),"You have entered unacceptable specialties.","")) ->  | J54: =IF(A54="","",IF(AND(RIGHT(VLOOKUP(A54,'Trust - Frontsheet'!$A$16:$AC$215,7,0),3)<>RIGHT(VLOOKUP(A54,'Trust - Frontsheet'!$A$16:$AC$215,8,0),3),VLOOKUP(A54,'Trust - Frontsheet'!$A$16:$AC$215,8,0)<>""),"Covid statuses do not match","")) ->  | L54: =IF(SUMPRODUCT(--('Trust - Frontsheet'!$D63:$AC63=""))<>26,"","This is a blank row") -> This is a blank row
A55: =IF('Trust - Frontsheet'!A64="","",'Trust - Frontsheet'!A64) ->  | B55: =IF('Trust - Frontsheet'!A64="","",'Trust - Frontsheet'!D64) ->  | C55: =IF(VLOOKUP(A55,'Trust - Frontsheet'!$A$16:$AC$215,5,0)="","",VLOOKUP(A55,'Trust - Frontsheet'!$A$16:$AC$216,5,0)) ->  | D55: =IF(VLOOKUP(A55,'Trust - Frontsheet'!$A$16:$AC$215,6,0)="","",VLOOKUP(A55,'Trust - Frontsheet'!$A$16:$AC$216,6,0)) ->  | E55: =IF(OR(SUMPRODUCT(--(ISTEXT('Trust - Frontsheet'!I64:AC64)))>0,SUMPRODUCT(--(ISERROR('Trust - Frontsheet'!AD64:AT64)))>0),"There is invalid data on this row",IF(SUMPRODUCT(--('Trust - Frontsheet'!I64:AC64<0))>0,"This row contains negative values",IF(AND(L55="This is a blank Row",COUNTBLANK(INDIRECT("L" & ROW() + 1 & ":L" & 206))>0),"No blank rows in the data",""))) ->  | F55: =IF(A55 = "","",IF('Trust - Frontsheet'!D64="", "Site code not present","")) ->  | G55: =IF('Trust - Frontsheet'!D64="","",IF(VLOOKUP(A55,'Trust - Frontsheet'!$A$16:$AC$215,6,0)="","Ward name not present","")) ->  | H55: =IF(A55="","",IF(VLOOKUP(A55,'Trust - Frontsheet'!$A$16:$AC$215,7,0)="","Specialty 1 has not been selected","")) ->  | I55: =IF(A55="","",IF(OR(COUNTIF(Specialties,VLOOKUP(A55,'Trust - Frontsheet'!$A$16:$AC$215,7,0))=0, AND(COUNTIF(Specialties,VLOOKUP(A55,'Trust - Frontsheet'!$A$16:$AC$215,8,0))=0,VLOOKUP(A55,'Trust - Frontsheet'!$A$16:$AC$215,8,0)<>"")),"You have entered unacceptable specialties.","")) ->  | J55: =IF(A55="","",IF(AND(RIGHT(VLOOKUP(A55,'Trust - Frontsheet'!$A$16:$AC$215,7,0),3)<>RIGHT(VLOOKUP(A55,'Trust - Frontsheet'!$A$16:$AC$215,8,0),3),VLOOKUP(A55,'Trust - Frontsheet'!$A$16:$AC$215,8,0)<>""),"Covid statuses do not match","")) ->  | L55: =IF(SUMPRODUCT(--('Trust - Frontsheet'!$D64:$AC64=""))<>26,"","This is a blank row") -> This is a blank row
A56: =IF('Trust - Frontsheet'!A65="","",'Trust - Frontsheet'!A65) ->  | B56: =IF('Trust - Frontsheet'!A65="","",'Trust - Frontsheet'!D65) ->  | C56: =IF(VLOOKUP(A56,'Trust - Frontsheet'!$A$16:$AC$215,5,0)="","",VLOOKUP(A56,'Trust - Frontsheet'!$A$16:$AC$216,5,0)) ->  | D56: =IF(VLOOKUP(A56,'Trust - Frontsheet'!$A$16:$AC$215,6,0)="","",VLOOKUP(A56,'Trust - Frontsheet'!$A$16:$AC$216,6,0)) ->  | E56: =IF(OR(SUMPRODUCT(--(ISTEXT('Trust - Frontsheet'!I65:AC65)))>0,SUMPRODUCT(--(ISERROR('Trust - Frontsheet'!AD65:AT65)))>0),"There is invalid data on this row",IF(SUMPRODUCT(--('Trust - Frontsheet'!I65:AC65<0))>0,"This row contains negative values",IF(AND(L56="This is a blank Row",COUNTBLANK(INDIRECT("L" & ROW() + 1 & ":L" & 206))>0),"No blank rows in the data",""))) ->  | F56: =IF(A56 = "","",IF('Trust - Frontsheet'!D65="", "Site code not present","")) ->  | G56: =IF('Trust - Frontsheet'!D65="","",IF(VLOOKUP(A56,'Trust - Frontsheet'!$A$16:$AC$215,6,0)="","Ward name not present","")) ->  | H56: =IF(A56="","",IF(VLOOKUP(A56,'Trust - Frontsheet'!$A$16:$AC$215,7,0)="","Specialty 1 has not been selected","")) ->  | I56: =IF(A56="","",IF(OR(COUNTIF(Specialties,VLOOKUP(A56,'Trust - Frontsheet'!$A$16:$AC$215,7,0))=0, AND(COUNTIF(Specialties,VLOOKUP(A56,'Trust - Frontsheet'!$A$16:$AC$215,8,0))=0,VLOOKUP(A56,'Trust - Frontsheet'!$A$16:$AC$215,8,0)<>"")),"You have entered unacceptable specialties.","")) ->  | J56: =IF(A56="","",IF(AND(RIGHT(VLOOKUP(A56,'Trust - Frontsheet'!$A$16:$AC$215,7,0),3)<>RIGHT(VLOOKUP(A56,'Trust - Frontsheet'!$A$16:$AC$215,8,0),3),VLOOKUP(A56,'Trust - Frontsheet'!$A$16:$AC$215,8,0)<>""),"Covid statuses do not match","")) ->  | L56: =IF(SUMPRODUCT(--('Trust - Frontsheet'!$D65:$AC65=""))<>26,"","This is a blank row") -> This is a blank row
A57: =IF('Trust - Frontsheet'!A66="","",'Trust - Frontsheet'!A66) ->  | B57: =IF('Trust - Frontsheet'!A66="","",'Trust - Frontsheet'!D66) ->  | C57: =IF(VLOOKUP(A57,'Trust - Frontsheet'!$A$16:$AC$215,5,0)="","",VLOOKUP(A57,'Trust - Frontsheet'!$A$16:$AC$216,5,0)) ->  | D57: =IF(VLOOKUP(A57,'Trust - Frontsheet'!$A$16:$AC$215,6,0)="","",VLOOKUP(A57,'Trust - Frontsheet'!$A$16:$AC$216,6,0)) ->  | E57: =IF(OR(SUMPRODUCT(--(ISTEXT('Trust - Frontsheet'!I66:AC66)))>0,SUMPRODUCT(--(ISERROR('Trust - Frontsheet'!AD66:AT66)))>0),"There is invalid data on this row",IF(SUMPRODUCT(--('Trust - Frontsheet'!I66:AC66<0))>0,"This row contains negative values",IF(AND(L57="This is a blank Row",COUNTBLANK(INDIRECT("L" & ROW() + 1 & ":L" & 206))>0),"No blank rows in the data",""))) ->  | F57: =IF(A57 = "","",IF('Trust - Frontsheet'!D66="", "Site code not present","")) ->  | G57: =IF('Trust - Frontsheet'!D66="","",IF(VLOOKUP(A57,'Trust - Frontsheet'!$A$16:$AC$215,6,0)="","Ward name not present","")) ->  | H57: =IF(A57="","",IF(VLOOKUP(A57,'Trust - Frontsheet'!$A$16:$AC$215,7,0)="","Specialty 1 has not been selected","")) ->  | I57: =IF(A57="","",IF(OR(COUNTIF(Specialties,VLOOKUP(A57,'Trust - Frontsheet'!$A$16:$AC$215,7,0))=0, AND(COUNTIF(Specialties,VLOOKUP(A57,'Trust - Frontsheet'!$A$16:$AC$215,8,0))=0,VLOOKUP(A57,'Trust - Frontsheet'!$A$16:$AC$215,8,0)<>"")),"You have entered unacceptable specialties.","")) ->  | J57: =IF(A57="","",IF(AND(RIGHT(VLOOKUP(A57,'Trust - Frontsheet'!$A$16:$AC$215,7,0),3)<>RIGHT(VLOOKUP(A57,'Trust - Frontsheet'!$A$16:$AC$215,8,0),3),VLOOKUP(A57,'Trust - Frontsheet'!$A$16:$AC$215,8,0)<>""),"Covid statuses do not match","")) ->  | L57: =IF(SUMPRODUCT(--('Trust - Frontsheet'!$D66:$AC66=""))<>26,"","This is a blank row") -> This is a blank row
A58: =IF('Trust - Frontsheet'!A67="","",'Trust - Frontsheet'!A67) ->  | B58: =IF('Trust - Frontsheet'!A67="","",'Trust - Frontsheet'!D67) ->  | C58: =IF(VLOOKUP(A58,'Trust - Frontsheet'!$A$16:$AC$215,5,0)="","",VLOOKUP(A58,'Trust - Frontsheet'!$A$16:$AC$216,5,0)) ->  | D58: =IF(VLOOKUP(A58,'Trust - Frontsheet'!$A$16:$AC$215,6,0)="","",VLOOKUP(A58,'Trust - Frontsheet'!$A$16:$AC$216,6,0)) ->  | E58: =IF(OR(SUMPRODUCT(--(ISTEXT('Trust - Frontsheet'!I67:AC67)))>0,SUMPRODUCT(--(ISERROR('Trust - Frontsheet'!AD67:AT67)))>0),"There is invalid data on this row",IF(SUMPRODUCT(--('Trust - Frontsheet'!I67:AC67<0))>0,"This row contains negative values",IF(AND(L58="This is a blank Row",COUNTBLANK(INDIRECT("L" & ROW() + 1 & ":L" & 206))>0),"No blank rows in the data",""))) ->  | F58: =IF(A58 = "","",IF('Trust - Frontsheet'!D67="", "Site code not present","")) ->  | G58: =IF('Trust - Frontsheet'!D67="","",IF(VLOOKUP(A58,'Trust - Frontsheet'!$A$16:$AC$215,6,0)="","Ward name not present","")) ->  | H58: =IF(A58="","",IF(VLOOKUP(A58,'Trust - Frontsheet'!$A$16:$AC$215,7,0)="","Specialty 1 has not been selected","")) ->  | I58: =IF(A58="","",IF(OR(COUNTIF(Specialties,VLOOKUP(A58,'Trust - Frontsheet'!$A$16:$AC$215,7,0))=0, AND(COUNTIF(Specialties,VLOOKUP(A58,'Trust - Frontsheet'!$A$16:$AC$215,8,0))=0,VLOOKUP(A58,'Trust - Frontsheet'!$A$16:$AC$215,8,0)<>"")),"You have entered unacceptable specialties.","")) ->  | J58: =IF(A58="","",IF(AND(RIGHT(VLOOKUP(A58,'Trust - Frontsheet'!$A$16:$AC$215,7,0),3)<>RIGHT(VLOOKUP(A58,'Trust - Frontsheet'!$A$16:$AC$215,8,0),3),VLOOKUP(A58,'Trust - Frontsheet'!$A$16:$AC$215,8,0)<>""),"Covid statuses do not match","")) ->  | L58: =IF(SUMPRODUCT(--('Trust - Frontsheet'!$D67:$AC67=""))<>26,"","This is a blank row") -> This is a blank row
A59: =IF('Trust - Frontsheet'!A68="","",'Trust - Frontsheet'!A68) ->  | B59: =IF('Trust - Frontsheet'!A68="","",'Trust - Frontsheet'!D68) ->  | C59: =IF(VLOOKUP(A59,'Trust - Frontsheet'!$A$16:$AC$215,5,0)="","",VLOOKUP(A59,'Trust - Frontsheet'!$A$16:$AC$216,5,0)) ->  | D59: =IF(VLOOKUP(A59,'Trust - Frontsheet'!$A$16:$AC$215,6,0)="","",VLOOKUP(A59,'Trust - Frontsheet'!$A$16:$AC$216,6,0)) ->  | E59: =IF(OR(SUMPRODUCT(--(ISTEXT('Trust - Frontsheet'!I68:AC68)))>0,SUMPRODUCT(--(ISERROR('Trust - Frontsheet'!AD68:AT68)))>0),"There is invalid data on this row",IF(SUMPRODUCT(--('Trust - Frontsheet'!I68:AC68<0))>0,"This row contains negative values",IF(AND(L59="This is a blank Row",COUNTBLANK(INDIRECT("L" & ROW() + 1 & ":L" & 206))>0),"No blank rows in the data",""))) ->  | F59: =IF(A59 = "","",IF('Trust - Frontsheet'!D68="", "Site code not present","")) ->  | G59: =IF('Trust - Frontsheet'!D68="","",IF(VLOOKUP(A59,'Trust - Frontsheet'!$A$16:$AC$215,6,0)="","Ward name not present","")) ->  | H59: =IF(A59="","",IF(VLOOKUP(A59,'Trust - Frontsheet'!$A$16:$AC$215,7,0)="","Specialty 1 has not been selected","")) ->  | I59: =IF(A59="","",IF(OR(COUNTIF(Specialties,VLOOKUP(A59,'Trust - Frontsheet'!$A$16:$AC$215,7,0))=0, AND(COUNTIF(Specialties,VLOOKUP(A59,'Trust - Frontsheet'!$A$16:$AC$215,8,0))=0,VLOOKUP(A59,'Trust - Frontsheet'!$A$16:$AC$215,8,0)<>"")),"You have entered unacceptable specialties.","")) ->  | J59: =IF(A59="","",IF(AND(RIGHT(VLOOKUP(A59,'Trust - Frontsheet'!$A$16:$AC$215,7,0),3)<>RIGHT(VLOOKUP(A59,'Trust - Frontsheet'!$A$16:$AC$215,8,0),3),VLOOKUP(A59,'Trust - Frontsheet'!$A$16:$AC$215,8,0)<>""),"Covid statuses do not match","")) ->  | L59: =IF(SUMPRODUCT(--('Trust - Frontsheet'!$D68:$AC68=""))<>26,"","This is a blank row") -> This is a blank row
A60: =IF('Trust - Frontsheet'!A69="","",'Trust - Frontsheet'!A69) ->  | B60: =IF('Trust - Frontsheet'!A69="","",'Trust - Frontsheet'!D69) ->  | C60: =IF(VLOOKUP(A60,'Trust - Frontsheet'!$A$16:$AC$215,5,0)="","",VLOOKUP(A60,'Trust - Frontsheet'!$A$16:$AC$216,5,0)) ->  | D60: =IF(VLOOKUP(A60,'Trust - Frontsheet'!$A$16:$AC$215,6,0)="","",VLOOKUP(A60,'Trust - Frontsheet'!$A$16:$AC$216,6,0)) ->  | E60: =IF(OR(SUMPRODUCT(--(ISTEXT('Trust - Frontsheet'!I69:AC69)))>0,SUMPRODUCT(--(ISERROR('Trust - Frontsheet'!AD69:AT69)))>0),"There is invalid data on this row",IF(SUMPRODUCT(--('Trust - Frontsheet'!I69:AC69<0))>0,"This row contains negative values",IF(AND(L60="This is a blank Row",COUNTBLANK(INDIRECT("L" & ROW() + 1 & ":L" & 206))>0),"No blank rows in the data",""))) ->  | F60: =IF(A60 = "","",IF('Trust - Frontsheet'!D69="", "Site code not present","")) ->  | G60: =IF('Trust - Frontsheet'!D69="","",IF(VLOOKUP(A60,'Trust - Frontsheet'!$A$16:$AC$215,6,0)="","Ward name not present","")) ->  | H60: =IF(A60="","",IF(VLOOKUP(A60,'Trust - Frontsheet'!$A$16:$AC$215,7,0)="","Specialty 1 has not been selected","")) ->  | I60: =IF(A60="","",IF(OR(COUNTIF(Specialties,VLOOKUP(A60,'Trust - Frontsheet'!$A$16:$AC$215,7,0))=0, AND(COUNTIF(Specialties,VLOOKUP(A60,'Trust - Frontsheet'!$A$16:$AC$215,8,0))=0,VLOOKUP(A60,'Trust - Frontsheet'!$A$16:$AC$215,8,0)<>"")),"You have entered unacceptable specialties.","")) ->  | J60: =IF(A60="","",IF(AND(RIGHT(VLOOKUP(A60,'Trust - Frontsheet'!$A$16:$AC$215,7,0),3)<>RIGHT(VLOOKUP(A60,'Trust - Frontsheet'!$A$16:$AC$215,8,0),3),VLOOKUP(A60,'Trust - Frontsheet'!$A$16:$AC$215,8,0)<>""),"Covid statuses do not match","")) ->  | L60: =IF(SUMPRODUCT(--('Trust - Frontsheet'!$D69:$AC69=""))<>26,"","This is a blank row") -> This is a blank row
A61: =IF('Trust - Frontsheet'!A70="","",'Trust - Frontsheet'!A70) ->  | B61: =IF('Trust - Frontsheet'!A70="","",'Trust - Frontsheet'!D70) ->  | C61: =IF(VLOOKUP(A61,'Trust - Frontsheet'!$A$16:$AC$215,5,0)="","",VLOOKUP(A61,'Trust - Frontsheet'!$A$16:$AC$216,5,0)) ->  | D61: =IF(VLOOKUP(A61,'Trust - Frontsheet'!$A$16:$AC$215,6,0)="","",VLOOKUP(A61,'Trust - Frontsheet'!$A$16:$AC$216,6,0)) ->  | E61: =IF(OR(SUMPRODUCT(--(ISTEXT('Trust - Frontsheet'!I70:AC70)))>0,SUMPRODUCT(--(ISERROR('Trust - Frontsheet'!AD70:AT70)))>0),"There is invalid data on this row",IF(SUMPRODUCT(--('Trust - Frontsheet'!I70:AC70<0))>0,"This row contains negative values",IF(AND(L61="This is a blank Row",COUNTBLANK(INDIRECT("L" & ROW() + 1 & ":L" & 206))>0),"No blank rows in the data",""))) ->  | F61: =IF(A61 = "","",IF('Trust - Frontsheet'!D70="", "Site code not present","")) ->  | G61: =IF('Trust - Frontsheet'!D70="","",IF(VLOOKUP(A61,'Trust - Frontsheet'!$A$16:$AC$215,6,0)="","Ward name not present","")) ->  | H61: =IF(A61="","",IF(VLOOKUP(A61,'Trust - Frontsheet'!$A$16:$AC$215,7,0)="","Specialty 1 has not been selected","")) ->  | I61: =IF(A61="","",IF(OR(COUNTIF(Specialties,VLOOKUP(A61,'Trust - Frontsheet'!$A$16:$AC$215,7,0))=0, AND(COUNTIF(Specialties,VLOOKUP(A61,'Trust - Frontsheet'!$A$16:$AC$215,8,0))=0,VLOOKUP(A61,'Trust - Frontsheet'!$A$16:$AC$215,8,0)<>"")),"You have entered unacceptable specialties.","")) ->  | J61: =IF(A61="","",IF(AND(RIGHT(VLOOKUP(A61,'Trust - Frontsheet'!$A$16:$AC$215,7,0),3)<>RIGHT(VLOOKUP(A61,'Trust - Frontsheet'!$A$16:$AC$215,8,0),3),VLOOKUP(A61,'Trust - Frontsheet'!$A$16:$AC$215,8,0)<>""),"Covid statuses do not match","")) ->  | L61: =IF(SUMPRODUCT(--('Trust - Frontsheet'!$D70:$AC70=""))<>26,"","This is a blank row") -> This is a blank row
A62: =IF('Trust - Frontsheet'!A71="","",'Trust - Frontsheet'!A71) ->  | B62: =IF('Trust - Frontsheet'!A71="","",'Trust - Frontsheet'!D71) ->  | C62: =IF(VLOOKUP(A62,'Trust - Frontsheet'!$A$16:$AC$215,5,0)="","",VLOOKUP(A62,'Trust - Frontsheet'!$A$16:$AC$216,5,0)) ->  | D62: =IF(VLOOKUP(A62,'Trust - Frontsheet'!$A$16:$AC$215,6,0)="","",VLOOKUP(A62,'Trust - Frontsheet'!$A$16:$AC$216,6,0)) ->  | E62: =IF(OR(SUMPRODUCT(--(ISTEXT('Trust - Frontsheet'!I71:AC71)))>0,SUMPRODUCT(--(ISERROR('Trust - Frontsheet'!AD71:AT71)))>0),"There is invalid data on this row",IF(SUMPRODUCT(--('Trust - Frontsheet'!I71:AC71<0))>0,"This row contains negative values",IF(AND(L62="This is a blank Row",COUNTBLANK(INDIRECT("L" & ROW() + 1 & ":L" & 206))>0),"No blank rows in the data",""))) ->  | F62: =IF(A62 = "","",IF('Trust - Frontsheet'!D71="", "Site code not present","")) ->  | G62: =IF('Trust - Frontsheet'!D71="","",IF(VLOOKUP(A62,'Trust - Frontsheet'!$A$16:$AC$215,6,0)="","Ward name not present","")) ->  | H62: =IF(A62="","",IF(VLOOKUP(A62,'Trust - Frontsheet'!$A$16:$AC$215,7,0)="","Specialty 1 has not been selected","")) ->  | I62: =IF(A62="","",IF(OR(COUNTIF(Specialties,VLOOKUP(A62,'Trust - Frontsheet'!$A$16:$AC$215,7,0))=0, AND(COUNTIF(Specialties,VLOOKUP(A62,'Trust - Frontsheet'!$A$16:$AC$215,8,0))=0,VLOOKUP(A62,'Trust - Frontsheet'!$A$16:$AC$215,8,0)<>"")),"You have entered unacceptable specialties.","")) ->  | J62: =IF(A62="","",IF(AND(RIGHT(VLOOKUP(A62,'Trust - Frontsheet'!$A$16:$AC$215,7,0),3)<>RIGHT(VLOOKUP(A62,'Trust - Frontsheet'!$A$16:$AC$215,8,0),3),VLOOKUP(A62,'Trust - Frontsheet'!$A$16:$AC$215,8,0)<>""),"Covid statuses do not match","")) ->  | L62: =IF(SUMPRODUCT(--('Trust - Frontsheet'!$D71:$AC71=""))<>26,"","This is a blank row") -> This is a blank row
A63: =IF('Trust - Frontsheet'!A72="","",'Trust - Frontsheet'!A72) ->  | B63: =IF('Trust - Frontsheet'!A72="","",'Trust - Frontsheet'!D72) ->  | C63: =IF(VLOOKUP(A63,'Trust - Frontsheet'!$A$16:$AC$215,5,0)="","",VLOOKUP(A63,'Trust - Frontsheet'!$A$16:$AC$216,5,0)) ->  | D63: =IF(VLOOKUP(A63,'Trust - Frontsheet'!$A$16:$AC$215,6,0)="","",VLOOKUP(A63,'Trust - Frontsheet'!$A$16:$AC$216,6,0)) ->  | E63: =IF(OR(SUMPRODUCT(--(ISTEXT('Trust - Frontsheet'!I72:AC72)))>0,SUMPRODUCT(--(ISERROR('Trust - Frontsheet'!AD72:AT72)))>0),"There is invalid data on this row",IF(SUMPRODUCT(--('Trust - Frontsheet'!I72:AC72<0))>0,"This row contains negative values",IF(AND(L63="This is a blank Row",COUNTBLANK(INDIRECT("L" & ROW() + 1 & ":L" & 206))>0),"No blank rows in the data",""))) ->  | F63: =IF(A63 = "","",IF('Trust - Frontsheet'!D72="", "Site code not present","")) ->  | G63: =IF('Trust - Frontsheet'!D72="","",IF(VLOOKUP(A63,'Trust - Frontsheet'!$A$16:$AC$215,6,0)="","Ward name not present","")) ->  | H63: =IF(A63="","",IF(VLOOKUP(A63,'Trust - Frontsheet'!$A$16:$AC$215,7,0)="","Specialty 1 has not been selected","")) ->  | I63: =IF(A63="","",IF(OR(COUNTIF(Specialties,VLOOKUP(A63,'Trust - Frontsheet'!$A$16:$AC$215,7,0))=0, AND(COUNTIF(Specialties,VLOOKUP(A63,'Trust - Frontsheet'!$A$16:$AC$215,8,0))=0,VLOOKUP(A63,'Trust - Frontsheet'!$A$16:$AC$215,8,0)<>"")),"You have entered unacceptable specialties.","")) ->  | J63: =IF(A63="","",IF(AND(RIGHT(VLOOKUP(A63,'Trust - Frontsheet'!$A$16:$AC$215,7,0),3)<>RIGHT(VLOOKUP(A63,'Trust - Frontsheet'!$A$16:$AC$215,8,0),3),VLOOKUP(A63,'Trust - Frontsheet'!$A$16:$AC$215,8,0)<>""),"Covid statuses do not match","")) ->  | L63: =IF(SUMPRODUCT(--('Trust - Frontsheet'!$D72:$AC72=""))<>26,"","This is a blank row") -> This is a blank row
A64: =IF('Trust - Frontsheet'!A73="","",'Trust - Frontsheet'!A73) ->  | B64: =IF('Trust - Frontsheet'!A73="","",'Trust - Frontsheet'!D73) ->  | C64: =IF(VLOOKUP(A64,'Trust - Frontsheet'!$A$16:$AC$215,5,0)="","",VLOOKUP(A64,'Trust - Frontsheet'!$A$16:$AC$216,5,0)) ->  | D64: =IF(VLOOKUP(A64,'Trust - Frontsheet'!$A$16:$AC$215,6,0)="","",VLOOKUP(A64,'Trust - Frontsheet'!$A$16:$AC$216,6,0)) ->  | E64: =IF(OR(SUMPRODUCT(--(ISTEXT('Trust - Frontsheet'!I73:AC73)))>0,SUMPRODUCT(--(ISERROR('Trust - Frontsheet'!AD73:AT73)))>0),"There is invalid data on this row",IF(SUMPRODUCT(--('Trust - Frontsheet'!I73:AC73<0))>0,"This row contains negative values",IF(AND(L64="This is a blank Row",COUNTBLANK(INDIRECT("L" & ROW() + 1 & ":L" & 206))>0),"No blank rows in the data",""))) ->  | F64: =IF(A64 = "","",IF('Trust - Frontsheet'!D73="", "Site code not present","")) ->  | G64: =IF('Trust - Frontsheet'!D73="","",IF(VLOOKUP(A64,'Trust - Frontsheet'!$A$16:$AC$215,6,0)="","Ward name not present","")) ->  | H64: =IF(A64="","",IF(VLOOKUP(A64,'Trust - Frontsheet'!$A$16:$AC$215,7,0)="","Specialty 1 has not been selected","")) ->  | I64: =IF(A64="","",IF(OR(COUNTIF(Specialties,VLOOKUP(A64,'Trust - Frontsheet'!$A$16:$AC$215,7,0))=0, AND(COUNTIF(Specialties,VLOOKUP(A64,'Trust - Frontsheet'!$A$16:$AC$215,8,0))=0,VLOOKUP(A64,'Trust - Frontsheet'!$A$16:$AC$215,8,0)<>"")),"You have entered unacceptable specialties.","")) ->  | J64: =IF(A64="","",IF(AND(RIGHT(VLOOKUP(A64,'Trust - Frontsheet'!$A$16:$AC$215,7,0),3)<>RIGHT(VLOOKUP(A64,'Trust - Frontsheet'!$A$16:$AC$215,8,0),3),VLOOKUP(A64,'Trust - Frontsheet'!$A$16:$AC$215,8,0)<>""),"Covid statuses do not match","")) ->  | L64: =IF(SUMPRODUCT(--('Trust - Frontsheet'!$D73:$AC73=""))<>26,"","This is a blank row") -> This is a blank row
A65: =IF('Trust - Frontsheet'!A74="","",'Trust - Frontsheet'!A74) ->  | B65: =IF('Trust - Frontsheet'!A74="","",'Trust - Frontsheet'!D74) ->  | C65: =IF(VLOOKUP(A65,'Trust - Frontsheet'!$A$16:$AC$215,5,0)="","",VLOOKUP(A65,'Trust - Frontsheet'!$A$16:$AC$216,5,0)) ->  | D65: =IF(VLOOKUP(A65,'Trust - Frontsheet'!$A$16:$AC$215,6,0)="","",VLOOKUP(A65,'Trust - Frontsheet'!$A$16:$AC$216,6,0)) ->  | E65: =IF(OR(SUMPRODUCT(--(ISTEXT('Trust - Frontsheet'!I74:AC74)))>0,SUMPRODUCT(--(ISERROR('Trust - Frontsheet'!AD74:AT74)))>0),"There is invalid data on this row",IF(SUMPRODUCT(--('Trust - Frontsheet'!I74:AC74<0))>0,"This row contains negative values",IF(AND(L65="This is a blank Row",COUNTBLANK(INDIRECT("L" & ROW() + 1 & ":L" & 206))>0),"No blank rows in the data",""))) ->  | F65: =IF(A65 = "","",IF('Trust - Frontsheet'!D74="", "Site code not present","")) ->  | G65: =IF('Trust - Frontsheet'!D74="","",IF(VLOOKUP(A65,'Trust - Frontsheet'!$A$16:$AC$215,6,0)="","Ward name not present","")) ->  | H65: =IF(A65="","",IF(VLOOKUP(A65,'Trust - Frontsheet'!$A$16:$AC$215,7,0)="","Specialty 1 has not been selected","")) ->  | I65: =IF(A65="","",IF(OR(COUNTIF(Specialties,VLOOKUP(A65,'Trust - Frontsheet'!$A$16:$AC$215,7,0))=0, AND(COUNTIF(Specialties,VLOOKUP(A65,'Trust - Frontsheet'!$A$16:$AC$215,8,0))=0,VLOOKUP(A65,'Trust - Frontsheet'!$A$16:$AC$215,8,0)<>"")),"You have entered unacceptable specialties.","")) ->  | J65: =IF(A65="","",IF(AND(RIGHT(VLOOKUP(A65,'Trust - Frontsheet'!$A$16:$AC$215,7,0),3)<>RIGHT(VLOOKUP(A65,'Trust - Frontsheet'!$A$16:$AC$215,8,0),3),VLOOKUP(A65,'Trust - Frontsheet'!$A$16:$AC$215,8,0)<>""),"Covid statuses do not match","")) ->  | L65: =IF(SUMPRODUCT(--('Trust - Frontsheet'!$D74:$AC74=""))<>26,"","This is a blank row") -> This is a blank row
A66: =IF('Trust - Frontsheet'!A75="","",'Trust - Frontsheet'!A75) ->  | B66: =IF('Trust - Frontsheet'!A75="","",'Trust - Frontsheet'!D75) ->  | C66: =IF(VLOOKUP(A66,'Trust - Frontsheet'!$A$16:$AC$215,5,0)="","",VLOOKUP(A66,'Trust - Frontsheet'!$A$16:$AC$216,5,0)) ->  | D66: =IF(VLOOKUP(A66,'Trust - Frontsheet'!$A$16:$AC$215,6,0)="","",VLOOKUP(A66,'Trust - Frontsheet'!$A$16:$AC$216,6,0)) ->  | E66: =IF(OR(SUMPRODUCT(--(ISTEXT('Trust - Frontsheet'!I75:AC75)))>0,SUMPRODUCT(--(ISERROR('Trust - Frontsheet'!AD75:AT75)))>0),"There is invalid data on this row",IF(SUMPRODUCT(--('Trust - Frontsheet'!I75:AC75<0))>0,"This row contains negative values",IF(AND(L66="This is a blank Row",COUNTBLANK(INDIRECT("L" & ROW() + 1 & ":L" & 206))>0),"No blank rows in the data",""))) ->  | F66: =IF(A66 = "","",IF('Trust - Frontsheet'!D75="", "Site code not present","")) ->  | G66: =IF('Trust - Frontsheet'!D75="","",IF(VLOOKUP(A66,'Trust - Frontsheet'!$A$16:$AC$215,6,0)="","Ward name not present","")) ->  | H66: =IF(A66="","",IF(VLOOKUP(A66,'Trust - Frontsheet'!$A$16:$AC$215,7,0)="","Specialty 1 has not been selected","")) ->  | I66: =IF(A66="","",IF(OR(COUNTIF(Specialties,VLOOKUP(A66,'Trust - Frontsheet'!$A$16:$AC$215,7,0))=0, AND(COUNTIF(Specialties,VLOOKUP(A66,'Trust - Frontsheet'!$A$16:$AC$215,8,0))=0,VLOOKUP(A66,'Trust - Frontsheet'!$A$16:$AC$215,8,0)<>"")),"You have entered unacceptable specialties.","")) ->  | J66: =IF(A66="","",IF(AND(RIGHT(VLOOKUP(A66,'Trust - Frontsheet'!$A$16:$AC$215,7,0),3)<>RIGHT(VLOOKUP(A66,'Trust - Frontsheet'!$A$16:$AC$215,8,0),3),VLOOKUP(A66,'Trust - Frontsheet'!$A$16:$AC$215,8,0)<>""),"Covid statuses do not match","")) ->  | L66: =IF(SUMPRODUCT(--('Trust - Frontsheet'!$D75:$AC75=""))<>26,"","This is a blank row") -> This is a blank row
A67: =IF('Trust - Frontsheet'!A76="","",'Trust - Frontsheet'!A76) ->  | B67: =IF('Trust - Frontsheet'!A76="","",'Trust - Frontsheet'!D76) ->  | C67: =IF(VLOOKUP(A67,'Trust - Frontsheet'!$A$16:$AC$215,5,0)="","",VLOOKUP(A67,'Trust - Frontsheet'!$A$16:$AC$216,5,0)) ->  | D67: =IF(VLOOKUP(A67,'Trust - Frontsheet'!$A$16:$AC$215,6,0)="","",VLOOKUP(A67,'Trust - Frontsheet'!$A$16:$AC$216,6,0)) ->  | E67: =IF(OR(SUMPRODUCT(--(ISTEXT('Trust - Frontsheet'!I76:AC76)))>0,SUMPRODUCT(--(ISERROR('Trust - Frontsheet'!AD76:AT76)))>0),"There is invalid data on this row",IF(SUMPRODUCT(--('Trust - Frontsheet'!I76:AC76<0))>0,"This row contains negative values",IF(AND(L67="This is a blank Row",COUNTBLANK(INDIRECT("L" & ROW() + 1 & ":L" & 206))>0),"No blank rows in the data",""))) ->  | F67: =IF(A67 = "","",IF('Trust - Frontsheet'!D76="", "Site code not present","")) ->  | G67: =IF('Trust - Frontsheet'!D76="","",IF(VLOOKUP(A67,'Trust - Frontsheet'!$A$16:$AC$215,6,0)="","Ward name not present","")) ->  | H67: =IF(A67="","",IF(VLOOKUP(A67,'Trust - Frontsheet'!$A$16:$AC$215,7,0)="","Specialty 1 has not been selected","")) ->  | I67: =IF(A67="","",IF(OR(COUNTIF(Specialties,VLOOKUP(A67,'Trust - Frontsheet'!$A$16:$AC$215,7,0))=0, AND(COUNTIF(Specialties,VLOOKUP(A67,'Trust - Frontsheet'!$A$16:$AC$215,8,0))=0,VLOOKUP(A67,'Trust - Frontsheet'!$A$16:$AC$215,8,0)<>"")),"You have entered unacceptable specialties.","")) ->  | J67: =IF(A67="","",IF(AND(RIGHT(VLOOKUP(A67,'Trust - Frontsheet'!$A$16:$AC$215,7,0),3)<>RIGHT(VLOOKUP(A67,'Trust - Frontsheet'!$A$16:$AC$215,8,0),3),VLOOKUP(A67,'Trust - Frontsheet'!$A$16:$AC$215,8,0)<>""),"Covid statuses do not match","")) ->  | L67: =IF(SUMPRODUCT(--('Trust - Frontsheet'!$D76:$AC76=""))<>26,"","This is a blank row") -> This is a blank row
A68: =IF('Trust - Frontsheet'!A77="","",'Trust - Frontsheet'!A77) ->  | B68: =IF('Trust - Frontsheet'!A77="","",'Trust - Frontsheet'!D77) ->  | C68: =IF(VLOOKUP(A68,'Trust - Frontsheet'!$A$16:$AC$215,5,0)="","",VLOOKUP(A68,'Trust - Frontsheet'!$A$16:$AC$216,5,0)) ->  | D68: =IF(VLOOKUP(A68,'Trust - Frontsheet'!$A$16:$AC$215,6,0)="","",VLOOKUP(A68,'Trust - Frontsheet'!$A$16:$AC$216,6,0)) ->  | E68: =IF(OR(SUMPRODUCT(--(ISTEXT('Trust - Frontsheet'!I77:AC77)))>0,SUMPRODUCT(--(ISERROR('Trust - Frontsheet'!AD77:AT77)))>0),"There is invalid data on this row",IF(SUMPRODUCT(--('Trust - Frontsheet'!I77:AC77<0))>0,"This row contains negative values",IF(AND(L68="This is a blank Row",COUNTBLANK(INDIRECT("L" & ROW() + 1 & ":L" & 206))>0),"No blank rows in the data",""))) ->  | F68: =IF(A68 = "","",IF('Trust - Frontsheet'!D77="", "Site code not present","")) ->  | G68: =IF('Trust - Frontsheet'!D77="","",IF(VLOOKUP(A68,'Trust - Frontsheet'!$A$16:$AC$215,6,0)="","Ward name not present","")) ->  | H68: =IF(A68="","",IF(VLOOKUP(A68,'Trust - Frontsheet'!$A$16:$AC$215,7,0)="","Specialty 1 has not been selected","")) ->  | I68: =IF(A68="","",IF(OR(COUNTIF(Specialties,VLOOKUP(A68,'Trust - Frontsheet'!$A$16:$AC$215,7,0))=0, AND(COUNTIF(Specialties,VLOOKUP(A68,'Trust - Frontsheet'!$A$16:$AC$215,8,0))=0,VLOOKUP(A68,'Trust - Frontsheet'!$A$16:$AC$215,8,0)<>"")),"You have entered unacceptable specialties.","")) ->  | J68: =IF(A68="","",IF(AND(RIGHT(VLOOKUP(A68,'Trust - Frontsheet'!$A$16:$AC$215,7,0),3)<>RIGHT(VLOOKUP(A68,'Trust - Frontsheet'!$A$16:$AC$215,8,0),3),VLOOKUP(A68,'Trust - Frontsheet'!$A$16:$AC$215,8,0)<>""),"Covid statuses do not match","")) ->  | L68: =IF(SUMPRODUCT(--('Trust - Frontsheet'!$D77:$AC77=""))<>26,"","This is a blank row") -> This is a blank row
A69: =IF('Trust - Frontsheet'!A78="","",'Trust - Frontsheet'!A78) ->  | B69: =IF('Trust - Frontsheet'!A78="","",'Trust - Frontsheet'!D78) ->  | C69: =IF(VLOOKUP(A69,'Trust - Frontsheet'!$A$16:$AC$215,5,0)="","",VLOOKUP(A69,'Trust - Frontsheet'!$A$16:$AC$216,5,0)) ->  | D69: =IF(VLOOKUP(A69,'Trust - Frontsheet'!$A$16:$AC$215,6,0)="","",VLOOKUP(A69,'Trust - Frontsheet'!$A$16:$AC$216,6,0)) ->  | E69: =IF(OR(SUMPRODUCT(--(ISTEXT('Trust - Frontsheet'!I78:AC78)))>0,SUMPRODUCT(--(ISERROR('Trust - Frontsheet'!AD78:AT78)))>0),"There is invalid data on this row",IF(SUMPRODUCT(--('Trust - Frontsheet'!I78:AC78<0))>0,"This row contains negative values",IF(AND(L69="This is a blank Row",COUNTBLANK(INDIRECT("L" & ROW() + 1 & ":L" & 206))>0),"No blank rows in the data",""))) ->  | F69: =IF(A69 = "","",IF('Trust - Frontsheet'!D78="", "Site code not present","")) ->  | G69: =IF('Trust - Frontsheet'!D78="","",IF(VLOOKUP(A69,'Trust - Frontsheet'!$A$16:$AC$215,6,0)="","Ward name not present","")) ->  | H69: =IF(A69="","",IF(VLOOKUP(A69,'Trust - Frontsheet'!$A$16:$AC$215,7,0)="","Specialty 1 has not been selected","")) ->  | I69: =IF(A69="","",IF(OR(COUNTIF(Specialties,VLOOKUP(A69,'Trust - Frontsheet'!$A$16:$AC$215,7,0))=0, AND(COUNTIF(Specialties,VLOOKUP(A69,'Trust - Frontsheet'!$A$16:$AC$215,8,0))=0,VLOOKUP(A69,'Trust - Frontsheet'!$A$16:$AC$215,8,0)<>"")),"You have entered unacceptable specialties.","")) ->  | J69: =IF(A69="","",IF(AND(RIGHT(VLOOKUP(A69,'Trust - Frontsheet'!$A$16:$AC$215,7,0),3)<>RIGHT(VLOOKUP(A69,'Trust - Frontsheet'!$A$16:$AC$215,8,0),3),VLOOKUP(A69,'Trust - Frontsheet'!$A$16:$AC$215,8,0)<>""),"Covid statuses do not match","")) ->  | L69: =IF(SUMPRODUCT(--('Trust - Frontsheet'!$D78:$AC78=""))<>26,"","This is a blank row") -> This is a blank row
A70: =IF('Trust - Frontsheet'!A79="","",'Trust - Frontsheet'!A79) ->  | B70: =IF('Trust - Frontsheet'!A79="","",'Trust - Frontsheet'!D79) ->  | C70: =IF(VLOOKUP(A70,'Trust - Frontsheet'!$A$16:$AC$215,5,0)="","",VLOOKUP(A70,'Trust - Frontsheet'!$A$16:$AC$216,5,0)) ->  | D70: =IF(VLOOKUP(A70,'Trust - Frontsheet'!$A$16:$AC$215,6,0)="","",VLOOKUP(A70,'Trust - Frontsheet'!$A$16:$AC$216,6,0)) ->  | E70: =IF(OR(SUMPRODUCT(--(ISTEXT('Trust - Frontsheet'!I79:AC79)))>0,SUMPRODUCT(--(ISERROR('Trust - Frontsheet'!AD79:AT79)))>0),"There is invalid data on this row",IF(SUMPRODUCT(--('Trust - Frontsheet'!I79:AC79<0))>0,"This row contains negative values",IF(AND(L70="This is a blank Row",COUNTBLANK(INDIRECT("L" & ROW() + 1 & ":L" & 206))>0),"No blank rows in the data",""))) ->  | F70: =IF(A70 = "","",IF('Trust - Frontsheet'!D79="", "Site code not present","")) ->  | G70: =IF('Trust - Frontsheet'!D79="","",IF(VLOOKUP(A70,'Trust - Frontsheet'!$A$16:$AC$215,6,0)="","Ward name not present","")) ->  | H70: =IF(A70="","",IF(VLOOKUP(A70,'Trust - Frontsheet'!$A$16:$AC$215,7,0)="","Specialty 1 has not been selected","")) ->  | I70: =IF(A70="","",IF(OR(COUNTIF(Specialties,VLOOKUP(A70,'Trust - Frontsheet'!$A$16:$AC$215,7,0))=0, AND(COUNTIF(Specialties,VLOOKUP(A70,'Trust - Frontsheet'!$A$16:$AC$215,8,0))=0,VLOOKUP(A70,'Trust - Frontsheet'!$A$16:$AC$215,8,0)<>"")),"You have entered unacceptable specialties.","")) ->  | J70: =IF(A70="","",IF(AND(RIGHT(VLOOKUP(A70,'Trust - Frontsheet'!$A$16:$AC$215,7,0),3)<>RIGHT(VLOOKUP(A70,'Trust - Frontsheet'!$A$16:$AC$215,8,0),3),VLOOKUP(A70,'Trust - Frontsheet'!$A$16:$AC$215,8,0)<>""),"Covid statuses do not match","")) ->  | L70: =IF(SUMPRODUCT(--('Trust - Frontsheet'!$D79:$AC79=""))<>26,"","This is a blank row") -> This is a blank row
A71: =IF('Trust - Frontsheet'!A80="","",'Trust - Frontsheet'!A80) ->  | B71: =IF('Trust - Frontsheet'!A80="","",'Trust - Frontsheet'!D80) ->  | C71: =IF(VLOOKUP(A71,'Trust - Frontsheet'!$A$16:$AC$215,5,0)="","",VLOOKUP(A71,'Trust - Frontsheet'!$A$16:$AC$216,5,0)) ->  | D71: =IF(VLOOKUP(A71,'Trust - Frontsheet'!$A$16:$AC$215,6,0)="","",VLOOKUP(A71,'Trust - Frontsheet'!$A$16:$AC$216,6,0)) ->  | E71: =IF(OR(SUMPRODUCT(--(ISTEXT('Trust - Frontsheet'!I80:AC80)))>0,SUMPRODUCT(--(ISERROR('Trust - Frontsheet'!AD80:AT80)))>0),"There is invalid data on this row",IF(SUMPRODUCT(--('Trust - Frontsheet'!I80:AC80<0))>0,"This row contains negative values",IF(AND(L71="This is a blank Row",COUNTBLANK(INDIRECT("L" & ROW() + 1 & ":L" & 206))>0),"No blank rows in the data",""))) ->  | F71: =IF(A71 = "","",IF('Trust - Frontsheet'!D80="", "Site code not present","")) ->  | G71: =IF('Trust - Frontsheet'!D80="","",IF(VLOOKUP(A71,'Trust - Frontsheet'!$A$16:$AC$215,6,0)="","Ward name not present","")) ->  | H71: =IF(A71="","",IF(VLOOKUP(A71,'Trust - Frontsheet'!$A$16:$AC$215,7,0)="","Specialty 1 has not been selected","")) ->  | I71: =IF(A71="","",IF(OR(COUNTIF(Specialties,VLOOKUP(A71,'Trust - Frontsheet'!$A$16:$AC$215,7,0))=0, AND(COUNTIF(Specialties,VLOOKUP(A71,'Trust - Frontsheet'!$A$16:$AC$215,8,0))=0,VLOOKUP(A71,'Trust - Frontsheet'!$A$16:$AC$215,8,0)<>"")),"You have entered unacceptable specialties.","")) ->  | J71: =IF(A71="","",IF(AND(RIGHT(VLOOKUP(A71,'Trust - Frontsheet'!$A$16:$AC$215,7,0),3)<>RIGHT(VLOOKUP(A71,'Trust - Frontsheet'!$A$16:$AC$215,8,0),3),VLOOKUP(A71,'Trust - Frontsheet'!$A$16:$AC$215,8,0)<>""),"Covid statuses do not match","")) ->  | L71: =IF(SUMPRODUCT(--('Trust - Frontsheet'!$D80:$AC80=""))<>26,"","This is a blank row") -> This is a blank row
A72: =IF('Trust - Frontsheet'!A81="","",'Trust - Frontsheet'!A81) ->  | B72: =IF('Trust - Frontsheet'!A81="","",'Trust - Frontsheet'!D81) ->  | C72: =IF(VLOOKUP(A72,'Trust - Frontsheet'!$A$16:$AC$215,5,0)="","",VLOOKUP(A72,'Trust - Frontsheet'!$A$16:$AC$216,5,0)) ->  | D72: =IF(VLOOKUP(A72,'Trust - Frontsheet'!$A$16:$AC$215,6,0)="","",VLOOKUP(A72,'Trust - Frontsheet'!$A$16:$AC$216,6,0)) ->  | E72: =IF(OR(SUMPRODUCT(--(ISTEXT('Trust - Frontsheet'!I81:AC81)))>0,SUMPRODUCT(--(ISERROR('Trust - Frontsheet'!AD81:AT81)))>0),"There is invalid data on this row",IF(SUMPRODUCT(--('Trust - Frontsheet'!I81:AC81<0))>0,"This row contains negative values",IF(AND(L72="This is a blank Row",COUNTBLANK(INDIRECT("L" & ROW() + 1 & ":L" & 206))>0),"No blank rows in the data",""))) ->  | F72: =IF(A72 = "","",IF('Trust - Frontsheet'!D81="", "Site code not present","")) ->  | G72: =IF('Trust - Frontsheet'!D81="","",IF(VLOOKUP(A72,'Trust - Frontsheet'!$A$16:$AC$215,6,0)="","Ward name not present","")) ->  | H72: =IF(A72="","",IF(VLOOKUP(A72,'Trust - Frontsheet'!$A$16:$AC$215,7,0)="","Specialty 1 has not been selected","")) ->  | I72: =IF(A72="","",IF(OR(COUNTIF(Specialties,VLOOKUP(A72,'Trust - Frontsheet'!$A$16:$AC$215,7,0))=0, AND(COUNTIF(Specialties,VLOOKUP(A72,'Trust - Frontsheet'!$A$16:$AC$215,8,0))=0,VLOOKUP(A72,'Trust - Frontsheet'!$A$16:$AC$215,8,0)<>"")),"You have entered unacceptable specialties.","")) ->  | J72: =IF(A72="","",IF(AND(RIGHT(VLOOKUP(A72,'Trust - Frontsheet'!$A$16:$AC$215,7,0),3)<>RIGHT(VLOOKUP(A72,'Trust - Frontsheet'!$A$16:$AC$215,8,0),3),VLOOKUP(A72,'Trust - Frontsheet'!$A$16:$AC$215,8,0)<>""),"Covid statuses do not match","")) ->  | K72: =IF(A72="","",IF(COUNTIF($A$7:$A$206,A72)>1,"You have entered a duplicate site-ward pair","")) ->  | L72: =IF(SUMPRODUCT(--('Trust - Frontsheet'!$D81:$AC81=""))<>26,"","This is a blank row") -> This is a blank row
A73: =IF('Trust - Frontsheet'!A82="","",'Trust - Frontsheet'!A82) ->  | B73: =IF('Trust - Frontsheet'!A82="","",'Trust - Frontsheet'!D82) ->  | C73: =IF(VLOOKUP(A73,'Trust - Frontsheet'!$A$16:$AC$215,5,0)="","",VLOOKUP(A73,'Trust - Frontsheet'!$A$16:$AC$216,5,0)) ->  | D73: =IF(VLOOKUP(A73,'Trust - Frontsheet'!$A$16:$AC$215,6,0)="","",VLOOKUP(A73,'Trust - Frontsheet'!$A$16:$AC$216,6,0)) ->  | E73: =IF(OR(SUMPRODUCT(--(ISTEXT('Trust - Frontsheet'!I82:AC82)))>0,SUMPRODUCT(--(ISERROR('Trust - Frontsheet'!AD82:AT82)))>0),"There is invalid data on this row",IF(SUMPRODUCT(--('Trust - Frontsheet'!I82:AC82<0))>0,"This row contains negative values",IF(AND(L73="This is a blank Row",COUNTBLANK(INDIRECT("L" & ROW() + 1 & ":L" & 206))>0),"No blank rows in the data",""))) ->  | F73: =IF(A73 = "","",IF('Trust - Frontsheet'!D82="", "Site code not present","")) ->  | G73: =IF('Trust - Frontsheet'!D82="","",IF(VLOOKUP(A73,'Trust - Frontsheet'!$A$16:$AC$215,6,0)="","Ward name not present","")) ->  | H73: =IF(A73="","",IF(VLOOKUP(A73,'Trust - Frontsheet'!$A$16:$AC$215,7,0)="","Specialty 1 has not been selected","")) ->  | I73: =IF(A73="","",IF(OR(COUNTIF(Specialties,VLOOKUP(A73,'Trust - Frontsheet'!$A$16:$AC$215,7,0))=0, AND(COUNTIF(Specialties,VLOOKUP(A73,'Trust - Frontsheet'!$A$16:$AC$215,8,0))=0,VLOOKUP(A73,'Trust - Frontsheet'!$A$16:$AC$215,8,0)<>"")),"You have entered unacceptable specialties.","")) ->  | J73: =IF(A73="","",IF(AND(RIGHT(VLOOKUP(A73,'Trust - Frontsheet'!$A$16:$AC$215,7,0),3)<>RIGHT(VLOOKUP(A73,'Trust - Frontsheet'!$A$16:$AC$215,8,0),3),VLOOKUP(A73,'Trust - Frontsheet'!$A$16:$AC$215,8,0)<>""),"Covid statuses do not match","")) ->  | L73: =IF(SUMPRODUCT(--('Trust - Frontsheet'!$D82:$AC82=""))<>26,"","This is a blank row") -> This is a blank row
A74: =IF('Trust - Frontsheet'!A83="","",'Trust - Frontsheet'!A83) ->  | B74: =IF('Trust - Frontsheet'!A83="","",'Trust - Frontsheet'!D83) ->  | C74: =IF(VLOOKUP(A74,'Trust - Frontsheet'!$A$16:$AC$215,5,0)="","",VLOOKUP(A74,'Trust - Frontsheet'!$A$16:$AC$216,5,0)) ->  | D74: =IF(VLOOKUP(A74,'Trust - Frontsheet'!$A$16:$AC$215,6,0)="","",VLOOKUP(A74,'Trust - Frontsheet'!$A$16:$AC$216,6,0)) ->  | E74: =IF(OR(SUMPRODUCT(--(ISTEXT('Trust - Frontsheet'!I83:AC83)))>0,SUMPRODUCT(--(ISERROR('Trust - Frontsheet'!AD83:AT83)))>0),"There is invalid data on this row",IF(SUMPRODUCT(--('Trust - Frontsheet'!I83:AC83<0))>0,"This row contains negative values",IF(AND(L74="This is a blank Row",COUNTBLANK(INDIRECT("L" & ROW() + 1 & ":L" & 206))>0),"No blank rows in the data",""))) ->  | F74: =IF(A74 = "","",IF('Trust - Frontsheet'!D83="", "Site code not present","")) ->  | G74: =IF('Trust - Frontsheet'!D83="","",IF(VLOOKUP(A74,'Trust - Frontsheet'!$A$16:$AC$215,6,0)="","Ward name not present","")) ->  | H74: =IF(A74="","",IF(VLOOKUP(A74,'Trust - Frontsheet'!$A$16:$AC$215,7,0)="","Specialty 1 has not been selected","")) ->  | I74: =IF(A74="","",IF(OR(COUNTIF(Specialties,VLOOKUP(A74,'Trust - Frontsheet'!$A$16:$AC$215,7,0))=0, AND(COUNTIF(Specialties,VLOOKUP(A74,'Trust - Frontsheet'!$A$16:$AC$215,8,0))=0,VLOOKUP(A74,'Trust - Frontsheet'!$A$16:$AC$215,8,0)<>"")),"You have entered unacceptable specialties.","")) ->  | J74: =IF(A74="","",IF(AND(RIGHT(VLOOKUP(A74,'Trust - Frontsheet'!$A$16:$AC$215,7,0),3)<>RIGHT(VLOOKUP(A74,'Trust - Frontsheet'!$A$16:$AC$215,8,0),3),VLOOKUP(A74,'Trust - Frontsheet'!$A$16:$AC$215,8,0)<>""),"Covid statuses do not match","")) ->  | L74: =IF(SUMPRODUCT(--('Trust - Frontsheet'!$D83:$AC83=""))<>26,"","This is a blank row") -> This is a blank row
A75: =IF('Trust - Frontsheet'!A84="","",'Trust - Frontsheet'!A84) ->  | B75: =IF('Trust - Frontsheet'!A84="","",'Trust - Frontsheet'!D84) ->  | C75: =IF(VLOOKUP(A75,'Trust - Frontsheet'!$A$16:$AC$215,5,0)="","",VLOOKUP(A75,'Trust - Frontsheet'!$A$16:$AC$216,5,0)) ->  | D75: =IF(VLOOKUP(A75,'Trust - Frontsheet'!$A$16:$AC$215,6,0)="","",VLOOKUP(A75,'Trust - Frontsheet'!$A$16:$AC$216,6,0)) ->  | E75: =IF(OR(SUMPRODUCT(--(ISTEXT('Trust - Frontsheet'!I84:AC84)))>0,SUMPRODUCT(--(ISERROR('Trust - Frontsheet'!AD84:AT84)))>0),"There is invalid data on this row",IF(SUMPRODUCT(--('Trust - Frontsheet'!I84:AC84<0))>0,"This row contains negative values",IF(AND(L75="This is a blank Row",COUNTBLANK(INDIRECT("L" & ROW() + 1 & ":L" & 206))>0),"No blank rows in the data",""))) ->  | F75: =IF(A75 = "","",IF('Trust - Frontsheet'!D84="", "Site code not present","")) ->  | G75: =IF('Trust - Frontsheet'!D84="","",IF(VLOOKUP(A75,'Trust - Frontsheet'!$A$16:$AC$215,6,0)="","Ward name not present","")) ->  | H75: =IF(A75="","",IF(VLOOKUP(A75,'Trust - Frontsheet'!$A$16:$AC$215,7,0)="","Specialty 1 has not been selected","")) ->  | I75: =IF(A75="","",IF(OR(COUNTIF(Specialties,VLOOKUP(A75,'Trust - Frontsheet'!$A$16:$AC$215,7,0))=0, AND(COUNTIF(Specialties,VLOOKUP(A75,'Trust - Frontsheet'!$A$16:$AC$215,8,0))=0,VLOOKUP(A75,'Trust - Frontsheet'!$A$16:$AC$215,8,0)<>"")),"You have entered unacceptable specialties.","")) ->  | J75: =IF(A75="","",IF(AND(RIGHT(VLOOKUP(A75,'Trust - Frontsheet'!$A$16:$AC$215,7,0),3)<>RIGHT(VLOOKUP(A75,'Trust - Frontsheet'!$A$16:$AC$215,8,0),3),VLOOKUP(A75,'Trust - Frontsheet'!$A$16:$AC$215,8,0)<>""),"Covid statuses do not match","")) ->  | L75: =IF(SUMPRODUCT(--('Trust - Frontsheet'!$D84:$AC84=""))<>26,"","This is a blank row") -> This is a blank row
A76: =IF('Trust - Frontsheet'!A85="","",'Trust - Frontsheet'!A85) ->  | B76: =IF('Trust - Frontsheet'!A85="","",'Trust - Frontsheet'!D85) ->  | C76: =IF(VLOOKUP(A76,'Trust - Frontsheet'!$A$16:$AC$215,5,0)="","",VLOOKUP(A76,'Trust - Frontsheet'!$A$16:$AC$216,5,0)) ->  | D76: =IF(VLOOKUP(A76,'Trust - Frontsheet'!$A$16:$AC$215,6,0)="","",VLOOKUP(A76,'Trust - Frontsheet'!$A$16:$AC$216,6,0)) ->  | E76: =IF(OR(SUMPRODUCT(--(ISTEXT('Trust - Frontsheet'!I85:AC85)))>0,SUMPRODUCT(--(ISERROR('Trust - Frontsheet'!AD85:AT85)))>0),"There is invalid data on this row",IF(SUMPRODUCT(--('Trust - Frontsheet'!I85:AC85<0))>0,"This row contains negative values",IF(AND(L76="This is a blank Row",COUNTBLANK(INDIRECT("L" & ROW() + 1 & ":L" & 206))>0),"No blank rows in the data",""))) ->  | F76: =IF(A76 = "","",IF('Trust - Frontsheet'!D85="", "Site code not present","")) ->  | G76: =IF('Trust - Frontsheet'!D85="","",IF(VLOOKUP(A76,'Trust - Frontsheet'!$A$16:$AC$215,6,0)="","Ward name not present","")) ->  | H76: =IF(A76="","",IF(VLOOKUP(A76,'Trust - Frontsheet'!$A$16:$AC$215,7,0)="","Specialty 1 has not been selected","")) ->  | I76: =IF(A76="","",IF(OR(COUNTIF(Specialties,VLOOKUP(A76,'Trust - Frontsheet'!$A$16:$AC$215,7,0))=0, AND(COUNTIF(Specialties,VLOOKUP(A76,'Trust - Frontsheet'!$A$16:$AC$215,8,0))=0,VLOOKUP(A76,'Trust - Frontsheet'!$A$16:$AC$215,8,0)<>"")),"You have entered unacceptable specialties.","")) ->  | J76: =IF(A76="","",IF(AND(RIGHT(VLOOKUP(A76,'Trust - Frontsheet'!$A$16:$AC$215,7,0),3)<>RIGHT(VLOOKUP(A76,'Trust - Frontsheet'!$A$16:$AC$215,8,0),3),VLOOKUP(A76,'Trust - Frontsheet'!$A$16:$AC$215,8,0)<>""),"Covid statuses do not match","")) ->  | L76: =IF(SUMPRODUCT(--('Trust - Frontsheet'!$D85:$AC85=""))<>26,"","This is a blank row") -> This is a blank row
A77: =IF('Trust - Frontsheet'!A86="","",'Trust - Frontsheet'!A86) ->  | B77: =IF('Trust - Frontsheet'!A86="","",'Trust - Frontsheet'!D86) ->  | C77: =IF(VLOOKUP(A77,'Trust - Frontsheet'!$A$16:$AC$215,5,0)="","",VLOOKUP(A77,'Trust - Frontsheet'!$A$16:$AC$216,5,0)) ->  | D77: =IF(VLOOKUP(A77,'Trust - Frontsheet'!$A$16:$AC$215,6,0)="","",VLOOKUP(A77,'Trust - Frontsheet'!$A$16:$AC$216,6,0)) ->  | E77: =IF(OR(SUMPRODUCT(--(ISTEXT('Trust - Frontsheet'!I86:AC86)))>0,SUMPRODUCT(--(ISERROR('Trust - Frontsheet'!AD86:AT86)))>0),"There is invalid data on this row",IF(SUMPRODUCT(--('Trust - Frontsheet'!I86:AC86<0))>0,"This row contains negative values",IF(AND(L77="This is a blank Row",COUNTBLANK(INDIRECT("L" & ROW() + 1 & ":L" & 206))>0),"No blank rows in the data",""))) ->  | F77: =IF(A77 = "","",IF('Trust - Frontsheet'!D86="", "Site code not present","")) ->  | G77: =IF('Trust - Frontsheet'!D86="","",IF(VLOOKUP(A77,'Trust - Frontsheet'!$A$16:$AC$215,6,0)="","Ward name not present","")) ->  | H77: =IF(A77="","",IF(VLOOKUP(A77,'Trust - Frontsheet'!$A$16:$AC$215,7,0)="","Specialty 1 has not been selected","")) ->  | I77: =IF(A77="","",IF(OR(COUNTIF(Specialties,VLOOKUP(A77,'Trust - Frontsheet'!$A$16:$AC$215,7,0))=0, AND(COUNTIF(Specialties,VLOOKUP(A77,'Trust - Frontsheet'!$A$16:$AC$215,8,0))=0,VLOOKUP(A77,'Trust - Frontsheet'!$A$16:$AC$215,8,0)<>"")),"You have entered unacceptable specialties.","")) ->  | J77: =IF(A77="","",IF(AND(RIGHT(VLOOKUP(A77,'Trust - Frontsheet'!$A$16:$AC$215,7,0),3)<>RIGHT(VLOOKUP(A77,'Trust - Frontsheet'!$A$16:$AC$215,8,0),3),VLOOKUP(A77,'Trust - Frontsheet'!$A$16:$AC$215,8,0)<>""),"Covid statuses do not match","")) ->  | L77: =IF(SUMPRODUCT(--('Trust - Frontsheet'!$D86:$AC86=""))<>26,"","This is a blank row") -> This is a blank row
A78: =IF('Trust - Frontsheet'!A87="","",'Trust - Frontsheet'!A87) ->  | B78: =IF('Trust - Frontsheet'!A87="","",'Trust - Frontsheet'!D87) ->  | C78: =IF(VLOOKUP(A78,'Trust - Frontsheet'!$A$16:$AC$215,5,0)="","",VLOOKUP(A78,'Trust - Frontsheet'!$A$16:$AC$216,5,0)) ->  | D78: =IF(VLOOKUP(A78,'Trust - Frontsheet'!$A$16:$AC$215,6,0)="","",VLOOKUP(A78,'Trust - Frontsheet'!$A$16:$AC$216,6,0)) ->  | E78: =IF(OR(SUMPRODUCT(--(ISTEXT('Trust - Frontsheet'!I87:AC87)))>0,SUMPRODUCT(--(ISERROR('Trust - Frontsheet'!AD87:AT87)))>0),"There is invalid data on this row",IF(SUMPRODUCT(--('Trust - Frontsheet'!I87:AC87<0))>0,"This row contains negative values",IF(AND(L78="This is a blank Row",COUNTBLANK(INDIRECT("L" & ROW() + 1 & ":L" & 206))>0),"No blank rows in the data",""))) ->  | F78: =IF(A78 = "","",IF('Trust - Frontsheet'!D87="", "Site code not present","")) ->  | G78: =IF('Trust - Frontsheet'!D87="","",IF(VLOOKUP(A78,'Trust - Frontsheet'!$A$16:$AC$215,6,0)="","Ward name not present","")) ->  | H78: =IF(A78="","",IF(VLOOKUP(A78,'Trust - Frontsheet'!$A$16:$AC$215,7,0)="","Specialty 1 has not been selected","")) ->  | I78: =IF(A78="","",IF(OR(COUNTIF(Specialties,VLOOKUP(A78,'Trust - Frontsheet'!$A$16:$AC$215,7,0))=0, AND(COUNTIF(Specialties,VLOOKUP(A78,'Trust - Frontsheet'!$A$16:$AC$215,8,0))=0,VLOOKUP(A78,'Trust - Frontsheet'!$A$16:$AC$215,8,0)<>"")),"You have entered unacceptable specialties.","")) ->  | J78: =IF(A78="","",IF(AND(RIGHT(VLOOKUP(A78,'Trust - Frontsheet'!$A$16:$AC$215,7,0),3)<>RIGHT(VLOOKUP(A78,'Trust - Frontsheet'!$A$16:$AC$215,8,0),3),VLOOKUP(A78,'Trust - Frontsheet'!$A$16:$AC$215,8,0)<>""),"Covid statuses do not match","")) ->  | L78: =IF(SUMPRODUCT(--('Trust - Frontsheet'!$D87:$AC87=""))<>26,"","This is a blank row") -> This is a blank row
A79: =IF('Trust - Frontsheet'!A88="","",'Trust - Frontsheet'!A88) ->  | B79: =IF('Trust - Frontsheet'!A88="","",'Trust - Frontsheet'!D88) ->  | C79: =IF(VLOOKUP(A79,'Trust - Frontsheet'!$A$16:$AC$215,5,0)="","",VLOOKUP(A79,'Trust - Frontsheet'!$A$16:$AC$216,5,0)) ->  | D79: =IF(VLOOKUP(A79,'Trust - Frontsheet'!$A$16:$AC$215,6,0)="","",VLOOKUP(A79,'Trust - Frontsheet'!$A$16:$AC$216,6,0)) ->  | E79: =IF(OR(SUMPRODUCT(--(ISTEXT('Trust - Frontsheet'!I88:AC88)))>0,SUMPRODUCT(--(ISERROR('Trust - Frontsheet'!AD88:AT88)))>0),"There is invalid data on this row",IF(SUMPRODUCT(--('Trust - Frontsheet'!I88:AC88<0))>0,"This row contains negative values",IF(AND(L79="This is a blank Row",COUNTBLANK(INDIRECT("L" & ROW() + 1 & ":L" & 206))>0),"No blank rows in the data",""))) ->  | F79: =IF(A79 = "","",IF('Trust - Frontsheet'!D88="", "Site code not present","")) ->  | G79: =IF('Trust - Frontsheet'!D88="","",IF(VLOOKUP(A79,'Trust - Frontsheet'!$A$16:$AC$215,6,0)="","Ward name not present","")) ->  | H79: =IF(A79="","",IF(VLOOKUP(A79,'Trust - Frontsheet'!$A$16:$AC$215,7,0)="","Specialty 1 has not been selected","")) ->  | I79: =IF(A79="","",IF(OR(COUNTIF(Specialties,VLOOKUP(A79,'Trust - Frontsheet'!$A$16:$AC$215,7,0))=0, AND(COUNTIF(Specialties,VLOOKUP(A79,'Trust - Frontsheet'!$A$16:$AC$215,8,0))=0,VLOOKUP(A79,'Trust - Frontsheet'!$A$16:$AC$215,8,0)<>"")),"You have entered unacceptable specialties.","")) ->  | J79: =IF(A79="","",IF(AND(RIGHT(VLOOKUP(A79,'Trust - Frontsheet'!$A$16:$AC$215,7,0),3)<>RIGHT(VLOOKUP(A79,'Trust - Frontsheet'!$A$16:$AC$215,8,0),3),VLOOKUP(A79,'Trust - Frontsheet'!$A$16:$AC$215,8,0)<>""),"Covid statuses do not match","")) ->  | L79: =IF(SUMPRODUCT(--('Trust - Frontsheet'!$D88:$AC88=""))<>26,"","This is a blank row") -> This is a blank row
A80: =IF('Trust - Frontsheet'!A89="","",'Trust - Frontsheet'!A89) ->  | B80: =IF('Trust - Frontsheet'!A89="","",'Trust - Frontsheet'!D89) ->  | C80: =IF(VLOOKUP(A80,'Trust - Frontsheet'!$A$16:$AC$215,5,0)="","",VLOOKUP(A80,'Trust - Frontsheet'!$A$16:$AC$216,5,0)) ->  | D80: =IF(VLOOKUP(A80,'Trust - Frontsheet'!$A$16:$AC$215,6,0)="","",VLOOKUP(A80,'Trust - Frontsheet'!$A$16:$AC$216,6,0)) ->  | E80: =IF(OR(SUMPRODUCT(--(ISTEXT('Trust - Frontsheet'!I89:AC89)))>0,SUMPRODUCT(--(ISERROR('Trust - Frontsheet'!AD89:AT89)))>0),"There is invalid data on this row",IF(SUMPRODUCT(--('Trust - Frontsheet'!I89:AC89<0))>0,"This row contains negative values",IF(AND(L80="This is a blank Row",COUNTBLANK(INDIRECT("L" & ROW() + 1 & ":L" & 206))>0),"No blank rows in the data",""))) ->  | F80: =IF(A80 = "","",IF('Trust - Frontsheet'!D89="", "Site code not present","")) ->  | G80: =IF('Trust - Frontsheet'!D89="","",IF(VLOOKUP(A80,'Trust - Frontsheet'!$A$16:$AC$215,6,0)="","Ward name not present","")) ->  | H80: =IF(A80="","",IF(VLOOKUP(A80,'Trust - Frontsheet'!$A$16:$AC$215,7,0)="","Specialty 1 has not been selected","")) ->  | I80: =IF(A80="","",IF(OR(COUNTIF(Specialties,VLOOKUP(A80,'Trust - Frontsheet'!$A$16:$AC$215,7,0))=0, AND(COUNTIF(Specialties,VLOOKUP(A80,'Trust - Frontsheet'!$A$16:$AC$215,8,0))=0,VLOOKUP(A80,'Trust - Frontsheet'!$A$16:$AC$215,8,0)<>"")),"You have entered unacceptable specialties.","")) ->  | J80: =IF(A80="","",IF(AND(RIGHT(VLOOKUP(A80,'Trust - Frontsheet'!$A$16:$AC$215,7,0),3)<>RIGHT(VLOOKUP(A80,'Trust - Frontsheet'!$A$16:$AC$215,8,0),3),VLOOKUP(A80,'Trust - Frontsheet'!$A$16:$AC$215,8,0)<>""),"Covid statuses do not match","")) ->  | L80: =IF(SUMPRODUCT(--('Trust - Frontsheet'!$D89:$AC89=""))<>26,"","This is a blank row") -> This is a blank row
A81: =IF('Trust - Frontsheet'!A90="","",'Trust - Frontsheet'!A90) ->  | B81: =IF('Trust - Frontsheet'!A90="","",'Trust - Frontsheet'!D90) ->  | C81: =IF(VLOOKUP(A81,'Trust - Frontsheet'!$A$16:$AC$215,5,0)="","",VLOOKUP(A81,'Trust - Frontsheet'!$A$16:$AC$216,5,0)) ->  | D81: =IF(VLOOKUP(A81,'Trust - Frontsheet'!$A$16:$AC$215,6,0)="","",VLOOKUP(A81,'Trust - Frontsheet'!$A$16:$AC$216,6,0)) ->  | E81: =IF(OR(SUMPRODUCT(--(ISTEXT('Trust - Frontsheet'!I90:AC90)))>0,SUMPRODUCT(--(ISERROR('Trust - Frontsheet'!AD90:AT90)))>0),"There is invalid data on this row",IF(SUMPRODUCT(--('Trust - Frontsheet'!I90:AC90<0))>0,"This row contains negative values",IF(AND(L81="This is a blank Row",COUNTBLANK(INDIRECT("L" & ROW() + 1 & ":L" & 206))>0),"No blank rows in the data",""))) ->  | F81: =IF(A81 = "","",IF('Trust - Frontsheet'!D90="", "Site code not present","")) ->  | G81: =IF('Trust - Frontsheet'!D90="","",IF(VLOOKUP(A81,'Trust - Frontsheet'!$A$16:$AC$215,6,0)="","Ward name not present","")) ->  | H81: =IF(A81="","",IF(VLOOKUP(A81,'Trust - Frontsheet'!$A$16:$AC$215,7,0)="","Specialty 1 has not been selected","")) ->  | I81: =IF(A81="","",IF(OR(COUNTIF(Specialties,VLOOKUP(A81,'Trust - Frontsheet'!$A$16:$AC$215,7,0))=0, AND(COUNTIF(Specialties,VLOOKUP(A81,'Trust - Frontsheet'!$A$16:$AC$215,8,0))=0,VLOOKUP(A81,'Trust - Frontsheet'!$A$16:$AC$215,8,0)<>"")),"You have entered unacceptable specialties.","")) ->  | J81: =IF(A81="","",IF(AND(RIGHT(VLOOKUP(A81,'Trust - Frontsheet'!$A$16:$AC$215,7,0),3)<>RIGHT(VLOOKUP(A81,'Trust - Frontsheet'!$A$16:$AC$215,8,0),3),VLOOKUP(A81,'Trust - Frontsheet'!$A$16:$AC$215,8,0)<>""),"Covid statuses do not match","")) ->  | L81: =IF(SUMPRODUCT(--('Trust - Frontsheet'!$D90:$AC90=""))<>26,"","This is a blank row") -> This is a blank row
A82: =IF('Trust - Frontsheet'!A91="","",'Trust - Frontsheet'!A91) ->  | B82: =IF('Trust - Frontsheet'!A91="","",'Trust - Frontsheet'!D91) ->  | C82: =IF(VLOOKUP(A82,'Trust - Frontsheet'!$A$16:$AC$215,5,0)="","",VLOOKUP(A82,'Trust - Frontsheet'!$A$16:$AC$216,5,0)) ->  | D82: =IF(VLOOKUP(A82,'Trust - Frontsheet'!$A$16:$AC$215,6,0)="","",VLOOKUP(A82,'Trust - Frontsheet'!$A$16:$AC$216,6,0)) ->  | E82: =IF(OR(SUMPRODUCT(--(ISTEXT('Trust - Frontsheet'!I91:AC91)))>0,SUMPRODUCT(--(ISERROR('Trust - Frontsheet'!AD91:AT91)))>0),"There is invalid data on this row",IF(SUMPRODUCT(--('Trust - Frontsheet'!I91:AC91<0))>0,"This row contains negative values",IF(AND(L82="This is a blank Row",COUNTBLANK(INDIRECT("L" & ROW() + 1 & ":L" & 206))>0),"No blank rows in the data",""))) ->  | F82: =IF(A82 = "","",IF('Trust - Frontsheet'!D91="", "Site code not present","")) ->  | G82: =IF('Trust - Frontsheet'!D91="","",IF(VLOOKUP(A82,'Trust - Frontsheet'!$A$16:$AC$215,6,0)="","Ward name not present","")) ->  | H82: =IF(A82="","",IF(VLOOKUP(A82,'Trust - Frontsheet'!$A$16:$AC$215,7,0)="","Specialty 1 has not been selected","")) ->  | I82: =IF(A82="","",IF(OR(COUNTIF(Specialties,VLOOKUP(A82,'Trust - Frontsheet'!$A$16:$AC$215,7,0))=0, AND(COUNTIF(Specialties,VLOOKUP(A82,'Trust - Frontsheet'!$A$16:$AC$215,8,0))=0,VLOOKUP(A82,'Trust - Frontsheet'!$A$16:$AC$215,8,0)<>"")),"You have entered unacceptable specialties.","")) ->  | J82: =IF(A82="","",IF(AND(RIGHT(VLOOKUP(A82,'Trust - Frontsheet'!$A$16:$AC$215,7,0),3)<>RIGHT(VLOOKUP(A82,'Trust - Frontsheet'!$A$16:$AC$215,8,0),3),VLOOKUP(A82,'Trust - Frontsheet'!$A$16:$AC$215,8,0)<>""),"Covid statuses do not match","")) ->  | L82: =IF(SUMPRODUCT(--('Trust - Frontsheet'!$D91:$AC91=""))<>26,"","This is a blank row") -> This is a blank row
A83: =IF('Trust - Frontsheet'!A92="","",'Trust - Frontsheet'!A92) ->  | B83: =IF('Trust - Frontsheet'!A92="","",'Trust - Frontsheet'!D92) ->  | C83: =IF(VLOOKUP(A83,'Trust - Frontsheet'!$A$16:$AC$215,5,0)="","",VLOOKUP(A83,'Trust - Frontsheet'!$A$16:$AC$216,5,0)) ->  | D83: =IF(VLOOKUP(A83,'Trust - Frontsheet'!$A$16:$AC$215,6,0)="","",VLOOKUP(A83,'Trust - Frontsheet'!$A$16:$AC$216,6,0)) ->  | E83: =IF(OR(SUMPRODUCT(--(ISTEXT('Trust - Frontsheet'!I92:AC92)))>0,SUMPRODUCT(--(ISERROR('Trust - Frontsheet'!AD92:AT92)))>0),"There is invalid data on this row",IF(SUMPRODUCT(--('Trust - Frontsheet'!I92:AC92<0))>0,"This row contains negative values",IF(AND(L83="This is a blank Row",COUNTBLANK(INDIRECT("L" & ROW() + 1 & ":L" & 206))>0),"No blank rows in the data",""))) ->  | F83: =IF(A83 = "","",IF('Trust - Frontsheet'!D92="", "Site code not present","")) ->  | G83: =IF('Trust - Frontsheet'!D92="","",IF(VLOOKUP(A83,'Trust - Frontsheet'!$A$16:$AC$215,6,0)="","Ward name not present","")) ->  | H83: =IF(A83="","",IF(VLOOKUP(A83,'Trust - Frontsheet'!$A$16:$AC$215,7,0)="","Specialty 1 has not been selected","")) ->  | I83: =IF(A83="","",IF(OR(COUNTIF(Specialties,VLOOKUP(A83,'Trust - Frontsheet'!$A$16:$AC$215,7,0))=0, AND(COUNTIF(Specialties,VLOOKUP(A83,'Trust - Frontsheet'!$A$16:$AC$215,8,0))=0,VLOOKUP(A83,'Trust - Frontsheet'!$A$16:$AC$215,8,0)<>"")),"You have entered unacceptable specialties.","")) ->  | J83: =IF(A83="","",IF(AND(RIGHT(VLOOKUP(A83,'Trust - Frontsheet'!$A$16:$AC$215,7,0),3)<>RIGHT(VLOOKUP(A83,'Trust - Frontsheet'!$A$16:$AC$215,8,0),3),VLOOKUP(A83,'Trust - Frontsheet'!$A$16:$AC$215,8,0)<>""),"Covid statuses do not match","")) ->  | L83: =IF(SUMPRODUCT(--('Trust - Frontsheet'!$D92:$AC92=""))<>26,"","This is a blank row") -> This is a blank row
A84: =IF('Trust - Frontsheet'!A93="","",'Trust - Frontsheet'!A93) ->  | B84: =IF('Trust - Frontsheet'!A93="","",'Trust - Frontsheet'!D93) ->  | C84: =IF(VLOOKUP(A84,'Trust - Frontsheet'!$A$16:$AC$215,5,0)="","",VLOOKUP(A84,'Trust - Frontsheet'!$A$16:$AC$216,5,0)) ->  | D84: =IF(VLOOKUP(A84,'Trust - Frontsheet'!$A$16:$AC$215,6,0)="","",VLOOKUP(A84,'Trust - Frontsheet'!$A$16:$AC$216,6,0)) ->  | E84: =IF(OR(SUMPRODUCT(--(ISTEXT('Trust - Frontsheet'!I93:AC93)))>0,SUMPRODUCT(--(ISERROR('Trust - Frontsheet'!AD93:AT93)))>0),"There is invalid data on this row",IF(SUMPRODUCT(--('Trust - Frontsheet'!I93:AC93<0))>0,"This row contains negative values",IF(AND(L84="This is a blank Row",COUNTBLANK(INDIRECT("L" & ROW() + 1 & ":L" & 206))>0),"No blank rows in the data",""))) ->  | F84: =IF(A84 = "","",IF('Trust - Frontsheet'!D93="", "Site code not present","")) ->  | G84: =IF('Trust - Frontsheet'!D93="","",IF(VLOOKUP(A84,'Trust - Frontsheet'!$A$16:$AC$215,6,0)="","Ward name not present","")) ->  | H84: =IF(A84="","",IF(VLOOKUP(A84,'Trust - Frontsheet'!$A$16:$AC$215,7,0)="","Specialty 1 has not been selected","")) ->  | I84: =IF(A84="","",IF(OR(COUNTIF(Specialties,VLOOKUP(A84,'Trust - Frontsheet'!$A$16:$AC$215,7,0))=0, AND(COUNTIF(Specialties,VLOOKUP(A84,'Trust - Frontsheet'!$A$16:$AC$215,8,0))=0,VLOOKUP(A84,'Trust - Frontsheet'!$A$16:$AC$215,8,0)<>"")),"You have entered unacceptable specialties.","")) ->  | J84: =IF(A84="","",IF(AND(RIGHT(VLOOKUP(A84,'Trust - Frontsheet'!$A$16:$AC$215,7,0),3)<>RIGHT(VLOOKUP(A84,'Trust - Frontsheet'!$A$16:$AC$215,8,0),3),VLOOKUP(A84,'Trust - Frontsheet'!$A$16:$AC$215,8,0)<>""),"Covid statuses do not match","")) ->  | L84: =IF(SUMPRODUCT(--('Trust - Frontsheet'!$D93:$AC93=""))<>26,"","This is a blank row") -> This is a blank row
A85: =IF('Trust - Frontsheet'!A94="","",'Trust - Frontsheet'!A94) ->  | B85: =IF('Trust - Frontsheet'!A94="","",'Trust - Frontsheet'!D94) ->  | C85: =IF(VLOOKUP(A85,'Trust - Frontsheet'!$A$16:$AC$215,5,0)="","",VLOOKUP(A85,'Trust - Frontsheet'!$A$16:$AC$216,5,0)) ->  | D85: =IF(VLOOKUP(A85,'Trust - Frontsheet'!$A$16:$AC$215,6,0)="","",VLOOKUP(A85,'Trust - Frontsheet'!$A$16:$AC$216,6,0)) ->  | E85: =IF(OR(SUMPRODUCT(--(ISTEXT('Trust - Frontsheet'!I94:AC94)))>0,SUMPRODUCT(--(ISERROR('Trust - Frontsheet'!AD94:AT94)))>0),"There is invalid data on this row",IF(SUMPRODUCT(--('Trust - Frontsheet'!I94:AC94<0))>0,"This row contains negative values",IF(AND(L85="This is a blank Row",COUNTBLANK(INDIRECT("L" & ROW() + 1 & ":L" & 206))>0),"No blank rows in the data",""))) ->  | F85: =IF(A85 = "","",IF('Trust - Frontsheet'!D94="", "Site code not present","")) ->  | G85: =IF('Trust - Frontsheet'!D94="","",IF(VLOOKUP(A85,'Trust - Frontsheet'!$A$16:$AC$215,6,0)="","Ward name not present","")) ->  | H85: =IF(A85="","",IF(VLOOKUP(A85,'Trust - Frontsheet'!$A$16:$AC$215,7,0)="","Specialty 1 has not been selected","")) ->  | I85: =IF(A85="","",IF(OR(COUNTIF(Specialties,VLOOKUP(A85,'Trust - Frontsheet'!$A$16:$AC$215,7,0))=0, AND(COUNTIF(Specialties,VLOOKUP(A85,'Trust - Frontsheet'!$A$16:$AC$215,8,0))=0,VLOOKUP(A85,'Trust - Frontsheet'!$A$16:$AC$215,8,0)<>"")),"You have entered unacceptable specialties.","")) ->  | J85: =IF(A85="","",IF(AND(RIGHT(VLOOKUP(A85,'Trust - Frontsheet'!$A$16:$AC$215,7,0),3)<>RIGHT(VLOOKUP(A85,'Trust - Frontsheet'!$A$16:$AC$215,8,0),3),VLOOKUP(A85,'Trust - Frontsheet'!$A$16:$AC$215,8,0)<>""),"Covid statuses do not match","")) ->  | L85: =IF(SUMPRODUCT(--('Trust - Frontsheet'!$D94:$AC94=""))<>26,"","This is a blank row") -> This is a blank row
A86: =IF('Trust - Frontsheet'!A95="","",'Trust - Frontsheet'!A95) ->  | B86: =IF('Trust - Frontsheet'!A95="","",'Trust - Frontsheet'!D95) ->  | C86: =IF(VLOOKUP(A86,'Trust - Frontsheet'!$A$16:$AC$215,5,0)="","",VLOOKUP(A86,'Trust - Frontsheet'!$A$16:$AC$216,5,0)) ->  | D86: =IF(VLOOKUP(A86,'Trust - Frontsheet'!$A$16:$AC$215,6,0)="","",VLOOKUP(A86,'Trust - Frontsheet'!$A$16:$AC$216,6,0)) ->  | E86: =IF(OR(SUMPRODUCT(--(ISTEXT('Trust - Frontsheet'!I95:AC95)))>0,SUMPRODUCT(--(ISERROR('Trust - Frontsheet'!AD95:AT95)))>0),"There is invalid data on this row",IF(SUMPRODUCT(--('Trust - Frontsheet'!I95:AC95<0))>0,"This row contains negative values",IF(AND(L86="This is a blank Row",COUNTBLANK(INDIRECT("L" & ROW() + 1 & ":L" & 206))>0),"No blank rows in the data",""))) ->  | F86: =IF(A86 = "","",IF('Trust - Frontsheet'!D95="", "Site code not present","")) ->  | G86: =IF('Trust - Frontsheet'!D95="","",IF(VLOOKUP(A86,'Trust - Frontsheet'!$A$16:$AC$215,6,0)="","Ward name not present","")) ->  | H86: =IF(A86="","",IF(VLOOKUP(A86,'Trust - Frontsheet'!$A$16:$AC$215,7,0)="","Specialty 1 has not been selected","")) ->  | I86: =IF(A86="","",IF(OR(COUNTIF(Specialties,VLOOKUP(A86,'Trust - Frontsheet'!$A$16:$AC$215,7,0))=0, AND(COUNTIF(Specialties,VLOOKUP(A86,'Trust - Frontsheet'!$A$16:$AC$215,8,0))=0,VLOOKUP(A86,'Trust - Frontsheet'!$A$16:$AC$215,8,0)<>"")),"You have entered unacceptable specialties.","")) ->  | J86: =IF(A86="","",IF(AND(RIGHT(VLOOKUP(A86,'Trust - Frontsheet'!$A$16:$AC$215,7,0),3)<>RIGHT(VLOOKUP(A86,'Trust - Frontsheet'!$A$16:$AC$215,8,0),3),VLOOKUP(A86,'Trust - Frontsheet'!$A$16:$AC$215,8,0)<>""),"Covid statuses do not match","")) ->  | L86: =IF(SUMPRODUCT(--('Trust - Frontsheet'!$D95:$AC95=""))<>26,"","This is a blank row") -> This is a blank row
A87: =IF('Trust - Frontsheet'!A96="","",'Trust - Frontsheet'!A96) ->  | B87: =IF('Trust - Frontsheet'!A96="","",'Trust - Frontsheet'!D96) ->  | C87: =IF(VLOOKUP(A87,'Trust - Frontsheet'!$A$16:$AC$215,5,0)="","",VLOOKUP(A87,'Trust - Frontsheet'!$A$16:$AC$216,5,0)) ->  | D87: =IF(VLOOKUP(A87,'Trust - Frontsheet'!$A$16:$AC$215,6,0)="","",VLOOKUP(A87,'Trust - Frontsheet'!$A$16:$AC$216,6,0)) ->  | E87: =IF(OR(SUMPRODUCT(--(ISTEXT('Trust - Frontsheet'!I96:AC96)))>0,SUMPRODUCT(--(ISERROR('Trust - Frontsheet'!AD96:AT96)))>0),"There is invalid data on this row",IF(SUMPRODUCT(--('Trust - Frontsheet'!I96:AC96<0))>0,"This row contains negative values",IF(AND(L87="This is a blank Row",COUNTBLANK(INDIRECT("L" & ROW() + 1 & ":L" & 206))>0),"No blank rows in the data",""))) ->  | F87: =IF(A87 = "","",IF('Trust - Frontsheet'!D96="", "Site code not present","")) ->  | G87: =IF('Trust - Frontsheet'!D96="","",IF(VLOOKUP(A87,'Trust - Frontsheet'!$A$16:$AC$215,6,0)="","Ward name not present","")) ->  | H87: =IF(A87="","",IF(VLOOKUP(A87,'Trust - Frontsheet'!$A$16:$AC$215,7,0)="","Specialty 1 has not been selected","")) ->  | I87: =IF(A87="","",IF(OR(COUNTIF(Specialties,VLOOKUP(A87,'Trust - Frontsheet'!$A$16:$AC$215,7,0))=0, AND(COUNTIF(Specialties,VLOOKUP(A87,'Trust - Frontsheet'!$A$16:$AC$215,8,0))=0,VLOOKUP(A87,'Trust - Frontsheet'!$A$16:$AC$215,8,0)<>"")),"You have entered unacceptable specialties.","")) ->  | J87: =IF(A87="","",IF(AND(RIGHT(VLOOKUP(A87,'Trust - Frontsheet'!$A$16:$AC$215,7,0),3)<>RIGHT(VLOOKUP(A87,'Trust - Frontsheet'!$A$16:$AC$215,8,0),3),VLOOKUP(A87,'Trust - Frontsheet'!$A$16:$AC$215,8,0)<>""),"Covid statuses do not match","")) ->  | L87: =IF(SUMPRODUCT(--('Trust - Frontsheet'!$D96:$AC96=""))<>26,"","This is a blank row") -> This is a blank row
A88: =IF('Trust - Frontsheet'!A97="","",'Trust - Frontsheet'!A97) ->  | B88: =IF('Trust - Frontsheet'!A97="","",'Trust - Frontsheet'!D97) ->  | C88: =IF(VLOOKUP(A88,'Trust - Frontsheet'!$A$16:$AC$215,5,0)="","",VLOOKUP(A88,'Trust - Frontsheet'!$A$16:$AC$216,5,0)) ->  | D88: =IF(VLOOKUP(A88,'Trust - Frontsheet'!$A$16:$AC$215,6,0)="","",VLOOKUP(A88,'Trust - Frontsheet'!$A$16:$AC$216,6,0)) ->  | E88: =IF(OR(SUMPRODUCT(--(ISTEXT('Trust - Frontsheet'!I97:AC97)))>0,SUMPRODUCT(--(ISERROR('Trust - Frontsheet'!AD97:AT97)))>0),"There is invalid data on this row",IF(SUMPRODUCT(--('Trust - Frontsheet'!I97:AC97<0))>0,"This row contains negative values",IF(AND(L88="This is a blank Row",COUNTBLANK(INDIRECT("L" & ROW() + 1 & ":L" & 206))>0),"No blank rows in the data",""))) ->  | F88: =IF(A88 = "","",IF('Trust - Frontsheet'!D97="", "Site code not present","")) ->  | G88: =IF('Trust - Frontsheet'!D97="","",IF(VLOOKUP(A88,'Trust - Frontsheet'!$A$16:$AC$215,6,0)="","Ward name not present","")) ->  | H88: =IF(A88="","",IF(VLOOKUP(A88,'Trust - Frontsheet'!$A$16:$AC$215,7,0)="","Specialty 1 has not been selected","")) ->  | I88: =IF(A88="","",IF(OR(COUNTIF(Specialties,VLOOKUP(A88,'Trust - Frontsheet'!$A$16:$AC$215,7,0))=0, AND(COUNTIF(Specialties,VLOOKUP(A88,'Trust - Frontsheet'!$A$16:$AC$215,8,0))=0,VLOOKUP(A88,'Trust - Frontsheet'!$A$16:$AC$215,8,0)<>"")),"You have entered unacceptable specialties.","")) ->  | J88: =IF(A88="","",IF(AND(RIGHT(VLOOKUP(A88,'Trust - Frontsheet'!$A$16:$AC$215,7,0),3)<>RIGHT(VLOOKUP(A88,'Trust - Frontsheet'!$A$16:$AC$215,8,0),3),VLOOKUP(A88,'Trust - Frontsheet'!$A$16:$AC$215,8,0)<>""),"Covid statuses do not match","")) ->  | L88: =IF(SUMPRODUCT(--('Trust - Frontsheet'!$D97:$AC97=""))<>26,"","This is a blank row") -> This is a blank row
A89: =IF('Trust - Frontsheet'!A98="","",'Trust - Frontsheet'!A98) ->  | B89: =IF('Trust - Frontsheet'!A98="","",'Trust - Frontsheet'!D98) ->  | C89: =IF(VLOOKUP(A89,'Trust - Frontsheet'!$A$16:$AC$215,5,0)="","",VLOOKUP(A89,'Trust - Frontsheet'!$A$16:$AC$216,5,0)) ->  | D89: =IF(VLOOKUP(A89,'Trust - Frontsheet'!$A$16:$AC$215,6,0)="","",VLOOKUP(A89,'Trust - Frontsheet'!$A$16:$AC$216,6,0)) ->  | E89: =IF(OR(SUMPRODUCT(--(ISTEXT('Trust - Frontsheet'!I98:AC98)))>0,SUMPRODUCT(--(ISERROR('Trust - Frontsheet'!AD98:AT98)))>0),"There is invalid data on this row",IF(SUMPRODUCT(--('Trust - Frontsheet'!I98:AC98<0))>0,"This row contains negative values",IF(AND(L89="This is a blank Row",COUNTBLANK(INDIRECT("L" & ROW() + 1 & ":L" & 206))>0),"No blank rows in the data",""))) ->  | F89: =IF(A89 = "","",IF('Trust - Frontsheet'!D98="", "Site code not present","")) ->  | G89: =IF('Trust - Frontsheet'!D98="","",IF(VLOOKUP(A89,'Trust - Frontsheet'!$A$16:$AC$215,6,0)="","Ward name not present","")) ->  | H89: =IF(A89="","",IF(VLOOKUP(A89,'Trust - Frontsheet'!$A$16:$AC$215,7,0)="","Specialty 1 has not been selected","")) ->  | I89: =IF(A89="","",IF(OR(COUNTIF(Specialties,VLOOKUP(A89,'Trust - Frontsheet'!$A$16:$AC$215,7,0))=0, AND(COUNTIF(Specialties,VLOOKUP(A89,'Trust - Frontsheet'!$A$16:$AC$215,8,0))=0,VLOOKUP(A89,'Trust - Frontsheet'!$A$16:$AC$215,8,0)<>"")),"You have entered unacceptable specialties.","")) ->  | J89: =IF(A89="","",IF(AND(RIGHT(VLOOKUP(A89,'Trust - Frontsheet'!$A$16:$AC$215,7,0),3)<>RIGHT(VLOOKUP(A89,'Trust - Frontsheet'!$A$16:$AC$215,8,0),3),VLOOKUP(A89,'Trust - Frontsheet'!$A$16:$AC$215,8,0)<>""),"Covid statuses do not match","")) ->  | L89: =IF(SUMPRODUCT(--('Trust - Frontsheet'!$D98:$AC98=""))<>26,"","This is a blank row") -> This is a blank row
A90: =IF('Trust - Frontsheet'!A99="","",'Trust - Frontsheet'!A99) ->  | B90: =IF('Trust - Frontsheet'!A99="","",'Trust - Frontsheet'!D99) ->  | C90: =IF(VLOOKUP(A90,'Trust - Frontsheet'!$A$16:$AC$215,5,0)="","",VLOOKUP(A90,'Trust - Frontsheet'!$A$16:$AC$216,5,0)) ->  | D90: =IF(VLOOKUP(A90,'Trust - Frontsheet'!$A$16:$AC$215,6,0)="","",VLOOKUP(A90,'Trust - Frontsheet'!$A$16:$AC$216,6,0)) ->  | E90: =IF(OR(SUMPRODUCT(--(ISTEXT('Trust - Frontsheet'!I99:AC99)))>0,SUMPRODUCT(--(ISERROR('Trust - Frontsheet'!AD99:AT99)))>0),"There is invalid data on this row",IF(SUMPRODUCT(--('Trust - Frontsheet'!I99:AC99<0))>0,"This row contains negative values",IF(AND(L90="This is a blank Row",COUNTBLANK(INDIRECT("L" & ROW() + 1 & ":L" & 206))>0),"No blank rows in the data",""))) ->  | F90: =IF(A90 = "","",IF('Trust - Frontsheet'!D99="", "Site code not present","")) ->  | G90: =IF('Trust - Frontsheet'!D99="","",IF(VLOOKUP(A90,'Trust - Frontsheet'!$A$16:$AC$215,6,0)="","Ward name not present","")) ->  | H90: =IF(A90="","",IF(VLOOKUP(A90,'Trust - Frontsheet'!$A$16:$AC$215,7,0)="","Specialty 1 has not been selected","")) ->  | I90: =IF(A90="","",IF(OR(COUNTIF(Specialties,VLOOKUP(A90,'Trust - Frontsheet'!$A$16:$AC$215,7,0))=0, AND(COUNTIF(Specialties,VLOOKUP(A90,'Trust - Frontsheet'!$A$16:$AC$215,8,0))=0,VLOOKUP(A90,'Trust - Frontsheet'!$A$16:$AC$215,8,0)<>"")),"You have entered unacceptable specialties.","")) ->  | J90: =IF(A90="","",IF(AND(RIGHT(VLOOKUP(A90,'Trust - Frontsheet'!$A$16:$AC$215,7,0),3)<>RIGHT(VLOOKUP(A90,'Trust - Frontsheet'!$A$16:$AC$215,8,0),3),VLOOKUP(A90,'Trust - Frontsheet'!$A$16:$AC$215,8,0)<>""),"Covid statuses do not match","")) ->  | L90: =IF(SUMPRODUCT(--('Trust - Frontsheet'!$D99:$AC99=""))<>26,"","This is a blank row") -> This is a blank row
A91: =IF('Trust - Frontsheet'!A100="","",'Trust - Frontsheet'!A100) ->  | B91: =IF('Trust - Frontsheet'!A100="","",'Trust - Frontsheet'!D100) ->  | C91: =IF(VLOOKUP(A91,'Trust - Frontsheet'!$A$16:$AC$215,5,0)="","",VLOOKUP(A91,'Trust - Frontsheet'!$A$16:$AC$216,5,0)) ->  | D91: =IF(VLOOKUP(A91,'Trust - Frontsheet'!$A$16:$AC$215,6,0)="","",VLOOKUP(A91,'Trust - Frontsheet'!$A$16:$AC$216,6,0)) ->  | E91: =IF(OR(SUMPRODUCT(--(ISTEXT('Trust - Frontsheet'!I100:AC100)))>0,SUMPRODUCT(--(ISERROR('Trust - Frontsheet'!AD100:AT100)))>0),"There is invalid data on this row",IF(SUMPRODUCT(--('Trust - Frontsheet'!I100:AC100<0))>0,"This row contains negative values",IF(AND(L91="This is a blank Row",COUNTBLANK(INDIRECT("L" & ROW() + 1 & ":L" & 206))>0),"No blank rows in the data",""))) ->  | F91: =IF(A91 = "","",IF('Trust - Frontsheet'!D100="", "Site code not present","")) ->  | G91: =IF('Trust - Frontsheet'!D100="","",IF(VLOOKUP(A91,'Trust - Frontsheet'!$A$16:$AC$215,6,0)="","Ward name not present","")) ->  | H91: =IF(A91="","",IF(VLOOKUP(A91,'Trust - Frontsheet'!$A$16:$AC$215,7,0)="","Specialty 1 has not been selected","")) ->  | I91: =IF(A91="","",IF(OR(COUNTIF(Specialties,VLOOKUP(A91,'Trust - Frontsheet'!$A$16:$AC$215,7,0))=0, AND(COUNTIF(Specialties,VLOOKUP(A91,'Trust - Frontsheet'!$A$16:$AC$215,8,0))=0,VLOOKUP(A91,'Trust - Frontsheet'!$A$16:$AC$215,8,0)<>"")),"You have entered unacceptable specialties.","")) ->  | J91: =IF(A91="","",IF(AND(RIGHT(VLOOKUP(A91,'Trust - Frontsheet'!$A$16:$AC$215,7,0),3)<>RIGHT(VLOOKUP(A91,'Trust - Frontsheet'!$A$16:$AC$215,8,0),3),VLOOKUP(A91,'Trust - Frontsheet'!$A$16:$AC$215,8,0)<>""),"Covid statuses do not match","")) ->  | L91: =IF(SUMPRODUCT(--('Trust - Frontsheet'!$D100:$AC100=""))<>26,"","This is a blank row") -> This is a blank row
A92: =IF('Trust - Frontsheet'!A101="","",'Trust - Frontsheet'!A101) ->  | B92: =IF('Trust - Frontsheet'!A101="","",'Trust - Frontsheet'!D101) ->  | C92: =IF(VLOOKUP(A92,'Trust - Frontsheet'!$A$16:$AC$215,5,0)="","",VLOOKUP(A92,'Trust - Frontsheet'!$A$16:$AC$216,5,0)) ->  | D92: =IF(VLOOKUP(A92,'Trust - Frontsheet'!$A$16:$AC$215,6,0)="","",VLOOKUP(A92,'Trust - Frontsheet'!$A$16:$AC$216,6,0)) ->  | E92: =IF(OR(SUMPRODUCT(--(ISTEXT('Trust - Frontsheet'!I101:AC101)))>0,SUMPRODUCT(--(ISERROR('Trust - Frontsheet'!AD101:AT101)))>0),"There is invalid data on this row",IF(SUMPRODUCT(--('Trust - Frontsheet'!I101:AC101<0))>0,"This row contains negative values",IF(AND(L92="This is a blank Row",COUNTBLANK(INDIRECT("L" & ROW() + 1 & ":L" & 206))>0),"No blank rows in the data",""))) ->  | F92: =IF(A92 = "","",IF('Trust - Frontsheet'!D101="", "Site code not present","")) ->  | G92: =IF('Trust - Frontsheet'!D101="","",IF(VLOOKUP(A92,'Trust - Frontsheet'!$A$16:$AC$215,6,0)="","Ward name not present","")) ->  | H92: =IF(A92="","",IF(VLOOKUP(A92,'Trust - Frontsheet'!$A$16:$AC$215,7,0)="","Specialty 1 has not been selected","")) ->  | I92: =IF(A92="","",IF(OR(COUNTIF(Specialties,VLOOKUP(A92,'Trust - Frontsheet'!$A$16:$AC$215,7,0))=0, AND(COUNTIF(Specialties,VLOOKUP(A92,'Trust - Frontsheet'!$A$16:$AC$215,8,0))=0,VLOOKUP(A92,'Trust - Frontsheet'!$A$16:$AC$215,8,0)<>"")),"You have entered unacceptable specialties.","")) ->  | J92: =IF(A92="","",IF(AND(RIGHT(VLOOKUP(A92,'Trust - Frontsheet'!$A$16:$AC$215,7,0),3)<>RIGHT(VLOOKUP(A92,'Trust - Frontsheet'!$A$16:$AC$215,8,0),3),VLOOKUP(A92,'Trust - Frontsheet'!$A$16:$AC$215,8,0)<>""),"Covid statuses do not match","")) ->  | L92: =IF(SUMPRODUCT(--('Trust - Frontsheet'!$D101:$AC101=""))<>26,"","This is a blank row") -> This is a blank row
A93: =IF('Trust - Frontsheet'!A102="","",'Trust - Frontsheet'!A102) ->  | B93: =IF('Trust - Frontsheet'!A102="","",'Trust - Frontsheet'!D102) ->  | C93: =IF(VLOOKUP(A93,'Trust - Frontsheet'!$A$16:$AC$215,5,0)="","",VLOOKUP(A93,'Trust - Frontsheet'!$A$16:$AC$216,5,0)) ->  | D93: =IF(VLOOKUP(A93,'Trust - Frontsheet'!$A$16:$AC$215,6,0)="","",VLOOKUP(A93,'Trust - Frontsheet'!$A$16:$AC$216,6,0)) ->  | E93: =IF(OR(SUMPRODUCT(--(ISTEXT('Trust - Frontsheet'!I102:AC102)))>0,SUMPRODUCT(--(ISERROR('Trust - Frontsheet'!AD102:AT102)))>0),"There is invalid data on this row",IF(SUMPRODUCT(--('Trust - Frontsheet'!I102:AC102<0))>0,"This row contains negative values",IF(AND(L93="This is a blank Row",COUNTBLANK(INDIRECT("L" & ROW() + 1 & ":L" & 206))>0),"No blank rows in the data",""))) ->  | F93: =IF(A93 = "","",IF('Trust - Frontsheet'!D102="", "Site code not present","")) ->  | G93: =IF('Trust - Frontsheet'!D102="","",IF(VLOOKUP(A93,'Trust - Frontsheet'!$A$16:$AC$215,6,0)="","Ward name not present","")) ->  | H93: =IF(A93="","",IF(VLOOKUP(A93,'Trust - Frontsheet'!$A$16:$AC$215,7,0)="","Specialty 1 has not been selected","")) ->  | I93: =IF(A93="","",IF(OR(COUNTIF(Specialties,VLOOKUP(A93,'Trust - Frontsheet'!$A$16:$AC$215,7,0))=0, AND(COUNTIF(Specialties,VLOOKUP(A93,'Trust - Frontsheet'!$A$16:$AC$215,8,0))=0,VLOOKUP(A93,'Trust - Frontsheet'!$A$16:$AC$215,8,0)<>"")),"You have entered unacceptable specialties.","")) ->  | J93: =IF(A93="","",IF(AND(RIGHT(VLOOKUP(A93,'Trust - Frontsheet'!$A$16:$AC$215,7,0),3)<>RIGHT(VLOOKUP(A93,'Trust - Frontsheet'!$A$16:$AC$215,8,0),3),VLOOKUP(A93,'Trust - Frontsheet'!$A$16:$AC$215,8,0)<>""),"Covid statuses do not match","")) ->  | L93: =IF(SUMPRODUCT(--('Trust - Frontsheet'!$D102:$AC102=""))<>26,"","This is a blank row") -> This is a blank row
A94: =IF('Trust - Frontsheet'!A103="","",'Trust - Frontsheet'!A103) ->  | B94: =IF('Trust - Frontsheet'!A103="","",'Trust - Frontsheet'!D103) ->  | C94: =IF(VLOOKUP(A94,'Trust - Frontsheet'!$A$16:$AC$215,5,0)="","",VLOOKUP(A94,'Trust - Frontsheet'!$A$16:$AC$216,5,0)) ->  | D94: =IF(VLOOKUP(A94,'Trust - Frontsheet'!$A$16:$AC$215,6,0)="","",VLOOKUP(A94,'Trust - Frontsheet'!$A$16:$AC$216,6,0)) ->  | E94: =IF(OR(SUMPRODUCT(--(ISTEXT('Trust - Frontsheet'!I103:AC103)))>0,SUMPRODUCT(--(ISERROR('Trust - Frontsheet'!AD103:AT103)))>0),"There is invalid data on this row",IF(SUMPRODUCT(--('Trust - Frontsheet'!I103:AC103<0))>0,"This row contains negative values",IF(AND(L94="This is a blank Row",COUNTBLANK(INDIRECT("L" & ROW() + 1 & ":L" & 206))>0),"No blank rows in the data",""))) ->  | F94: =IF(A94 = "","",IF('Trust - Frontsheet'!D103="", "Site code not present","")) ->  | G94: =IF('Trust - Frontsheet'!D103="","",IF(VLOOKUP(A94,'Trust - Frontsheet'!$A$16:$AC$215,6,0)="","Ward name not present","")) ->  | H94: =IF(A94="","",IF(VLOOKUP(A94,'Trust - Frontsheet'!$A$16:$AC$215,7,0)="","Specialty 1 has not been selected","")) ->  | I94: =IF(A94="","",IF(OR(COUNTIF(Specialties,VLOOKUP(A94,'Trust - Frontsheet'!$A$16:$AC$215,7,0))=0, AND(COUNTIF(Specialties,VLOOKUP(A94,'Trust - Frontsheet'!$A$16:$AC$215,8,0))=0,VLOOKUP(A94,'Trust - Frontsheet'!$A$16:$AC$215,8,0)<>"")),"You have entered unacceptable specialties.","")) ->  | J94: =IF(A94="","",IF(AND(RIGHT(VLOOKUP(A94,'Trust - Frontsheet'!$A$16:$AC$215,7,0),3)<>RIGHT(VLOOKUP(A94,'Trust - Frontsheet'!$A$16:$AC$215,8,0),3),VLOOKUP(A94,'Trust - Frontsheet'!$A$16:$AC$215,8,0)<>""),"Covid statuses do not match","")) ->  | L94: =IF(SUMPRODUCT(--('Trust - Frontsheet'!$D103:$AC103=""))<>26,"","This is a blank row") -> This is a blank row
A95: =IF('Trust - Frontsheet'!A104="","",'Trust - Frontsheet'!A104) ->  | B95: =IF('Trust - Frontsheet'!A104="","",'Trust - Frontsheet'!D104) ->  | C95: =IF(VLOOKUP(A95,'Trust - Frontsheet'!$A$16:$AC$215,5,0)="","",VLOOKUP(A95,'Trust - Frontsheet'!$A$16:$AC$216,5,0)) ->  | D95: =IF(VLOOKUP(A95,'Trust - Frontsheet'!$A$16:$AC$215,6,0)="","",VLOOKUP(A95,'Trust - Frontsheet'!$A$16:$AC$216,6,0)) ->  | E95: =IF(OR(SUMPRODUCT(--(ISTEXT('Trust - Frontsheet'!I104:AC104)))>0,SUMPRODUCT(--(ISERROR('Trust - Frontsheet'!AD104:AT104)))>0),"There is invalid data on this row",IF(SUMPRODUCT(--('Trust - Frontsheet'!I104:AC104<0))>0,"This row contains negative values",IF(AND(L95="This is a blank Row",COUNTBLANK(INDIRECT("L" & ROW() + 1 & ":L" & 206))>0),"No blank rows in the data",""))) ->  | F95: =IF(A95 = "","",IF('Trust - Frontsheet'!D104="", "Site code not present","")) ->  | G95: =IF('Trust - Frontsheet'!D104="","",IF(VLOOKUP(A95,'Trust - Frontsheet'!$A$16:$AC$215,6,0)="","Ward name not present","")) ->  | H95: =IF(A95="","",IF(VLOOKUP(A95,'Trust - Frontsheet'!$A$16:$AC$215,7,0)="","Specialty 1 has not been selected","")) ->  | I95: =IF(A95="","",IF(OR(COUNTIF(Specialties,VLOOKUP(A95,'Trust - Frontsheet'!$A$16:$AC$215,7,0))=0, AND(COUNTIF(Specialties,VLOOKUP(A95,'Trust - Frontsheet'!$A$16:$AC$215,8,0))=0,VLOOKUP(A95,'Trust - Frontsheet'!$A$16:$AC$215,8,0)<>"")),"You have entered unacceptable specialties.","")) ->  | J95: =IF(A95="","",IF(AND(RIGHT(VLOOKUP(A95,'Trust - Frontsheet'!$A$16:$AC$215,7,0),3)<>RIGHT(VLOOKUP(A95,'Trust - Frontsheet'!$A$16:$AC$215,8,0),3),VLOOKUP(A95,'Trust - Frontsheet'!$A$16:$AC$215,8,0)<>""),"Covid statuses do not match","")) ->  | L95: =IF(SUMPRODUCT(--('Trust - Frontsheet'!$D104:$AC104=""))<>26,"","This is a blank row") -> This is a blank row
A96: =IF('Trust - Frontsheet'!A105="","",'Trust - Frontsheet'!A105) ->  | B96: =IF('Trust - Frontsheet'!A105="","",'Trust - Frontsheet'!D105) ->  | C96: =IF(VLOOKUP(A96,'Trust - Frontsheet'!$A$16:$AC$215,5,0)="","",VLOOKUP(A96,'Trust - Frontsheet'!$A$16:$AC$216,5,0)) ->  | D96: =IF(VLOOKUP(A96,'Trust - Frontsheet'!$A$16:$AC$215,6,0)="","",VLOOKUP(A96,'Trust - Frontsheet'!$A$16:$AC$216,6,0)) ->  | E96: =IF(OR(SUMPRODUCT(--(ISTEXT('Trust - Frontsheet'!I105:AC105)))>0,SUMPRODUCT(--(ISERROR('Trust - Frontsheet'!AD105:AT105)))>0),"There is invalid data on this row",IF(SUMPRODUCT(--('Trust - Frontsheet'!I105:AC105<0))>0,"This row contains negative values",IF(AND(L96="This is a blank Row",COUNTBLANK(INDIRECT("L" & ROW() + 1 & ":L" & 206))>0),"No blank rows in the data",""))) ->  | F96: =IF(A96 = "","",IF('Trust - Frontsheet'!D105="", "Site code not present","")) ->  | G96: =IF('Trust - Frontsheet'!D105="","",IF(VLOOKUP(A96,'Trust - Frontsheet'!$A$16:$AC$215,6,0)="","Ward name not present","")) ->  | H96: =IF(A96="","",IF(VLOOKUP(A96,'Trust - Frontsheet'!$A$16:$AC$215,7,0)="","Specialty 1 has not been selected","")) ->  | I96: =IF(A96="","",IF(OR(COUNTIF(Specialties,VLOOKUP(A96,'Trust - Frontsheet'!$A$16:$AC$215,7,0))=0, AND(COUNTIF(Specialties,VLOOKUP(A96,'Trust - Frontsheet'!$A$16:$AC$215,8,0))=0,VLOOKUP(A96,'Trust - Frontsheet'!$A$16:$AC$215,8,0)<>"")),"You have entered unacceptable specialties.","")) ->  | J96: =IF(A96="","",IF(AND(RIGHT(VLOOKUP(A96,'Trust - Frontsheet'!$A$16:$AC$215,7,0),3)<>RIGHT(VLOOKUP(A96,'Trust - Frontsheet'!$A$16:$AC$215,8,0),3),VLOOKUP(A96,'Trust - Frontsheet'!$A$16:$AC$215,8,0)<>""),"Covid statuses do not match","")) ->  | L96: =IF(SUMPRODUCT(--('Trust - Frontsheet'!$D105:$AC105=""))<>26,"","This is a blank row") -> This is a blank row
A97: =IF('Trust - Frontsheet'!A106="","",'Trust - Frontsheet'!A106) ->  | B97: =IF('Trust - Frontsheet'!A106="","",'Trust - Frontsheet'!D106) ->  | C97: =IF(VLOOKUP(A97,'Trust - Frontsheet'!$A$16:$AC$215,5,0)="","",VLOOKUP(A97,'Trust - Frontsheet'!$A$16:$AC$216,5,0)) ->  | D97: =IF(VLOOKUP(A97,'Trust - Frontsheet'!$A$16:$AC$215,6,0)="","",VLOOKUP(A97,'Trust - Frontsheet'!$A$16:$AC$216,6,0)) ->  | E97: =IF(OR(SUMPRODUCT(--(ISTEXT('Trust - Frontsheet'!I106:AC106)))>0,SUMPRODUCT(--(ISERROR('Trust - Frontsheet'!AD106:AT106)))>0),"There is invalid data on this row",IF(SUMPRODUCT(--('Trust - Frontsheet'!I106:AC106<0))>0,"This row contains negative values",IF(AND(L97="This is a blank Row",COUNTBLANK(INDIRECT("L" & ROW() + 1 & ":L" & 206))>0),"No blank rows in the data",""))) ->  | F97: =IF(A97 = "","",IF('Trust - Frontsheet'!D106="", "Site code not present","")) ->  | G97: =IF('Trust - Frontsheet'!D106="","",IF(VLOOKUP(A97,'Trust - Frontsheet'!$A$16:$AC$215,6,0)="","Ward name not present","")) ->  | H97: =IF(A97="","",IF(VLOOKUP(A97,'Trust - Frontsheet'!$A$16:$AC$215,7,0)="","Specialty 1 has not been selected","")) ->  | I97: =IF(A97="","",IF(OR(COUNTIF(Specialties,VLOOKUP(A97,'Trust - Frontsheet'!$A$16:$AC$215,7,0))=0, AND(COUNTIF(Specialties,VLOOKUP(A97,'Trust - Frontsheet'!$A$16:$AC$215,8,0))=0,VLOOKUP(A97,'Trust - Frontsheet'!$A$16:$AC$215,8,0)<>"")),"You have entered unacceptable specialties.","")) ->  | J97: =IF(A97="","",IF(AND(RIGHT(VLOOKUP(A97,'Trust - Frontsheet'!$A$16:$AC$215,7,0),3)<>RIGHT(VLOOKUP(A97,'Trust - Frontsheet'!$A$16:$AC$215,8,0),3),VLOOKUP(A97,'Trust - Frontsheet'!$A$16:$AC$215,8,0)<>""),"Covid statuses do not match","")) ->  | L97: =IF(SUMPRODUCT(--('Trust - Frontsheet'!$D106:$AC106=""))<>26,"","This is a blank row") -> This is a blank row
A98: =IF('Trust - Frontsheet'!A107="","",'Trust - Frontsheet'!A107) ->  | B98: =IF('Trust - Frontsheet'!A107="","",'Trust - Frontsheet'!D107) ->  | C98: =IF(VLOOKUP(A98,'Trust - Frontsheet'!$A$16:$AC$215,5,0)="","",VLOOKUP(A98,'Trust - Frontsheet'!$A$16:$AC$216,5,0)) ->  | D98: =IF(VLOOKUP(A98,'Trust - Frontsheet'!$A$16:$AC$215,6,0)="","",VLOOKUP(A98,'Trust - Frontsheet'!$A$16:$AC$216,6,0)) ->  | E98: =IF(OR(SUMPRODUCT(--(ISTEXT('Trust - Frontsheet'!I107:AC107)))>0,SUMPRODUCT(--(ISERROR('Trust - Frontsheet'!AD107:AT107)))>0),"There is invalid data on this row",IF(SUMPRODUCT(--('Trust - Frontsheet'!I107:AC107<0))>0,"This row contains negative values",IF(AND(L98="This is a blank Row",COUNTBLANK(INDIRECT("L" & ROW() + 1 & ":L" & 206))>0),"No blank rows in the data",""))) ->  | F98: =IF(A98 = "","",IF('Trust - Frontsheet'!D107="", "Site code not present","")) ->  | G98: =IF('Trust - Frontsheet'!D107="","",IF(VLOOKUP(A98,'Trust - Frontsheet'!$A$16:$AC$215,6,0)="","Ward name not present","")) ->  | H98: =IF(A98="","",IF(VLOOKUP(A98,'Trust - Frontsheet'!$A$16:$AC$215,7,0)="","Specialty 1 has not been selected","")) ->  | I98: =IF(A98="","",IF(OR(COUNTIF(Specialties,VLOOKUP(A98,'Trust - Frontsheet'!$A$16:$AC$215,7,0))=0, AND(COUNTIF(Specialties,VLOOKUP(A98,'Trust - Frontsheet'!$A$16:$AC$215,8,0))=0,VLOOKUP(A98,'Trust - Frontsheet'!$A$16:$AC$215,8,0)<>"")),"You have entered unacceptable specialties.","")) ->  | J98: =IF(A98="","",IF(AND(RIGHT(VLOOKUP(A98,'Trust - Frontsheet'!$A$16:$AC$215,7,0),3)<>RIGHT(VLOOKUP(A98,'Trust - Frontsheet'!$A$16:$AC$215,8,0),3),VLOOKUP(A98,'Trust - Frontsheet'!$A$16:$AC$215,8,0)<>""),"Covid statuses do not match","")) ->  | L98: =IF(SUMPRODUCT(--('Trust - Frontsheet'!$D107:$AC107=""))<>26,"","This is a blank row") -> This is a blank row
A99: =IF('Trust - Frontsheet'!A108="","",'Trust - Frontsheet'!A108) ->  | B99: =IF('Trust - Frontsheet'!A108="","",'Trust - Frontsheet'!D108) ->  | C99: =IF(VLOOKUP(A99,'Trust - Frontsheet'!$A$16:$AC$215,5,0)="","",VLOOKUP(A99,'Trust - Frontsheet'!$A$16:$AC$216,5,0)) ->  | D99: =IF(VLOOKUP(A99,'Trust - Frontsheet'!$A$16:$AC$215,6,0)="","",VLOOKUP(A99,'Trust - Frontsheet'!$A$16:$AC$216,6,0)) ->  | E99: =IF(OR(SUMPRODUCT(--(ISTEXT('Trust - Frontsheet'!I108:AC108)))>0,SUMPRODUCT(--(ISERROR('Trust - Frontsheet'!AD108:AT108)))>0),"There is invalid data on this row",IF(SUMPRODUCT(--('Trust - Frontsheet'!I108:AC108<0))>0,"This row contains negative values",IF(AND(L99="This is a blank Row",COUNTBLANK(INDIRECT("L" & ROW() + 1 & ":L" & 206))>0),"No blank rows in the data",""))) ->  | F99: =IF(A99 = "","",IF('Trust - Frontsheet'!D108="", "Site code not present","")) ->  | G99: =IF('Trust - Frontsheet'!D108="","",IF(VLOOKUP(A99,'Trust - Frontsheet'!$A$16:$AC$215,6,0)="","Ward name not present","")) ->  | H99: =IF(A99="","",IF(VLOOKUP(A99,'Trust - Frontsheet'!$A$16:$AC$215,7,0)="","Specialty 1 has not been selected","")) ->  | I99: =IF(A99="","",IF(OR(COUNTIF(Specialties,VLOOKUP(A99,'Trust - Frontsheet'!$A$16:$AC$215,7,0))=0, AND(COUNTIF(Specialties,VLOOKUP(A99,'Trust - Frontsheet'!$A$16:$AC$215,8,0))=0,VLOOKUP(A99,'Trust - Frontsheet'!$A$16:$AC$215,8,0)<>"")),"You have entered unacceptable specialties.","")) ->  | J99: =IF(A99="","",IF(AND(RIGHT(VLOOKUP(A99,'Trust - Frontsheet'!$A$16:$AC$215,7,0),3)<>RIGHT(VLOOKUP(A99,'Trust - Frontsheet'!$A$16:$AC$215,8,0),3),VLOOKUP(A99,'Trust - Frontsheet'!$A$16:$AC$215,8,0)<>""),"Covid statuses do not match","")) ->  | L99: =IF(SUMPRODUCT(--('Trust - Frontsheet'!$D108:$AC108=""))<>26,"","This is a blank row") -> This is a blank row
A100: =IF('Trust - Frontsheet'!A109="","",'Trust - Frontsheet'!A109) ->  | B100: =IF('Trust - Frontsheet'!A109="","",'Trust - Frontsheet'!D109) ->  | C100: =IF(VLOOKUP(A100,'Trust - Frontsheet'!$A$16:$AC$215,5,0)="","",VLOOKUP(A100,'Trust - Frontsheet'!$A$16:$AC$216,5,0)) ->  | D100: =IF(VLOOKUP(A100,'Trust - Frontsheet'!$A$16:$AC$215,6,0)="","",VLOOKUP(A100,'Trust - Frontsheet'!$A$16:$AC$216,6,0)) ->  | E100: =IF(OR(SUMPRODUCT(--(ISTEXT('Trust - Frontsheet'!I109:AC109)))>0,SUMPRODUCT(--(ISERROR('Trust - Frontsheet'!AD109:AT109)))>0),"There is invalid data on this row",IF(SUMPRODUCT(--('Trust - Frontsheet'!I109:AC109<0))>0,"This row contains negative values",IF(AND(L100="This is a blank Row",COUNTBLANK(INDIRECT("L" & ROW() + 1 & ":L" & 206))>0),"No blank rows in the data",""))) ->  | F100: =IF(A100 = "","",IF('Trust - Frontsheet'!D109="", "Site code not present","")) ->  | G100: =IF('Trust - Frontsheet'!D109="","",IF(VLOOKUP(A100,'Trust - Frontsheet'!$A$16:$AC$215,6,0)="","Ward name not present","")) ->  | H100: =IF(A100="","",IF(VLOOKUP(A100,'Trust - Frontsheet'!$A$16:$AC$215,7,0)="","Specialty 1 has not been selected","")) ->  | I100: =IF(A100="","",IF(OR(COUNTIF(Specialties,VLOOKUP(A100,'Trust - Frontsheet'!$A$16:$AC$215,7,0))=0, AND(COUNTIF(Specialties,VLOOKUP(A100,'Trust - Frontsheet'!$A$16:$AC$215,8,0))=0,VLOOKUP(A100,'Trust - Frontsheet'!$A$16:$AC$215,8,0)<>"")),"You have entered unacceptable specialties.","")) ->  | J100: =IF(A100="","",IF(AND(RIGHT(VLOOKUP(A100,'Trust - Frontsheet'!$A$16:$AC$215,7,0),3)<>RIGHT(VLOOKUP(A100,'Trust - Frontsheet'!$A$16:$AC$215,8,0),3),VLOOKUP(A100,'Trust - Frontsheet'!$A$16:$AC$215,8,0)<>""),"Covid statuses do not match","")) ->  | L100: =IF(SUMPRODUCT(--('Trust - Frontsheet'!$D109:$AC109=""))<>26,"","This is a blank row") -> This is a blank row
A101: =IF('Trust - Frontsheet'!A110="","",'Trust - Frontsheet'!A110) ->  | B101: =IF('Trust - Frontsheet'!A110="","",'Trust - Frontsheet'!D110) ->  | C101: =IF(VLOOKUP(A101,'Trust - Frontsheet'!$A$16:$AC$215,5,0)="","",VLOOKUP(A101,'Trust - Frontsheet'!$A$16:$AC$216,5,0)) ->  | D101: =IF(VLOOKUP(A101,'Trust - Frontsheet'!$A$16:$AC$215,6,0)="","",VLOOKUP(A101,'Trust - Frontsheet'!$A$16:$AC$216,6,0)) ->  | E101: =IF(OR(SUMPRODUCT(--(ISTEXT('Trust - Frontsheet'!I110:AC110)))>0,SUMPRODUCT(--(ISERROR('Trust - Frontsheet'!AD110:AT110)))>0),"There is invalid data on this row",IF(SUMPRODUCT(--('Trust - Frontsheet'!I110:AC110<0))>0,"This row contains negative values",IF(AND(L101="This is a blank Row",COUNTBLANK(INDIRECT("L" & ROW() + 1 & ":L" & 206))>0),"No blank rows in the data",""))) ->  | F101: =IF(A101 = "","",IF('Trust - Frontsheet'!D110="", "Site code not present","")) ->  | G101: =IF('Trust - Frontsheet'!D110="","",IF(VLOOKUP(A101,'Trust - Frontsheet'!$A$16:$AC$215,6,0)="","Ward name not present","")) ->  | H101: =IF(A101="","",IF(VLOOKUP(A101,'Trust - Frontsheet'!$A$16:$AC$215,7,0)="","Specialty 1 has not been selected","")) ->  | I101: =IF(A101="","",IF(OR(COUNTIF(Specialties,VLOOKUP(A101,'Trust - Frontsheet'!$A$16:$AC$215,7,0))=0, AND(COUNTIF(Specialties,VLOOKUP(A101,'Trust - Frontsheet'!$A$16:$AC$215,8,0))=0,VLOOKUP(A101,'Trust - Frontsheet'!$A$16:$AC$215,8,0)<>"")),"You have entered unacceptable specialties.","")) ->  | J101: =IF(A101="","",IF(AND(RIGHT(VLOOKUP(A101,'Trust - Frontsheet'!$A$16:$AC$215,7,0),3)<>RIGHT(VLOOKUP(A101,'Trust - Frontsheet'!$A$16:$AC$215,8,0),3),VLOOKUP(A101,'Trust - Frontsheet'!$A$16:$AC$215,8,0)<>""),"Covid statuses do not match","")) ->  | L101: =IF(SUMPRODUCT(--('Trust - Frontsheet'!$D110:$AC110=""))<>26,"","This is a blank row") -> This is a blank row
A102: =IF('Trust - Frontsheet'!A111="","",'Trust - Frontsheet'!A111) ->  | B102: =IF('Trust - Frontsheet'!A111="","",'Trust - Frontsheet'!D111) ->  | C102: =IF(VLOOKUP(A102,'Trust - Frontsheet'!$A$16:$AC$215,5,0)="","",VLOOKUP(A102,'Trust - Frontsheet'!$A$16:$AC$216,5,0)) ->  | D102: =IF(VLOOKUP(A102,'Trust - Frontsheet'!$A$16:$AC$215,6,0)="","",VLOOKUP(A102,'Trust - Frontsheet'!$A$16:$AC$216,6,0)) ->  | E102: =IF(OR(SUMPRODUCT(--(ISTEXT('Trust - Frontsheet'!I111:AC111)))>0,SUMPRODUCT(--(ISERROR('Trust - Frontsheet'!AD111:AT111)))>0),"There is invalid data on this row",IF(SUMPRODUCT(--('Trust - Frontsheet'!I111:AC111<0))>0,"This row contains negative values",IF(AND(L102="This is a blank Row",COUNTBLANK(INDIRECT("L" & ROW() + 1 & ":L" & 206))>0),"No blank rows in the data",""))) ->  | F102: =IF(A102 = "","",IF('Trust - Frontsheet'!D111="", "Site code not present","")) ->  | G102: =IF('Trust - Frontsheet'!D111="","",IF(VLOOKUP(A102,'Trust - Frontsheet'!$A$16:$AC$215,6,0)="","Ward name not present","")) ->  | H102: =IF(A102="","",IF(VLOOKUP(A102,'Trust - Frontsheet'!$A$16:$AC$215,7,0)="","Specialty 1 has not been selected","")) ->  | I102: =IF(A102="","",IF(OR(COUNTIF(Specialties,VLOOKUP(A102,'Trust - Frontsheet'!$A$16:$AC$215,7,0))=0, AND(COUNTIF(Specialties,VLOOKUP(A102,'Trust - Frontsheet'!$A$16:$AC$215,8,0))=0,VLOOKUP(A102,'Trust - Frontsheet'!$A$16:$AC$215,8,0)<>"")),"You have entered unacceptable specialties.","")) ->  | J102: =IF(A102="","",IF(AND(RIGHT(VLOOKUP(A102,'Trust - Frontsheet'!$A$16:$AC$215,7,0),3)<>RIGHT(VLOOKUP(A102,'Trust - Frontsheet'!$A$16:$AC$215,8,0),3),VLOOKUP(A102,'Trust - Frontsheet'!$A$16:$AC$215,8,0)<>""),"Covid statuses do not match","")) ->  | L102: =IF(SUMPRODUCT(--('Trust - Frontsheet'!$D111:$AC111=""))<>26,"","This is a blank row") -> This is a blank row
A103: =IF('Trust - Frontsheet'!A112="","",'Trust - Frontsheet'!A112) ->  | B103: =IF('Trust - Frontsheet'!A112="","",'Trust - Frontsheet'!D112) ->  | C103: =IF(VLOOKUP(A103,'Trust - Frontsheet'!$A$16:$AC$215,5,0)="","",VLOOKUP(A103,'Trust - Frontsheet'!$A$16:$AC$216,5,0)) ->  | D103: =IF(VLOOKUP(A103,'Trust - Frontsheet'!$A$16:$AC$215,6,0)="","",VLOOKUP(A103,'Trust - Frontsheet'!$A$16:$AC$216,6,0)) ->  | E103: =IF(OR(SUMPRODUCT(--(ISTEXT('Trust - Frontsheet'!I112:AC112)))>0,SUMPRODUCT(--(ISERROR('Trust - Frontsheet'!AD112:AT112)))>0),"There is invalid data on this row",IF(SUMPRODUCT(--('Trust - Frontsheet'!I112:AC112<0))>0,"This row contains negative values",IF(AND(L103="This is a blank Row",COUNTBLANK(INDIRECT("L" & ROW() + 1 & ":L" & 206))>0),"No blank rows in the data",""))) ->  | F103: =IF(A103 = "","",IF('Trust - Frontsheet'!D112="", "Site code not present","")) ->  | G103: =IF('Trust - Frontsheet'!D112="","",IF(VLOOKUP(A103,'Trust - Frontsheet'!$A$16:$AC$215,6,0)="","Ward name not present","")) ->  | H103: =IF(A103="","",IF(VLOOKUP(A103,'Trust - Frontsheet'!$A$16:$AC$215,7,0)="","Specialty 1 has not been selected","")) ->  | I103: =IF(A103="","",IF(OR(COUNTIF(Specialties,VLOOKUP(A103,'Trust - Frontsheet'!$A$16:$AC$215,7,0))=0, AND(COUNTIF(Specialties,VLOOKUP(A103,'Trust - Frontsheet'!$A$16:$AC$215,8,0))=0,VLOOKUP(A103,'Trust - Frontsheet'!$A$16:$AC$215,8,0)<>"")),"You have entered unacceptable specialties.","")) ->  | J103: =IF(A103="","",IF(AND(RIGHT(VLOOKUP(A103,'Trust - Frontsheet'!$A$16:$AC$215,7,0),3)<>RIGHT(VLOOKUP(A103,'Trust - Frontsheet'!$A$16:$AC$215,8,0),3),VLOOKUP(A103,'Trust - Frontsheet'!$A$16:$AC$215,8,0)<>""),"Covid statuses do not match","")) ->  | L103: =IF(SUMPRODUCT(--('Trust - Frontsheet'!$D112:$AC112=""))<>26,"","This is a blank row") -> This is a blank row
A104: =IF('Trust - Frontsheet'!A113="","",'Trust - Frontsheet'!A113) ->  | B104: =IF('Trust - Frontsheet'!A113="","",'Trust - Frontsheet'!D113) ->  | C104: =IF(VLOOKUP(A104,'Trust - Frontsheet'!$A$16:$AC$215,5,0)="","",VLOOKUP(A104,'Trust - Frontsheet'!$A$16:$AC$216,5,0)) ->  | D104: =IF(VLOOKUP(A104,'Trust - Frontsheet'!$A$16:$AC$215,6,0)="","",VLOOKUP(A104,'Trust - Frontsheet'!$A$16:$AC$216,6,0)) ->  | E104: =IF(OR(SUMPRODUCT(--(ISTEXT('Trust - Frontsheet'!I113:AC113)))>0,SUMPRODUCT(--(ISERROR('Trust - Frontsheet'!AD113:AT113)))>0),"There is invalid data on this row",IF(SUMPRODUCT(--('Trust - Frontsheet'!I113:AC113<0))>0,"This row contains negative values",IF(AND(L104="This is a blank Row",COUNTBLANK(INDIRECT("L" & ROW() + 1 & ":L" & 206))>0),"No blank rows in the data",""))) ->  | F104: =IF(A104 = "","",IF('Trust - Frontsheet'!D113="", "Site code not present","")) ->  | G104: =IF('Trust - Frontsheet'!D113="","",IF(VLOOKUP(A104,'Trust - Frontsheet'!$A$16:$AC$215,6,0)="","Ward name not present","")) ->  | H104: =IF(A104="","",IF(VLOOKUP(A104,'Trust - Frontsheet'!$A$16:$AC$215,7,0)="","Specialty 1 has not been selected","")) ->  | I104: =IF(A104="","",IF(OR(COUNTIF(Specialties,VLOOKUP(A104,'Trust - Frontsheet'!$A$16:$AC$215,7,0))=0, AND(COUNTIF(Specialties,VLOOKUP(A104,'Trust - Frontsheet'!$A$16:$AC$215,8,0))=0,VLOOKUP(A104,'Trust - Frontsheet'!$A$16:$AC$215,8,0)<>"")),"You have entered unacceptable specialties.","")) ->  | J104: =IF(A104="","",IF(AND(RIGHT(VLOOKUP(A104,'Trust - Frontsheet'!$A$16:$AC$215,7,0),3)<>RIGHT(VLOOKUP(A104,'Trust - Frontsheet'!$A$16:$AC$215,8,0),3),VLOOKUP(A104,'Trust - Frontsheet'!$A$16:$AC$215,8,0)<>""),"Covid statuses do not match","")) ->  | L104: =IF(SUMPRODUCT(--('Trust - Frontsheet'!$D113:$AC113=""))<>26,"","This is a blank row") -> This is a blank row
A105: =IF('Trust - Frontsheet'!A114="","",'Trust - Frontsheet'!A114) ->  | B105: =IF('Trust - Frontsheet'!A114="","",'Trust - Frontsheet'!D114) ->  | C105: =IF(VLOOKUP(A105,'Trust - Frontsheet'!$A$16:$AC$215,5,0)="","",VLOOKUP(A105,'Trust - Frontsheet'!$A$16:$AC$216,5,0)) ->  | D105: =IF(VLOOKUP(A105,'Trust - Frontsheet'!$A$16:$AC$215,6,0)="","",VLOOKUP(A105,'Trust - Frontsheet'!$A$16:$AC$216,6,0)) ->  | E105: =IF(OR(SUMPRODUCT(--(ISTEXT('Trust - Frontsheet'!I114:AC114)))>0,SUMPRODUCT(--(ISERROR('Trust - Frontsheet'!AD114:AT114)))>0),"There is invalid data on this row",IF(SUMPRODUCT(--('Trust - Frontsheet'!I114:AC114<0))>0,"This row contains negative values",IF(AND(L105="This is a blank Row",COUNTBLANK(INDIRECT("L" & ROW() + 1 & ":L" & 206))>0),"No blank rows in the data",""))) ->  | F105: =IF(A105 = "","",IF('Trust - Frontsheet'!D114="", "Site code not present","")) ->  | G105: =IF('Trust - Frontsheet'!D114="","",IF(VLOOKUP(A105,'Trust - Frontsheet'!$A$16:$AC$215,6,0)="","Ward name not present","")) ->  | H105: =IF(A105="","",IF(VLOOKUP(A105,'Trust - Frontsheet'!$A$16:$AC$215,7,0)="","Specialty 1 has not been selected","")) ->  | I105: =IF(A105="","",IF(OR(COUNTIF(Specialties,VLOOKUP(A105,'Trust - Frontsheet'!$A$16:$AC$215,7,0))=0, AND(COUNTIF(Specialties,VLOOKUP(A105,'Trust - Frontsheet'!$A$16:$AC$215,8,0))=0,VLOOKUP(A105,'Trust - Frontsheet'!$A$16:$AC$215,8,0)<>"")),"You have entered unacceptable specialties.","")) ->  | J105: =IF(A105="","",IF(AND(RIGHT(VLOOKUP(A105,'Trust - Frontsheet'!$A$16:$AC$215,7,0),3)<>RIGHT(VLOOKUP(A105,'Trust - Frontsheet'!$A$16:$AC$215,8,0),3),VLOOKUP(A105,'Trust - Frontsheet'!$A$16:$AC$215,8,0)<>""),"Covid statuses do not match","")) ->  | L105: =IF(SUMPRODUCT(--('Trust - Frontsheet'!$D114:$AC114=""))<>26,"","This is a blank row") -> This is a blank row
A106: =IF('Trust - Frontsheet'!A115="","",'Trust - Frontsheet'!A115) ->  | B106: =IF('Trust - Frontsheet'!A115="","",'Trust - Frontsheet'!D115) ->  | C106: =IF(VLOOKUP(A106,'Trust - Frontsheet'!$A$16:$AC$215,5,0)="","",VLOOKUP(A106,'Trust - Frontsheet'!$A$16:$AC$216,5,0)) ->  | D106: =IF(VLOOKUP(A106,'Trust - Frontsheet'!$A$16:$AC$215,6,0)="","",VLOOKUP(A106,'Trust - Frontsheet'!$A$16:$AC$216,6,0)) ->  | E106: =IF(OR(SUMPRODUCT(--(ISTEXT('Trust - Frontsheet'!I115:AC115)))>0,SUMPRODUCT(--(ISERROR('Trust - Frontsheet'!AD115:AT115)))>0),"There is invalid data on this row",IF(SUMPRODUCT(--('Trust - Frontsheet'!I115:AC115<0))>0,"This row contains negative values",IF(AND(L106="This is a blank Row",COUNTBLANK(INDIRECT("L" & ROW() + 1 & ":L" & 206))>0),"No blank rows in the data",""))) ->  | F106: =IF(A106 = "","",IF('Trust - Frontsheet'!D115="", "Site code not present","")) ->  | G106: =IF('Trust - Frontsheet'!D115="","",IF(VLOOKUP(A106,'Trust - Frontsheet'!$A$16:$AC$215,6,0)="","Ward name not present","")) ->  | H106: =IF(A106="","",IF(VLOOKUP(A106,'Trust - Frontsheet'!$A$16:$AC$215,7,0)="","Specialty 1 has not been selected","")) ->  | I106: =IF(A106="","",IF(OR(COUNTIF(Specialties,VLOOKUP(A106,'Trust - Frontsheet'!$A$16:$AC$215,7,0))=0, AND(COUNTIF(Specialties,VLOOKUP(A106,'Trust - Frontsheet'!$A$16:$AC$215,8,0))=0,VLOOKUP(A106,'Trust - Frontsheet'!$A$16:$AC$215,8,0)<>"")),"You have entered unacceptable specialties.","")) ->  | J106: =IF(A106="","",IF(AND(RIGHT(VLOOKUP(A106,'Trust - Frontsheet'!$A$16:$AC$215,7,0),3)<>RIGHT(VLOOKUP(A106,'Trust - Frontsheet'!$A$16:$AC$215,8,0),3),VLOOKUP(A106,'Trust - Frontsheet'!$A$16:$AC$215,8,0)<>""),"Covid statuses do not match","")) ->  | L106: =IF(SUMPRODUCT(--('Trust - Frontsheet'!$D115:$AC115=""))<>26,"","This is a blank row") -> This is a blank row
A107: =IF('Trust - Frontsheet'!A116="","",'Trust - Frontsheet'!A116) ->  | B107: =IF('Trust - Frontsheet'!A116="","",'Trust - Frontsheet'!D116) ->  | C107: =IF(VLOOKUP(A107,'Trust - Frontsheet'!$A$16:$AC$215,5,0)="","",VLOOKUP(A107,'Trust - Frontsheet'!$A$16:$AC$216,5,0)) ->  | D107: =IF(VLOOKUP(A107,'Trust - Frontsheet'!$A$16:$AC$215,6,0)="","",VLOOKUP(A107,'Trust - Frontsheet'!$A$16:$AC$216,6,0)) ->  | E107: =IF(OR(SUMPRODUCT(--(ISTEXT('Trust - Frontsheet'!I116:AC116)))>0,SUMPRODUCT(--(ISERROR('Trust - Frontsheet'!AD116:AT116)))>0),"There is invalid data on this row",IF(SUMPRODUCT(--('Trust - Frontsheet'!I116:AC116<0))>0,"This row contains negative values",IF(AND(L107="This is a blank Row",COUNTBLANK(INDIRECT("L" & ROW() + 1 & ":L" & 206))>0),"No blank rows in the data",""))) ->  | F107: =IF(A107 = "","",IF('Trust - Frontsheet'!D116="", "Site code not present","")) ->  | G107: =IF('Trust - Frontsheet'!D116="","",IF(VLOOKUP(A107,'Trust - Frontsheet'!$A$16:$AC$215,6,0)="","Ward name not present","")) ->  | H107: =IF(A107="","",IF(VLOOKUP(A107,'Trust - Frontsheet'!$A$16:$AC$215,7,0)="","Specialty 1 has not been selected","")) ->  | I107: =IF(A107="","",IF(OR(COUNTIF(Specialties,VLOOKUP(A107,'Trust - Frontsheet'!$A$16:$AC$215,7,0))=0, AND(COUNTIF(Specialties,VLOOKUP(A107,'Trust - Frontsheet'!$A$16:$AC$215,8,0))=0,VLOOKUP(A107,'Trust - Frontsheet'!$A$16:$AC$215,8,0)<>"")),"You have entered unacceptable specialties.","")) ->  | J107: =IF(A107="","",IF(AND(RIGHT(VLOOKUP(A107,'Trust - Frontsheet'!$A$16:$AC$215,7,0),3)<>RIGHT(VLOOKUP(A107,'Trust - Frontsheet'!$A$16:$AC$215,8,0),3),VLOOKUP(A107,'Trust - Frontsheet'!$A$16:$AC$215,8,0)<>""),"Covid statuses do not match","")) ->  | L107: =IF(SUMPRODUCT(--('Trust - Frontsheet'!$D116:$AC116=""))<>26,"","This is a blank row") -> This is a blank row
A108: =IF('Trust - Frontsheet'!A117="","",'Trust - Frontsheet'!A117) ->  | B108: =IF('Trust - Frontsheet'!A117="","",'Trust - Frontsheet'!D117) ->  | C108: =IF(VLOOKUP(A108,'Trust - Frontsheet'!$A$16:$AC$215,5,0)="","",VLOOKUP(A108,'Trust - Frontsheet'!$A$16:$AC$216,5,0)) ->  | D108: =IF(VLOOKUP(A108,'Trust - Frontsheet'!$A$16:$AC$215,6,0)="","",VLOOKUP(A108,'Trust - Frontsheet'!$A$16:$AC$216,6,0)) ->  | E108: =IF(OR(SUMPRODUCT(--(ISTEXT('Trust - Frontsheet'!I117:AC117)))>0,SUMPRODUCT(--(ISERROR('Trust - Frontsheet'!AD117:AT117)))>0),"There is invalid data on this row",IF(SUMPRODUCT(--('Trust - Frontsheet'!I117:AC117<0))>0,"This row contains negative values",IF(AND(L108="This is a blank Row",COUNTBLANK(INDIRECT("L" & ROW() + 1 & ":L" & 206))>0),"No blank rows in the data",""))) ->  | F108: =IF(A108 = "","",IF('Trust - Frontsheet'!D117="", "Site code not present","")) ->  | G108: =IF('Trust - Frontsheet'!D117="","",IF(VLOOKUP(A108,'Trust - Frontsheet'!$A$16:$AC$215,6,0)="","Ward name not present","")) ->  | H108: =IF(A108="","",IF(VLOOKUP(A108,'Trust - Frontsheet'!$A$16:$AC$215,7,0)="","Specialty 1 has not been selected","")) ->  | I108: =IF(A108="","",IF(OR(COUNTIF(Specialties,VLOOKUP(A108,'Trust - Frontsheet'!$A$16:$AC$215,7,0))=0, AND(COUNTIF(Specialties,VLOOKUP(A108,'Trust - Frontsheet'!$A$16:$AC$215,8,0))=0,VLOOKUP(A108,'Trust - Frontsheet'!$A$16:$AC$215,8,0)<>"")),"You have entered unacceptable specialties.","")) ->  | J108: =IF(A108="","",IF(AND(RIGHT(VLOOKUP(A108,'Trust - Frontsheet'!$A$16:$AC$215,7,0),3)<>RIGHT(VLOOKUP(A108,'Trust - Frontsheet'!$A$16:$AC$215,8,0),3),VLOOKUP(A108,'Trust - Frontsheet'!$A$16:$AC$215,8,0)<>""),"Covid statuses do not match","")) ->  | L108: =IF(SUMPRODUCT(--('Trust - Frontsheet'!$D117:$AC117=""))<>26,"","This is a blank row") -> This is a blank row
A109: =IF('Trust - Frontsheet'!A118="","",'Trust - Frontsheet'!A118) ->  | B109: =IF('Trust - Frontsheet'!A118="","",'Trust - Frontsheet'!D118) ->  | C109: =IF(VLOOKUP(A109,'Trust - Frontsheet'!$A$16:$AC$215,5,0)="","",VLOOKUP(A109,'Trust - Frontsheet'!$A$16:$AC$216,5,0)) ->  | D109: =IF(VLOOKUP(A109,'Trust - Frontsheet'!$A$16:$AC$215,6,0)="","",VLOOKUP(A109,'Trust - Frontsheet'!$A$16:$AC$216,6,0)) ->  | E109: =IF(OR(SUMPRODUCT(--(ISTEXT('Trust - Frontsheet'!I118:AC118)))>0,SUMPRODUCT(--(ISERROR('Trust - Frontsheet'!AD118:AT118)))>0),"There is invalid data on this row",IF(SUMPRODUCT(--('Trust - Frontsheet'!I118:AC118<0))>0,"This row contains negative values",IF(AND(L109="This is a blank Row",COUNTBLANK(INDIRECT("L" & ROW() + 1 & ":L" & 206))>0),"No blank rows in the data",""))) ->  | F109: =IF(A109 = "","",IF('Trust - Frontsheet'!D118="", "Site code not present","")) ->  | G109: =IF('Trust - Frontsheet'!D118="","",IF(VLOOKUP(A109,'Trust - Frontsheet'!$A$16:$AC$215,6,0)="","Ward name not present","")) ->  | H109: =IF(A109="","",IF(VLOOKUP(A109,'Trust - Frontsheet'!$A$16:$AC$215,7,0)="","Specialty 1 has not been selected","")) ->  | I109: =IF(A109="","",IF(OR(COUNTIF(Specialties,VLOOKUP(A109,'Trust - Frontsheet'!$A$16:$AC$215,7,0))=0, AND(COUNTIF(Specialties,VLOOKUP(A109,'Trust - Frontsheet'!$A$16:$AC$215,8,0))=0,VLOOKUP(A109,'Trust - Frontsheet'!$A$16:$AC$215,8,0)<>"")),"You have entered unacceptable specialties.","")) ->  | J109: =IF(A109="","",IF(AND(RIGHT(VLOOKUP(A109,'Trust - Frontsheet'!$A$16:$AC$215,7,0),3)<>RIGHT(VLOOKUP(A109,'Trust - Frontsheet'!$A$16:$AC$215,8,0),3),VLOOKUP(A109,'Trust - Frontsheet'!$A$16:$AC$215,8,0)<>""),"Covid statuses do not match","")) ->  | L109: =IF(SUMPRODUCT(--('Trust - Frontsheet'!$D118:$AC118=""))<>26,"","This is a blank row") -> This is a blank row
A110: =IF('Trust - Frontsheet'!A119="","",'Trust - Frontsheet'!A119) ->  | B110: =IF('Trust - Frontsheet'!A119="","",'Trust - Frontsheet'!D119) ->  | C110: =IF(VLOOKUP(A110,'Trust - Frontsheet'!$A$16:$AC$215,5,0)="","",VLOOKUP(A110,'Trust - Frontsheet'!$A$16:$AC$216,5,0)) ->  | D110: =IF(VLOOKUP(A110,'Trust - Frontsheet'!$A$16:$AC$215,6,0)="","",VLOOKUP(A110,'Trust - Frontsheet'!$A$16:$AC$216,6,0)) ->  | E110: =IF(OR(SUMPRODUCT(--(ISTEXT('Trust - Frontsheet'!I119:AC119)))>0,SUMPRODUCT(--(ISERROR('Trust - Frontsheet'!AD119:AT119)))>0),"There is invalid data on this row",IF(SUMPRODUCT(--('Trust - Frontsheet'!I119:AC119<0))>0,"This row contains negative values",IF(AND(L110="This is a blank Row",COUNTBLANK(INDIRECT("L" & ROW() + 1 & ":L" & 206))>0),"No blank rows in the data",""))) ->  | F110: =IF(A110 = "","",IF('Trust - Frontsheet'!D119="", "Site code not present","")) ->  | G110: =IF('Trust - Frontsheet'!D119="","",IF(VLOOKUP(A110,'Trust - Frontsheet'!$A$16:$AC$215,6,0)="","Ward name not present","")) ->  | H110: =IF(A110="","",IF(VLOOKUP(A110,'Trust - Frontsheet'!$A$16:$AC$215,7,0)="","Specialty 1 has not been selected","")) ->  | I110: =IF(A110="","",IF(OR(COUNTIF(Specialties,VLOOKUP(A110,'Trust - Frontsheet'!$A$16:$AC$215,7,0))=0, AND(COUNTIF(Specialties,VLOOKUP(A110,'Trust - Frontsheet'!$A$16:$AC$215,8,0))=0,VLOOKUP(A110,'Trust - Frontsheet'!$A$16:$AC$215,8,0)<>"")),"You have entered unacceptable specialties.","")) ->  | J110: =IF(A110="","",IF(AND(RIGHT(VLOOKUP(A110,'Trust - Frontsheet'!$A$16:$AC$215,7,0),3)<>RIGHT(VLOOKUP(A110,'Trust - Frontsheet'!$A$16:$AC$215,8,0),3),VLOOKUP(A110,'Trust - Frontsheet'!$A$16:$AC$215,8,0)<>""),"Covid statuses do not match","")) ->  | L110: =IF(SUMPRODUCT(--('Trust - Frontsheet'!$D119:$AC119=""))<>26,"","This is a blank row") -> This is a blank row
A111: =IF('Trust - Frontsheet'!A120="","",'Trust - Frontsheet'!A120) ->  | B111: =IF('Trust - Frontsheet'!A120="","",'Trust - Frontsheet'!D120) ->  | C111: =IF(VLOOKUP(A111,'Trust - Frontsheet'!$A$16:$AC$215,5,0)="","",VLOOKUP(A111,'Trust - Frontsheet'!$A$16:$AC$216,5,0)) ->  | D111: =IF(VLOOKUP(A111,'Trust - Frontsheet'!$A$16:$AC$215,6,0)="","",VLOOKUP(A111,'Trust - Frontsheet'!$A$16:$AC$216,6,0)) ->  | E111: =IF(OR(SUMPRODUCT(--(ISTEXT('Trust - Frontsheet'!I120:AC120)))>0,SUMPRODUCT(--(ISERROR('Trust - Frontsheet'!AD120:AT120)))>0),"There is invalid data on this row",IF(SUMPRODUCT(--('Trust - Frontsheet'!I120:AC120<0))>0,"This row contains negative values",IF(AND(L111="This is a blank Row",COUNTBLANK(INDIRECT("L" & ROW() + 1 & ":L" & 206))>0),"No blank rows in the data",""))) ->  | F111: =IF(A111 = "","",IF('Trust - Frontsheet'!D120="", "Site code not present","")) ->  | G111: =IF('Trust - Frontsheet'!D120="","",IF(VLOOKUP(A111,'Trust - Frontsheet'!$A$16:$AC$215,6,0)="","Ward name not present","")) ->  | H111: =IF(A111="","",IF(VLOOKUP(A111,'Trust - Frontsheet'!$A$16:$AC$215,7,0)="","Specialty 1 has not been selected","")) ->  | I111: =IF(A111="","",IF(OR(COUNTIF(Specialties,VLOOKUP(A111,'Trust - Frontsheet'!$A$16:$AC$215,7,0))=0, AND(COUNTIF(Specialties,VLOOKUP(A111,'Trust - Frontsheet'!$A$16:$AC$215,8,0))=0,VLOOKUP(A111,'Trust - Frontsheet'!$A$16:$AC$215,8,0)<>"")),"You have entered unacceptable specialties.","")) ->  | J111: =IF(A111="","",IF(AND(RIGHT(VLOOKUP(A111,'Trust - Frontsheet'!$A$16:$AC$215,7,0),3)<>RIGHT(VLOOKUP(A111,'Trust - Frontsheet'!$A$16:$AC$215,8,0),3),VLOOKUP(A111,'Trust - Frontsheet'!$A$16:$AC$215,8,0)<>""),"Covid statuses do not match","")) ->  | L111: =IF(SUMPRODUCT(--('Trust - Frontsheet'!$D120:$AC120=""))<>26,"","This is a blank row") -> This is a blank row
A112: =IF('Trust - Frontsheet'!A121="","",'Trust - Frontsheet'!A121) ->  | B112: =IF('Trust - Frontsheet'!A121="","",'Trust - Frontsheet'!D121) ->  | C112: =IF(VLOOKUP(A112,'Trust - Frontsheet'!$A$16:$AC$215,5,0)="","",VLOOKUP(A112,'Trust - Frontsheet'!$A$16:$AC$216,5,0)) ->  | D112: =IF(VLOOKUP(A112,'Trust - Frontsheet'!$A$16:$AC$215,6,0)="","",VLOOKUP(A112,'Trust - Frontsheet'!$A$16:$AC$216,6,0)) ->  | E112: =IF(OR(SUMPRODUCT(--(ISTEXT('Trust - Frontsheet'!I121:AC121)))>0,SUMPRODUCT(--(ISERROR('Trust - Frontsheet'!AD121:AT121)))>0),"There is invalid data on this row",IF(SUMPRODUCT(--('Trust - Frontsheet'!I121:AC121<0))>0,"This row contains negative values",IF(AND(L112="This is a blank Row",COUNTBLANK(INDIRECT("L" & ROW() + 1 & ":L" & 206))>0),"No blank rows in the data",""))) ->  | F112: =IF(A112 = "","",IF('Trust - Frontsheet'!D121="", "Site code not present","")) ->  | G112: =IF('Trust - Frontsheet'!D121="","",IF(VLOOKUP(A112,'Trust - Frontsheet'!$A$16:$AC$215,6,0)="","Ward name not present","")) ->  | H112: =IF(A112="","",IF(VLOOKUP(A112,'Trust - Frontsheet'!$A$16:$AC$215,7,0)="","Specialty 1 has not been selected","")) ->  | I112: =IF(A112="","",IF(OR(COUNTIF(Specialties,VLOOKUP(A112,'Trust - Frontsheet'!$A$16:$AC$215,7,0))=0, AND(COUNTIF(Specialties,VLOOKUP(A112,'Trust - Frontsheet'!$A$16:$AC$215,8,0))=0,VLOOKUP(A112,'Trust - Frontsheet'!$A$16:$AC$215,8,0)<>"")),"You have entered unacceptable specialties.","")) ->  | J112: =IF(A112="","",IF(AND(RIGHT(VLOOKUP(A112,'Trust - Frontsheet'!$A$16:$AC$215,7,0),3)<>RIGHT(VLOOKUP(A112,'Trust - Frontsheet'!$A$16:$AC$215,8,0),3),VLOOKUP(A112,'Trust - Frontsheet'!$A$16:$AC$215,8,0)<>""),"Covid statuses do not match","")) ->  | L112: =IF(SUMPRODUCT(--('Trust - Frontsheet'!$D121:$AC121=""))<>26,"","This is a blank row") -> This is a blank row
A113: =IF('Trust - Frontsheet'!A122="","",'Trust - Frontsheet'!A122) ->  | B113: =IF('Trust - Frontsheet'!A122="","",'Trust - Frontsheet'!D122) ->  | C113: =IF(VLOOKUP(A113,'Trust - Frontsheet'!$A$16:$AC$215,5,0)="","",VLOOKUP(A113,'Trust - Frontsheet'!$A$16:$AC$216,5,0)) ->  | D113: =IF(VLOOKUP(A113,'Trust - Frontsheet'!$A$16:$AC$215,6,0)="","",VLOOKUP(A113,'Trust - Frontsheet'!$A$16:$AC$216,6,0)) ->  | E113: =IF(OR(SUMPRODUCT(--(ISTEXT('Trust - Frontsheet'!I122:AC122)))>0,SUMPRODUCT(--(ISERROR('Trust - Frontsheet'!AD122:AT122)))>0),"There is invalid data on this row",IF(SUMPRODUCT(--('Trust - Frontsheet'!I122:AC122<0))>0,"This row contains negative values",IF(AND(L113="This is a blank Row",COUNTBLANK(INDIRECT("L" & ROW() + 1 & ":L" & 206))>0),"No blank rows in the data",""))) ->  | F113: =IF(A113 = "","",IF('Trust - Frontsheet'!D122="", "Site code not present","")) ->  | G113: =IF('Trust - Frontsheet'!D122="","",IF(VLOOKUP(A113,'Trust - Frontsheet'!$A$16:$AC$215,6,0)="","Ward name not present","")) ->  | H113: =IF(A113="","",IF(VLOOKUP(A113,'Trust - Frontsheet'!$A$16:$AC$215,7,0)="","Specialty 1 has not been selected","")) ->  | I113: =IF(A113="","",IF(OR(COUNTIF(Specialties,VLOOKUP(A113,'Trust - Frontsheet'!$A$16:$AC$215,7,0))=0, AND(COUNTIF(Specialties,VLOOKUP(A113,'Trust - Frontsheet'!$A$16:$AC$215,8,0))=0,VLOOKUP(A113,'Trust - Frontsheet'!$A$16:$AC$215,8,0)<>"")),"You have entered unacceptable specialties.","")) ->  | J113: =IF(A113="","",IF(AND(RIGHT(VLOOKUP(A113,'Trust - Frontsheet'!$A$16:$AC$215,7,0),3)<>RIGHT(VLOOKUP(A113,'Trust - Frontsheet'!$A$16:$AC$215,8,0),3),VLOOKUP(A113,'Trust - Frontsheet'!$A$16:$AC$215,8,0)<>""),"Covid statuses do not match","")) ->  | L113: =IF(SUMPRODUCT(--('Trust - Frontsheet'!$D122:$AC122=""))<>26,"","This is a blank row") -> This is a blank row
A114: =IF('Trust - Frontsheet'!A123="","",'Trust - Frontsheet'!A123) ->  | B114: =IF('Trust - Frontsheet'!A123="","",'Trust - Frontsheet'!D123) ->  | C114: =IF(VLOOKUP(A114,'Trust - Frontsheet'!$A$16:$AC$215,5,0)="","",VLOOKUP(A114,'Trust - Frontsheet'!$A$16:$AC$216,5,0)) ->  | D114: =IF(VLOOKUP(A114,'Trust - Frontsheet'!$A$16:$AC$215,6,0)="","",VLOOKUP(A114,'Trust - Frontsheet'!$A$16:$AC$216,6,0)) ->  | E114: =IF(OR(SUMPRODUCT(--(ISTEXT('Trust - Frontsheet'!I123:AC123)))>0,SUMPRODUCT(--(ISERROR('Trust - Frontsheet'!AD123:AT123)))>0),"There is invalid data on this row",IF(SUMPRODUCT(--('Trust - Frontsheet'!I123:AC123<0))>0,"This row contains negative values",IF(AND(L114="This is a blank Row",COUNTBLANK(INDIRECT("L" & ROW() + 1 & ":L" & 206))>0),"No blank rows in the data",""))) ->  | F114: =IF(A114 = "","",IF('Trust - Frontsheet'!D123="", "Site code not present","")) ->  | G114: =IF('Trust - Frontsheet'!D123="","",IF(VLOOKUP(A114,'Trust - Frontsheet'!$A$16:$AC$215,6,0)="","Ward name not present","")) ->  | H114: =IF(A114="","",IF(VLOOKUP(A114,'Trust - Frontsheet'!$A$16:$AC$215,7,0)="","Specialty 1 has not been selected","")) ->  | I114: =IF(A114="","",IF(OR(COUNTIF(Specialties,VLOOKUP(A114,'Trust - Frontsheet'!$A$16:$AC$215,7,0))=0, AND(COUNTIF(Specialties,VLOOKUP(A114,'Trust - Frontsheet'!$A$16:$AC$215,8,0))=0,VLOOKUP(A114,'Trust - Frontsheet'!$A$16:$AC$215,8,0)<>"")),"You have entered unacceptable specialties.","")) ->  | J114: =IF(A114="","",IF(AND(RIGHT(VLOOKUP(A114,'Trust - Frontsheet'!$A$16:$AC$215,7,0),3)<>RIGHT(VLOOKUP(A114,'Trust - Frontsheet'!$A$16:$AC$215,8,0),3),VLOOKUP(A114,'Trust - Frontsheet'!$A$16:$AC$215,8,0)<>""),"Covid statuses do not match","")) ->  | L114: =IF(SUMPRODUCT(--('Trust - Frontsheet'!$D123:$AC123=""))<>26,"","This is a blank row") -> This is a blank row
A115: =IF('Trust - Frontsheet'!A124="","",'Trust - Frontsheet'!A124) ->  | B115: =IF('Trust - Frontsheet'!A124="","",'Trust - Frontsheet'!D124) ->  | C115: =IF(VLOOKUP(A115,'Trust - Frontsheet'!$A$16:$AC$215,5,0)="","",VLOOKUP(A115,'Trust - Frontsheet'!$A$16:$AC$216,5,0)) ->  | D115: =IF(VLOOKUP(A115,'Trust - Frontsheet'!$A$16:$AC$215,6,0)="","",VLOOKUP(A115,'Trust - Frontsheet'!$A$16:$AC$216,6,0)) ->  | E115: =IF(OR(SUMPRODUCT(--(ISTEXT('Trust - Frontsheet'!I124:AC124)))>0,SUMPRODUCT(--(ISERROR('Trust - Frontsheet'!AD124:AT124)))>0),"There is invalid data on this row",IF(SUMPRODUCT(--('Trust - Frontsheet'!I124:AC124<0))>0,"This row contains negative values",IF(AND(L115="This is a blank Row",COUNTBLANK(INDIRECT("L" & ROW() + 1 & ":L" & 206))>0),"No blank rows in the data",""))) ->  | F115: =IF(A115 = "","",IF('Trust - Frontsheet'!D124="", "Site code not present","")) ->  | G115: =IF('Trust - Frontsheet'!D124="","",IF(VLOOKUP(A115,'Trust - Frontsheet'!$A$16:$AC$215,6,0)="","Ward name not present","")) ->  | H115: =IF(A115="","",IF(VLOOKUP(A115,'Trust - Frontsheet'!$A$16:$AC$215,7,0)="","Specialty 1 has not been selected","")) ->  | I115: =IF(A115="","",IF(OR(COUNTIF(Specialties,VLOOKUP(A115,'Trust - Frontsheet'!$A$16:$AC$215,7,0))=0, AND(COUNTIF(Specialties,VLOOKUP(A115,'Trust - Frontsheet'!$A$16:$AC$215,8,0))=0,VLOOKUP(A115,'Trust - Frontsheet'!$A$16:$AC$215,8,0)<>"")),"You have entered unacceptable specialties.","")) ->  | J115: =IF(A115="","",IF(AND(RIGHT(VLOOKUP(A115,'Trust - Frontsheet'!$A$16:$AC$215,7,0),3)<>RIGHT(VLOOKUP(A115,'Trust - Frontsheet'!$A$16:$AC$215,8,0),3),VLOOKUP(A115,'Trust - Frontsheet'!$A$16:$AC$215,8,0)<>""),"Covid statuses do not match","")) ->  | L115: =IF(SUMPRODUCT(--('Trust - Frontsheet'!$D124:$AC124=""))<>26,"","This is a blank row") -> This is a blank row
A116: =IF('Trust - Frontsheet'!A125="","",'Trust - Frontsheet'!A125) ->  | B116: =IF('Trust - Frontsheet'!A125="","",'Trust - Frontsheet'!D125) ->  | C116: =IF(VLOOKUP(A116,'Trust - Frontsheet'!$A$16:$AC$215,5,0)="","",VLOOKUP(A116,'Trust - Frontsheet'!$A$16:$AC$216,5,0)) ->  | D116: =IF(VLOOKUP(A116,'Trust - Frontsheet'!$A$16:$AC$215,6,0)="","",VLOOKUP(A116,'Trust - Frontsheet'!$A$16:$AC$216,6,0)) ->  | E116: =IF(OR(SUMPRODUCT(--(ISTEXT('Trust - Frontsheet'!I125:AC125)))>0,SUMPRODUCT(--(ISERROR('Trust - Frontsheet'!AD125:AT125)))>0),"There is invalid data on this row",IF(SUMPRODUCT(--('Trust - Frontsheet'!I125:AC125<0))>0,"This row contains negative values",IF(AND(L116="This is a blank Row",COUNTBLANK(INDIRECT("L" & ROW() + 1 & ":L" & 206))>0),"No blank rows in the data",""))) ->  | F116: =IF(A116 = "","",IF('Trust - Frontsheet'!D125="", "Site code not present","")) ->  | G116: =IF('Trust - Frontsheet'!D125="","",IF(VLOOKUP(A116,'Trust - Frontsheet'!$A$16:$AC$215,6,0)="","Ward name not present","")) ->  | H116: =IF(A116="","",IF(VLOOKUP(A116,'Trust - Frontsheet'!$A$16:$AC$215,7,0)="","Specialty 1 has not been selected","")) ->  | I116: =IF(A116="","",IF(OR(COUNTIF(Specialties,VLOOKUP(A116,'Trust - Frontsheet'!$A$16:$AC$215,7,0))=0, AND(COUNTIF(Specialties,VLOOKUP(A116,'Trust - Frontsheet'!$A$16:$AC$215,8,0))=0,VLOOKUP(A116,'Trust - Frontsheet'!$A$16:$AC$215,8,0)<>"")),"You have entered unacceptable specialties.","")) ->  | J116: =IF(A116="","",IF(AND(RIGHT(VLOOKUP(A116,'Trust - Frontsheet'!$A$16:$AC$215,7,0),3)<>RIGHT(VLOOKUP(A116,'Trust - Frontsheet'!$A$16:$AC$215,8,0),3),VLOOKUP(A116,'Trust - Frontsheet'!$A$16:$AC$215,8,0)<>""),"Covid statuses do not match","")) ->  | L116: =IF(SUMPRODUCT(--('Trust - Frontsheet'!$D125:$AC125=""))<>26,"","This is a blank row") -> This is a blank row
A117: =IF('Trust - Frontsheet'!A126="","",'Trust - Frontsheet'!A126) ->  | B117: =IF('Trust - Frontsheet'!A126="","",'Trust - Frontsheet'!D126) ->  | C117: =IF(VLOOKUP(A117,'Trust - Frontsheet'!$A$16:$AC$215,5,0)="","",VLOOKUP(A117,'Trust - Frontsheet'!$A$16:$AC$216,5,0)) ->  | D117: =IF(VLOOKUP(A117,'Trust - Frontsheet'!$A$16:$AC$215,6,0)="","",VLOOKUP(A117,'Trust - Frontsheet'!$A$16:$AC$216,6,0)) ->  | E117: =IF(OR(SUMPRODUCT(--(ISTEXT('Trust - Frontsheet'!I126:AC126)))>0,SUMPRODUCT(--(ISERROR('Trust - Frontsheet'!AD126:AT126)))>0),"There is invalid data on this row",IF(SUMPRODUCT(--('Trust - Frontsheet'!I126:AC126<0))>0,"This row contains negative values",IF(AND(L117="This is a blank Row",COUNTBLANK(INDIRECT("L" & ROW() + 1 & ":L" & 206))>0),"No blank rows in the data",""))) ->  | F117: =IF(A117 = "","",IF('Trust - Frontsheet'!D126="", "Site code not present","")) ->  | G117: =IF('Trust - Frontsheet'!D126="","",IF(VLOOKUP(A117,'Trust - Frontsheet'!$A$16:$AC$215,6,0)="","Ward name not present","")) ->  | H117: =IF(A117="","",IF(VLOOKUP(A117,'Trust - Frontsheet'!$A$16:$AC$215,7,0)="","Specialty 1 has not been selected","")) ->  | I117: =IF(A117="","",IF(OR(COUNTIF(Specialties,VLOOKUP(A117,'Trust - Frontsheet'!$A$16:$AC$215,7,0))=0, AND(COUNTIF(Specialties,VLOOKUP(A117,'Trust - Frontsheet'!$A$16:$AC$215,8,0))=0,VLOOKUP(A117,'Trust - Frontsheet'!$A$16:$AC$215,8,0)<>"")),"You have entered unacceptable specialties.","")) ->  | J117: =IF(A117="","",IF(AND(RIGHT(VLOOKUP(A117,'Trust - Frontsheet'!$A$16:$AC$215,7,0),3)<>RIGHT(VLOOKUP(A117,'Trust - Frontsheet'!$A$16:$AC$215,8,0),3),VLOOKUP(A117,'Trust - Frontsheet'!$A$16:$AC$215,8,0)<>""),"Covid statuses do not match","")) ->  | L117: =IF(SUMPRODUCT(--('Trust - Frontsheet'!$D126:$AC126=""))<>26,"","This is a blank row") -> This is a blank row
A118: =IF('Trust - Frontsheet'!A127="","",'Trust - Frontsheet'!A127) ->  | B118: =IF('Trust - Frontsheet'!A127="","",'Trust - Frontsheet'!D127) ->  | C118: =IF(VLOOKUP(A118,'Trust - Frontsheet'!$A$16:$AC$215,5,0)="","",VLOOKUP(A118,'Trust - Frontsheet'!$A$16:$AC$216,5,0)) ->  | D118: =IF(VLOOKUP(A118,'Trust - Frontsheet'!$A$16:$AC$215,6,0)="","",VLOOKUP(A118,'Trust - Frontsheet'!$A$16:$AC$216,6,0)) ->  | E118: =IF(OR(SUMPRODUCT(--(ISTEXT('Trust - Frontsheet'!I127:AC127)))>0,SUMPRODUCT(--(ISERROR('Trust - Frontsheet'!AD127:AT127)))>0),"There is invalid data on this row",IF(SUMPRODUCT(--('Trust - Frontsheet'!I127:AC127<0))>0,"This row contains negative values",IF(AND(L118="This is a blank Row",COUNTBLANK(INDIRECT("L" & ROW() + 1 & ":L" & 206))>0),"No blank rows in the data",""))) ->  | F118: =IF(A118 = "","",IF('Trust - Frontsheet'!D127="", "Site code not present","")) ->  | G118: =IF('Trust - Frontsheet'!D127="","",IF(VLOOKUP(A118,'Trust - Frontsheet'!$A$16:$AC$215,6,0)="","Ward name not present","")) ->  | H118: =IF(A118="","",IF(VLOOKUP(A118,'Trust - Frontsheet'!$A$16:$AC$215,7,0)="","Specialty 1 has not been selected","")) ->  | I118: =IF(A118="","",IF(OR(COUNTIF(Specialties,VLOOKUP(A118,'Trust - Frontsheet'!$A$16:$AC$215,7,0))=0, AND(COUNTIF(Specialties,VLOOKUP(A118,'Trust - Frontsheet'!$A$16:$AC$215,8,0))=0,VLOOKUP(A118,'Trust - Frontsheet'!$A$16:$AC$215,8,0)<>"")),"You have entered unacceptable specialties.","")) ->  | J118: =IF(A118="","",IF(AND(RIGHT(VLOOKUP(A118,'Trust - Frontsheet'!$A$16:$AC$215,7,0),3)<>RIGHT(VLOOKUP(A118,'Trust - Frontsheet'!$A$16:$AC$215,8,0),3),VLOOKUP(A118,'Trust - Frontsheet'!$A$16:$AC$215,8,0)<>""),"Covid statuses do not match","")) ->  | L118: =IF(SUMPRODUCT(--('Trust - Frontsheet'!$D127:$AC127=""))<>26,"","This is a blank row") -> This is a blank row
A119: =IF('Trust - Frontsheet'!A128="","",'Trust - Frontsheet'!A128) ->  | B119: =IF('Trust - Frontsheet'!A128="","",'Trust - Frontsheet'!D128) ->  | C119: =IF(VLOOKUP(A119,'Trust - Frontsheet'!$A$16:$AC$215,5,0)="","",VLOOKUP(A119,'Trust - Frontsheet'!$A$16:$AC$216,5,0)) ->  | D119: =IF(VLOOKUP(A119,'Trust - Frontsheet'!$A$16:$AC$215,6,0)="","",VLOOKUP(A119,'Trust - Frontsheet'!$A$16:$AC$216,6,0)) ->  | E119: =IF(OR(SUMPRODUCT(--(ISTEXT('Trust - Frontsheet'!I128:AC128)))>0,SUMPRODUCT(--(ISERROR('Trust - Frontsheet'!AD128:AT128)))>0),"There is invalid data on this row",IF(SUMPRODUCT(--('Trust - Frontsheet'!I128:AC128<0))>0,"This row contains negative values",IF(AND(L119="This is a blank Row",COUNTBLANK(INDIRECT("L" & ROW() + 1 & ":L" & 206))>0),"No blank rows in the data",""))) ->  | F119: =IF(A119 = "","",IF('Trust - Frontsheet'!D128="", "Site code not present","")) ->  | G119: =IF('Trust - Frontsheet'!D128="","",IF(VLOOKUP(A119,'Trust - Frontsheet'!$A$16:$AC$215,6,0)="","Ward name not present","")) ->  | H119: =IF(A119="","",IF(VLOOKUP(A119,'Trust - Frontsheet'!$A$16:$AC$215,7,0)="","Specialty 1 has not been selected","")) ->  | I119: =IF(A119="","",IF(OR(COUNTIF(Specialties,VLOOKUP(A119,'Trust - Frontsheet'!$A$16:$AC$215,7,0))=0, AND(COUNTIF(Specialties,VLOOKUP(A119,'Trust - Frontsheet'!$A$16:$AC$215,8,0))=0,VLOOKUP(A119,'Trust - Frontsheet'!$A$16:$AC$215,8,0)<>"")),"You have entered unacceptable specialties.","")) ->  | J119: =IF(A119="","",IF(AND(RIGHT(VLOOKUP(A119,'Trust - Frontsheet'!$A$16:$AC$215,7,0),3)<>RIGHT(VLOOKUP(A119,'Trust - Frontsheet'!$A$16:$AC$215,8,0),3),VLOOKUP(A119,'Trust - Frontsheet'!$A$16:$AC$215,8,0)<>""),"Covid statuses do not match","")) ->  | L119: =IF(SUMPRODUCT(--('Trust - Frontsheet'!$D128:$AC128=""))<>26,"","This is a blank row") -> This is a blank row
A120: =IF('Trust - Frontsheet'!A129="","",'Trust - Frontsheet'!A129) ->  | B120: =IF('Trust - Frontsheet'!A129="","",'Trust - Frontsheet'!D129) ->  | C120: =IF(VLOOKUP(A120,'Trust - Frontsheet'!$A$16:$AC$215,5,0)="","",VLOOKUP(A120,'Trust - Frontsheet'!$A$16:$AC$216,5,0)) ->  | D120: =IF(VLOOKUP(A120,'Trust - Frontsheet'!$A$16:$AC$215,6,0)="","",VLOOKUP(A120,'Trust - Frontsheet'!$A$16:$AC$216,6,0)) ->  | E120: =IF(OR(SUMPRODUCT(--(ISTEXT('Trust - Frontsheet'!I129:AC129)))>0,SUMPRODUCT(--(ISERROR('Trust - Frontsheet'!AD129:AT129)))>0),"There is invalid data on this row",IF(SUMPRODUCT(--('Trust - Frontsheet'!I129:AC129<0))>0,"This row contains negative values",IF(AND(L120="This is a blank Row",COUNTBLANK(INDIRECT("L" & ROW() + 1 & ":L" & 206))>0),"No blank rows in the data",""))) ->  | F120: =IF(A120 = "","",IF('Trust - Frontsheet'!D129="", "Site code not present","")) ->  | G120: =IF('Trust - Frontsheet'!D129="","",IF(VLOOKUP(A120,'Trust - Frontsheet'!$A$16:$AC$215,6,0)="","Ward name not present","")) ->  | H120: =IF(A120="","",IF(VLOOKUP(A120,'Trust - Frontsheet'!$A$16:$AC$215,7,0)="","Specialty 1 has not been selected","")) ->  | I120: =IF(A120="","",IF(OR(COUNTIF(Specialties,VLOOKUP(A120,'Trust - Frontsheet'!$A$16:$AC$215,7,0))=0, AND(COUNTIF(Specialties,VLOOKUP(A120,'Trust - Frontsheet'!$A$16:$AC$215,8,0))=0,VLOOKUP(A120,'Trust - Frontsheet'!$A$16:$AC$215,8,0)<>"")),"You have entered unacceptable specialties.","")) ->  | J120: =IF(A120="","",IF(AND(RIGHT(VLOOKUP(A120,'Trust - Frontsheet'!$A$16:$AC$215,7,0),3)<>RIGHT(VLOOKUP(A120,'Trust - Frontsheet'!$A$16:$AC$215,8,0),3),VLOOKUP(A120,'Trust - Frontsheet'!$A$16:$AC$215,8,0)<>""),"Covid statuses do not match","")) ->  | L120: =IF(SUMPRODUCT(--('Trust - Frontsheet'!$D129:$AC129=""))<>26,"","This is a blank row") -> This is a blank row
A121: =IF('Trust - Frontsheet'!A130="","",'Trust - Frontsheet'!A130) ->  | B121: =IF('Trust - Frontsheet'!A130="","",'Trust - Frontsheet'!D130) ->  | C121: =IF(VLOOKUP(A121,'Trust - Frontsheet'!$A$16:$AC$215,5,0)="","",VLOOKUP(A121,'Trust - Frontsheet'!$A$16:$AC$216,5,0)) ->  | D121: =IF(VLOOKUP(A121,'Trust - Frontsheet'!$A$16:$AC$215,6,0)="","",VLOOKUP(A121,'Trust - Frontsheet'!$A$16:$AC$216,6,0)) ->  | E121: =IF(OR(SUMPRODUCT(--(ISTEXT('Trust - Frontsheet'!I130:AC130)))>0,SUMPRODUCT(--(ISERROR('Trust - Frontsheet'!AD130:AT130)))>0),"There is invalid data on this row",IF(SUMPRODUCT(--('Trust - Frontsheet'!I130:AC130<0))>0,"This row contains negative values",IF(AND(L121="This is a blank Row",COUNTBLANK(INDIRECT("L" & ROW() + 1 & ":L" & 206))>0),"No blank rows in the data",""))) ->  | F121: =IF(A121 = "","",IF('Trust - Frontsheet'!D130="", "Site code not present","")) ->  | G121: =IF('Trust - Frontsheet'!D130="","",IF(VLOOKUP(A121,'Trust - Frontsheet'!$A$16:$AC$215,6,0)="","Ward name not present","")) ->  | H121: =IF(A121="","",IF(VLOOKUP(A121,'Trust - Frontsheet'!$A$16:$AC$215,7,0)="","Specialty 1 has not been selected","")) ->  | I121: =IF(A121="","",IF(OR(COUNTIF(Specialties,VLOOKUP(A121,'Trust - Frontsheet'!$A$16:$AC$215,7,0))=0, AND(COUNTIF(Specialties,VLOOKUP(A121,'Trust - Frontsheet'!$A$16:$AC$215,8,0))=0,VLOOKUP(A121,'Trust - Frontsheet'!$A$16:$AC$215,8,0)<>"")),"You have entered unacceptable specialties.","")) ->  | J121: =IF(A121="","",IF(AND(RIGHT(VLOOKUP(A121,'Trust - Frontsheet'!$A$16:$AC$215,7,0),3)<>RIGHT(VLOOKUP(A121,'Trust - Frontsheet'!$A$16:$AC$215,8,0),3),VLOOKUP(A121,'Trust - Frontsheet'!$A$16:$AC$215,8,0)<>""),"Covid statuses do not match","")) ->  | L121: =IF(SUMPRODUCT(--('Trust - Frontsheet'!$D130:$AC130=""))<>26,"","This is a blank row") -> This is a blank row
A122: =IF('Trust - Frontsheet'!A131="","",'Trust - Frontsheet'!A131) ->  | B122: =IF('Trust - Frontsheet'!A131="","",'Trust - Frontsheet'!D131) ->  | C122: =IF(VLOOKUP(A122,'Trust - Frontsheet'!$A$16:$AC$215,5,0)="","",VLOOKUP(A122,'Trust - Frontsheet'!$A$16:$AC$216,5,0)) ->  | D122: =IF(VLOOKUP(A122,'Trust - Frontsheet'!$A$16:$AC$215,6,0)="","",VLOOKUP(A122,'Trust - Frontsheet'!$A$16:$AC$216,6,0)) ->  | E122: =IF(OR(SUMPRODUCT(--(ISTEXT('Trust - Frontsheet'!I131:AC131)))>0,SUMPRODUCT(--(ISERROR('Trust - Frontsheet'!AD131:AT131)))>0),"There is invalid data on this row",IF(SUMPRODUCT(--('Trust - Frontsheet'!I131:AC131<0))>0,"This row contains negative values",IF(AND(L122="This is a blank Row",COUNTBLANK(INDIRECT("L" & ROW() + 1 & ":L" & 206))>0),"No blank rows in the data",""))) ->  | F122: =IF(A122 = "","",IF('Trust - Frontsheet'!D131="", "Site code not present","")) ->  | G122: =IF('Trust - Frontsheet'!D131="","",IF(VLOOKUP(A122,'Trust - Frontsheet'!$A$16:$AC$215,6,0)="","Ward name not present","")) ->  | H122: =IF(A122="","",IF(VLOOKUP(A122,'Trust - Frontsheet'!$A$16:$AC$215,7,0)="","Specialty 1 has not been selected","")) ->  | I122: =IF(A122="","",IF(OR(COUNTIF(Specialties,VLOOKUP(A122,'Trust - Frontsheet'!$A$16:$AC$215,7,0))=0, AND(COUNTIF(Specialties,VLOOKUP(A122,'Trust - Frontsheet'!$A$16:$AC$215,8,0))=0,VLOOKUP(A122,'Trust - Frontsheet'!$A$16:$AC$215,8,0)<>"")),"You have entered unacceptable specialties.","")) ->  | J122: =IF(A122="","",IF(AND(RIGHT(VLOOKUP(A122,'Trust - Frontsheet'!$A$16:$AC$215,7,0),3)<>RIGHT(VLOOKUP(A122,'Trust - Frontsheet'!$A$16:$AC$215,8,0),3),VLOOKUP(A122,'Trust - Frontsheet'!$A$16:$AC$215,8,0)<>""),"Covid statuses do not match","")) ->  | L122: =IF(SUMPRODUCT(--('Trust - Frontsheet'!$D131:$AC131=""))<>26,"","This is a blank row") -> This is a blank row
A123: =IF('Trust - Frontsheet'!A132="","",'Trust - Frontsheet'!A132) ->  | B123: =IF('Trust - Frontsheet'!A132="","",'Trust - Frontsheet'!D132) ->  | C123: =IF(VLOOKUP(A123,'Trust - Frontsheet'!$A$16:$AC$215,5,0)="","",VLOOKUP(A123,'Trust - Frontsheet'!$A$16:$AC$216,5,0)) ->  | D123: =IF(VLOOKUP(A123,'Trust - Frontsheet'!$A$16:$AC$215,6,0)="","",VLOOKUP(A123,'Trust - Frontsheet'!$A$16:$AC$216,6,0)) ->  | E123: =IF(OR(SUMPRODUCT(--(ISTEXT('Trust - Frontsheet'!I132:AC132)))>0,SUMPRODUCT(--(ISERROR('Trust - Frontsheet'!AD132:AT132)))>0),"There is invalid data on this row",IF(SUMPRODUCT(--('Trust - Frontsheet'!I132:AC132<0))>0,"This row contains negative values",IF(AND(L123="This is a blank Row",COUNTBLANK(INDIRECT("L" & ROW() + 1 & ":L" & 206))>0),"No blank rows in the data",""))) ->  | F123: =IF(A123 = "","",IF('Trust - Frontsheet'!D132="", "Site code not present","")) ->  | G123: =IF('Trust - Frontsheet'!D132="","",IF(VLOOKUP(A123,'Trust - Frontsheet'!$A$16:$AC$215,6,0)="","Ward name not present","")) ->  | H123: =IF(A123="","",IF(VLOOKUP(A123,'Trust - Frontsheet'!$A$16:$AC$215,7,0)="","Specialty 1 has not been selected","")) ->  | I123: =IF(A123="","",IF(OR(COUNTIF(Specialties,VLOOKUP(A123,'Trust - Frontsheet'!$A$16:$AC$215,7,0))=0, AND(COUNTIF(Specialties,VLOOKUP(A123,'Trust - Frontsheet'!$A$16:$AC$215,8,0))=0,VLOOKUP(A123,'Trust - Frontsheet'!$A$16:$AC$215,8,0)<>"")),"You have entered unacceptable specialties.","")) ->  | J123: =IF(A123="","",IF(AND(RIGHT(VLOOKUP(A123,'Trust - Frontsheet'!$A$16:$AC$215,7,0),3)<>RIGHT(VLOOKUP(A123,'Trust - Frontsheet'!$A$16:$AC$215,8,0),3),VLOOKUP(A123,'Trust - Frontsheet'!$A$16:$AC$215,8,0)<>""),"Covid statuses do not match","")) ->  | L123: =IF(SUMPRODUCT(--('Trust - Frontsheet'!$D132:$AC132=""))<>26,"","This is a blank row") -> This is a blank row
A124: =IF('Trust - Frontsheet'!A133="","",'Trust - Frontsheet'!A133) ->  | B124: =IF('Trust - Frontsheet'!A133="","",'Trust - Frontsheet'!D133) ->  | C124: =IF(VLOOKUP(A124,'Trust - Frontsheet'!$A$16:$AC$215,5,0)="","",VLOOKUP(A124,'Trust - Frontsheet'!$A$16:$AC$216,5,0)) ->  | D124: =IF(VLOOKUP(A124,'Trust - Frontsheet'!$A$16:$AC$215,6,0)="","",VLOOKUP(A124,'Trust - Frontsheet'!$A$16:$AC$216,6,0)) ->  | E124: =IF(OR(SUMPRODUCT(--(ISTEXT('Trust - Frontsheet'!I133:AC133)))>0,SUMPRODUCT(--(ISERROR('Trust - Frontsheet'!AD133:AT133)))>0),"There is invalid data on this row",IF(SUMPRODUCT(--('Trust - Frontsheet'!I133:AC133<0))>0,"This row contains negative values",IF(AND(L124="This is a blank Row",COUNTBLANK(INDIRECT("L" & ROW() + 1 & ":L" & 206))>0),"No blank rows in the data",""))) ->  | F124: =IF(A124 = "","",IF('Trust - Frontsheet'!D133="", "Site code not present","")) ->  | G124: =IF('Trust - Frontsheet'!D133="","",IF(VLOOKUP(A124,'Trust - Frontsheet'!$A$16:$AC$215,6,0)="","Ward name not present","")) ->  | H124: =IF(A124="","",IF(VLOOKUP(A124,'Trust - Frontsheet'!$A$16:$AC$215,7,0)="","Specialty 1 has not been selected","")) ->  | I124: =IF(A124="","",IF(OR(COUNTIF(Specialties,VLOOKUP(A124,'Trust - Frontsheet'!$A$16:$AC$215,7,0))=0, AND(COUNTIF(Specialties,VLOOKUP(A124,'Trust - Frontsheet'!$A$16:$AC$215,8,0))=0,VLOOKUP(A124,'Trust - Frontsheet'!$A$16:$AC$215,8,0)<>"")),"You have entered unacceptable specialties.","")) ->  | J124: =IF(A124="","",IF(AND(RIGHT(VLOOKUP(A124,'Trust - Frontsheet'!$A$16:$AC$215,7,0),3)<>RIGHT(VLOOKUP(A124,'Trust - Frontsheet'!$A$16:$AC$215,8,0),3),VLOOKUP(A124,'Trust - Frontsheet'!$A$16:$AC$215,8,0)<>""),"Covid statuses do not match","")) ->  | L124: =IF(SUMPRODUCT(--('Trust - Frontsheet'!$D133:$AC133=""))<>26,"","This is a blank row") -> This is a blank row
A125: =IF('Trust - Frontsheet'!A134="","",'Trust - Frontsheet'!A134) ->  | B125: =IF('Trust - Frontsheet'!A134="","",'Trust - Frontsheet'!D134) ->  | C125: =IF(VLOOKUP(A125,'Trust - Frontsheet'!$A$16:$AC$215,5,0)="","",VLOOKUP(A125,'Trust - Frontsheet'!$A$16:$AC$216,5,0)) ->  | D125: =IF(VLOOKUP(A125,'Trust - Frontsheet'!$A$16:$AC$215,6,0)="","",VLOOKUP(A125,'Trust - Frontsheet'!$A$16:$AC$216,6,0)) ->  | E125: =IF(OR(SUMPRODUCT(--(ISTEXT('Trust - Frontsheet'!I134:AC134)))>0,SUMPRODUCT(--(ISERROR('Trust - Frontsheet'!AD134:AT134)))>0),"There is invalid data on this row",IF(SUMPRODUCT(--('Trust - Frontsheet'!I134:AC134<0))>0,"This row contains negative values",IF(AND(L125="This is a blank Row",COUNTBLANK(INDIRECT("L" & ROW() + 1 & ":L" & 206))>0),"No blank rows in the data",""))) ->  | F125: =IF(A125 = "","",IF('Trust - Frontsheet'!D134="", "Site code not present","")) ->  | G125: =IF('Trust - Frontsheet'!D134="","",IF(VLOOKUP(A125,'Trust - Frontsheet'!$A$16:$AC$215,6,0)="","Ward name not present","")) ->  | H125: =IF(A125="","",IF(VLOOKUP(A125,'Trust - Frontsheet'!$A$16:$AC$215,7,0)="","Specialty 1 has not been selected","")) ->  | I125: =IF(A125="","",IF(OR(COUNTIF(Specialties,VLOOKUP(A125,'Trust - Frontsheet'!$A$16:$AC$215,7,0))=0, AND(COUNTIF(Specialties,VLOOKUP(A125,'Trust - Frontsheet'!$A$16:$AC$215,8,0))=0,VLOOKUP(A125,'Trust - Frontsheet'!$A$16:$AC$215,8,0)<>"")),"You have entered unacceptable specialties.","")) ->  | J125: =IF(A125="","",IF(AND(RIGHT(VLOOKUP(A125,'Trust - Frontsheet'!$A$16:$AC$215,7,0),3)<>RIGHT(VLOOKUP(A125,'Trust - Frontsheet'!$A$16:$AC$215,8,0),3),VLOOKUP(A125,'Trust - Frontsheet'!$A$16:$AC$215,8,0)<>""),"Covid statuses do not match","")) ->  | L125: =IF(SUMPRODUCT(--('Trust - Frontsheet'!$D134:$AC134=""))<>26,"","This is a blank row") -> This is a blank row
A126: =IF('Trust - Frontsheet'!A135="","",'Trust - Frontsheet'!A135) ->  | B126: =IF('Trust - Frontsheet'!A135="","",'Trust - Frontsheet'!D135) ->  | C126: =IF(VLOOKUP(A126,'Trust - Frontsheet'!$A$16:$AC$215,5,0)="","",VLOOKUP(A126,'Trust - Frontsheet'!$A$16:$AC$216,5,0)) ->  | D126: =IF(VLOOKUP(A126,'Trust - Frontsheet'!$A$16:$AC$215,6,0)="","",VLOOKUP(A126,'Trust - Frontsheet'!$A$16:$AC$216,6,0)) ->  | E126: =IF(OR(SUMPRODUCT(--(ISTEXT('Trust - Frontsheet'!I135:AC135)))>0,SUMPRODUCT(--(ISERROR('Trust - Frontsheet'!AD135:AT135)))>0),"There is invalid data on this row",IF(SUMPRODUCT(--('Trust - Frontsheet'!I135:AC135<0))>0,"This row contains negative values",IF(AND(L126="This is a blank Row",COUNTBLANK(INDIRECT("L" & ROW() + 1 & ":L" & 206))>0),"No blank rows in the data",""))) ->  | F126: =IF(A126 = "","",IF('Trust - Frontsheet'!D135="", "Site code not present","")) ->  | G126: =IF('Trust - Frontsheet'!D135="","",IF(VLOOKUP(A126,'Trust - Frontsheet'!$A$16:$AC$215,6,0)="","Ward name not present","")) ->  | H126: =IF(A126="","",IF(VLOOKUP(A126,'Trust - Frontsheet'!$A$16:$AC$215,7,0)="","Specialty 1 has not been selected","")) ->  | I126: =IF(A126="","",IF(OR(COUNTIF(Specialties,VLOOKUP(A126,'Trust - Frontsheet'!$A$16:$AC$215,7,0))=0, AND(COUNTIF(Specialties,VLOOKUP(A126,'Trust - Frontsheet'!$A$16:$AC$215,8,0))=0,VLOOKUP(A126,'Trust - Frontsheet'!$A$16:$AC$215,8,0)<>"")),"You have entered unacceptable specialties.","")) ->  | J126: =IF(A126="","",IF(AND(RIGHT(VLOOKUP(A126,'Trust - Frontsheet'!$A$16:$AC$215,7,0),3)<>RIGHT(VLOOKUP(A126,'Trust - Frontsheet'!$A$16:$AC$215,8,0),3),VLOOKUP(A126,'Trust - Frontsheet'!$A$16:$AC$215,8,0)<>""),"Covid statuses do not match","")) ->  | L126: =IF(SUMPRODUCT(--('Trust - Frontsheet'!$D135:$AC135=""))<>26,"","This is a blank row") -> This is a blank row
A127: =IF('Trust - Frontsheet'!A136="","",'Trust - Frontsheet'!A136) ->  | B127: =IF('Trust - Frontsheet'!A136="","",'Trust - Frontsheet'!D136) ->  | C127: =IF(VLOOKUP(A127,'Trust - Frontsheet'!$A$16:$AC$215,5,0)="","",VLOOKUP(A127,'Trust - Frontsheet'!$A$16:$AC$216,5,0)) ->  | D127: =IF(VLOOKUP(A127,'Trust - Frontsheet'!$A$16:$AC$215,6,0)="","",VLOOKUP(A127,'Trust - Frontsheet'!$A$16:$AC$216,6,0)) ->  | E127: =IF(OR(SUMPRODUCT(--(ISTEXT('Trust - Frontsheet'!I136:AC136)))>0,SUMPRODUCT(--(ISERROR('Trust - Frontsheet'!AD136:AT136)))>0),"There is invalid data on this row",IF(SUMPRODUCT(--('Trust - Frontsheet'!I136:AC136<0))>0,"This row contains negative values",IF(AND(L127="This is a blank Row",COUNTBLANK(INDIRECT("L" & ROW() + 1 & ":L" & 206))>0),"No blank rows in the data",""))) ->  | F127: =IF(A127 = "","",IF('Trust - Frontsheet'!D136="", "Site code not present","")) ->  | G127: =IF('Trust - Frontsheet'!D136="","",IF(VLOOKUP(A127,'Trust - Frontsheet'!$A$16:$AC$215,6,0)="","Ward name not present","")) ->  | H127: =IF(A127="","",IF(VLOOKUP(A127,'Trust - Frontsheet'!$A$16:$AC$215,7,0)="","Specialty 1 has not been selected","")) ->  | I127: =IF(A127="","",IF(OR(COUNTIF(Specialties,VLOOKUP(A127,'Trust - Frontsheet'!$A$16:$AC$215,7,0))=0, AND(COUNTIF(Specialties,VLOOKUP(A127,'Trust - Frontsheet'!$A$16:$AC$215,8,0))=0,VLOOKUP(A127,'Trust - Frontsheet'!$A$16:$AC$215,8,0)<>"")),"You have entered unacceptable specialties.","")) ->  | J127: =IF(A127="","",IF(AND(RIGHT(VLOOKUP(A127,'Trust - Frontsheet'!$A$16:$AC$215,7,0),3)<>RIGHT(VLOOKUP(A127,'Trust - Frontsheet'!$A$16:$AC$215,8,0),3),VLOOKUP(A127,'Trust - Frontsheet'!$A$16:$AC$215,8,0)<>""),"Covid statuses do not match","")) ->  | L127: =IF(SUMPRODUCT(--('Trust - Frontsheet'!$D136:$AC136=""))<>26,"","This is a blank row") -> This is a blank row
A128: =IF('Trust - Frontsheet'!A137="","",'Trust - Frontsheet'!A137) ->  | B128: =IF('Trust - Frontsheet'!A137="","",'Trust - Frontsheet'!D137) ->  | C128: =IF(VLOOKUP(A128,'Trust - Frontsheet'!$A$16:$AC$215,5,0)="","",VLOOKUP(A128,'Trust - Frontsheet'!$A$16:$AC$216,5,0)) ->  | D128: =IF(VLOOKUP(A128,'Trust - Frontsheet'!$A$16:$AC$215,6,0)="","",VLOOKUP(A128,'Trust - Frontsheet'!$A$16:$AC$216,6,0)) ->  | E128: =IF(OR(SUMPRODUCT(--(ISTEXT('Trust - Frontsheet'!I137:AC137)))>0,SUMPRODUCT(--(ISERROR('Trust - Frontsheet'!AD137:AT137)))>0),"There is invalid data on this row",IF(SUMPRODUCT(--('Trust - Frontsheet'!I137:AC137<0))>0,"This row contains negative values",IF(AND(L128="This is a blank Row",COUNTBLANK(INDIRECT("L" & ROW() + 1 & ":L" & 206))>0),"No blank rows in the data",""))) ->  | F128: =IF(A128 = "","",IF('Trust - Frontsheet'!D137="", "Site code not present","")) ->  | G128: =IF('Trust - Frontsheet'!D137="","",IF(VLOOKUP(A128,'Trust - Frontsheet'!$A$16:$AC$215,6,0)="","Ward name not present","")) ->  | H128: =IF(A128="","",IF(VLOOKUP(A128,'Trust - Frontsheet'!$A$16:$AC$215,7,0)="","Specialty 1 has not been selected","")) ->  | I128: =IF(A128="","",IF(OR(COUNTIF(Specialties,VLOOKUP(A128,'Trust - Frontsheet'!$A$16:$AC$215,7,0))=0, AND(COUNTIF(Specialties,VLOOKUP(A128,'Trust - Frontsheet'!$A$16:$AC$215,8,0))=0,VLOOKUP(A128,'Trust - Frontsheet'!$A$16:$AC$215,8,0)<>"")),"You have entered unacceptable specialties.","")) ->  | J128: =IF(A128="","",IF(AND(RIGHT(VLOOKUP(A128,'Trust - Frontsheet'!$A$16:$AC$215,7,0),3)<>RIGHT(VLOOKUP(A128,'Trust - Frontsheet'!$A$16:$AC$215,8,0),3),VLOOKUP(A128,'Trust - Frontsheet'!$A$16:$AC$215,8,0)<>""),"Covid statuses do not match","")) ->  | L128: =IF(SUMPRODUCT(--('Trust - Frontsheet'!$D137:$AC137=""))<>26,"","This is a blank row") -> This is a blank row
A129: =IF('Trust - Frontsheet'!A138="","",'Trust - Frontsheet'!A138) ->  | B129: =IF('Trust - Frontsheet'!A138="","",'Trust - Frontsheet'!D138) ->  | C129: =IF(VLOOKUP(A129,'Trust - Frontsheet'!$A$16:$AC$215,5,0)="","",VLOOKUP(A129,'Trust - Frontsheet'!$A$16:$AC$216,5,0)) ->  | D129: =IF(VLOOKUP(A129,'Trust - Frontsheet'!$A$16:$AC$215,6,0)="","",VLOOKUP(A129,'Trust - Frontsheet'!$A$16:$AC$216,6,0)) ->  | E129: =IF(OR(SUMPRODUCT(--(ISTEXT('Trust - Frontsheet'!I138:AC138)))>0,SUMPRODUCT(--(ISERROR('Trust - Frontsheet'!AD138:AT138)))>0),"There is invalid data on this row",IF(SUMPRODUCT(--('Trust - Frontsheet'!I138:AC138<0))>0,"This row contains negative values",IF(AND(L129="This is a blank Row",COUNTBLANK(INDIRECT("L" & ROW() + 1 & ":L" & 206))>0),"No blank rows in the data",""))) ->  | F129: =IF(A129 = "","",IF('Trust - Frontsheet'!D138="", "Site code not present","")) ->  | G129: =IF('Trust - Frontsheet'!D138="","",IF(VLOOKUP(A129,'Trust - Frontsheet'!$A$16:$AC$215,6,0)="","Ward name not present","")) ->  | H129: =IF(A129="","",IF(VLOOKUP(A129,'Trust - Frontsheet'!$A$16:$AC$215,7,0)="","Specialty 1 has not been selected","")) ->  | I129: =IF(A129="","",IF(OR(COUNTIF(Specialties,VLOOKUP(A129,'Trust - Frontsheet'!$A$16:$AC$215,7,0))=0, AND(COUNTIF(Specialties,VLOOKUP(A129,'Trust - Frontsheet'!$A$16:$AC$215,8,0))=0,VLOOKUP(A129,'Trust - Frontsheet'!$A$16:$AC$215,8,0)<>"")),"You have entered unacceptable specialties.","")) ->  | J129: =IF(A129="","",IF(AND(RIGHT(VLOOKUP(A129,'Trust - Frontsheet'!$A$16:$AC$215,7,0),3)<>RIGHT(VLOOKUP(A129,'Trust - Frontsheet'!$A$16:$AC$215,8,0),3),VLOOKUP(A129,'Trust - Frontsheet'!$A$16:$AC$215,8,0)<>""),"Covid statuses do not match","")) ->  | L129: =IF(SUMPRODUCT(--('Trust - Frontsheet'!$D138:$AC138=""))<>26,"","This is a blank row") -> This is a blank row
A130: =IF('Trust - Frontsheet'!A139="","",'Trust - Frontsheet'!A139) ->  | B130: =IF('Trust - Frontsheet'!A139="","",'Trust - Frontsheet'!D139) ->  | C130: =IF(VLOOKUP(A130,'Trust - Frontsheet'!$A$16:$AC$215,5,0)="","",VLOOKUP(A130,'Trust - Frontsheet'!$A$16:$AC$216,5,0)) ->  | D130: =IF(VLOOKUP(A130,'Trust - Frontsheet'!$A$16:$AC$215,6,0)="","",VLOOKUP(A130,'Trust - Frontsheet'!$A$16:$AC$216,6,0)) ->  | E130: =IF(OR(SUMPRODUCT(--(ISTEXT('Trust - Frontsheet'!I139:AC139)))>0,SUMPRODUCT(--(ISERROR('Trust - Frontsheet'!AD139:AT139)))>0),"There is invalid data on this row",IF(SUMPRODUCT(--('Trust - Frontsheet'!I139:AC139<0))>0,"This row contains negative values",IF(AND(L130="This is a blank Row",COUNTBLANK(INDIRECT("L" & ROW() + 1 & ":L" & 206))>0),"No blank rows in the data",""))) ->  | F130: =IF(A130 = "","",IF('Trust - Frontsheet'!D139="", "Site code not present","")) ->  | G130: =IF('Trust - Frontsheet'!D139="","",IF(VLOOKUP(A130,'Trust - Frontsheet'!$A$16:$AC$215,6,0)="","Ward name not present","")) ->  | H130: =IF(A130="","",IF(VLOOKUP(A130,'Trust - Frontsheet'!$A$16:$AC$215,7,0)="","Specialty 1 has not been selected","")) ->  | I130: =IF(A130="","",IF(OR(COUNTIF(Specialties,VLOOKUP(A130,'Trust - Frontsheet'!$A$16:$AC$215,7,0))=0, AND(COUNTIF(Specialties,VLOOKUP(A130,'Trust - Frontsheet'!$A$16:$AC$215,8,0))=0,VLOOKUP(A130,'Trust - Frontsheet'!$A$16:$AC$215,8,0)<>"")),"You have entered unacceptable specialties.","")) ->  | J130: =IF(A130="","",IF(AND(RIGHT(VLOOKUP(A130,'Trust - Frontsheet'!$A$16:$AC$215,7,0),3)<>RIGHT(VLOOKUP(A130,'Trust - Frontsheet'!$A$16:$AC$215,8,0),3),VLOOKUP(A130,'Trust - Frontsheet'!$A$16:$AC$215,8,0)<>""),"Covid statuses do not match","")) ->  | L130: =IF(SUMPRODUCT(--('Trust - Frontsheet'!$D139:$AC139=""))<>26,"","This is a blank row") -> This is a blank row
A131: =IF('Trust - Frontsheet'!A140="","",'Trust - Frontsheet'!A140) ->  | B131: =IF('Trust - Frontsheet'!A140="","",'Trust - Frontsheet'!D140) ->  | C131: =IF(VLOOKUP(A131,'Trust - Frontsheet'!$A$16:$AC$215,5,0)="","",VLOOKUP(A131,'Trust - Frontsheet'!$A$16:$AC$216,5,0)) ->  | D131: =IF(VLOOKUP(A131,'Trust - Frontsheet'!$A$16:$AC$215,6,0)="","",VLOOKUP(A131,'Trust - Frontsheet'!$A$16:$AC$216,6,0)) ->  | E131: =IF(OR(SUMPRODUCT(--(ISTEXT('Trust - Frontsheet'!I140:AC140)))>0,SUMPRODUCT(--(ISERROR('Trust - Frontsheet'!AD140:AT140)))>0),"There is invalid data on this row",IF(SUMPRODUCT(--('Trust - Frontsheet'!I140:AC140<0))>0,"This row contains negative values",IF(AND(L131="This is a blank Row",COUNTBLANK(INDIRECT("L" & ROW() + 1 & ":L" & 206))>0),"No blank rows in the data",""))) ->  | F131: =IF(A131 = "","",IF('Trust - Frontsheet'!D140="", "Site code not present","")) ->  | G131: =IF('Trust - Frontsheet'!D140="","",IF(VLOOKUP(A131,'Trust - Frontsheet'!$A$16:$AC$215,6,0)="","Ward name not present","")) ->  | H131: =IF(A131="","",IF(VLOOKUP(A131,'Trust - Frontsheet'!$A$16:$AC$215,7,0)="","Specialty 1 has not been selected","")) ->  | I131: =IF(A131="","",IF(OR(COUNTIF(Specialties,VLOOKUP(A131,'Trust - Frontsheet'!$A$16:$AC$215,7,0))=0, AND(COUNTIF(Specialties,VLOOKUP(A131,'Trust - Frontsheet'!$A$16:$AC$215,8,0))=0,VLOOKUP(A131,'Trust - Frontsheet'!$A$16:$AC$215,8,0)<>"")),"You have entered unacceptable specialties.","")) ->  | J131: =IF(A131="","",IF(AND(RIGHT(VLOOKUP(A131,'Trust - Frontsheet'!$A$16:$AC$215,7,0),3)<>RIGHT(VLOOKUP(A131,'Trust - Frontsheet'!$A$16:$AC$215,8,0),3),VLOOKUP(A131,'Trust - Frontsheet'!$A$16:$AC$215,8,0)<>""),"Covid statuses do not match","")) ->  | L131: =IF(SUMPRODUCT(--('Trust - Frontsheet'!$D140:$AC140=""))<>26,"","This is a blank row") -> This is a blank row
A132: =IF('Trust - Frontsheet'!A141="","",'Trust - Frontsheet'!A141) ->  | B132: =IF('Trust - Frontsheet'!A141="","",'Trust - Frontsheet'!D141) ->  | C132: =IF(VLOOKUP(A132,'Trust - Frontsheet'!$A$16:$AC$215,5,0)="","",VLOOKUP(A132,'Trust - Frontsheet'!$A$16:$AC$216,5,0)) ->  | D132: =IF(VLOOKUP(A132,'Trust - Frontsheet'!$A$16:$AC$215,6,0)="","",VLOOKUP(A132,'Trust - Frontsheet'!$A$16:$AC$216,6,0)) ->  | E132: =IF(OR(SUMPRODUCT(--(ISTEXT('Trust - Frontsheet'!I141:AC141)))>0,SUMPRODUCT(--(ISERROR('Trust - Frontsheet'!AD141:AT141)))>0),"There is invalid data on this row",IF(SUMPRODUCT(--('Trust - Frontsheet'!I141:AC141<0))>0,"This row contains negative values",IF(AND(L132="This is a blank Row",COUNTBLANK(INDIRECT("L" & ROW() + 1 & ":L" & 206))>0),"No blank rows in the data",""))) ->  | F132: =IF(A132 = "","",IF('Trust - Frontsheet'!D141="", "Site code not present","")) ->  | G132: =IF('Trust - Frontsheet'!D141="","",IF(VLOOKUP(A132,'Trust - Frontsheet'!$A$16:$AC$215,6,0)="","Ward name not present","")) ->  | H132: =IF(A132="","",IF(VLOOKUP(A132,'Trust - Frontsheet'!$A$16:$AC$215,7,0)="","Specialty 1 has not been selected","")) ->  | I132: =IF(A132="","",IF(OR(COUNTIF(Specialties,VLOOKUP(A132,'Trust - Frontsheet'!$A$16:$AC$215,7,0))=0, AND(COUNTIF(Specialties,VLOOKUP(A132,'Trust - Frontsheet'!$A$16:$AC$215,8,0))=0,VLOOKUP(A132,'Trust - Frontsheet'!$A$16:$AC$215,8,0)<>"")),"You have entered unacceptable specialties.","")) ->  | J132: =IF(A132="","",IF(AND(RIGHT(VLOOKUP(A132,'Trust - Frontsheet'!$A$16:$AC$215,7,0),3)<>RIGHT(VLOOKUP(A132,'Trust - Frontsheet'!$A$16:$AC$215,8,0),3),VLOOKUP(A132,'Trust - Frontsheet'!$A$16:$AC$215,8,0)<>""),"Covid statuses do not match","")) ->  | L132: =IF(SUMPRODUCT(--('Trust - Frontsheet'!$D141:$AC141=""))<>26,"","This is a blank row") -> This is a blank row
A133: =IF('Trust - Frontsheet'!A142="","",'Trust - Frontsheet'!A142) ->  | B133: =IF('Trust - Frontsheet'!A142="","",'Trust - Frontsheet'!D142) ->  | C133: =IF(VLOOKUP(A133,'Trust - Frontsheet'!$A$16:$AC$215,5,0)="","",VLOOKUP(A133,'Trust - Frontsheet'!$A$16:$AC$216,5,0)) ->  | D133: =IF(VLOOKUP(A133,'Trust - Frontsheet'!$A$16:$AC$215,6,0)="","",VLOOKUP(A133,'Trust - Frontsheet'!$A$16:$AC$216,6,0)) ->  | E133: =IF(OR(SUMPRODUCT(--(ISTEXT('Trust - Frontsheet'!I142:AC142)))>0,SUMPRODUCT(--(ISERROR('Trust - Frontsheet'!AD142:AT142)))>0),"There is invalid data on this row",IF(SUMPRODUCT(--('Trust - Frontsheet'!I142:AC142<0))>0,"This row contains negative values",IF(AND(L133="This is a blank Row",COUNTBLANK(INDIRECT("L" & ROW() + 1 & ":L" & 206))>0),"No blank rows in the data",""))) ->  | F133: =IF(A133 = "","",IF('Trust - Frontsheet'!D142="", "Site code not present","")) ->  | G133: =IF('Trust - Frontsheet'!D142="","",IF(VLOOKUP(A133,'Trust - Frontsheet'!$A$16:$AC$215,6,0)="","Ward name not present","")) ->  | H133: =IF(A133="","",IF(VLOOKUP(A133,'Trust - Frontsheet'!$A$16:$AC$215,7,0)="","Specialty 1 has not been selected","")) ->  | I133: =IF(A133="","",IF(OR(COUNTIF(Specialties,VLOOKUP(A133,'Trust - Frontsheet'!$A$16:$AC$215,7,0))=0, AND(COUNTIF(Specialties,VLOOKUP(A133,'Trust - Frontsheet'!$A$16:$AC$215,8,0))=0,VLOOKUP(A133,'Trust - Frontsheet'!$A$16:$AC$215,8,0)<>"")),"You have entered unacceptable specialties.","")) ->  | J133: =IF(A133="","",IF(AND(RIGHT(VLOOKUP(A133,'Trust - Frontsheet'!$A$16:$AC$215,7,0),3)<>RIGHT(VLOOKUP(A133,'Trust - Frontsheet'!$A$16:$AC$215,8,0),3),VLOOKUP(A133,'Trust - Frontsheet'!$A$16:$AC$215,8,0)<>""),"Covid statuses do not match","")) ->  | L133: =IF(SUMPRODUCT(--('Trust - Frontsheet'!$D142:$AC142=""))<>26,"","This is a blank row") -> This is a blank row
A134: =IF('Trust - Frontsheet'!A143="","",'Trust - Frontsheet'!A143) ->  | B134: =IF('Trust - Frontsheet'!A143="","",'Trust - Frontsheet'!D143) ->  | C134: =IF(VLOOKUP(A134,'Trust - Frontsheet'!$A$16:$AC$215,5,0)="","",VLOOKUP(A134,'Trust - Frontsheet'!$A$16:$AC$216,5,0)) ->  | D134: =IF(VLOOKUP(A134,'Trust - Frontsheet'!$A$16:$AC$215,6,0)="","",VLOOKUP(A134,'Trust - Frontsheet'!$A$16:$AC$216,6,0)) ->  | E134: =IF(OR(SUMPRODUCT(--(ISTEXT('Trust - Frontsheet'!I143:AC143)))>0,SUMPRODUCT(--(ISERROR('Trust - Frontsheet'!AD143:AT143)))>0),"There is invalid data on this row",IF(SUMPRODUCT(--('Trust - Frontsheet'!I143:AC143<0))>0,"This row contains negative values",IF(AND(L134="This is a blank Row",COUNTBLANK(INDIRECT("L" & ROW() + 1 & ":L" & 206))>0),"No blank rows in the data",""))) ->  | F134: =IF(A134 = "","",IF('Trust - Frontsheet'!D143="", "Site code not present","")) ->  | G134: =IF('Trust - Frontsheet'!D143="","",IF(VLOOKUP(A134,'Trust - Frontsheet'!$A$16:$AC$215,6,0)="","Ward name not present","")) ->  | H134: =IF(A134="","",IF(VLOOKUP(A134,'Trust - Frontsheet'!$A$16:$AC$215,7,0)="","Specialty 1 has not been selected","")) ->  | I134: =IF(A134="","",IF(OR(COUNTIF(Specialties,VLOOKUP(A134,'Trust - Frontsheet'!$A$16:$AC$215,7,0))=0, AND(COUNTIF(Specialties,VLOOKUP(A134,'Trust - Frontsheet'!$A$16:$AC$215,8,0))=0,VLOOKUP(A134,'Trust - Frontsheet'!$A$16:$AC$215,8,0)<>"")),"You have entered unacceptable specialties.","")) ->  | J134: =IF(A134="","",IF(AND(RIGHT(VLOOKUP(A134,'Trust - Frontsheet'!$A$16:$AC$215,7,0),3)<>RIGHT(VLOOKUP(A134,'Trust - Frontsheet'!$A$16:$AC$215,8,0),3),VLOOKUP(A134,'Trust - Frontsheet'!$A$16:$AC$215,8,0)<>""),"Covid statuses do not match","")) ->  | L134: =IF(SUMPRODUCT(--('Trust - Frontsheet'!$D143:$AC143=""))<>26,"","This is a blank row") -> This is a blank row
A135: =IF('Trust - Frontsheet'!A144="","",'Trust - Frontsheet'!A144) ->  | B135: =IF('Trust - Frontsheet'!A144="","",'Trust - Frontsheet'!D144) ->  | C135: =IF(VLOOKUP(A135,'Trust - Frontsheet'!$A$16:$AC$215,5,0)="","",VLOOKUP(A135,'Trust - Frontsheet'!$A$16:$AC$216,5,0)) ->  | D135: =IF(VLOOKUP(A135,'Trust - Frontsheet'!$A$16:$AC$215,6,0)="","",VLOOKUP(A135,'Trust - Frontsheet'!$A$16:$AC$216,6,0)) ->  | E135: =IF(OR(SUMPRODUCT(--(ISTEXT('Trust - Frontsheet'!I144:AC144)))>0,SUMPRODUCT(--(ISERROR('Trust - Frontsheet'!AD144:AT144)))>0),"There is invalid data on this row",IF(SUMPRODUCT(--('Trust - Frontsheet'!I144:AC144<0))>0,"This row contains negative values",IF(AND(L135="This is a blank Row",COUNTBLANK(INDIRECT("L" & ROW() + 1 & ":L" & 206))>0),"No blank rows in the data",""))) ->  | F135: =IF(A135 = "","",IF('Trust - Frontsheet'!D144="", "Site code not present","")) ->  | G135: =IF('Trust - Frontsheet'!D144="","",IF(VLOOKUP(A135,'Trust - Frontsheet'!$A$16:$AC$215,6,0)="","Ward name not present","")) ->  | H135: =IF(A135="","",IF(VLOOKUP(A135,'Trust - Frontsheet'!$A$16:$AC$215,7,0)="","Specialty 1 has not been selected","")) ->  | I135: =IF(A135="","",IF(OR(COUNTIF(Specialties,VLOOKUP(A135,'Trust - Frontsheet'!$A$16:$AC$215,7,0))=0, AND(COUNTIF(Specialties,VLOOKUP(A135,'Trust - Frontsheet'!$A$16:$AC$215,8,0))=0,VLOOKUP(A135,'Trust - Frontsheet'!$A$16:$AC$215,8,0)<>"")),"You have entered unacceptable specialties.","")) ->  | J135: =IF(A135="","",IF(AND(RIGHT(VLOOKUP(A135,'Trust - Frontsheet'!$A$16:$AC$215,7,0),3)<>RIGHT(VLOOKUP(A135,'Trust - Frontsheet'!$A$16:$AC$215,8,0),3),VLOOKUP(A135,'Trust - Frontsheet'!$A$16:$AC$215,8,0)<>""),"Covid statuses do not match","")) ->  | L135: =IF(SUMPRODUCT(--('Trust - Frontsheet'!$D144:$AC144=""))<>26,"","This is a blank row") -> This is a blank row
A136: =IF('Trust - Frontsheet'!A145="","",'Trust - Frontsheet'!A145) ->  | B136: =IF('Trust - Frontsheet'!A145="","",'Trust - Frontsheet'!D145) ->  | C136: =IF(VLOOKUP(A136,'Trust - Frontsheet'!$A$16:$AC$215,5,0)="","",VLOOKUP(A136,'Trust - Frontsheet'!$A$16:$AC$216,5,0)) ->  | D136: =IF(VLOOKUP(A136,'Trust - Frontsheet'!$A$16:$AC$215,6,0)="","",VLOOKUP(A136,'Trust - Frontsheet'!$A$16:$AC$216,6,0)) ->  | E136: =IF(OR(SUMPRODUCT(--(ISTEXT('Trust - Frontsheet'!I145:AC145)))>0,SUMPRODUCT(--(ISERROR('Trust - Frontsheet'!AD145:AT145)))>0),"There is invalid data on this row",IF(SUMPRODUCT(--('Trust - Frontsheet'!I145:AC145<0))>0,"This row contains negative values",IF(AND(L136="This is a blank Row",COUNTBLANK(INDIRECT("L" & ROW() + 1 & ":L" & 206))>0),"No blank rows in the data",""))) ->  | F136: =IF(A136 = "","",IF('Trust - Frontsheet'!D145="", "Site code not present","")) ->  | G136: =IF('Trust - Frontsheet'!D145="","",IF(VLOOKUP(A136,'Trust - Frontsheet'!$A$16:$AC$215,6,0)="","Ward name not present","")) ->  | H136: =IF(A136="","",IF(VLOOKUP(A136,'Trust - Frontsheet'!$A$16:$AC$215,7,0)="","Specialty 1 has not been selected","")) ->  | I136: =IF(A136="","",IF(OR(COUNTIF(Specialties,VLOOKUP(A136,'Trust - Frontsheet'!$A$16:$AC$215,7,0))=0, AND(COUNTIF(Specialties,VLOOKUP(A136,'Trust - Frontsheet'!$A$16:$AC$215,8,0))=0,VLOOKUP(A136,'Trust - Frontsheet'!$A$16:$AC$215,8,0)<>"")),"You have entered unacceptable specialties.","")) ->  | J136: =IF(A136="","",IF(AND(RIGHT(VLOOKUP(A136,'Trust - Frontsheet'!$A$16:$AC$215,7,0),3)<>RIGHT(VLOOKUP(A136,'Trust - Frontsheet'!$A$16:$AC$215,8,0),3),VLOOKUP(A136,'Trust - Frontsheet'!$A$16:$AC$215,8,0)<>""),"Covid statuses do not match","")) ->  | K136: =IF(A136="","",IF(COUNTIF($A$7:$A$206,A136)>1,"You have entered a duplicate site-ward pair","")) ->  | L136: =IF(SUMPRODUCT(--('Trust - Frontsheet'!$D145:$AC145=""))<>26,"","This is a blank row") -> This is a blank row
A137: =IF('Trust - Frontsheet'!A146="","",'Trust - Frontsheet'!A146) ->  | B137: =IF('Trust - Frontsheet'!A146="","",'Trust - Frontsheet'!D146) ->  | C137: =IF(VLOOKUP(A137,'Trust - Frontsheet'!$A$16:$AC$215,5,0)="","",VLOOKUP(A137,'Trust - Frontsheet'!$A$16:$AC$216,5,0)) ->  | D137: =IF(VLOOKUP(A137,'Trust - Frontsheet'!$A$16:$AC$215,6,0)="","",VLOOKUP(A137,'Trust - Frontsheet'!$A$16:$AC$216,6,0)) ->  | E137: =IF(OR(SUMPRODUCT(--(ISTEXT('Trust - Frontsheet'!I146:AC146)))>0,SUMPRODUCT(--(ISERROR('Trust - Frontsheet'!AD146:AT146)))>0),"There is invalid data on this row",IF(SUMPRODUCT(--('Trust - Frontsheet'!I146:AC146<0))>0,"This row contains negative values",IF(AND(L137="This is a blank Row",COUNTBLANK(INDIRECT("L" & ROW() + 1 & ":L" & 206))>0),"No blank rows in the data",""))) ->  | F137: =IF(A137 = "","",IF('Trust - Frontsheet'!D146="", "Site code not present","")) ->  | G137: =IF('Trust - Frontsheet'!D146="","",IF(VLOOKUP(A137,'Trust - Frontsheet'!$A$16:$AC$215,6,0)="","Ward name not present","")) ->  | H137: =IF(A137="","",IF(VLOOKUP(A137,'Trust - Frontsheet'!$A$16:$AC$215,7,0)="","Specialty 1 has not been selected","")) ->  | I137: =IF(A137="","",IF(OR(COUNTIF(Specialties,VLOOKUP(A137,'Trust - Frontsheet'!$A$16:$AC$215,7,0))=0, AND(COUNTIF(Specialties,VLOOKUP(A137,'Trust - Frontsheet'!$A$16:$AC$215,8,0))=0,VLOOKUP(A137,'Trust - Frontsheet'!$A$16:$AC$215,8,0)<>"")),"You have entered unacceptable specialties.","")) ->  | J137: =IF(A137="","",IF(AND(RIGHT(VLOOKUP(A137,'Trust - Frontsheet'!$A$16:$AC$215,7,0),3)<>RIGHT(VLOOKUP(A137,'Trust - Frontsheet'!$A$16:$AC$215,8,0),3),VLOOKUP(A137,'Trust - Frontsheet'!$A$16:$AC$215,8,0)<>""),"Covid statuses do not match","")) ->  | L137: =IF(SUMPRODUCT(--('Trust - Frontsheet'!$D146:$AC146=""))<>26,"","This is a blank row") -> This is a blank row
A138: =IF('Trust - Frontsheet'!A147="","",'Trust - Frontsheet'!A147) ->  | B138: =IF('Trust - Frontsheet'!A147="","",'Trust - Frontsheet'!D147) ->  | C138: =IF(VLOOKUP(A138,'Trust - Frontsheet'!$A$16:$AC$215,5,0)="","",VLOOKUP(A138,'Trust - Frontsheet'!$A$16:$AC$216,5,0)) ->  | D138: =IF(VLOOKUP(A138,'Trust - Frontsheet'!$A$16:$AC$215,6,0)="","",VLOOKUP(A138,'Trust - Frontsheet'!$A$16:$AC$216,6,0)) ->  | E138: =IF(OR(SUMPRODUCT(--(ISTEXT('Trust - Frontsheet'!I147:AC147)))>0,SUMPRODUCT(--(ISERROR('Trust - Frontsheet'!AD147:AT147)))>0),"There is invalid data on this row",IF(SUMPRODUCT(--('Trust - Frontsheet'!I147:AC147<0))>0,"This row contains negative values",IF(AND(L138="This is a blank Row",COUNTBLANK(INDIRECT("L" & ROW() + 1 & ":L" & 206))>0),"No blank rows in the data",""))) ->  | F138: =IF(A138 = "","",IF('Trust - Frontsheet'!D147="", "Site code not present","")) ->  | G138: =IF('Trust - Frontsheet'!D147="","",IF(VLOOKUP(A138,'Trust - Frontsheet'!$A$16:$AC$215,6,0)="","Ward name not present","")) ->  | H138: =IF(A138="","",IF(VLOOKUP(A138,'Trust - Frontsheet'!$A$16:$AC$215,7,0)="","Specialty 1 has not been selected","")) ->  | I138: =IF(A138="","",IF(OR(COUNTIF(Specialties,VLOOKUP(A138,'Trust - Frontsheet'!$A$16:$AC$215,7,0))=0, AND(COUNTIF(Specialties,VLOOKUP(A138,'Trust - Frontsheet'!$A$16:$AC$215,8,0))=0,VLOOKUP(A138,'Trust - Frontsheet'!$A$16:$AC$215,8,0)<>"")),"You have entered unacceptable specialties.","")) ->  | J138: =IF(A138="","",IF(AND(RIGHT(VLOOKUP(A138,'Trust - Frontsheet'!$A$16:$AC$215,7,0),3)<>RIGHT(VLOOKUP(A138,'Trust - Frontsheet'!$A$16:$AC$215,8,0),3),VLOOKUP(A138,'Trust - Frontsheet'!$A$16:$AC$215,8,0)<>""),"Covid statuses do not match","")) ->  | L138: =IF(SUMPRODUCT(--('Trust - Frontsheet'!$D147:$AC147=""))<>26,"","This is a blank row") -> This is a blank row
A139: =IF('Trust - Frontsheet'!A148="","",'Trust - Frontsheet'!A148) ->  | B139: =IF('Trust - Frontsheet'!A148="","",'Trust - Frontsheet'!D148) ->  | C139: =IF(VLOOKUP(A139,'Trust - Frontsheet'!$A$16:$AC$215,5,0)="","",VLOOKUP(A139,'Trust - Frontsheet'!$A$16:$AC$216,5,0)) ->  | D139: =IF(VLOOKUP(A139,'Trust - Frontsheet'!$A$16:$AC$215,6,0)="","",VLOOKUP(A139,'Trust - Frontsheet'!$A$16:$AC$216,6,0)) ->  | E139: =IF(OR(SUMPRODUCT(--(ISTEXT('Trust - Frontsheet'!I148:AC148)))>0,SUMPRODUCT(--(ISERROR('Trust - Frontsheet'!AD148:AT148)))>0),"There is invalid data on this row",IF(SUMPRODUCT(--('Trust - Frontsheet'!I148:AC148<0))>0,"This row contains negative values",IF(AND(L139="This is a blank Row",COUNTBLANK(INDIRECT("L" & ROW() + 1 & ":L" & 206))>0),"No blank rows in the data",""))) ->  | F139: =IF(A139 = "","",IF('Trust - Frontsheet'!D148="", "Site code not present","")) ->  | G139: =IF('Trust - Frontsheet'!D148="","",IF(VLOOKUP(A139,'Trust - Frontsheet'!$A$16:$AC$215,6,0)="","Ward name not present","")) ->  | H139: =IF(A139="","",IF(VLOOKUP(A139,'Trust - Frontsheet'!$A$16:$AC$215,7,0)="","Specialty 1 has not been selected","")) ->  | I139: =IF(A139="","",IF(OR(COUNTIF(Specialties,VLOOKUP(A139,'Trust - Frontsheet'!$A$16:$AC$215,7,0))=0, AND(COUNTIF(Specialties,VLOOKUP(A139,'Trust - Frontsheet'!$A$16:$AC$215,8,0))=0,VLOOKUP(A139,'Trust - Frontsheet'!$A$16:$AC$215,8,0)<>"")),"You have entered unacceptable specialties.","")) ->  | J139: =IF(A139="","",IF(AND(RIGHT(VLOOKUP(A139,'Trust - Frontsheet'!$A$16:$AC$215,7,0),3)<>RIGHT(VLOOKUP(A139,'Trust - Frontsheet'!$A$16:$AC$215,8,0),3),VLOOKUP(A139,'Trust - Frontsheet'!$A$16:$AC$215,8,0)<>""),"Covid statuses do not match","")) ->  | L139: =IF(SUMPRODUCT(--('Trust - Frontsheet'!$D148:$AC148=""))<>26,"","This is a blank row") -> This is a blank row
